Workbook

Sheet Chapter1&2Pages1-24
A1: Chapter 1 & 2 Homework for Pages 1-24
A2: ==>> Homework Sheets 1 to 4

Sheet HW(1)
A1: 1) Copy the table, click in cell I3 and Paste while keeping source column widths. 2) Copy the table, click in cell A9 and Paste while transposing column and row headers. Note: You can use your Horizontal Scroll Bar to scroll over and see more of the sheet to the right.
B3: Product 100 | C3: Product 101 | D3: Product 102 | E3: Product 103 | F3: Product 104 | G3: Product 105
A4: Monday | B4: 149 | C4: 112 | D4: 276 | E4: 115 | F4: 276 | G4: 313
A5: Tuesday | B5: 173 | C5: 228 | D5: 235 | E5: 145 | F5: 252 | G5: 318
A6: Wednesday | B6: 318 | C6: 241 | D6: 122 | E6: 155 | F6: 280 | G6: 256

Sheet HW(1an)
A1: 1) Copy the table, click in cell I3 and Paste while keeping source column widths. 2) Copy the table, click in cell A9 and Paste while transposing column and row headers. Note: You can use your Horizontal Scroll Bar to scroll over and see more of the sheet to the right.
B3: Product 100 | C3: Product 101 | D3: Product 102 | E3: Product 103 | F3: Product 104 | G3: Product 105 | J3: Product 100 | K3: Product 101 | L3: Product 102 | M3: Product 103 | N3: Product 104 | O3: Product 105
A4: Monday | B4: 149 | C4: 112 | D4: 276 | E4: 115 | F4: 276 | G4: 313 | I4: Monday | J4: 149 | K4: 112 | L4: 276 | M4: 115 | N4: 276 | O4: 313
A5: Tuesday | B5: 173 | C5: 228 | D5: 235 | E5: 145 | F5: 252 | G5: 318 | I5: Tuesday | J5: 173 | K5: 228 | L5: 235 | M5: 145 | N5: 252 | O5: 318
A6: Wednesday | B6: 318 | C6: 241 | D6: 122 | E6: 155 | F6: 280 | G6: 256 | I6: Wednesday | J6: 318 | K6: 241 | L6: 122 | M6: 155 | N6: 280 | O6: 256
B9: Monday | C9: Tuesday | D9: Wednesday
A10: Product 100 | B10: 149 | C10: 173 | D10: 318
A11: Product 101 | B11: 112 | C11: 228 | D11: 241
A12: Product 102 | B12: 276 | C12: 235 | D12: 122
A13: Product 103 | B13: 115 | C13: 145 | D13: 155
A14: Product 104 | B14: 276 | C14: 252 | D14: 280
A15: Product 105 | B15: 313 | C15: 318 | D15: 256

Sheet HW(2)
A1: 1) Add Bold to the field name (column header) in cell A3. 2) Highlight the whole column and add the border "All Borders". 3) In cell C4 create a formula that adds Jan Sales.
A3: Jan Sales | C3: Total
A4: 25
A5: 102
A6: 68
A7: 59
A8: 62
A9: 104
A10: 17
A11: 73
A12: 88
A13: 19
A14: 100
A15: 17
A16: 74
A17: 39
A18: 119
A19: 32
A20: 88
A21: 60
A22: 59
A23: 53
A24: 62
A25: 118
A26: 70
A27: 33
A28: 96
A29: 18
A30: 54
A31: 29
A32: 100
A33: 54
A34: 120
A35: 44
A36: 34
A37: 33
A38: 50
A39: 97
A40: 69
A41: 104
A42: 62
A43: 71
A44: 23
A45: 47
A46: 55
A47: 49
A48: 47
A49: 80
A50: 49
A51: 109
A52: 28
A53: 35
A54: 89
A55: 52
A56: 31
A57: 57
A58: 109
A59: 85
A60: 73
A61: 89
A62: 30
A63: 82
A64: 113
A65: 16
A66: 82
A67: 10
A68: 46
A69: 85
A70: 71
A71: 13
A72: 64
A73: 109
A74: 97
A75: 109
A76: 102
A77: 29
A78: 94
A79: 56
A80: 85
A81: 107
A82: 90
A83: 63
A84: 55
A85: 68
A86: 96
A87: 95
A88: 59
A89: 25
A90: 48
A91: 85
A92: 77
A93: 33
A94: 58
A95: 78
A96: 107
A97: 63
A98: 41
A99: 99
A100: 34
A101: 33
A102: 92
A103: 63
A104: 35
A105: 60
A106: 43
A107: 120
A108: 88
A109: 64
A110: 10
A111: 15
A112: 11
A113: 114
A114: 52
A115: 53
A116: 43
A117: 86
A118: 39
A119: 36
A120: 46
A121: 81
A122: 11
A123: 115
A124: 53
A125: 58
A126: 16
A127: 46
A128: 112
A129: 105
A130: 78
A131: 27
A132: 36
A133: 93
A134: 31
A135: 107
A136: 40
A137: 40
A138: 104
A139: 84
A140: 26
A141: 19
A142: 50
A143: 100
A144: 18
A145: 62
A146: 70
A147: 46
A148: 70
A149: 80
A150: 100
A151: 61
A152: 98
A153: 66
A154: 88
A155: 107
A156: 17
A157: 27
A158: 114
A159: 41
A160: 44
A161: 44
A162: 103
A163: 108
A164: 20
A165: 119
A166: 107
A167: 19
A168: 54
A169: 95
A170: 87
A171: 23
A172: 115
A173: 18
A174: 23
A175: 57
A176: 120
A177: 15
A178: 62
A179: 47
A180: 62
A181: 47
A182: 38
A183: 37
A184: 68
A185: 109
A186: 60
A187: 110
A188: 80
A189: 92
A190: 117
A191: 120
A192: 88
A193: 97
A194: 119
A195: 57
A196: 62
A197: 29
A198: 56
A199: 104
A200: 50
A201: 92
... 301 more rows

Sheet HW(2an)
A1: 1) Add Bold to the field name (column header) in cell A3. 2) Highlight the whole column and add the border "All Borders". 3) In cell C4 create a formula that adds Jan Sales.
A3: Jan Sales | C3: Total
A4: 25 | C4: =SUM(A4:A502) -> 31662
A5: 102
A6: 68
A7: 59
A8: 62
A9: 104
A10: 17
A11: 73
A12: 88
A13: 19
A14: 100
A15: 17
A16: 74
A17: 39
A18: 119
A19: 32
A20: 88
A21: 60
A22: 59
A23: 53
A24: 62
A25: 118
A26: 70
A27: 33
A28: 96
A29: 18
A30: 54
A31: 29
A32: 100
A33: 54
A34: 120
A35: 44
A36: 34
A37: 33
A38: 50
A39: 97
A40: 69
A41: 104
A42: 62
A43: 71
A44: 23
A45: 47
A46: 55
A47: 49
A48: 47
A49: 80
A50: 49
A51: 109
A52: 28
A53: 35
A54: 89
A55: 52
A56: 31
A57: 57
A58: 109
A59: 85
A60: 73
A61: 89
A62: 30
A63: 82
A64: 113
A65: 16
A66: 82
A67: 10
A68: 46
A69: 85
A70: 71
A71: 13
A72: 64
A73: 109
A74: 97
A75: 109
A76: 102
A77: 29
A78: 94
A79: 56
A80: 85
A81: 107
A82: 90
A83: 63
A84: 55
A85: 68
A86: 96
A87: 95
A88: 59
A89: 25
A90: 48
A91: 85
A92: 77
A93: 33
A94: 58
A95: 78
A96: 107
A97: 63
A98: 41
A99: 99
A100: 34
A101: 33
A102: 92
A103: 63
A104: 35
A105: 60
A106: 43
A107: 120
A108: 88
A109: 64
A110: 10
A111: 15
A112: 11
A113: 114
A114: 52
A115: 53
A116: 43
A117: 86
A118: 39
A119: 36
A120: 46
A121: 81
A122: 11
A123: 115
A124: 53
A125: 58
A126: 16
A127: 46
A128: 112
A129: 105
A130: 78
A131: 27
A132: 36
A133: 93
A134: 31
A135: 107
A136: 40
A137: 40
A138: 104
A139: 84
A140: 26
A141: 19
A142: 50
A143: 100
A144: 18
A145: 62
A146: 70
A147: 46
A148: 70
A149: 80
A150: 100
A151: 61
A152: 98
A153: 66
A154: 88
A155: 107
A156: 17
A157: 27
A158: 114
A159: 41
A160: 44
A161: 44
A162: 103
A163: 108
A164: 20
A165: 119
A166: 107
A167: 19
A168: 54
A169: 95
A170: 87
A171: 23
A172: 115
A173: 18
A174: 23
A175: 57
A176: 120
A177: 15
A178: 62
A179: 47
A180: 62
A181: 47
A182: 38
A183: 37
A184: 68
A185: 109
A186: 60
A187: 110
A188: 80
A189: 92
A190: 117
A191: 120
A192: 88
A193: 97
A194: 119
A195: 57
A196: 62
A197: 29
A198: 56
A199: 104
A200: 50
A201: 92
... 301 more rows

Sheet HW(3)
A1: 1) In cell B8 create a formula that adds the expenses (do not include the Revenue). Then copy that formula through the range B8:F8. 2) In cell B9 create a formula that calculates Net Income. Then copy that formula through the range B9:F9.
B3: Monday | C3: Tuesday | D3: Wednesday | E3: Thursday | F3: Friday
A4: Revenue | B4: 1000 | C4: =B4*(1+0.1) -> 1100 | D4: 1210 | E4: 1331 | F4: 1464.1
A5: Expense 1 | B5: 291 | C5: 228 | D5: 140 | E5: 268 | F5: 217
A6: Expense 2 | B6: 200 | C6: 124 | D6: 270 | E6: 140 | F6: 164
A7: Expense 3 | B7: 235 | C7: 225 | D7: 103 | E7: 233 | F7: 257
A8: Total Expenses
A9: Net Income

Sheet HW(3an)
A1: 1) In cell B8 create a formula that adds the expenses (do not include the Revenue). Then copy that formula through the range B8:F8. 2) In cell B9 create a formula that calculates Net Income. Then copy that formula through the range B9:F9.
B3: Monday | C3: Tuesday | D3: Wednesday | E3: Thursday | F3: Friday
A4: Revenue | B4: 1000 | C4: =B4*(1+0.1) -> 1100 | D4: 1210 | E4: 1331 | F4: 1464.1
A5: Expense 1 | B5: 291 | C5: 228 | D5: 140 | E5: 268 | F5: 217
A6: Expense 2 | B6: 200 | C6: 124 | D6: 270 | E6: 140 | F6: 164
A7: Expense 3 | B7: 235 | C7: 225 | D7: 103 | E7: 233 | F7: 257
A8: Total Expenses | B8: =SUM(B5:B7) -> 726 | C8: 577 | D8: 513 | E8: 641 | F8: 638
A9: Net Income | B9: =B4-B8 -> 274 | C9: 523 | D9: 697 | E9: 690 | F9: 826.1

Sheet HW(4)
A1: 1) In Cell E4 create a formula that adds the employee's calls, then copy the formula down the column.
A3: Employee | B3: Day 1 Phone Calls | C3: Day 2 Phone Calls | D3: Day 3 Phone Calls | E3: Total Calls
A4: Sioux | B4: 25 | C4: 33 | D4: 72
A5: Tom | B5: 25 | C5: 79 | D5: 94
A6: Chin | B6: 36 | C6: 48 | D6: 38
A7: Pham | B7: 91 | C7: 36 | D7: 59
A8: Shelia | B8: 54 | C8: 67 | D8: 58
A9: Mo | B9: 89 | C9: 95 | D9: 27

Sheet HW(4an)
A1: 1) In Cell E4 create a formula that adds the employee's calls, then copy the formula down the column.
A3: Employee | B3: Day 1 Phone Calls | C3: Day 2 Phone Calls | D3: Day 3 Phone Calls | E3: Total Calls
A4: Sioux | B4: 25 | C4: 33 | D4: 72 | E4: =SUM(B4:D4) -> 130
A5: Tom | B5: 25 | C5: 79 | D5: 94 | E5: 198
A6: Chin | B6: 36 | C6: 48 | D6: 38 | E6: 122
A7: Pham | B7: 91 | C7: 36 | D7: 59 | E7: 186
A8: Shelia | B8: 54 | C8: 67 | D8: 58 | E8: 179
A9: Mo | B9: 89 | C9: 95 | D9: 27 | E9: 211

Sheet Chapter3Pages25-40
A1: Chapter 3 Homework for Pages 25 - 40
A2: ==>> Homework Sheets 5 to 8

Sheet HW(5)
A1: 1) In cell F4, create a formula that will add the Sales for Sioux. Make sure that you verify that the formula is working. 2) Find the problem with the formula in cell F8 and fix it.
A3: Date | B3: SalesRep | C3: Sales | E3: Names | F3: Total Sales
A4: 2010-03-18 | B4: Fred | C4: 73 | E4: Sioux
A5: 2010-03-19 | B5: Jo | C5: 121
A6: 2010-03-20 | B6: Fred | C6: 167
A7: 2010-03-21 | B7: Joe | C7: 167 | E7: Names | F7: Total Sales
A8: 2010-03-22 | B8: Sue | C8: 75 | E8: Sue | F8: =SUMIFS(C4:C30,B4:B30,E7) -> 0
A9: 2010-03-23 | B9: Fred | C9: 157
A10: 2010-03-24 | B10: Sue | C10: 61
A11: 2010-03-25 | B11: Fred | C11: 108
A12: 2010-03-26 | B12: Jo | C12: 139
A13: 2010-03-27 | B13: Sioux | C13: 130
A14: 2010-03-28 | B14: Sue | C14: 66
A15: 2010-03-29 | B15: Sioux | C15: 86
A16: 2010-03-30 | B16: Joe | C16: 122
A17: 2010-03-31 | B17: Sioux | C17: 50
A18: 2010-04-01 | B18: Sue | C18: 77
A19: 2010-04-02 | B19: Fred | C19: 140
A20: 2010-04-03 | B20: Sue | C20: 107
A21: 2010-04-04 | B21: Sioux | C21: 109
A22: 2010-04-05 | B22: Joe | C22: 121
A23: 2010-04-06 | B23: Fred | C23: 78
A24: 2010-04-07 | B24: Sioux | C24: 168
A25: 2010-04-08 | B25: Jo | C25: 88
A26: 2010-04-09 | B26: Chin | C26: 110
A27: 2010-04-10 | B27: Chin | C27: 132
A28: 2010-04-11 | B28: Jo | C28: 54
A29: 2010-04-12 | B29: Fred | C29: 58
A30: 2010-04-13 | B30: Sue | C30: 71

Sheet HW(5an)
A1: 1) In cell F4, create a formula that will add the Sales for Sioux. Make sure that you verify that the formula is working. 2) Find the problem with the formula in cell F8 and fix it.
A3: Date | B3: SalesRep | C3: Sales | E3: Names | F3: Total Sales
A4: 2010-03-18 | B4: Fred | C4: 73 | E4: Sioux | F4: =SUMIFS(C4:C30,B4:B30,E4) -> 543
A5: 2010-03-19 | B5: Jo | C5: 121
A6: 2010-03-20 | B6: Fred | C6: 167
A7: 2010-03-21 | B7: Joe | C7: 167 | E7: Names | F7: Total Sales
A8: 2010-03-22 | B8: Sue | C8: 75 | E8: Sue | F8: =SUMIFS(C4:C30,B4:B30,E8) -> 457
A9: 2010-03-23 | B9: Fred | C9: 157
A10: 2010-03-24 | B10: Sue | C10: 61
A11: 2010-03-25 | B11: Fred | C11: 108
A12: 2010-03-26 | B12: Jo | C12: 139
A13: 2010-03-27 | B13: Sioux | C13: 130
A14: 2010-03-28 | B14: Sue | C14: 66
A15: 2010-03-29 | B15: Sioux | C15: 86
A16: 2010-03-30 | B16: Joe | C16: 122
A17: 2010-03-31 | B17: Sioux | C17: 50
A18: 2010-04-01 | B18: Sue | C18: 77
A19: 2010-04-02 | B19: Fred | C19: 140
A20: 2010-04-03 | B20: Sue | C20: 107
A21: 2010-04-04 | B21: Sioux | C21: 109
A22: 2010-04-05 | B22: Joe | C22: 121
A23: 2010-04-06 | B23: Fred | C23: 78
A24: 2010-04-07 | B24: Sioux | C24: 168
A25: 2010-04-08 | B25: Jo | C25: 88
A26: 2010-04-09 | B26: Chin | C26: 110
A27: 2010-04-10 | B27: Chin | C27: 132
A28: 2010-04-11 | B28: Jo | C28: 54
A29: 2010-04-12 | B29: Fred | C29: 58
A30: 2010-04-13 | B30: Sue | C30: 71

Sheet HW(6)
A1: 1) Create a PivotTable that sums the Sales for each SalesRep - remember to visualize the table first, before you make your PivotTable. In the Create PivotTable dialog box, select the option button for Existing Worksheet with the Locations of cell F5. After you create your PivotTable, change the layout to "Show In Tabular Form".
A3: Date | B3: SalesRep | C3: Sales
A4: 2010-03-18 | B4: Fred | C4: 73
A5: 2010-03-19 | B5: Jo | C5: 121
A6: 2010-03-20 | B6: Fred | C6: 167
A7: 2010-03-21 | B7: Joe | C7: 167
A8: 2010-03-22 | B8: Sue | C8: 75
A9: 2010-03-23 | B9: Fred | C9: 157
A10: 2010-03-24 | B10: Sue | C10: 61
A11: 2010-03-25 | B11: Fred | C11: 108
A12: 2010-03-26 | B12: Jo | C12: 139
A13: 2010-03-27 | B13: Sioux | C13: 130
A14: 2010-03-28 | B14: Sue | C14: 66
A15: 2010-03-29 | B15: Sioux | C15: 86
A16: 2010-03-30 | B16: Joe | C16: 122
A17: 2010-03-31 | B17: Sioux | C17: 50
A18: 2010-04-01 | B18: Sue | C18: 77
A19: 2010-04-02 | B19: Fred | C19: 140
A20: 2010-04-03 | B20: Sue | C20: 107
A21: 2010-04-04 | B21: Sioux | C21: 109
A22: 2010-04-05 | B22: Joe | C22: 121
A23: 2010-04-06 | B23: Fred | C23: 78
A24: 2010-04-07 | B24: Sioux | C24: 168
A25: 2010-04-08 | B25: Jo | C25: 88
A26: 2010-04-09 | B26: Chin | C26: 110
A27: 2010-04-10 | B27: Chin | C27: 132
A28: 2010-04-11 | B28: Jo | C28: 54
A29: 2010-04-12 | B29: Fred | C29: 58
A30: 2010-04-13 | B30: Sue | C30: 71

Sheet HW(6an)
A1: 1) Create a PivotTable that sums the Sales for each SalesRep - remember to visualize the table first, before you make your PivotTable. In the Create PivotTable dialog box, select the option button for Existing Worksheet with the Locations of cell F5. After you create your PivotTable, change the layout to "Show In Tabular Form".
A3: Date | B3: SalesRep | C3: Sales
A4: 2010-03-18 | B4: Fred | C4: 73
A5: 2010-03-19 | B5: Jo | C5: 121 | F5: SalesRep | G5: Sum of Sales
A6: 2010-03-20 | B6: Fred | C6: 167 | F6: Chin | G6: 242
A7: 2010-03-21 | B7: Joe | C7: 167 | F7: Fred | G7: 781
A8: 2010-03-22 | B8: Sue | C8: 75 | F8: Jo | G8: 402
A9: 2010-03-23 | B9: Fred | C9: 157 | F9: Joe | G9: 410
A10: 2010-03-24 | B10: Sue | C10: 61 | F10: Sioux | G10: 543
A11: 2010-03-25 | B11: Fred | C11: 108 | F11: Sue | G11: 457
A12: 2010-03-26 | B12: Jo | C12: 139 | F12: Grand Total | G12: 2835
A13: 2010-03-27 | B13: Sioux | C13: 130
A14: 2010-03-28 | B14: Sue | C14: 66
A15: 2010-03-29 | B15: Sioux | C15: 86
A16: 2010-03-30 | B16: Joe | C16: 122
A17: 2010-03-31 | B17: Sioux | C17: 50
A18: 2010-04-01 | B18: Sue | C18: 77
A19: 2010-04-02 | B19: Fred | C19: 140
A20: 2010-04-03 | B20: Sue | C20: 107
A21: 2010-04-04 | B21: Sioux | C21: 109
A22: 2010-04-05 | B22: Joe | C22: 121
A23: 2010-04-06 | B23: Fred | C23: 78
A24: 2010-04-07 | B24: Sioux | C24: 168
A25: 2010-04-08 | B25: Jo | C25: 88
A26: 2010-04-09 | B26: Chin | C26: 110
A27: 2010-04-10 | B27: Chin | C27: 132
A28: 2010-04-11 | B28: Jo | C28: 54
A29: 2010-04-12 | B29: Fred | C29: 58
A30: 2010-04-13 | B30: Sue | C30: 71

Sheet HW(7)
A1: 1) Fix the problem with the formula in cell E4.
A3: Date | B3: SalesRep | C3: Sales | E3: Total Sales
A4: 2010-03-18 | B4: Fred | C4: 73 | E4: =SUM(C4:C29) -> 2764
A5: 2010-03-19 | B5: Jo | C5: 121
A6: 2010-03-20 | B6: Fred | C6: 167
A7: 2010-03-21 | B7: Joe | C7: 167
A8: 2010-03-22 | B8: Sue | C8: 75
A9: 2010-03-23 | B9: Fred | C9: 157
A10: 2010-03-24 | B10: Sue | C10: 61
A11: 2010-03-25 | B11: Fred | C11: 108
A12: 2010-03-26 | B12: Jo | C12: 139
A13: 2010-03-27 | B13: Sioux | C13: 130
A14: 2010-03-28 | B14: Sue | C14: 66
A15: 2010-03-29 | B15: Sioux | C15: 86
A16: 2010-03-30 | B16: Joe | C16: 122
A17: 2010-03-31 | B17: Sioux | C17: 50
A18: 2010-04-01 | B18: Sue | C18: 77
A19: 2010-04-02 | B19: Fred | C19: 140
A20: 2010-04-03 | B20: Sue | C20: 107
A21: 2010-04-04 | B21: Sioux | C21: 109
A22: 2010-04-05 | B22: Joe | C22: 121
A23: 2010-04-06 | B23: Fred | C23: 78
A24: 2010-04-07 | B24: Sioux | C24: 168
A25: 2010-04-08 | B25: Jo | C25: 88
A26: 2010-04-09 | B26: Chin | C26: 110
A27: 2010-04-10 | B27: Chin | C27: 132
A28: 2010-04-11 | B28: Jo | C28: 54
A29: 2010-04-12 | B29: Fred | C29: 58
A30: 2010-04-13 | B30: Sue | C30: 71

Sheet HW(7an)
A1: 1) Fix the problem with the formula in cell E4.
A3: Date | B3: SalesRep | C3: Sales | E3: Total Sales
A4: 2010-03-18 | B4: Fred | C4: 73 | E4: =SUM(C4:C30) -> 2835
A5: 2010-03-19 | B5: Jo | C5: 121
A6: 2010-03-20 | B6: Fred | C6: 167
A7: 2010-03-21 | B7: Joe | C7: 167
A8: 2010-03-22 | B8: Sue | C8: 75
A9: 2010-03-23 | B9: Fred | C9: 157
A10: 2010-03-24 | B10: Sue | C10: 61
A11: 2010-03-25 | B11: Fred | C11: 108
A12: 2010-03-26 | B12: Jo | C12: 139
A13: 2010-03-27 | B13: Sioux | C13: 130
A14: 2010-03-28 | B14: Sue | C14: 66
A15: 2010-03-29 | B15: Sioux | C15: 86
A16: 2010-03-30 | B16: Joe | C16: 122
A17: 2010-03-31 | B17: Sioux | C17: 50
A18: 2010-04-01 | B18: Sue | C18: 77
A19: 2010-04-02 | B19: Fred | C19: 140
A20: 2010-04-03 | B20: Sue | C20: 107
A21: 2010-04-04 | B21: Sioux | C21: 109
A22: 2010-04-05 | B22: Joe | C22: 121
A23: 2010-04-06 | B23: Fred | C23: 78
A24: 2010-04-07 | B24: Sioux | C24: 168
A25: 2010-04-08 | B25: Jo | C25: 88
A26: 2010-04-09 | B26: Chin | C26: 110
A27: 2010-04-10 | B27: Chin | C27: 132
A28: 2010-04-11 | B28: Jo | C28: 54
A29: 2010-04-12 | B29: Fred | C29: 58
A30: 2010-04-13 | B30: Sue | C30: 71

Sheet HW(8)
A1: 1) Create a PivotTable that sums the Sales for each ProductSold. Put the PivotTable in cell F5.
A3: Date | B3: SalesRep | C3: Sales | D3: ProductSold
A4: 2010-03-18 | B4: Fred | C4: 73 | D4: Compressor 3
A5: 2010-03-19 | B5: Jo | C5: 121 | D5: Compressor 3
A6: 2010-03-20 | B6: Fred | C6: 167 | D6: Compressor 1
A7: 2010-03-21 | B7: Joe | C7: 167 | D7: Compressor 2
A8: 2010-03-22 | B8: Sue | C8: 75 | D8: Compressor 3
A9: 2010-03-23 | B9: Fred | C9: 157 | D9: Compressor 3
A10: 2010-03-24 | B10: Sue | C10: 61 | D10: Compressor 3
A11: 2010-03-25 | B11: Fred | C11: 108 | D11: Compressor 2
A12: 2010-03-26 | B12: Jo | C12: 139 | D12: Compressor 1
A13: 2010-03-27 | B13: Sioux | C13: 130 | D13: Compressor 2
A14: 2010-03-28 | B14: Sue | C14: 66 | D14: Compressor 3
A15: 2010-03-29 | B15: Sioux | C15: 86 | D15: Compressor 2
A16: 2010-03-30 | B16: Joe | C16: 122 | D16: Compressor 3
A17: 2010-03-31 | B17: Sioux | C17: 50 | D17: Compressor 2
A18: 2010-04-01 | B18: Sue | C18: 77 | D18: Compressor 2
A19: 2010-04-02 | B19: Fred | C19: 140 | D19: Compressor 3
A20: 2010-04-03 | B20: Sue | C20: 107 | D20: Compressor 2
A21: 2010-04-04 | B21: Sioux | C21: 109 | D21: Compressor 2
A22: 2010-04-05 | B22: Joe | C22: 121 | D22: Compressor 2
A23: 2010-04-06 | B23: Fred | C23: 78 | D23: Compressor 1
A24: 2010-04-07 | B24: Sioux | C24: 168 | D24: Compressor 3
A25: 2010-04-08 | B25: Jo | C25: 88 | D25: Compressor 1
A26: 2010-04-09 | B26: Chin | C26: 110 | D26: Compressor 3
A27: 2010-04-10 | B27: Chin | C27: 132 | D27: Compressor 2
A28: 2010-04-11 | B28: Jo | C28: 54 | D28: Compressor 3
A29: 2010-04-12 | B29: Fred | C29: 58 | D29: Compressor 1
A30: 2010-04-13 | B30: Sue | C30: 71 | D30: Compressor 1

Sheet HW(8an)
A1: 1) Create a PivotTable that sums the Sales for each ProductSold. Put the PivotTable in cell F5.
A3: Date | B3: SalesRep | C3: Sales | D3: ProductSold
A4: 2010-03-18 | B4: Fred | C4: 73 | D4: Compressor 3
A5: 2010-03-19 | B5: Jo | C5: 121 | D5: Compressor 3 | F5: ProductSold | G5: Sum of Sales
A6: 2010-03-20 | B6: Fred | C6: 167 | D6: Compressor 1 | F6: Compressor 1 | G6: 601
A7: 2010-03-21 | B7: Joe | C7: 167 | D7: Compressor 2 | F7: Compressor 2 | G7: 1087
A8: 2010-03-22 | B8: Sue | C8: 75 | D8: Compressor 3 | F8: Compressor 3 | G8: 1147
A9: 2010-03-23 | B9: Fred | C9: 157 | D9: Compressor 3 | F9: Grand Total | G9: 2835
A10: 2010-03-24 | B10: Sue | C10: 61 | D10: Compressor 3
A11: 2010-03-25 | B11: Fred | C11: 108 | D11: Compressor 2
A12: 2010-03-26 | B12: Jo | C12: 139 | D12: Compressor 1
A13: 2010-03-27 | B13: Sioux | C13: 130 | D13: Compressor 2
A14: 2010-03-28 | B14: Sue | C14: 66 | D14: Compressor 3
A15: 2010-03-29 | B15: Sioux | C15: 86 | D15: Compressor 2
A16: 2010-03-30 | B16: Joe | C16: 122 | D16: Compressor 3
A17: 2010-03-31 | B17: Sioux | C17: 50 | D17: Compressor 2
A18: 2010-04-01 | B18: Sue | C18: 77 | D18: Compressor 2
A19: 2010-04-02 | B19: Fred | C19: 140 | D19: Compressor 3
A20: 2010-04-03 | B20: Sue | C20: 107 | D20: Compressor 2
A21: 2010-04-04 | B21: Sioux | C21: 109 | D21: Compressor 2
A22: 2010-04-05 | B22: Joe | C22: 121 | D22: Compressor 2
A23: 2010-04-06 | B23: Fred | C23: 78 | D23: Compressor 1
A24: 2010-04-07 | B24: Sioux | C24: 168 | D24: Compressor 3
A25: 2010-04-08 | B25: Jo | C25: 88 | D25: Compressor 1
A26: 2010-04-09 | B26: Chin | C26: 110 | D26: Compressor 3
A27: 2010-04-10 | B27: Chin | C27: 132 | D27: Compressor 2
A28: 2010-04-11 | B28: Jo | C28: 54 | D28: Compressor 3
A29: 2010-04-12 | B29: Fred | C29: 58 | D29: Compressor 1
A30: 2010-04-13 | B30: Sue | C30: 71 | D30: Compressor 1

Sheet Chapter3Pages40-57
A1: Chapter 3 Homework for Pages 40 - 57
A2: ==>> Homework Sheets 9 to 11

Sheet HW(9)
A1: Sort the Sales field (column) to show the largest values at the top of the column.
A3: Date | B3: SalesRep | C3: Sales
A4: 2010-03-18 | B4: Fred | C4: 73
A5: 2010-03-19 | B5: Jo | C5: 121
A6: 2010-03-20 | B6: Fred | C6: 167
A7: 2010-03-21 | B7: Joe | C7: 167
A8: 2010-03-22 | B8: Sue | C8: 75
A9: 2010-03-23 | B9: Fred | C9: 157
A10: 2010-03-24 | B10: Sue | C10: 61
A11: 2010-03-25 | B11: Fred | C11: 108
A12: 2010-03-26 | B12: Jo | C12: 139
A13: 2010-03-27 | B13: Sioux | C13: 130
A14: 2010-03-28 | B14: Sue | C14: 66
A15: 2010-03-29 | B15: Sioux | C15: 86
A16: 2010-03-30 | B16: Joe | C16: 122
A17: 2010-03-31 | B17: Sioux | C17: 50
A18: 2010-04-01 | B18: Sue | C18: 77
A19: 2010-04-02 | B19: Fred | C19: 140
A20: 2010-04-03 | B20: Sue | C20: 107
A21: 2010-04-04 | B21: Sioux | C21: 109
A22: 2010-04-05 | B22: Joe | C22: 121
A23: 2010-04-06 | B23: Fred | C23: 78
A24: 2010-04-07 | B24: Sioux | C24: 168
A25: 2010-04-08 | B25: Jo | C25: 88
A26: 2010-04-09 | B26: Chin | C26: 110
A27: 2010-04-10 | B27: Chin | C27: 132
A28: 2010-04-11 | B28: Jo | C28: 54
A29: 2010-04-12 | B29: Fred | C29: 58
A30: 2010-04-13 | B30: Sue | C30: 71
A31: 2010-04-14 | B31: Jo | C31: 50
A32: 2010-04-15 | B32: Fred | C32: 109
A33: 2010-04-16 | B33: Sue | C33: 138
A34: 2010-04-17 | B34: Jo | C34: 74
A35: 2010-04-18 | B35: Sioux | C35: 50
A36: 2010-04-19 | B36: Chin | C36: 103
A37: 2010-04-20 | B37: Sue | C37: 134
A38: 2010-04-21 | B38: Chin | C38: 151
A39: 2010-04-22 | B39: Joe | C39: 135
A40: 2010-04-23 | B40: Chin | C40: 54
A41: 2010-04-24 | B41: Sue | C41: 66
A42: 2010-04-25 | B42: Sioux | C42: 81
A43: 2010-04-26 | B43: Chin | C43: 94
A44: 2010-04-27 | B44: Jo | C44: 142
A45: 2010-04-28 | B45: Fred | C45: 75
A46: 2010-04-29 | B46: Chin | C46: 114
A47: 2010-04-30 | B47: Fred | C47: 120
A48: 2010-05-01 | B48: Chin | C48: 146
A49: 2010-05-02 | B49: Sioux | C49: 96
A50: 2010-05-03 | B50: Sioux | C50: 69
A51: 2010-05-04 | B51: Sue | C51: 130
A52: 2010-05-05 | B52: Fred | C52: 150
A53: 2010-05-06 | B53: Chin | C53: 62
A54: 2010-05-07 | B54: Sioux | C54: 166
A55: 2010-05-08 | B55: Sioux | C55: 152
A56: 2010-05-09 | B56: Joe | C56: 143
A57: 2010-05-10 | B57: Joe | C57: 139
A58: 2010-05-11 | B58: Chin | C58: 111
A59: 2010-05-12 | B59: Joe | C59: 70
A60: 2010-05-13 | B60: Fred | C60: 104
A61: 2010-05-14 | B61: Sioux | C61: 64
A62: 2010-05-15 | B62: Jo | C62: 56
A63: 2010-05-16 | B63: Joe | C63: 76
A64: 2010-05-17 | B64: Joe | C64: 96
A65: 2010-05-18 | B65: Fred | C65: 163
A66: 2010-05-19 | B66: Joe | C66: 108
A67: 2010-05-20 | B67: Joe | C67: 63
A68: 2010-05-21 | B68: Fred | C68: 99
A69: 2010-05-22 | B69: Jo | C69: 115
A70: 2010-05-23 | B70: Fred | C70: 125
A71: 2010-05-24 | B71: Joe | C71: 130
A72: 2010-05-25 | B72: Joe | C72: 133
A73: 2010-05-26 | B73: Joe | C73: 148
A74: 2010-05-27 | B74: Joe | C74: 148
A75: 2010-05-28 | B75: Joe | C75: 56
A76: 2010-05-29 | B76: Fred | C76: 134
A77: 2010-05-30 | B77: Fred | C77: 54
A78: 2010-05-31 | B78: Jo | C78: 59
A79: 2010-06-01 | B79: Jo | C79: 99
A80: 2010-06-02 | B80: Sue | C80: 135
A81: 2010-06-03 | B81: Joe | C81: 135
A82: 2010-06-04 | B82: Joe | C82: 75
A83: 2010-06-05 | B83: Sue | C83: 167
A84: 2010-06-06 | B84: Joe | C84: 152
A85: 2010-06-07 | B85: Sue | C85: 129
A86: 2010-06-08 | B86: Sioux | C86: 167
A87: 2010-06-09 | B87: Joe | C87: 74
A88: 2010-06-10 | B88: Chin | C88: 69
A89: 2010-06-11 | B89: Chin | C89: 109
A90: 2010-06-12 | B90: Joe | C90: 119
A91: 2010-06-13 | B91: Jo | C91: 76
A92: 2010-06-14 | B92: Sue | C92: 108
A93: 2010-06-15 | B93: Sue | C93: 109
A94: 2010-06-16 | B94: Sioux | C94: 138
A95: 2010-06-17 | B95: Fred | C95: 130
A96: 2010-06-18 | B96: Sue | C96: 137
A97: 2010-06-19 | B97: Fred | C97: 152
A98: 2010-06-20 | B98: Jo | C98: 100
A99: 2010-06-21 | B99: Jo | C99: 123
A100: 2010-06-22 | B100: Sue | C100: 110
A101: 2010-06-23 | B101: Sue | C101: 146
A102: 2010-06-24 | B102: Joe | C102: 71
A103: 2010-06-25 | B103: Jo | C103: 141
A104: 2010-06-26 | B104: Fred | C104: 126
A105: 2010-06-27 | B105: Jo | C105: 126
A106: 2010-06-28 | B106: Joe | C106: 123
A107: 2010-06-29 | B107: Chin | C107: 165
A108: 2010-06-30 | B108: Joe | C108: 153
A109: 2010-07-01 | B109: Sue | C109: 103
A110: 2010-07-02 | B110: Sue | C110: 156
A111: 2010-07-03 | B111: Jo | C111: 141
A112: 2010-07-04 | B112: Fred | C112: 79
A113: 2010-07-05 | B113: Chin | C113: 78
A114: 2010-07-06 | B114: Sue | C114: 120
A115: 2010-07-07 | B115: Jo | C115: 157
A116: 2010-07-08 | B116: Joe | C116: 67
A117: 2010-07-09 | B117: Sue | C117: 170
A118: 2010-07-10 | B118: Fred | C118: 92
A119: 2010-07-11 | B119: Jo | C119: 104
A120: 2010-07-12 | B120: Jo | C120: 141
A121: 2010-07-13 | B121: Chin | C121: 153
A122: 2010-07-14 | B122: Fred | C122: 100
A123: 2010-07-15 | B123: Sue | C123: 56
A124: 2010-07-16 | B124: Sioux | C124: 76
A125: 2010-07-17 | B125: Jo | C125: 113
A126: 2010-07-18 | B126: Joe | C126: 117
A127: 2010-07-19 | B127: Chin | C127: 78
A128: 2010-07-20 | B128: Sue | C128: 88
A129: 2010-07-21 | B129: Sue | C129: 168
A130: 2010-07-22 | B130: Joe | C130: 159
A131: 2010-07-23 | B131: Chin | C131: 98
A132: 2010-07-24 | B132: Jo | C132: 130
A133: 2010-07-25 | B133: Chin | C133: 136
A134: 2010-07-26 | B134: Joe | C134: 56
A135: 2010-07-27 | B135: Joe | C135: 130
A136: 2010-07-28 | B136: Jo | C136: 53
A137: 2010-07-29 | B137: Sue | C137: 160
A138: 2010-07-30 | B138: Chin | C138: 113
A139: 2010-07-31 | B139: Sioux | C139: 123
A140: 2010-08-01 | B140: Chin | C140: 60
A141: 2010-08-02 | B141: Sioux | C141: 73
A142: 2010-08-03 | B142: Sue | C142: 167
A143: 2010-08-04 | B143: Sioux | C143: 114
A144: 2010-08-05 | B144: Sue | C144: 148
A145: 2010-08-06 | B145: Jo | C145: 81
A146: 2010-08-07 | B146: Jo | C146: 79
A147: 2010-08-08 | B147: Jo | C147: 76
A148: 2010-08-09 | B148: Joe | C148: 166
A149: 2010-08-10 | B149: Jo | C149: 106
A150: 2010-08-11 | B150: Sue | C150: 74
A151: 2010-08-12 | B151: Sioux | C151: 95
A152: 2010-08-13 | B152: Joe | C152: 151
A153: 2010-08-14 | B153: Fred | C153: 117
A154: 2010-08-15 | B154: Sue | C154: 143
A155: 2010-08-16 | B155: Jo | C155: 122
A156: 2010-08-17 | B156: Fred | C156: 76
A157: 2010-08-18 | B157: Joe | C157: 145
A158: 2010-08-19 | B158: Joe | C158: 123
A159: 2010-08-20 | B159: Jo | C159: 116
A160: 2010-08-21 | B160: Sue | C160: 91
A161: 2010-08-22 | B161: Sue | C161: 117
A162: 2010-08-23 | B162: Joe | C162: 170
A163: 2010-08-24 | B163: Fred | C163: 141
A164: 2010-08-25 | B164: Sue | C164: 54
A165: 2010-08-26 | B165: Jo | C165: 95
A166: 2010-08-27 | B166: Sioux | C166: 57
A167: 2010-08-28 | B167: Sue | C167: 133
A168: 2010-08-29 | B168: Jo | C168: 147
A169: 2010-08-30 | B169: Chin | C169: 84
A170: 2010-08-31 | B170: Sue | C170: 147
A171: 2010-09-01 | B171: Fred | C171: 86
A172: 2010-09-02 | B172: Fred | C172: 87
A173: 2010-09-03 | B173: Jo | C173: 150
A174: 2010-09-04 | B174: Chin | C174: 97
A175: 2010-09-05 | B175: Jo | C175: 151
A176: 2010-09-06 | B176: Chin | C176: 62
A177: 2010-09-07 | B177: Jo | C177: 125
A178: 2010-09-08 | B178: Fred | C178: 69
A179: 2010-09-09 | B179: Jo | C179: 160
A180: 2010-09-10 | B180: Joe | C180: 88
A181: 2010-09-11 | B181: Chin | C181: 107
A182: 2010-09-12 | B182: Chin | C182: 148
A183: 2010-09-13 | B183: Fred | C183: 75
A184: 2010-09-14 | B184: Fred | C184: 68
A185: 2010-09-15 | B185: Joe | C185: 98
A186: 2010-09-16 | B186: Sue | C186: 134
A187: 2010-09-17 | B187: Chin | C187: 84
A188: 2010-09-18 | B188: Sioux | C188: 155
A189: 2010-09-19 | B189: Jo | C189: 146
A190: 2010-09-20 | B190: Sue | C190: 110
A191: 2010-09-21 | B191: Sue | C191: 139
A192: 2010-09-22 | B192: Sioux | C192: 68
A193: 2010-09-23 | B193: Jo | C193: 131
A194: 2010-09-24 | B194: Sue | C194: 141
A195: 2010-09-25 | B195: Sue | C195: 50
A196: 2010-09-26 | B196: Sioux | C196: 65
A197: 2010-09-27 | B197: Joe | C197: 126
A198: 2010-09-28 | B198: Joe | C198: 117
A199: 2010-09-29 | B199: Joe | C199: 57
A200: 2010-09-30 | B200: Fred | C200: 146
A201: 2010-10-01 | B201: Sioux | C201: 159
... 7 more rows

Sheet HW(9an)
A1: Sort the Sales field (column) to show the largest values at the top of the column.
A3: Date | B3: SalesRep | C3: Sales
A4: 2010-07-09 | B4: Sue | C4: 170
A5: 2010-08-23 | B5: Joe | C5: 170
A6: 2010-04-07 | B6: Sioux | C6: 168
A7: 2010-07-21 | B7: Sue | C7: 168
A8: 2010-03-20 | B8: Fred | C8: 167
A9: 2010-03-21 | B9: Joe | C9: 167
A10: 2010-06-05 | B10: Sue | C10: 167
A11: 2010-06-08 | B11: Sioux | C11: 167
A12: 2010-08-03 | B12: Sue | C12: 167
A13: 2010-05-07 | B13: Sioux | C13: 166
A14: 2010-08-09 | B14: Joe | C14: 166
A15: 2010-06-29 | B15: Chin | C15: 165
A16: 2010-05-18 | B16: Fred | C16: 163
A17: 2010-07-29 | B17: Sue | C17: 160
A18: 2010-09-09 | B18: Jo | C18: 160
A19: 2010-07-22 | B19: Joe | C19: 159
A20: 2010-10-01 | B20: Sioux | C20: 159
A21: 2010-03-23 | B21: Fred | C21: 157
A22: 2010-07-07 | B22: Jo | C22: 157
A23: 2010-07-02 | B23: Sue | C23: 156
A24: 2010-09-18 | B24: Sioux | C24: 155
A25: 2010-06-30 | B25: Joe | C25: 153
A26: 2010-07-13 | B26: Chin | C26: 153
A27: 2010-05-08 | B27: Sioux | C27: 152
A28: 2010-06-06 | B28: Joe | C28: 152
A29: 2010-06-19 | B29: Fred | C29: 152
A30: 2010-04-21 | B30: Chin | C30: 151
A31: 2010-08-13 | B31: Joe | C31: 151
A32: 2010-09-05 | B32: Jo | C32: 151
A33: 2010-05-05 | B33: Fred | C33: 150
A34: 2010-09-03 | B34: Jo | C34: 150
A35: 2010-05-26 | B35: Joe | C35: 148
A36: 2010-05-27 | B36: Joe | C36: 148
A37: 2010-08-05 | B37: Sue | C37: 148
A38: 2010-09-12 | B38: Chin | C38: 148
A39: 2010-08-29 | B39: Jo | C39: 147
A40: 2010-08-31 | B40: Sue | C40: 147
A41: 2010-05-01 | B41: Chin | C41: 146
A42: 2010-06-23 | B42: Sue | C42: 146
A43: 2010-09-19 | B43: Jo | C43: 146
A44: 2010-09-30 | B44: Fred | C44: 146
A45: 2010-10-08 | B45: Sue | C45: 146
A46: 2010-08-18 | B46: Joe | C46: 145
A47: 2010-05-09 | B47: Joe | C47: 143
A48: 2010-08-15 | B48: Sue | C48: 143
A49: 2010-10-07 | B49: Fred | C49: 143
A50: 2010-04-27 | B50: Jo | C50: 142
A51: 2010-06-25 | B51: Jo | C51: 141
A52: 2010-07-03 | B52: Jo | C52: 141
A53: 2010-07-12 | B53: Jo | C53: 141
A54: 2010-08-24 | B54: Fred | C54: 141
A55: 2010-09-24 | B55: Sue | C55: 141
A56: 2010-04-02 | B56: Fred | C56: 140
A57: 2010-03-26 | B57: Jo | C57: 139
A58: 2010-05-10 | B58: Joe | C58: 139
A59: 2010-09-21 | B59: Sue | C59: 139
A60: 2010-04-16 | B60: Sue | C60: 138
A61: 2010-06-16 | B61: Sioux | C61: 138
A62: 2010-06-18 | B62: Sue | C62: 137
A63: 2010-07-25 | B63: Chin | C63: 136
A64: 2010-04-22 | B64: Joe | C64: 135
A65: 2010-06-02 | B65: Sue | C65: 135
A66: 2010-06-03 | B66: Joe | C66: 135
A67: 2010-04-20 | B67: Sue | C67: 134
A68: 2010-05-29 | B68: Fred | C68: 134
A69: 2010-09-16 | B69: Sue | C69: 134
A70: 2010-05-25 | B70: Joe | C70: 133
A71: 2010-08-28 | B71: Sue | C71: 133
A72: 2010-04-10 | B72: Chin | C72: 132
A73: 2010-10-03 | B73: Sue | C73: 132
A74: 2010-10-06 | B74: Joe | C74: 132
A75: 2010-09-23 | B75: Jo | C75: 131
A76: 2010-03-27 | B76: Sioux | C76: 130
A77: 2010-05-04 | B77: Sue | C77: 130
A78: 2010-05-24 | B78: Joe | C78: 130
A79: 2010-06-17 | B79: Fred | C79: 130
A80: 2010-07-24 | B80: Jo | C80: 130
A81: 2010-07-27 | B81: Joe | C81: 130
A82: 2010-06-07 | B82: Sue | C82: 129
A83: 2010-06-26 | B83: Fred | C83: 126
A84: 2010-06-27 | B84: Jo | C84: 126
A85: 2010-09-27 | B85: Joe | C85: 126
A86: 2010-05-23 | B86: Fred | C86: 125
A87: 2010-09-07 | B87: Jo | C87: 125
A88: 2010-06-21 | B88: Jo | C88: 123
A89: 2010-06-28 | B89: Joe | C89: 123
A90: 2010-07-31 | B90: Sioux | C90: 123
A91: 2010-08-19 | B91: Joe | C91: 123
A92: 2010-03-30 | B92: Joe | C92: 122
A93: 2010-08-16 | B93: Jo | C93: 122
A94: 2010-03-19 | B94: Jo | C94: 121
A95: 2010-04-05 | B95: Joe | C95: 121
A96: 2010-04-30 | B96: Fred | C96: 120
A97: 2010-07-06 | B97: Sue | C97: 120
A98: 2010-06-12 | B98: Joe | C98: 119
A99: 2010-07-18 | B99: Joe | C99: 117
A100: 2010-08-14 | B100: Fred | C100: 117
A101: 2010-08-22 | B101: Sue | C101: 117
A102: 2010-09-28 | B102: Joe | C102: 117
A103: 2010-08-20 | B103: Jo | C103: 116
A104: 2010-10-05 | B104: Sue | C104: 116
A105: 2010-05-22 | B105: Jo | C105: 115
A106: 2010-04-29 | B106: Chin | C106: 114
A107: 2010-08-04 | B107: Sioux | C107: 114
A108: 2010-07-17 | B108: Jo | C108: 113
A109: 2010-07-30 | B109: Chin | C109: 113
A110: 2010-05-11 | B110: Chin | C110: 111
A111: 2010-04-09 | B111: Chin | C111: 110
A112: 2010-06-22 | B112: Sue | C112: 110
A113: 2010-09-20 | B113: Sue | C113: 110
A114: 2010-04-04 | B114: Sioux | C114: 109
A115: 2010-04-15 | B115: Fred | C115: 109
A116: 2010-06-11 | B116: Chin | C116: 109
A117: 2010-06-15 | B117: Sue | C117: 109
A118: 2010-03-25 | B118: Fred | C118: 108
A119: 2010-05-19 | B119: Joe | C119: 108
A120: 2010-06-14 | B120: Sue | C120: 108
A121: 2010-04-03 | B121: Sue | C121: 107
A122: 2010-09-11 | B122: Chin | C122: 107
A123: 2010-08-10 | B123: Jo | C123: 106
A124: 2010-05-13 | B124: Fred | C124: 104
A125: 2010-07-11 | B125: Jo | C125: 104
A126: 2010-04-19 | B126: Chin | C126: 103
A127: 2010-07-01 | B127: Sue | C127: 103
A128: 2010-06-20 | B128: Jo | C128: 100
A129: 2010-07-14 | B129: Fred | C129: 100
A130: 2010-05-21 | B130: Fred | C130: 99
A131: 2010-06-01 | B131: Jo | C131: 99
A132: 2010-07-23 | B132: Chin | C132: 98
A133: 2010-09-15 | B133: Joe | C133: 98
A134: 2010-09-04 | B134: Chin | C134: 97
A135: 2010-05-02 | B135: Sioux | C135: 96
A136: 2010-05-17 | B136: Joe | C136: 96
A137: 2010-08-12 | B137: Sioux | C137: 95
A138: 2010-08-26 | B138: Jo | C138: 95
A139: 2010-04-26 | B139: Chin | C139: 94
A140: 2010-07-10 | B140: Fred | C140: 92
A141: 2010-08-21 | B141: Sue | C141: 91
A142: 2010-04-08 | B142: Jo | C142: 88
A143: 2010-07-20 | B143: Sue | C143: 88
A144: 2010-09-10 | B144: Joe | C144: 88
A145: 2010-09-02 | B145: Fred | C145: 87
A146: 2010-03-29 | B146: Sioux | C146: 86
A147: 2010-09-01 | B147: Fred | C147: 86
A148: 2010-08-30 | B148: Chin | C148: 84
A149: 2010-09-17 | B149: Chin | C149: 84
A150: 2010-04-25 | B150: Sioux | C150: 81
A151: 2010-08-06 | B151: Jo | C151: 81
A152: 2010-10-02 | B152: Sue | C152: 80
A153: 2010-07-04 | B153: Fred | C153: 79
A154: 2010-08-07 | B154: Jo | C154: 79
A155: 2010-04-06 | B155: Fred | C155: 78
A156: 2010-07-05 | B156: Chin | C156: 78
A157: 2010-07-19 | B157: Chin | C157: 78
A158: 2010-04-01 | B158: Sue | C158: 77
A159: 2010-05-16 | B159: Joe | C159: 76
A160: 2010-06-13 | B160: Jo | C160: 76
A161: 2010-07-16 | B161: Sioux | C161: 76
A162: 2010-08-08 | B162: Jo | C162: 76
A163: 2010-08-17 | B163: Fred | C163: 76
A164: 2010-03-22 | B164: Sue | C164: 75
A165: 2010-04-28 | B165: Fred | C165: 75
A166: 2010-06-04 | B166: Joe | C166: 75
A167: 2010-09-13 | B167: Fred | C167: 75
A168: 2010-04-17 | B168: Jo | C168: 74
A169: 2010-06-09 | B169: Joe | C169: 74
A170: 2010-08-11 | B170: Sue | C170: 74
A171: 2010-03-18 | B171: Fred | C171: 73
A172: 2010-08-02 | B172: Sioux | C172: 73
A173: 2010-04-13 | B173: Sue | C173: 71
A174: 2010-06-24 | B174: Joe | C174: 71
A175: 2010-05-12 | B175: Joe | C175: 70
A176: 2010-05-03 | B176: Sioux | C176: 69
A177: 2010-06-10 | B177: Chin | C177: 69
A178: 2010-09-08 | B178: Fred | C178: 69
A179: 2010-09-14 | B179: Fred | C179: 68
A180: 2010-09-22 | B180: Sioux | C180: 68
A181: 2010-07-08 | B181: Joe | C181: 67
A182: 2010-03-28 | B182: Sue | C182: 66
A183: 2010-04-24 | B183: Sue | C183: 66
A184: 2010-09-26 | B184: Sioux | C184: 65
A185: 2010-05-14 | B185: Sioux | C185: 64
A186: 2010-05-20 | B186: Joe | C186: 63
A187: 2010-05-06 | B187: Chin | C187: 62
A188: 2010-09-06 | B188: Chin | C188: 62
A189: 2010-03-24 | B189: Sue | C189: 61
A190: 2010-08-01 | B190: Chin | C190: 60
A191: 2010-10-04 | B191: Sioux | C191: 60
A192: 2010-05-31 | B192: Jo | C192: 59
A193: 2010-04-12 | B193: Fred | C193: 58
A194: 2010-08-27 | B194: Sioux | C194: 57
A195: 2010-09-29 | B195: Joe | C195: 57
A196: 2010-05-15 | B196: Jo | C196: 56
A197: 2010-05-28 | B197: Joe | C197: 56
A198: 2010-07-15 | B198: Sue | C198: 56
A199: 2010-07-26 | B199: Joe | C199: 56
A200: 2010-04-11 | B200: Jo | C200: 54
A201: 2010-04-23 | B201: Chin | C201: 54
... 7 more rows

Sheet HW(10)
A1: Sort the SalesRep field (column) A to Z.
A3: Date | B3: SalesRep | C3: Sales
A4: 2010-07-09 | B4: Sue | C4: 170
A5: 2010-08-23 | B5: Joe | C5: 170
A6: 2010-04-07 | B6: Sioux | C6: 168
A7: 2010-07-21 | B7: Sue | C7: 168
A8: 2010-03-20 | B8: Fred | C8: 167
A9: 2010-03-21 | B9: Joe | C9: 167
A10: 2010-06-05 | B10: Sue | C10: 167
A11: 2010-06-08 | B11: Sioux | C11: 167
A12: 2010-08-03 | B12: Sue | C12: 167
A13: 2010-05-07 | B13: Sioux | C13: 166
A14: 2010-08-09 | B14: Joe | C14: 166
A15: 2010-06-29 | B15: Chin | C15: 165
A16: 2010-05-18 | B16: Fred | C16: 163
A17: 2010-07-29 | B17: Sue | C17: 160
A18: 2010-09-09 | B18: Jo | C18: 160
A19: 2010-07-22 | B19: Joe | C19: 159
A20: 2010-10-01 | B20: Sioux | C20: 159
A21: 2010-03-23 | B21: Fred | C21: 157
A22: 2010-07-07 | B22: Jo | C22: 157
A23: 2010-07-02 | B23: Sue | C23: 156
A24: 2010-09-18 | B24: Sioux | C24: 155
A25: 2010-06-30 | B25: Joe | C25: 153
A26: 2010-07-13 | B26: Chin | C26: 153
A27: 2010-05-08 | B27: Sioux | C27: 152
A28: 2010-06-06 | B28: Joe | C28: 152
A29: 2010-06-19 | B29: Fred | C29: 152
A30: 2010-04-21 | B30: Chin | C30: 151
A31: 2010-08-13 | B31: Joe | C31: 151
A32: 2010-09-05 | B32: Jo | C32: 151
A33: 2010-05-05 | B33: Fred | C33: 150
A34: 2010-09-03 | B34: Jo | C34: 150
A35: 2010-05-26 | B35: Joe | C35: 148
A36: 2010-05-27 | B36: Joe | C36: 148
A37: 2010-08-05 | B37: Sue | C37: 148
A38: 2010-09-12 | B38: Chin | C38: 148
A39: 2010-08-29 | B39: Jo | C39: 147
A40: 2010-08-31 | B40: Sue | C40: 147
A41: 2010-05-01 | B41: Chin | C41: 146
A42: 2010-06-23 | B42: Sue | C42: 146
A43: 2010-09-19 | B43: Jo | C43: 146
A44: 2010-09-30 | B44: Fred | C44: 146
A45: 2010-10-08 | B45: Sue | C45: 146
A46: 2010-08-18 | B46: Joe | C46: 145
A47: 2010-05-09 | B47: Joe | C47: 143
A48: 2010-08-15 | B48: Sue | C48: 143
A49: 2010-10-07 | B49: Fred | C49: 143
A50: 2010-04-27 | B50: Jo | C50: 142
A51: 2010-06-25 | B51: Jo | C51: 141
A52: 2010-07-03 | B52: Jo | C52: 141
A53: 2010-07-12 | B53: Jo | C53: 141
A54: 2010-08-24 | B54: Fred | C54: 141
A55: 2010-09-24 | B55: Sue | C55: 141
A56: 2010-04-02 | B56: Fred | C56: 140
A57: 2010-03-26 | B57: Jo | C57: 139
A58: 2010-05-10 | B58: Joe | C58: 139
A59: 2010-09-21 | B59: Sue | C59: 139
A60: 2010-04-16 | B60: Sue | C60: 138
A61: 2010-06-16 | B61: Sioux | C61: 138
A62: 2010-06-18 | B62: Sue | C62: 137
A63: 2010-07-25 | B63: Chin | C63: 136
A64: 2010-04-22 | B64: Joe | C64: 135
A65: 2010-06-02 | B65: Sue | C65: 135
A66: 2010-06-03 | B66: Joe | C66: 135
A67: 2010-04-20 | B67: Sue | C67: 134
A68: 2010-05-29 | B68: Fred | C68: 134
A69: 2010-09-16 | B69: Sue | C69: 134
A70: 2010-05-25 | B70: Joe | C70: 133
A71: 2010-08-28 | B71: Sue | C71: 133
A72: 2010-04-10 | B72: Chin | C72: 132
A73: 2010-10-03 | B73: Sue | C73: 132
A74: 2010-10-06 | B74: Joe | C74: 132
A75: 2010-09-23 | B75: Jo | C75: 131
A76: 2010-03-27 | B76: Sioux | C76: 130
A77: 2010-05-04 | B77: Sue | C77: 130
A78: 2010-05-24 | B78: Joe | C78: 130
A79: 2010-06-17 | B79: Fred | C79: 130
A80: 2010-07-24 | B80: Jo | C80: 130
A81: 2010-07-27 | B81: Joe | C81: 130
A82: 2010-06-07 | B82: Sue | C82: 129
A83: 2010-06-26 | B83: Fred | C83: 126
A84: 2010-06-27 | B84: Jo | C84: 126
A85: 2010-09-27 | B85: Joe | C85: 126
A86: 2010-05-23 | B86: Fred | C86: 125
A87: 2010-09-07 | B87: Jo | C87: 125
A88: 2010-06-21 | B88: Jo | C88: 123
A89: 2010-06-28 | B89: Joe | C89: 123
A90: 2010-07-31 | B90: Sioux | C90: 123
A91: 2010-08-19 | B91: Joe | C91: 123
A92: 2010-03-30 | B92: Joe | C92: 122
A93: 2010-08-16 | B93: Jo | C93: 122
A94: 2010-03-19 | B94: Jo | C94: 121
A95: 2010-04-05 | B95: Joe | C95: 121
A96: 2010-04-30 | B96: Fred | C96: 120
A97: 2010-07-06 | B97: Sue | C97: 120
A98: 2010-06-12 | B98: Joe | C98: 119
A99: 2010-07-18 | B99: Joe | C99: 117
A100: 2010-08-14 | B100: Fred | C100: 117
A101: 2010-08-22 | B101: Sue | C101: 117
A102: 2010-09-28 | B102: Joe | C102: 117
A103: 2010-08-20 | B103: Jo | C103: 116
A104: 2010-10-05 | B104: Sue | C104: 116
A105: 2010-05-22 | B105: Jo | C105: 115
A106: 2010-04-29 | B106: Chin | C106: 114
A107: 2010-08-04 | B107: Sioux | C107: 114
A108: 2010-07-17 | B108: Jo | C108: 113
A109: 2010-07-30 | B109: Chin | C109: 113
A110: 2010-05-11 | B110: Chin | C110: 111
A111: 2010-04-09 | B111: Chin | C111: 110
A112: 2010-06-22 | B112: Sue | C112: 110
A113: 2010-09-20 | B113: Sue | C113: 110
A114: 2010-04-04 | B114: Sioux | C114: 109
A115: 2010-04-15 | B115: Fred | C115: 109
A116: 2010-06-11 | B116: Chin | C116: 109
A117: 2010-06-15 | B117: Sue | C117: 109
A118: 2010-03-25 | B118: Fred | C118: 108
A119: 2010-05-19 | B119: Joe | C119: 108
A120: 2010-06-14 | B120: Sue | C120: 108
A121: 2010-04-03 | B121: Sue | C121: 107
A122: 2010-09-11 | B122: Chin | C122: 107
A123: 2010-08-10 | B123: Jo | C123: 106
A124: 2010-05-13 | B124: Fred | C124: 104
A125: 2010-07-11 | B125: Jo | C125: 104
A126: 2010-04-19 | B126: Chin | C126: 103
A127: 2010-07-01 | B127: Sue | C127: 103
A128: 2010-06-20 | B128: Jo | C128: 100
A129: 2010-07-14 | B129: Fred | C129: 100
A130: 2010-05-21 | B130: Fred | C130: 99
A131: 2010-06-01 | B131: Jo | C131: 99
A132: 2010-07-23 | B132: Chin | C132: 98
A133: 2010-09-15 | B133: Joe | C133: 98
A134: 2010-09-04 | B134: Chin | C134: 97
A135: 2010-05-02 | B135: Sioux | C135: 96
A136: 2010-05-17 | B136: Joe | C136: 96
A137: 2010-08-12 | B137: Sioux | C137: 95
A138: 2010-08-26 | B138: Jo | C138: 95
A139: 2010-04-26 | B139: Chin | C139: 94
A140: 2010-07-10 | B140: Fred | C140: 92
A141: 2010-08-21 | B141: Sue | C141: 91
A142: 2010-04-08 | B142: Jo | C142: 88
A143: 2010-07-20 | B143: Sue | C143: 88
A144: 2010-09-10 | B144: Joe | C144: 88
A145: 2010-09-02 | B145: Fred | C145: 87
A146: 2010-03-29 | B146: Sioux | C146: 86
A147: 2010-09-01 | B147: Fred | C147: 86
A148: 2010-08-30 | B148: Chin | C148: 84
A149: 2010-09-17 | B149: Chin | C149: 84
A150: 2010-04-25 | B150: Sioux | C150: 81
A151: 2010-08-06 | B151: Jo | C151: 81
A152: 2010-10-02 | B152: Sue | C152: 80
A153: 2010-07-04 | B153: Fred | C153: 79
A154: 2010-08-07 | B154: Jo | C154: 79
A155: 2010-04-06 | B155: Fred | C155: 78
A156: 2010-07-05 | B156: Chin | C156: 78
A157: 2010-07-19 | B157: Chin | C157: 78
A158: 2010-04-01 | B158: Sue | C158: 77
A159: 2010-05-16 | B159: Joe | C159: 76
A160: 2010-06-13 | B160: Jo | C160: 76
A161: 2010-07-16 | B161: Sioux | C161: 76
A162: 2010-08-08 | B162: Jo | C162: 76
A163: 2010-08-17 | B163: Fred | C163: 76
A164: 2010-03-22 | B164: Sue | C164: 75
A165: 2010-04-28 | B165: Fred | C165: 75
A166: 2010-06-04 | B166: Joe | C166: 75
A167: 2010-09-13 | B167: Fred | C167: 75
A168: 2010-04-17 | B168: Jo | C168: 74
A169: 2010-06-09 | B169: Joe | C169: 74
A170: 2010-08-11 | B170: Sue | C170: 74
A171: 2010-03-18 | B171: Fred | C171: 73
A172: 2010-08-02 | B172: Sioux | C172: 73
A173: 2010-04-13 | B173: Sue | C173: 71
A174: 2010-06-24 | B174: Joe | C174: 71
A175: 2010-05-12 | B175: Joe | C175: 70
A176: 2010-05-03 | B176: Sioux | C176: 69
A177: 2010-06-10 | B177: Chin | C177: 69
A178: 2010-09-08 | B178: Fred | C178: 69
A179: 2010-09-14 | B179: Fred | C179: 68
A180: 2010-09-22 | B180: Sioux | C180: 68
A181: 2010-07-08 | B181: Joe | C181: 67
A182: 2010-03-28 | B182: Sue | C182: 66
A183: 2010-04-24 | B183: Sue | C183: 66
A184: 2010-09-26 | B184: Sioux | C184: 65
A185: 2010-05-14 | B185: Sioux | C185: 64
A186: 2010-05-20 | B186: Joe | C186: 63
A187: 2010-05-06 | B187: Chin | C187: 62
A188: 2010-09-06 | B188: Chin | C188: 62
A189: 2010-03-24 | B189: Sue | C189: 61
A190: 2010-08-01 | B190: Chin | C190: 60
A191: 2010-10-04 | B191: Sioux | C191: 60
A192: 2010-05-31 | B192: Jo | C192: 59
A193: 2010-04-12 | B193: Fred | C193: 58
A194: 2010-08-27 | B194: Sioux | C194: 57
A195: 2010-09-29 | B195: Joe | C195: 57
A196: 2010-05-15 | B196: Jo | C196: 56
A197: 2010-05-28 | B197: Joe | C197: 56
A198: 2010-07-15 | B198: Sue | C198: 56
A199: 2010-07-26 | B199: Joe | C199: 56
A200: 2010-04-11 | B200: Jo | C200: 54
A201: 2010-04-23 | B201: Chin | C201: 54
... 7 more rows

Sheet HW(10an)
A1: Sort the SalesRep field (column) A to Z.
A3: Date | B3: SalesRep | C3: Sales
A4: 2010-04-09 | B4: Chin | C4: 110
A5: 2010-04-10 | B5: Chin | C5: 132
A6: 2010-04-19 | B6: Chin | C6: 103
A7: 2010-04-21 | B7: Chin | C7: 151
A8: 2010-04-23 | B8: Chin | C8: 54
A9: 2010-04-26 | B9: Chin | C9: 94
A10: 2010-04-29 | B10: Chin | C10: 114
A11: 2010-05-01 | B11: Chin | C11: 146
A12: 2010-05-06 | B12: Chin | C12: 62
A13: 2010-05-11 | B13: Chin | C13: 111
A14: 2010-06-10 | B14: Chin | C14: 69
A15: 2010-06-11 | B15: Chin | C15: 109
A16: 2010-06-29 | B16: Chin | C16: 165
A17: 2010-07-05 | B17: Chin | C17: 78
A18: 2010-07-13 | B18: Chin | C18: 153
A19: 2010-07-19 | B19: Chin | C19: 78
A20: 2010-07-23 | B20: Chin | C20: 98
A21: 2010-07-25 | B21: Chin | C21: 136
A22: 2010-07-30 | B22: Chin | C22: 113
A23: 2010-08-01 | B23: Chin | C23: 60
A24: 2010-08-30 | B24: Chin | C24: 84
A25: 2010-09-04 | B25: Chin | C25: 97
A26: 2010-09-06 | B26: Chin | C26: 62
A27: 2010-09-11 | B27: Chin | C27: 107
A28: 2010-09-12 | B28: Chin | C28: 148
A29: 2010-09-17 | B29: Chin | C29: 84
A30: 2010-03-18 | B30: Fred | C30: 73
A31: 2010-03-20 | B31: Fred | C31: 167
A32: 2010-03-23 | B32: Fred | C32: 157
A33: 2010-03-25 | B33: Fred | C33: 108
A34: 2010-04-02 | B34: Fred | C34: 140
A35: 2010-04-06 | B35: Fred | C35: 78
A36: 2010-04-12 | B36: Fred | C36: 58
A37: 2010-04-15 | B37: Fred | C37: 109
A38: 2010-04-28 | B38: Fred | C38: 75
A39: 2010-04-30 | B39: Fred | C39: 120
A40: 2010-05-05 | B40: Fred | C40: 150
A41: 2010-05-13 | B41: Fred | C41: 104
A42: 2010-05-18 | B42: Fred | C42: 163
A43: 2010-05-21 | B43: Fred | C43: 99
A44: 2010-05-23 | B44: Fred | C44: 125
A45: 2010-05-29 | B45: Fred | C45: 134
A46: 2010-05-30 | B46: Fred | C46: 54
A47: 2010-06-17 | B47: Fred | C47: 130
A48: 2010-06-19 | B48: Fred | C48: 152
A49: 2010-06-26 | B49: Fred | C49: 126
A50: 2010-07-04 | B50: Fred | C50: 79
A51: 2010-07-10 | B51: Fred | C51: 92
A52: 2010-07-14 | B52: Fred | C52: 100
A53: 2010-08-14 | B53: Fred | C53: 117
A54: 2010-08-17 | B54: Fred | C54: 76
A55: 2010-08-24 | B55: Fred | C55: 141
A56: 2010-09-01 | B56: Fred | C56: 86
A57: 2010-09-02 | B57: Fred | C57: 87
A58: 2010-09-08 | B58: Fred | C58: 69
A59: 2010-09-13 | B59: Fred | C59: 75
A60: 2010-09-14 | B60: Fred | C60: 68
A61: 2010-09-30 | B61: Fred | C61: 146
A62: 2010-10-07 | B62: Fred | C62: 143
A63: 2010-03-19 | B63: Jo | C63: 121
A64: 2010-03-26 | B64: Jo | C64: 139
A65: 2010-04-08 | B65: Jo | C65: 88
A66: 2010-04-11 | B66: Jo | C66: 54
A67: 2010-04-14 | B67: Jo | C67: 50
A68: 2010-04-17 | B68: Jo | C68: 74
A69: 2010-04-27 | B69: Jo | C69: 142
A70: 2010-05-15 | B70: Jo | C70: 56
A71: 2010-05-22 | B71: Jo | C71: 115
A72: 2010-05-31 | B72: Jo | C72: 59
A73: 2010-06-01 | B73: Jo | C73: 99
A74: 2010-06-13 | B74: Jo | C74: 76
A75: 2010-06-20 | B75: Jo | C75: 100
A76: 2010-06-21 | B76: Jo | C76: 123
A77: 2010-06-25 | B77: Jo | C77: 141
A78: 2010-06-27 | B78: Jo | C78: 126
A79: 2010-07-03 | B79: Jo | C79: 141
A80: 2010-07-07 | B80: Jo | C80: 157
A81: 2010-07-11 | B81: Jo | C81: 104
A82: 2010-07-12 | B82: Jo | C82: 141
A83: 2010-07-17 | B83: Jo | C83: 113
A84: 2010-07-24 | B84: Jo | C84: 130
A85: 2010-07-28 | B85: Jo | C85: 53
A86: 2010-08-06 | B86: Jo | C86: 81
A87: 2010-08-07 | B87: Jo | C87: 79
A88: 2010-08-08 | B88: Jo | C88: 76
A89: 2010-08-10 | B89: Jo | C89: 106
A90: 2010-08-16 | B90: Jo | C90: 122
A91: 2010-08-20 | B91: Jo | C91: 116
A92: 2010-08-26 | B92: Jo | C92: 95
A93: 2010-08-29 | B93: Jo | C93: 147
A94: 2010-09-03 | B94: Jo | C94: 150
A95: 2010-09-05 | B95: Jo | C95: 151
A96: 2010-09-07 | B96: Jo | C96: 125
A97: 2010-09-09 | B97: Jo | C97: 160
A98: 2010-09-19 | B98: Jo | C98: 146
A99: 2010-09-23 | B99: Jo | C99: 131
A100: 2010-03-21 | B100: Joe | C100: 167
A101: 2010-03-30 | B101: Joe | C101: 122
A102: 2010-04-05 | B102: Joe | C102: 121
A103: 2010-04-22 | B103: Joe | C103: 135
A104: 2010-05-09 | B104: Joe | C104: 143
A105: 2010-05-10 | B105: Joe | C105: 139
A106: 2010-05-12 | B106: Joe | C106: 70
A107: 2010-05-16 | B107: Joe | C107: 76
A108: 2010-05-17 | B108: Joe | C108: 96
A109: 2010-05-19 | B109: Joe | C109: 108
A110: 2010-05-20 | B110: Joe | C110: 63
A111: 2010-05-24 | B111: Joe | C111: 130
A112: 2010-05-25 | B112: Joe | C112: 133
A113: 2010-05-26 | B113: Joe | C113: 148
A114: 2010-05-27 | B114: Joe | C114: 148
A115: 2010-05-28 | B115: Joe | C115: 56
A116: 2010-06-03 | B116: Joe | C116: 135
A117: 2010-06-04 | B117: Joe | C117: 75
A118: 2010-06-06 | B118: Joe | C118: 152
A119: 2010-06-09 | B119: Joe | C119: 74
A120: 2010-06-12 | B120: Joe | C120: 119
A121: 2010-06-24 | B121: Joe | C121: 71
A122: 2010-06-28 | B122: Joe | C122: 123
A123: 2010-06-30 | B123: Joe | C123: 153
A124: 2010-07-08 | B124: Joe | C124: 67
A125: 2010-07-18 | B125: Joe | C125: 117
A126: 2010-07-22 | B126: Joe | C126: 159
A127: 2010-07-26 | B127: Joe | C127: 56
A128: 2010-07-27 | B128: Joe | C128: 130
A129: 2010-08-09 | B129: Joe | C129: 166
A130: 2010-08-13 | B130: Joe | C130: 151
A131: 2010-08-18 | B131: Joe | C131: 145
A132: 2010-08-19 | B132: Joe | C132: 123
A133: 2010-08-23 | B133: Joe | C133: 170
A134: 2010-09-10 | B134: Joe | C134: 88
A135: 2010-09-15 | B135: Joe | C135: 98
A136: 2010-09-27 | B136: Joe | C136: 126
A137: 2010-09-28 | B137: Joe | C137: 117
A138: 2010-09-29 | B138: Joe | C138: 57
A139: 2010-10-06 | B139: Joe | C139: 132
A140: 2010-03-27 | B140: Sioux | C140: 130
A141: 2010-03-29 | B141: Sioux | C141: 86
A142: 2010-03-31 | B142: Sioux | C142: 50
A143: 2010-04-04 | B143: Sioux | C143: 109
A144: 2010-04-07 | B144: Sioux | C144: 168
A145: 2010-04-18 | B145: Sioux | C145: 50
A146: 2010-04-25 | B146: Sioux | C146: 81
A147: 2010-05-02 | B147: Sioux | C147: 96
A148: 2010-05-03 | B148: Sioux | C148: 69
A149: 2010-05-07 | B149: Sioux | C149: 166
A150: 2010-05-08 | B150: Sioux | C150: 152
A151: 2010-05-14 | B151: Sioux | C151: 64
A152: 2010-06-08 | B152: Sioux | C152: 167
A153: 2010-06-16 | B153: Sioux | C153: 138
A154: 2010-07-16 | B154: Sioux | C154: 76
A155: 2010-07-31 | B155: Sioux | C155: 123
A156: 2010-08-02 | B156: Sioux | C156: 73
A157: 2010-08-04 | B157: Sioux | C157: 114
A158: 2010-08-12 | B158: Sioux | C158: 95
A159: 2010-08-27 | B159: Sioux | C159: 57
A160: 2010-09-18 | B160: Sioux | C160: 155
A161: 2010-09-22 | B161: Sioux | C161: 68
A162: 2010-09-26 | B162: Sioux | C162: 65
A163: 2010-10-01 | B163: Sioux | C163: 159
A164: 2010-10-04 | B164: Sioux | C164: 60
A165: 2010-03-22 | B165: Sue | C165: 75
A166: 2010-03-24 | B166: Sue | C166: 61
A167: 2010-03-28 | B167: Sue | C167: 66
A168: 2010-04-01 | B168: Sue | C168: 77
A169: 2010-04-03 | B169: Sue | C169: 107
A170: 2010-04-13 | B170: Sue | C170: 71
A171: 2010-04-16 | B171: Sue | C171: 138
A172: 2010-04-20 | B172: Sue | C172: 134
A173: 2010-04-24 | B173: Sue | C173: 66
A174: 2010-05-04 | B174: Sue | C174: 130
A175: 2010-06-02 | B175: Sue | C175: 135
A176: 2010-06-05 | B176: Sue | C176: 167
A177: 2010-06-07 | B177: Sue | C177: 129
A178: 2010-06-14 | B178: Sue | C178: 108
A179: 2010-06-15 | B179: Sue | C179: 109
A180: 2010-06-18 | B180: Sue | C180: 137
A181: 2010-06-22 | B181: Sue | C181: 110
A182: 2010-06-23 | B182: Sue | C182: 146
A183: 2010-07-01 | B183: Sue | C183: 103
A184: 2010-07-02 | B184: Sue | C184: 156
A185: 2010-07-06 | B185: Sue | C185: 120
A186: 2010-07-09 | B186: Sue | C186: 170
A187: 2010-07-15 | B187: Sue | C187: 56
A188: 2010-07-20 | B188: Sue | C188: 88
A189: 2010-07-21 | B189: Sue | C189: 168
A190: 2010-07-29 | B190: Sue | C190: 160
A191: 2010-08-03 | B191: Sue | C191: 167
A192: 2010-08-05 | B192: Sue | C192: 148
A193: 2010-08-11 | B193: Sue | C193: 74
A194: 2010-08-15 | B194: Sue | C194: 143
A195: 2010-08-21 | B195: Sue | C195: 91
A196: 2010-08-22 | B196: Sue | C196: 117
A197: 2010-08-25 | B197: Sue | C197: 54
A198: 2010-08-28 | B198: Sue | C198: 133
A199: 2010-08-31 | B199: Sue | C199: 147
A200: 2010-09-16 | B200: Sue | C200: 134
A201: 2010-09-20 | B201: Sue | C201: 110
... 7 more rows

Sheet HW(11)
A1: 1) Convert the table to an "Excel Table". 2) Name the Excel Table "SalesTable". Hint: No spaces allowed in the name. 2) Create a formula in cell F4 that adds the Sales for Sue. 3) Add Currency Number Format to cell F4 (remember the keyboard shortcut to open the Format Cells dialog box in Ctrl + 1. 4) Add the following record to the table: 1/3/2010, Sioux , $100.00 5) Add a formula to cell F7 that adds the Sales for Sioux. 6) Verify that the formula in cell F7 is correct. Hint: check formula, formula inputs and raw data.
A3: Date | B3: SalesRep | C3: Sales | E3: SalesRep | F3: Sales
A4: 2010-07-09 | B4: Sue | C4: 170 | E4: Sue
A5: 2010-08-23 | B5: Joe | C5: 170
A6: 2010-04-07 | B6: Sioux | C6: 168 | E6: SalesRep | F6: Sales
A7: 2010-07-21 | B7: Sue | C7: 168 | E7: Sioux
A8: 2010-03-20 | B8: Fred | C8: 167

Sheet HW(11an)
A1: 1) Convert the table to an "Excel Table". 2) Name the Excel Table "SalesTable". Hint: No spaces allowed in the name. 2) Create a formula in cell F4 that adds the Sales for Sue. 3) Add Currency Number Format to cell F4 (remember the keyboard shortcut to open the Format Cells dialog box in Ctrl + 1. 4) Add the following record to the table: 1/3/2010, Sioux , $100.00 5) Add a formula to cell F7 that adds the Sales for Sioux. 6) Verify that the formula in cell F7 is correct. Hint: check formula, formula inputs and raw data.
A3: Date | B3: SalesRep | C3: Sales | E3: SalesRep | F3: Sales
A4: 2010-07-09 | B4: Sue | C4: 170 | E4: Sue | F4: =SUMIFS(C4:C9,B4:B9,E4) -> 338
A5: 2010-08-23 | B5: Joe | C5: 170
A6: 2010-04-07 | B6: Sioux | C6: 168 | E6: SalesRep | F6: Sales
A7: 2010-07-21 | B7: Sue | C7: 168 | E7: Sioux | F7: =SUMIFS(SalesTableAnswer[Sales],SalesTableAnswer[SalesRep],E7) -> 268
A8: 2010-03-20 | B8: Fred | C8: 167
A9: 2010-03-01 | B9: Sioux | C9: 100

Sheet Chapter3Pages57-78
A1: Chapter 3 Homework for Pages 57 - 78
A2: ==>> Homework Sheets 12 to 14

Sheet HW(12)
A1: 1) In cell B5, calculate (with formula) the number of days that the invoice is past due. 2) in cell B10, calculate (with formula) the date the loan is due. 3) In cell B14 calculate the projects length in days.
A3: Invoice Due Date | B3: 2011-03-18
A4: Today's Date | B4: 2011-04-11
A5: Day's Invoice Past Due
A7: Loan Amount | B7: 10500
A8: Loan Issue Date | B8: 2010-03-18
A9: Days until loan due | B9: 75
A10: Date Loan is due
A12: Project End Date | B12: =B13+4 -> 2011-03-18
A13: Project Start Date | B13: 2011-03-14
A14: Project Length in Days

Sheet HW(12an)
A1: 1) In cell B5, calculate (with formula) the number of days that the invoice is past due. 2) in cell B10, calculate (with formula) the date the loan is due. 3) In cell B14 calculate the projects length in days.
A3: Invoice Due Date | B3: 2011-03-18
A4: Today's Date | B4: 2011-04-11
A5: Day's Invoice Past Due | B5: =B4-B3 -> 24
A7: Loan Amount | B7: 10500
A8: Loan Issue Date | B8: 2010-03-18
A9: Days until loan due | B9: 75
A10: Date Loan is due | B10: =B8+B9 -> 2010-06-01
A12: Project End Date | B12: =B13+4 -> 2011-03-18
A13: Project Start Date | B13: 2011-03-14
A14: Project Length in Days | B14: =B12-B13 -> 4

Sheet HW(13)
A1: 1) Complete the payroll table below.
A3: Name | B3: Time In | C3: Time Out | D3: Total Time | E3: Wage | F3: Total Pay Before Tax (Time*Wage)
A4: Name1 | B4: 09:26:24 | C4: 21:26:24 | E4: 19
A5: Name2 | B5: 09:40:48 | C5: 14:28:48 | E5: 15
A6: Name3 | B6: 09:12:00 | C6: 16:24:00 | E6: 18
A7: Name4 | B7: 10:09:36 | C7: 14:57:36 | E7: 16
A8: Name5 | B8: 09:12:00 | C8: 18:48:00 | E8: 11
A9: Name6 | B9: 09:26:24 | C9: 14:14:24 | E9: 14
A10: Name7 | B10: 08:57:36 | C10: 18:33:36 | E10: 17
A11: Name8 | B11: 08:43:12 | C11: 15:55:12 | E11: 17

Sheet HW(13an)
A1: 1) Complete the payroll table below.
A3: Name | B3: Time In | C3: Time Out | D3: Total Time | E3: Wage | F3: Total Pay Before Tax (Time*Wage)
A4: Name1 | B4: 09:26:24 | C4: 21:26:24 | D4: =(C4-B4)*24 -> 12 | E4: 19 | F4: =E4*D4 -> 228
A5: Name2 | B5: 09:40:48 | C5: 14:28:48 | D5: =(C5-B5)*24 -> 4.8 | E5: 15 | F5: =E5*D5 -> 72
A6: Name3 | B6: 09:12:00 | C6: 16:24:00 | D6: 7.2 | E6: 18 | F6: 129.6
A7: Name4 | B7: 10:09:36 | C7: 14:57:36 | D7: 4.8 | E7: 16 | F7: 76.8
A8: Name5 | B8: 09:12:00 | C8: 18:48:00 | D8: 9.6 | E8: 11 | F8: 105.6
A9: Name6 | B9: 09:26:24 | C9: 14:14:24 | D9: 4.8 | E9: 14 | F9: 67.2
A10: Name7 | B10: 08:57:36 | C10: 18:33:36 | D10: 9.6 | E10: 17 | F10: 163.2
A11: Name8 | B11: 08:43:12 | C11: 15:55:12 | D11: 7.2 | E11: 17 | F11: 122.4

Sheet HW(14)
A1: 1) Fix the Percentage Number Formatting problems below.
A4: Sales Tax 1 | B4: 0.0145 | D4: =" <<== This percentage should read "&TEXT(B4,"0.00%")&". Fix the problem" -> <<== This percentage should read 1.45%. Fix the problem
A5: Sales Tax 2 | B5: 2 | D5: =" <<== This percentage should read "&TEXT(B5/100,"0.00%")&". Fix the problem" -> <<== This percentage should read 2.00%. Fix the problem
A6: Sales Tax 3 | B6: 0.145 | D6: =" <<== This number should be formatted to show "&TEXT(B6,"0.00%")&". Fix the problem" -> <<== This number should be formatted to show 14.50%. Fix the problem
A7: Sales Tax 4 | B7: 2 | D7: =" <<== This number should be formatted to show "&TEXT(B7/100,"0.00%")&". Fix the problem" -> <<== This number should be formatted to show 2.00%. Fix the problem
A8: Sales Tax 5 | B8: 0.0145 | D8: =" <<== This percentage should read "&TEXT(B8,"0.00%")&". Fix the problem" -> <<== This percentage should read 1.45%. Fix the problem
A9: Sales Tax 6 | B9: 0.0598 | D9: <<== This percentage should read 5.98%. Fix the problem
A10: Sales Tax 7 | B10: 0.1459 | D10: <<== This percentage should read 14.59%. Fix the problem
A11: % Increase | B11: 15 | D11: =" <<== This percentage should read "&TEXT(B11/10,"0%")&". Fix the problem" -> <<== This percentage should read 150%. Fix the problem

Sheet HW(14an)
A1: 1) Fix the Percentage Number Formatting problems below.
A4: Sales Tax 1 | B4: 0.0145 | D4: Increase decimal to 2 places
A5: Sales Tax 2 | B5: 0.02 | D5: change underlying number to 0.02 and increase decimals
A6: Sales Tax 3 | B6: 0.145 | D6: Add percentage format to show 2 decimals
A7: Sales Tax 4 | B7: 0.02 | D7: change underlying number to 0.02 and add percentage format to show 2 decimals
A8: Sales Tax 5 | B8: 0.0145 | D8: Reduce decimals to 2 places
A9: Sales Tax 6 | B9: 0.0598 | D9: Increase decimal to 2 places
A10: Sales Tax 7 | B10: 0.1459 | D10: Increase decimal to 2 places
A11: % Increase | B11: 1.5 | D11: change underlying number to 1.5

Sheet Chapter3Pages78-87
A1: Chapter 3 Homework for Pages 78 - 87
A2: ==>> Homework Sheets 15 to 18

Sheet HW(15)
A1: 1) Add a SUM function to cell A11 to add the column of units, then figure out why the formula is not working and fix it.
A3: Units
A4: $15.00
A5: $25.00
A6: $62.00
A7: $52.00
A8: $25.00
A9: $62.00
A10: $32.00

Sheet HW(15an)
A1: 1) Add a SUM function to cell A11 to add the column of units, then figure out why the formula is not working and fix it.
A3: Units
A4: 15 | C4: A: Text To Columns to convert numbers stored as text to numbers, then
A5: 25 | C5: format cell A11.
A6: 62
A7: 52
A8: 25
A9: 62
A10: 32
A11: =SUM(A4:A10) -> 273

Sheet HW(16)
A1: 1) Add a SUM function to cell A11 to add the column of units, then remove the left alignment from the column of numbers using the Normal Style.
A3: Units
A4: 15
A5: 25
A6: 62
A7: 52
A8: 25
A9: 62
A10: 32

Sheet HW(16an)
A1: 1) Add a SUM function to cell A11 to add the column of units, then remove the left alignment from the column of numbers using the Normal Style - then add Currency Number Format.
A3: Units
A4: 15
A5: 25
A6: 62
A7: 52
A8: 25
A9: 62
A10: 32
A11: =SUM(A4:A10) -> 273

Sheet HW(17)
A1: 1) Add a SUM function to cell A11 to add the column of units, then figure out why the formula is not working and fix it.
A3: Units
A4: 15
A5: 25
A6: 62
A7: 52
A8: 25
A9: 62
A10: 32

Sheet HW(17an)
A1: 1) Add a SUM function to cell A11 to add the column of units, then figure out why the formula is not working and fix it.
A3: Units
A4: 15 | C4: Remove Text Number format from cell A11 by applying General Number
A5: 25 | C5: format, then add SUM function
A6: 62
A7: 52
A8: 25
A9: 62
A10: 32
A11: =SUM(A4:A10) -> 273

Sheet HW(18)
A1: 1) Figure out why the formula in cell A11 is not working and fix it.
A3: Dates
A4: 10/17/2011
A5: 10/22/2011
A6: 10/07/2011
A7: 10/14/2011
A8: 10/15/2011
A9: 10/01/2011
A10: 10/01/2011
A11: =COUNT(A4:A10) -> 0

Sheet HW(18an)
A1: 1) Figure out why the formula in cell A11 is not working and fix it.
A3: Dates
A4: 2011-10-17 | C4: A: Text To Columns to convert numbers stored as text to numbers.
A5: 2011-10-22
A6: 2011-10-07
A7: 2011-10-14
A8: 2011-10-15
A9: 2011-10-01
A10: 2011-10-01
A11: =COUNT(A4:A10) -> 7

Sheet Chapter4Pages89-118
A1: Chapter 4 Homework for Pages 89 - 118
A2: ==>> Homework Sheets 19 to 21

Sheet HW(19)
A1: 1) Add stylistic Formatting and Page Setup. Make it look good. There is no one correct answer to this.
A3: 1st Quarter Sales
B4: Jan | C4: Feb | D4: Mar
A5: Product 1 | B5: 154000 | C5: 254000 | D5: 289000
A6: Product 2 | B6: 265000 | C6: 218000 | D6: 88000
A7: Product 3 | B7: 92000 | C7: 121000 | D7: 160000
A8: Product 4 | B8: 221000 | C8: 74000 | D8: 148000
A9: Product 5 | B9: 201000 | C9: 72000 | D9: 271000
A10: Product 6 | B10: 131000 | C10: 210000 | D10: 152000
A11: Totals | B11: =SUM(B5:B10) -> 1064000 | C11: 949000 | D11: 1108000

Sheet HW(19an)
A1: 1) Add stylistic Formatting and Page Setup. Make it look good. There is no one correct answer to this.
A3: 1st Quarter Sales
B4: Jan | C4: Feb | D4: Mar
A5: Product 1 | B5: 154000 | C5: 254000 | D5: 289000
A6: Product 2 | B6: 265000 | C6: 218000 | D6: 88000
A7: Product 3 | B7: 92000 | C7: 121000 | D7: 160000
A8: Product 4 | B8: 221000 | C8: 74000 | D8: 148000
A9: Product 5 | B9: 201000 | C9: 72000 | D9: 271000
A10: Product 6 | B10: 131000 | C10: 210000 | D10: 152000
A11: Totals | B11: =SUM(B5:B10) -> 1064000 | C11: 949000 | D11: 1108000

Sheet HW(20)
A1: 1) Add Page Setup to this large spreadsheet so that it is easy to understand the printout.
B3: Years | F3: Periods per year
B4: 30 | F4: 12
A6: Period | B6: PMT | C6: Interest | D6: Principal Paid | E6: Balance | F6: Annual Rate | G6: Lump Sum (Reduces PMT)
A7: =ROWS(A$7:A7)-1 -> 0 | E7: 350000
A8: =ROWS(A$7:A8)-1 -> 1 | B8: =-PMT(F8/$F$4,COUNT(A8:$A$367),E7) -> 2568.176009 | C8: =E7*F8/$F$4 -> 2333.333333 | D8: =B8-C8 -> 234.8426752 | E8: =E7-D8-G8 -> 349765.1573 | F8: 0.08
A9: =ROWS(A$7:A9)-1 -> 2 | B9: =-PMT(F9/$F$4,COUNT(A9:$A$367),E8) -> 2568.176009 | C9: =E8*F9/$F$4 -> 2331.767715 | D9: =B9-C9 -> 236.4082931 | E9: 349528.749 | F9: 0.08
A10: =ROWS(A$7:A10)-1 -> 3 | B10: =-PMT(F10/$F$4,COUNT(A10:$A$367),E9) -> 2568.176009 | C10: 2330.19166 | D10: 237.9843484 | E10: 339290.7647 | F10: 0.08 | G10: 10000
A11: =ROWS(A$7:A11)-1 -> 4 | B11: =-PMT(F11/$F$4,COUNT(A11:$A$367),E10) -> 2494.65056 | C11: 2261.938431 | D11: 232.712129 | E11: 339058.0526 | F11: 0.08
A12: =ROWS(A$7:A12)-1 -> 5 | B12: =-PMT(F12/$F$4,COUNT(A12:$A$367),E11) -> 2494.65056 | C12: 2260.387017 | D12: 234.2635432 | E12: 338823.789 | F12: 0.08
A13: =ROWS(A$7:A13)-1 -> 6 | B13: =-PMT(F13/$F$4,COUNT(A13:$A$367),E12) -> 2494.65056 | C13: 2258.82526 | D13: 235.8253001 | E13: 338587.9637 | F13: 0.08
A14: =ROWS(A$7:A14)-1 -> 7 | B14: =-PMT(F14/$F$4,COUNT(A14:$A$367),E13) -> 2494.65056 | C14: 2257.253091 | D14: 237.3974688 | E14: 338350.5662 | F14: 0.08
A15: =ROWS(A$7:A15)-1 -> 8 | B15: =-PMT(F15/$F$4,COUNT(A15:$A$367),E14) -> 2494.65056 | C15: 2255.670442 | D15: 238.9801186 | E15: 338111.5861 | F15: 0.08
A16: =ROWS(A$7:A16)-1 -> 9 | B16: =-PMT(F16/$F$4,COUNT(A16:$A$367),E15) -> 2494.65056 | C16: 2254.077241 | D16: 240.5733194 | E16: 337871.0128 | F16: 0.08
A17: =ROWS(A$7:A17)-1 -> 10 | B17: =-PMT(F17/$F$4,COUNT(A17:$A$367),E16) -> 2494.65056 | C17: 2252.473419 | D17: 242.1771415 | E17: 337628.8357 | F17: 0.08
A18: =ROWS(A$7:A18)-1 -> 11 | B18: =-PMT(F18/$F$4,COUNT(A18:$A$367),E17) -> 2494.65056 | C18: 2250.858904 | D18: 243.7916558 | E18: 337385.044 | F18: 0.08
A19: =ROWS(A$7:A19)-1 -> 12 | B19: =-PMT(F19/$F$4,COUNT(A19:$A$367),E18) -> 2494.65056 | C19: 2249.233627 | D19: 245.4169335 | E19: 337139.6271 | F19: 0.08
A20: =ROWS(A$7:A20)-1 -> 13 | B20: =-PMT(F20/$F$4,COUNT(A20:$A$367),E19) -> 2612.058232 | C20: 2388.072358 | D20: 223.9858733 | E20: 336915.6412 | F20: 0.085
A21: =ROWS(A$7:A21)-1 -> 14 | B21: =-PMT(F21/$F$4,COUNT(A21:$A$367),E20) -> 2612.058232 | C21: 2386.485792 | D21: 225.5724399 | E21: 336690.0688 | F21: 0.085
A22: =ROWS(A$7:A22)-1 -> 15 | B22: =-PMT(F22/$F$4,COUNT(A22:$A$367),E21) -> 2612.058232 | C22: 2384.887987 | D22: 227.1702447 | E22: 336462.8985 | F22: 0.085
A23: =ROWS(A$7:A23)-1 -> 16 | B23: =-PMT(F23/$F$4,COUNT(A23:$A$367),E22) -> 2612.058232 | C23: 2383.278864 | D23: 228.7793672 | E23: 336234.1191 | F23: 0.085
A24: =ROWS(A$7:A24)-1 -> 17 | B24: =-PMT(F24/$F$4,COUNT(A24:$A$367),E23) -> 2612.058232 | C24: 2381.658344 | D24: 230.3998878 | E24: 336003.7193 | F24: 0.085
A25: =ROWS(A$7:A25)-1 -> 18 | B25: =-PMT(F25/$F$4,COUNT(A25:$A$367),E24) -> 2612.058232 | C25: 2380.026345 | D25: 232.031887 | E25: 335771.6874 | F25: 0.085
A26: =ROWS(A$7:A26)-1 -> 19 | B26: =-PMT(F26/$F$4,COUNT(A26:$A$367),E25) -> 2612.058232 | C26: 2378.382786 | D26: 233.6754462 | E26: 335538.0119 | F26: 0.085
A27: =ROWS(A$7:A27)-1 -> 20 | B27: =-PMT(F27/$F$4,COUNT(A27:$A$367),E26) -> 2612.058232 | C27: 2376.727584 | D27: 235.3306472 | E27: 335302.6813 | F27: 0.085
A28: =ROWS(A$7:A28)-1 -> 21 | B28: =-PMT(F28/$F$4,COUNT(A28:$A$367),E27) -> 2612.058232 | C28: 2375.060659 | D28: 236.9975727 | E28: 335065.6837 | F28: 0.085
A29: =ROWS(A$7:A29)-1 -> 22 | B29: =-PMT(F29/$F$4,COUNT(A29:$A$367),E28) -> 2612.058232 | C29: 2373.381926 | D29: 238.6763055 | E29: 334827.0074 | F29: 0.085
A30: =ROWS(A$7:A30)-1 -> 23 | B30: =-PMT(F30/$F$4,COUNT(A30:$A$367),E29) -> 2612.058232 | C30: 2371.691302 | D30: 240.3669293 | E30: 334586.6405 | F30: 0.085
A31: =ROWS(A$7:A31)-1 -> 24 | B31: =-PMT(F31/$F$4,COUNT(A31:$A$367),E30) -> 2612.058232 | C31: 2369.988703 | D31: 242.0695284 | E31: 334344.5709 | F31: 0.085
A32: =ROWS(A$7:A32)-1 -> 25 | B32: =-PMT(F32/$F$4,COUNT(A32:$A$367),E31) -> 2612.058232 | C32: 2368.274044 | D32: 243.7841875 | E32: 334100.7868 | F32: 0.085
A33: =ROWS(A$7:A33)-1 -> 26 | B33: =-PMT(F33/$F$4,COUNT(A33:$A$367),E32) -> 2612.058232 | C33: 2366.54724 | D33: 245.5109922 | E33: 333855.2758 | F33: 0.085
A34: =ROWS(A$7:A34)-1 -> 27 | B34: =-PMT(F34/$F$4,COUNT(A34:$A$367),E33) -> 2612.058232 | C34: 2364.808203 | D34: 247.2500284 | E34: 333608.0257 | F34: 0.085
A35: =ROWS(A$7:A35)-1 -> 28 | B35: =-PMT(F35/$F$4,COUNT(A35:$A$367),E34) -> 2612.058232 | C35: 2363.056849 | D35: 249.0013828 | E35: 333359.0244 | F35: 0.085
A36: =ROWS(A$7:A36)-1 -> 29 | B36: =-PMT(F36/$F$4,COUNT(A36:$A$367),E35) -> 2612.058232 | C36: 2361.293089 | D36: 250.7651426 | E36: 333108.2592 | F36: 0.085
A37: =ROWS(A$7:A37)-1 -> 30 | B37: =-PMT(F37/$F$4,COUNT(A37:$A$367),E36) -> 2612.058232 | C37: 2359.516836 | D37: 252.5413956 | E37: 332855.7178 | F37: 0.085
A38: =ROWS(A$7:A38)-1 -> 31 | B38: =-PMT(F38/$F$4,COUNT(A38:$A$367),E37) -> 2612.058232 | C38: 2357.728001 | D38: 254.3302305 | E38: 332601.3876 | F38: 0.085
A39: =ROWS(A$7:A39)-1 -> 32 | B39: =-PMT(F39/$F$4,COUNT(A39:$A$367),E38) -> 2612.058232 | C39: 2355.926495 | D39: 256.1317363 | E39: 332345.2558 | F39: 0.085
A40: =ROWS(A$7:A40)-1 -> 33 | B40: =-PMT(F40/$F$4,COUNT(A40:$A$367),E39) -> 2612.058232 | C40: 2354.112229 | D40: 257.9460028 | E40: 332087.3098 | F40: 0.085
A41: =ROWS(A$7:A41)-1 -> 34 | B41: =-PMT(F41/$F$4,COUNT(A41:$A$367),E40) -> 2612.058232 | C41: 2352.285111 | D41: 259.7731203 | E41: 331827.5367 | F41: 0.085
A42: =ROWS(A$7:A42)-1 -> 35 | B42: =-PMT(F42/$F$4,COUNT(A42:$A$367),E41) -> 2612.058232 | C42: 2350.445052 | D42: 261.6131799 | E42: 331565.9235 | F42: 0.085
A43: =ROWS(A$7:A43)-1 -> 36 | B43: =-PMT(F43/$F$4,COUNT(A43:$A$367),E42) -> 2612.058232 | C43: 2348.591958 | D43: 263.4662733 | E43: 331302.4573 | F43: 0.085
A44: =ROWS(A$7:A44)-1 -> 37 | B44: =-PMT(F44/$F$4,COUNT(A44:$A$367),E43) -> 2612.058232 | C44: 2346.725739 | D44: 265.3324927 | E44: 331037.1248 | F44: 0.085
A45: =ROWS(A$7:A45)-1 -> 38 | B45: =-PMT(F45/$F$4,COUNT(A45:$A$367),E44) -> 2612.058232 | C45: 2344.846301 | D45: 267.2119312 | E45: 330769.9128 | F45: 0.085
A46: =ROWS(A$7:A46)-1 -> 39 | B46: =-PMT(F46/$F$4,COUNT(A46:$A$367),E45) -> 2612.058232 | C46: 2342.953549 | D46: 269.1046824 | E46: 330500.8082 | F46: 0.085
A47: =ROWS(A$7:A47)-1 -> 40 | B47: =-PMT(F47/$F$4,COUNT(A47:$A$367),E46) -> 2612.058232 | C47: 2341.047391 | D47: 271.0108406 | E47: 330229.7973 | F47: 0.085
A48: =ROWS(A$7:A48)-1 -> 41 | B48: =-PMT(F48/$F$4,COUNT(A48:$A$367),E47) -> 2612.058232 | C48: 2339.127731 | D48: 272.9305007 | E48: 329956.8668 | F48: 0.085
A49: =ROWS(A$7:A49)-1 -> 42 | B49: =-PMT(F49/$F$4,COUNT(A49:$A$367),E48) -> 2612.058232 | C49: 2337.194473 | D49: 274.8637584 | E49: 329682.0031 | F49: 0.085
A50: =ROWS(A$7:A50)-1 -> 43 | B50: =-PMT(F50/$F$4,COUNT(A50:$A$367),E49) -> 2612.058232 | C50: 2335.247522 | D50: 276.81071 | E50: 329405.1924 | F50: 0.085
A51: =ROWS(A$7:A51)-1 -> 44 | B51: =-PMT(F51/$F$4,COUNT(A51:$A$367),E50) -> 2612.058232 | C51: 2333.286779 | D51: 278.7714525 | E51: 329126.4209 | F51: 0.085
A52: =ROWS(A$7:A52)-1 -> 45 | B52: =-PMT(F52/$F$4,COUNT(A52:$A$367),E51) -> 2612.058232 | C52: 2331.312148 | D52: 280.7460837 | E52: 328845.6748 | F52: 0.085
A53: =ROWS(A$7:A53)-1 -> 46 | B53: =-PMT(F53/$F$4,COUNT(A53:$A$367),E52) -> 2612.058232 | C53: 2329.32353 | D53: 282.7347018 | E53: 328562.9401 | F53: 0.085
A54: =ROWS(A$7:A54)-1 -> 47 | B54: =-PMT(F54/$F$4,COUNT(A54:$A$367),E53) -> 2612.058232 | C54: 2327.320826 | D54: 284.7374059 | E54: 328278.2027 | F54: 0.085
A55: =ROWS(A$7:A55)-1 -> 48 | B55: =-PMT(F55/$F$4,COUNT(A55:$A$367),E54) -> 2612.058232 | C55: 2325.303936 | D55: 286.7542958 | E55: 327991.4484 | F55: 0.085
A56: =ROWS(A$7:A56)-1 -> 49 | B56: =-PMT(F56/$F$4,COUNT(A56:$A$367),E55) -> 2612.058232 | C56: 2323.27276 | D56: 288.7854721 | E56: 327702.6629 | F56: 0.085
A57: =ROWS(A$7:A57)-1 -> 50 | B57: =-PMT(F57/$F$4,COUNT(A57:$A$367),E56) -> 2612.058232 | C57: 2321.227196 | D57: 290.8310359 | E57: 327411.8319 | F57: 0.085
A58: =ROWS(A$7:A58)-1 -> 51 | B58: =-PMT(F58/$F$4,COUNT(A58:$A$367),E57) -> 2612.058232 | C58: 2319.167143 | D58: 292.891089 | E58: 327118.9408 | F58: 0.085
A59: =ROWS(A$7:A59)-1 -> 52 | B59: =-PMT(F59/$F$4,COUNT(A59:$A$367),E58) -> 2612.058232 | C59: 2317.092497 | D59: 294.9657343 | E59: 326823.9751 | F59: 0.085
A60: =ROWS(A$7:A60)-1 -> 53 | B60: =-PMT(F60/$F$4,COUNT(A60:$A$367),E59) -> 2612.058232 | C60: 2315.003157 | D60: 297.0550749 | E60: 326526.92 | F60: 0.085
A61: =ROWS(A$7:A61)-1 -> 54 | B61: =-PMT(F61/$F$4,COUNT(A61:$A$367),E60) -> 2612.058232 | C61: 2312.899017 | D61: 299.159215 | E61: 326227.7608 | F61: 0.085
A62: =ROWS(A$7:A62)-1 -> 55 | B62: =-PMT(F62/$F$4,COUNT(A62:$A$367),E61) -> 2612.058232 | C62: 2310.779972 | D62: 301.2782594 | E62: 325926.4825 | F62: 0.085
A63: =ROWS(A$7:A63)-1 -> 56 | B63: =-PMT(F63/$F$4,COUNT(A63:$A$367),E62) -> 2612.058232 | C63: 2308.645918 | D63: 303.4123138 | E63: 325623.0702 | F63: 0.085
A64: =ROWS(A$7:A64)-1 -> 57 | B64: =-PMT(F64/$F$4,COUNT(A64:$A$367),E63) -> 2612.058232 | C64: 2306.496747 | D64: 305.5614843 | E64: 325317.5087 | F64: 0.085
A65: =ROWS(A$7:A65)-1 -> 58 | B65: =-PMT(F65/$F$4,COUNT(A65:$A$367),E64) -> 2612.058232 | C65: 2304.332354 | D65: 307.7258782 | E65: 325009.7829 | F65: 0.085
A66: =ROWS(A$7:A66)-1 -> 59 | B66: =-PMT(F66/$F$4,COUNT(A66:$A$367),E65) -> 2612.058232 | C66: 2302.152629 | D66: 309.9056031 | E66: 324699.8773 | F66: 0.085
A67: =ROWS(A$7:A67)-1 -> 60 | B67: =-PMT(F67/$F$4,COUNT(A67:$A$367),E66) -> 2612.058232 | C67: 2299.957464 | D67: 312.1007678 | E67: 324387.7765 | F67: 0.085
A68: =ROWS(A$7:A68)-1 -> 61 | B68: =-PMT(F68/$F$4,COUNT(A68:$A$367),E67) -> 2397.19705 | C68: 2027.423603 | D68: 369.7734471 | E68: 324018.003 | F68: 0.075
A69: =ROWS(A$7:A69)-1 -> 62 | B69: =-PMT(F69/$F$4,COUNT(A69:$A$367),E68) -> 2397.19705 | C69: 2025.112519 | D69: 372.0845311 | E69: 323645.9185 | F69: 0.075
A70: =ROWS(A$7:A70)-1 -> 63 | B70: =-PMT(F70/$F$4,COUNT(A70:$A$367),E69) -> 2397.19705 | C70: 2022.786991 | D70: 374.4100594 | E70: 323271.5085 | F70: 0.075
A71: =ROWS(A$7:A71)-1 -> 64 | B71: =-PMT(F71/$F$4,COUNT(A71:$A$367),E70) -> 2397.19705 | C71: 2020.446928 | D71: 376.7501223 | E71: 322894.7583 | F71: 0.075
A72: =ROWS(A$7:A72)-1 -> 65 | B72: =-PMT(F72/$F$4,COUNT(A72:$A$367),E71) -> 2397.19705 | C72: 2018.09224 | D72: 379.1048105 | E72: =E71-D72-G72 -> 322515.6535 | F72: 0.075
A73: =ROWS(A$7:A73)-1 -> 66 | B73: =-PMT(F73/$F$4,COUNT(A73:$A$367),E72) -> 2397.19705 | C73: =E72*F73/$F$4 -> 2015.722834 | D73: =B73-C73 -> 381.4742156 | E73: 322134.1793 | F73: 0.075
A74: =ROWS(A$7:A74)-1 -> 67 | B74: =-PMT(F74/$F$4,COUNT(A74:$A$367),E73) -> 2397.19705 | C74: 2013.338621 | D74: 383.8584295 | E74: 321750.3209 | F74: 0.075
A75: =ROWS(A$7:A75)-1 -> 68 | B75: =-PMT(F75/$F$4,COUNT(A75:$A$367),E74) -> 2397.19705 | C75: 2010.939505 | D75: 386.2575446 | E75: 321364.0633 | F75: 0.075
A76: =ROWS(A$7:A76)-1 -> 69 | B76: =-PMT(F76/$F$4,COUNT(A76:$A$367),E75) -> 2397.19705 | C76: 2008.525396 | D76: 388.6716543 | E76: 320975.3917 | F76: 0.075
A77: =ROWS(A$7:A77)-1 -> 70 | B77: =-PMT(F77/$F$4,COUNT(A77:$A$367),E76) -> 2397.19705 | C77: 2006.096198 | D77: 391.1008521 | E77: 320584.2908 | F77: 0.075
A78: =ROWS(A$7:A78)-1 -> 71 | B78: =-PMT(F78/$F$4,COUNT(A78:$A$367),E77) -> 2397.19705 | C78: 2003.651818 | D78: 393.5452325 | E78: 320190.7456 | F78: 0.075
A79: =ROWS(A$7:A79)-1 -> 72 | B79: =-PMT(F79/$F$4,COUNT(A79:$A$367),E78) -> 2397.19705 | C79: 2001.19216 | D79: 396.0048902 | E79: 319794.7407 | F79: 0.075
A80: =ROWS(A$7:A80)-1 -> 73 | B80: =-PMT(F80/$F$4,COUNT(A80:$A$367),E79) -> 2397.19705 | C80: 1998.717129 | D80: 398.4799207 | E80: 309396.2608 | F80: 0.075 | G80: 10000
A81: =ROWS(A$7:A81)-1 -> 74 | B81: =-PMT(F81/$F$4,COUNT(A81:$A$367),E80) -> 2322.143039 | C81: 1933.72663 | D81: 388.4164091 | E81: 309007.8444 | F81: 0.075
A82: =ROWS(A$7:A82)-1 -> 75 | B82: =-PMT(F82/$F$4,COUNT(A82:$A$367),E81) -> 2322.143039 | C82: 1931.299027 | D82: 390.8440117 | E82: 308617.0004 | F82: 0.075
A83: =ROWS(A$7:A83)-1 -> 76 | B83: =-PMT(F83/$F$4,COUNT(A83:$A$367),E82) -> 2322.143039 | C83: 1928.856252 | D83: 393.2867868 | E83: 308223.7136 | F83: 0.075
A84: =ROWS(A$7:A84)-1 -> 77 | B84: =-PMT(F84/$F$4,COUNT(A84:$A$367),E83) -> 2322.143039 | C84: 1926.39821 | D84: 395.7448292 | E84: 307827.9687 | F84: 0.075
A85: =ROWS(A$7:A85)-1 -> 78 | B85: =-PMT(F85/$F$4,COUNT(A85:$A$367),E84) -> 2322.143039 | C85: 1923.924805 | D85: 398.2182344 | E85: 307429.7505 | F85: 0.075
A86: =ROWS(A$7:A86)-1 -> 79 | B86: =-PMT(F86/$F$4,COUNT(A86:$A$367),E85) -> 2322.143039 | C86: 1921.435941 | D86: 400.7070983 | E86: 307029.0434 | F86: 0.075
A87: =ROWS(A$7:A87)-1 -> 80 | B87: =-PMT(F87/$F$4,COUNT(A87:$A$367),E86) -> 2322.143039 | C87: 1918.931521 | D87: 403.2115177 | E87: 306625.8319 | F87: 0.075
A88: =ROWS(A$7:A88)-1 -> 81 | B88: =-PMT(F88/$F$4,COUNT(A88:$A$367),E87) -> 2322.143039 | C88: 1916.411449 | D88: 405.7315897 | E88: 306220.1003 | F88: 0.075
A89: =ROWS(A$7:A89)-1 -> 82 | B89: =-PMT(F89/$F$4,COUNT(A89:$A$367),E88) -> 2322.143039 | C89: 1913.875627 | D89: 408.2674121 | E89: 305811.8329 | F89: 0.075
A90: =ROWS(A$7:A90)-1 -> 83 | B90: =-PMT(F90/$F$4,COUNT(A90:$A$367),E89) -> 2322.143039 | C90: 1911.323956 | D90: 410.8190834 | E90: 305401.0138 | F90: 0.075
A91: =ROWS(A$7:A91)-1 -> 84 | B91: =-PMT(F91/$F$4,COUNT(A91:$A$367),E90) -> 2322.143039 | C91: 1908.756336 | D91: 413.3867027 | E91: 304987.6271 | F91: 0.075
A92: =ROWS(A$7:A92)-1 -> 85 | B92: =-PMT(F92/$F$4,COUNT(A92:$A$367),E91) -> 2322.143039 | C92: 1906.172669 | D92: 415.9703696 | E92: 304571.6567 | F92: 0.075
A93: =ROWS(A$7:A93)-1 -> 86 | B93: =-PMT(F93/$F$4,COUNT(A93:$A$367),E92) -> 2322.143039 | C93: 1903.572855 | D93: 418.5701844 | E93: 304153.0865 | F93: 0.075
A94: =ROWS(A$7:A94)-1 -> 87 | B94: =-PMT(F94/$F$4,COUNT(A94:$A$367),E93) -> 2322.143039 | C94: 1900.956791 | D94: 421.1862481 | E94: 303731.9003 | F94: 0.075
A95: =ROWS(A$7:A95)-1 -> 88 | B95: =-PMT(F95/$F$4,COUNT(A95:$A$367),E94) -> 2322.143039 | C95: 1898.324377 | D95: 423.8186621 | E95: 303308.0816 | F95: 0.075
A96: =ROWS(A$7:A96)-1 -> 89 | B96: =-PMT(F96/$F$4,COUNT(A96:$A$367),E95) -> 2322.143039 | C96: 1895.67551 | D96: 426.4675288 | E96: 302881.6141 | F96: 0.075
A97: =ROWS(A$7:A97)-1 -> 90 | B97: =-PMT(F97/$F$4,COUNT(A97:$A$367),E96) -> 2322.143039 | C97: 1893.010088 | D97: 429.1329508 | E97: 302452.4812 | F97: 0.075
A98: =ROWS(A$7:A98)-1 -> 91 | B98: =-PMT(F98/$F$4,COUNT(A98:$A$367),E97) -> 2322.143039 | C98: 1890.328007 | D98: 431.8150318 | E98: 302020.6661 | F98: 0.075
A99: =ROWS(A$7:A99)-1 -> 92 | B99: =-PMT(F99/$F$4,COUNT(A99:$A$367),E98) -> 2322.143039 | C99: 1887.629163 | D99: 434.5138757 | E99: 301586.1523 | F99: 0.075
A100: =ROWS(A$7:A100)-1 -> 93 | B100: =-PMT(F100/$F$4,COUNT(A100:$A$367),E99) -> 2322.143039 | C100: 1884.913452 | D100: 437.2295874 | E100: 301148.9227 | F100: 0.075
A101: =ROWS(A$7:A101)-1 -> 94 | B101: =-PMT(F101/$F$4,COUNT(A101:$A$367),E100) -> 2322.143039 | C101: 1882.180767 | D101: 439.9622724 | E101: 300708.9604 | F101: 0.075
A102: =ROWS(A$7:A102)-1 -> 95 | B102: =-PMT(F102/$F$4,COUNT(A102:$A$367),E101) -> 2322.143039 | C102: 1879.431002 | D102: 442.7120366 | E102: 300266.2484 | F102: 0.075
A103: =ROWS(A$7:A103)-1 -> 96 | B103: =-PMT(F103/$F$4,COUNT(A103:$A$367),E102) -> 2322.143039 | C103: 1876.664052 | D103: 445.4789868 | E103: 299820.7694 | F103: 0.075
A104: =ROWS(A$7:A104)-1 -> 97 | B104: =-PMT(F104/$F$4,COUNT(A104:$A$367),E103) -> 2322.143039 | C104: 1873.879809 | D104: 448.2632304 | E104: 299372.5061 | F104: 0.075
A105: =ROWS(A$7:A105)-1 -> 98 | B105: =-PMT(F105/$F$4,COUNT(A105:$A$367),E104) -> 2322.143039 | C105: 1871.078163 | D105: 451.0648756 | E105: 298921.4413 | F105: 0.075
A106: =ROWS(A$7:A106)-1 -> 99 | B106: =-PMT(F106/$F$4,COUNT(A106:$A$367),E105) -> 2322.143039 | C106: 1868.259008 | D106: 453.8840311 | E106: 298467.5572 | F106: 0.075
A107: =ROWS(A$7:A107)-1 -> 100 | B107: =-PMT(F107/$F$4,COUNT(A107:$A$367),E106) -> 2322.143039 | C107: 1865.422233 | D107: 456.7208063 | E107: 298010.8364 | F107: 0.075
A108: =ROWS(A$7:A108)-1 -> 101 | B108: =-PMT(F108/$F$4,COUNT(A108:$A$367),E107) -> 2322.143039 | C108: 1862.567728 | D108: 459.5753113 | E108: 297551.2611 | F108: 0.075
A109: =ROWS(A$7:A109)-1 -> 102 | B109: =-PMT(F109/$F$4,COUNT(A109:$A$367),E108) -> 2322.143039 | C109: 1859.695382 | D109: 462.447657 | E109: 297088.8135 | F109: 0.075
A110: =ROWS(A$7:A110)-1 -> 103 | B110: =-PMT(F110/$F$4,COUNT(A110:$A$367),E109) -> 2322.143039 | C110: 1856.805084 | D110: 465.3379549 | E110: 296623.4755 | F110: 0.075
A111: =ROWS(A$7:A111)-1 -> 104 | B111: =-PMT(F111/$F$4,COUNT(A111:$A$367),E110) -> 2322.143039 | C111: 1853.896722 | D111: 468.2463171 | E111: 296155.2292 | F111: 0.075
A112: =ROWS(A$7:A112)-1 -> 105 | B112: =-PMT(F112/$F$4,COUNT(A112:$A$367),E111) -> 2322.143039 | C112: 1850.970182 | D112: 471.1728566 | E112: 295684.0563 | F112: 0.075
A113: =ROWS(A$7:A113)-1 -> 106 | B113: =-PMT(F113/$F$4,COUNT(A113:$A$367),E112) -> 2322.143039 | C113: 1848.025352 | D113: 474.117687 | E113: 295209.9386 | F113: 0.075
A114: =ROWS(A$7:A114)-1 -> 107 | B114: =-PMT(F114/$F$4,COUNT(A114:$A$367),E113) -> 2322.143039 | C114: 1845.062117 | D114: 477.0809225 | E114: 294732.8577 | F114: 0.075
A115: =ROWS(A$7:A115)-1 -> 108 | B115: =-PMT(F115/$F$4,COUNT(A115:$A$367),E114) -> 2322.143039 | C115: 1842.080361 | D115: 480.0626783 | E115: 294252.795 | F115: 0.075
A116: =ROWS(A$7:A116)-1 -> 109 | B116: =-PMT(F116/$F$4,COUNT(A116:$A$367),E115) -> 2322.143039 | C116: 1839.079969 | D116: 483.06307 | E116: 293769.732 | F116: 0.075
A117: =ROWS(A$7:A117)-1 -> 110 | B117: =-PMT(F117/$F$4,COUNT(A117:$A$367),E116) -> 2322.143039 | C117: 1836.060825 | D117: 486.0822142 | E117: 293283.6498 | F117: 0.075
A118: =ROWS(A$7:A118)-1 -> 111 | B118: =-PMT(F118/$F$4,COUNT(A118:$A$367),E117) -> 2322.143039 | C118: 1833.022811 | D118: 489.120228 | E118: 292794.5295 | F118: 0.075
A119: =ROWS(A$7:A119)-1 -> 112 | B119: =-PMT(F119/$F$4,COUNT(A119:$A$367),E118) -> 2322.143039 | C119: 1829.96581 | D119: 492.1772295 | E119: 292302.3523 | F119: 0.075
A120: =ROWS(A$7:A120)-1 -> 113 | B120: =-PMT(F120/$F$4,COUNT(A120:$A$367),E119) -> 2322.143039 | C120: 1826.889702 | D120: 495.2533371 | E120: 291807.099 | F120: 0.075
A121: =ROWS(A$7:A121)-1 -> 114 | B121: =-PMT(F121/$F$4,COUNT(A121:$A$367),E120) -> 2322.143039 | C121: 1823.794369 | D121: 498.3486705 | E121: 291308.7503 | F121: 0.075
A122: =ROWS(A$7:A122)-1 -> 115 | B122: =-PMT(F122/$F$4,COUNT(A122:$A$367),E121) -> 2322.143039 | C122: 1820.679689 | D122: 501.4633497 | E122: 290807.2869 | F122: 0.075
A123: =ROWS(A$7:A123)-1 -> 116 | B123: =-PMT(F123/$F$4,COUNT(A123:$A$367),E122) -> 2322.143039 | C123: 1817.545543 | D123: 504.5974956 | E123: 290302.6894 | F123: 0.075
A124: =ROWS(A$7:A124)-1 -> 117 | B124: =-PMT(F124/$F$4,COUNT(A124:$A$367),E123) -> 2322.143039 | C124: 1814.391809 | D124: 507.75123 | E124: 289794.9382 | F124: 0.075
A125: =ROWS(A$7:A125)-1 -> 118 | B125: =-PMT(F125/$F$4,COUNT(A125:$A$367),E124) -> 2322.143039 | C125: 1811.218364 | D125: 510.9246752 | E125: 289284.0135 | F125: 0.075
A126: =ROWS(A$7:A126)-1 -> 119 | B126: =-PMT(F126/$F$4,COUNT(A126:$A$367),E125) -> 2322.143039 | C126: 1808.025085 | D126: 514.1179544 | E126: 288769.8956 | F126: 0.075
A127: =ROWS(A$7:A127)-1 -> 120 | B127: =-PMT(F127/$F$4,COUNT(A127:$A$367),E126) -> 2322.143039 | C127: 1804.811847 | D127: 517.3311916 | E127: 288252.5644 | F127: 0.075
A128: =ROWS(A$7:A128)-1 -> 121 | B128: =-PMT(F128/$F$4,COUNT(A128:$A$367),E127) -> 2322.143039 | C128: 1801.578527 | D128: 520.5645115 | E128: 287731.9999 | F128: 0.075
A129: =ROWS(A$7:A129)-1 -> 122 | B129: =-PMT(F129/$F$4,COUNT(A129:$A$367),E128) -> 2322.143039 | C129: 1798.324999 | D129: 523.8180397 | E129: 287208.1818 | F129: 0.075
A130: =ROWS(A$7:A130)-1 -> 123 | B130: =-PMT(F130/$F$4,COUNT(A130:$A$367),E129) -> 2322.143039 | C130: 1795.051137 | D130: 527.0919025 | E130: 286681.0899 | F130: 0.075
A131: =ROWS(A$7:A131)-1 -> 124 | B131: =-PMT(F131/$F$4,COUNT(A131:$A$367),E130) -> 2322.143039 | C131: 1791.756812 | D131: 530.3862269 | E131: 286150.7037 | F131: 0.075
A132: =ROWS(A$7:A132)-1 -> 125 | B132: =-PMT(F132/$F$4,COUNT(A132:$A$367),E131) -> 2322.143039 | C132: 1788.441898 | D132: 533.7011408 | E132: 285617.0026 | F132: 0.075
A133: =ROWS(A$7:A133)-1 -> 126 | B133: =-PMT(F133/$F$4,COUNT(A133:$A$367),E132) -> 2322.143039 | C133: 1785.106266 | D133: 537.0367729 | E133: 285079.9658 | F133: 0.075
A134: =ROWS(A$7:A134)-1 -> 127 | B134: =-PMT(F134/$F$4,COUNT(A134:$A$367),E133) -> 2322.143039 | C134: 1781.749786 | D134: 540.3932528 | E134: 284539.5725 | F134: 0.075
A135: =ROWS(A$7:A135)-1 -> 128 | B135: =-PMT(F135/$F$4,COUNT(A135:$A$367),E134) -> 2322.143039 | C135: 1778.372328 | D135: 543.7707106 | E135: 283995.8018 | F135: 0.075
A136: =ROWS(A$7:A136)-1 -> 129 | B136: =-PMT(F136/$F$4,COUNT(A136:$A$367),E135) -> 2322.143039 | C136: 1774.973761 | D136: 547.1692775 | E136: =E135-D136-G136 -> 283448.6326 | F136: 0.075
A137: =ROWS(A$7:A137)-1 -> 130 | B137: =-PMT(F137/$F$4,COUNT(A137:$A$367),E136) -> 2322.143039 | C137: =E136*F137/$F$4 -> 1771.553954 | D137: =B137-C137 -> 550.5890855 | E137: 282898.0435 | F137: 0.075
A138: =ROWS(A$7:A138)-1 -> 131 | B138: =-PMT(F138/$F$4,COUNT(A138:$A$367),E137) -> 2322.143039 | C138: 1768.112772 | D138: 554.0302673 | E138: 282344.0132 | F138: 0.075
A139: =ROWS(A$7:A139)-1 -> 132 | B139: =-PMT(F139/$F$4,COUNT(A139:$A$367),E138) -> 2322.143039 | C139: 1764.650083 | D139: 557.4929565 | E139: 281786.5203 | F139: 0.075
A140: =ROWS(A$7:A140)-1 -> 133 | B140: =-PMT(F140/$F$4,COUNT(A140:$A$367),E139) -> 2322.143039 | C140: 1761.165752 | D140: 560.9772874 | E140: 281225.543 | F140: 0.075
A141: =ROWS(A$7:A141)-1 -> 134 | B141: =-PMT(F141/$F$4,COUNT(A141:$A$367),E140) -> 2322.143039 | C141: 1757.659644 | D141: 564.4833955 | E141: 280661.0596 | F141: 0.075
A142: =ROWS(A$7:A142)-1 -> 135 | B142: =-PMT(F142/$F$4,COUNT(A142:$A$367),E141) -> 2322.143039 | C142: 1754.131622 | D142: 568.0114167 | E142: 280093.0482 | F142: 0.075
A143: =ROWS(A$7:A143)-1 -> 136 | B143: =-PMT(F143/$F$4,COUNT(A143:$A$367),E142) -> 2322.143039 | C143: 1750.581551 | D143: 571.5614881 | E143: 279521.4867 | F143: 0.075
A144: =ROWS(A$7:A144)-1 -> 137 | B144: =-PMT(F144/$F$4,COUNT(A144:$A$367),E143) -> 2322.143039 | C144: 1747.009292 | D144: 575.1337474 | E144: 278946.3529 | F144: 0.075
A145: =ROWS(A$7:A145)-1 -> 138 | B145: =-PMT(F145/$F$4,COUNT(A145:$A$367),E144) -> 2322.143039 | C145: 1743.414706 | D145: 578.7283333 | E145: 278367.6246 | F145: 0.075
A146: =ROWS(A$7:A146)-1 -> 139 | B146: =-PMT(F146/$F$4,COUNT(A146:$A$367),E145) -> 2322.143039 | C146: 1739.797654 | D146: 582.3453854 | E146: 277785.2792 | F146: 0.075
A147: =ROWS(A$7:A147)-1 -> 140 | B147: =-PMT(F147/$F$4,COUNT(A147:$A$367),E146) -> 2322.143039 | C147: 1736.157995 | D147: 585.985044 | E147: 277199.2942 | F147: 0.075
A148: =ROWS(A$7:A148)-1 -> 141 | B148: =-PMT(F148/$F$4,COUNT(A148:$A$367),E147) -> 2322.143039 | C148: 1732.495588 | D148: 589.6474506 | E148: 276609.6467 | F148: 0.075
A149: =ROWS(A$7:A149)-1 -> 142 | B149: =-PMT(F149/$F$4,COUNT(A149:$A$367),E148) -> 2322.143039 | C149: 1728.810292 | D149: 593.3327471 | E149: 276016.314 | F149: 0.075
A150: =ROWS(A$7:A150)-1 -> 143 | B150: =-PMT(F150/$F$4,COUNT(A150:$A$367),E149) -> 2322.143039 | C150: 1725.101962 | D150: 597.0410768 | E150: 275419.2729 | F150: 0.075
A151: =ROWS(A$7:A151)-1 -> 144 | B151: =-PMT(F151/$F$4,COUNT(A151:$A$367),E150) -> 2322.143039 | C151: 1721.370455 | D151: 600.7725835 | E151: 274818.5003 | F151: 0.075
A152: =ROWS(A$7:A152)-1 -> 145 | B152: =-PMT(F152/$F$4,COUNT(A152:$A$367),E151) -> 2322.143039 | C152: 1717.615627 | D152: 604.5274122 | E152: 274213.9729 | F152: 0.075
A153: =ROWS(A$7:A153)-1 -> 146 | B153: =-PMT(F153/$F$4,COUNT(A153:$A$367),E152) -> 2322.143039 | C153: 1713.837331 | D153: 608.3057085 | E153: 273605.6672 | F153: 0.075
A154: =ROWS(A$7:A154)-1 -> 147 | B154: =-PMT(F154/$F$4,COUNT(A154:$A$367),E153) -> 2322.143039 | C154: 1710.03542 | D154: 612.1076192 | E154: 272993.5596 | F154: 0.075
A155: =ROWS(A$7:A155)-1 -> 148 | B155: =-PMT(F155/$F$4,COUNT(A155:$A$367),E154) -> 2322.143039 | C155: 1706.209747 | D155: 615.9332918 | E155: 272377.6263 | F155: 0.075
A156: =ROWS(A$7:A156)-1 -> 149 | B156: =-PMT(F156/$F$4,COUNT(A156:$A$367),E155) -> 2322.143039 | C156: 1702.360164 | D156: 619.7828749 | E156: 271757.8434 | F156: 0.075
A157: =ROWS(A$7:A157)-1 -> 150 | B157: =-PMT(F157/$F$4,COUNT(A157:$A$367),E156) -> 2322.143039 | C157: 1698.486521 | D157: 623.6565178 | E157: 271134.1869 | F157: 0.075
A158: =ROWS(A$7:A158)-1 -> 151 | B158: =-PMT(F158/$F$4,COUNT(A158:$A$367),E157) -> 2322.143039 | C158: 1694.588668 | D158: 627.5543711 | E158: 270506.6325 | F158: 0.075
A159: =ROWS(A$7:A159)-1 -> 152 | B159: =-PMT(F159/$F$4,COUNT(A159:$A$367),E158) -> 2322.143039 | C159: 1690.666453 | D159: 631.4765859 | E159: 269875.1559 | F159: 0.075
A160: =ROWS(A$7:A160)-1 -> 153 | B160: =-PMT(F160/$F$4,COUNT(A160:$A$367),E159) -> 2322.143039 | C160: 1686.719724 | D160: 635.4233145 | E160: 269239.7326 | F160: 0.075
A161: =ROWS(A$7:A161)-1 -> 154 | B161: =-PMT(F161/$F$4,COUNT(A161:$A$367),E160) -> 2322.143039 | C161: 1682.748329 | D161: 639.3947103 | E161: 268600.3379 | F161: 0.075
A162: =ROWS(A$7:A162)-1 -> 155 | B162: =-PMT(F162/$F$4,COUNT(A162:$A$367),E161) -> 2322.143039 | C162: 1678.752112 | D162: 643.3909272 | E162: 267956.947 | F162: 0.075
A163: =ROWS(A$7:A163)-1 -> 156 | B163: =-PMT(F163/$F$4,COUNT(A163:$A$367),E162) -> 2322.143039 | C163: 1674.730919 | D163: 647.4121205 | E163: 267309.5348 | F163: 0.075
A164: =ROWS(A$7:A164)-1 -> 157 | B164: =-PMT(F164/$F$4,COUNT(A164:$A$367),E163) -> 2322.143039 | C164: 1670.684593 | D164: 651.4584462 | E164: 266658.0764 | F164: 0.075
A165: =ROWS(A$7:A165)-1 -> 158 | B165: =-PMT(F165/$F$4,COUNT(A165:$A$367),E164) -> 2322.143039 | C165: 1666.612977 | D165: 655.5300615 | E165: 266002.5463 | F165: 0.075
A166: =ROWS(A$7:A166)-1 -> 159 | B166: =-PMT(F166/$F$4,COUNT(A166:$A$367),E165) -> 2322.143039 | C166: 1662.515915 | D166: 659.6271244 | E166: 265342.9192 | F166: 0.075
A167: =ROWS(A$7:A167)-1 -> 160 | B167: =-PMT(F167/$F$4,COUNT(A167:$A$367),E166) -> 2322.143039 | C167: 1658.393245 | D167: 663.7497939 | E167: 264679.1694 | F167: 0.075
A168: =ROWS(A$7:A168)-1 -> 161 | B168: =-PMT(F168/$F$4,COUNT(A168:$A$367),E167) -> 2322.143039 | C168: 1654.244809 | D168: 667.8982302 | E168: 264011.2712 | F168: 0.075
A169: =ROWS(A$7:A169)-1 -> 162 | B169: =-PMT(F169/$F$4,COUNT(A169:$A$367),E168) -> 2322.143039 | C169: 1650.070445 | D169: 672.0725941 | E169: 263339.1986 | F169: 0.075
A170: =ROWS(A$7:A170)-1 -> 163 | B170: =-PMT(F170/$F$4,COUNT(A170:$A$367),E169) -> 2322.143039 | C170: 1645.869991 | D170: 676.2730478 | E170: 262662.9255 | F170: 0.075
A171: =ROWS(A$7:A171)-1 -> 164 | B171: =-PMT(F171/$F$4,COUNT(A171:$A$367),E170) -> 2322.143039 | C171: 1641.643285 | D171: 680.4997544 | E171: 261982.4258 | F171: 0.075
A172: =ROWS(A$7:A172)-1 -> 165 | B172: =-PMT(F172/$F$4,COUNT(A172:$A$367),E171) -> 2322.143039 | C172: 1637.390161 | D172: 684.7528778 | E172: 261297.6729 | F172: 0.075
A173: =ROWS(A$7:A173)-1 -> 166 | B173: =-PMT(F173/$F$4,COUNT(A173:$A$367),E172) -> 2322.143039 | C173: 1633.110456 | D173: 689.0325833 | E173: 260608.6403 | F173: 0.075
A174: =ROWS(A$7:A174)-1 -> 167 | B174: =-PMT(F174/$F$4,COUNT(A174:$A$367),E173) -> 2322.143039 | C174: 1628.804002 | D174: 693.339037 | E174: 259915.3013 | F174: 0.075
A175: =ROWS(A$7:A175)-1 -> 168 | B175: =-PMT(F175/$F$4,COUNT(A175:$A$367),E174) -> 2322.143039 | C175: 1624.470633 | D175: 697.6724059 | E175: 259217.6289 | F175: 0.075
A176: =ROWS(A$7:A176)-1 -> 169 | B176: =-PMT(F176/$F$4,COUNT(A176:$A$367),E175) -> 2322.143039 | C176: 1620.110181 | D176: 702.0328585 | E176: 258515.596 | F176: 0.075
A177: =ROWS(A$7:A177)-1 -> 170 | B177: =-PMT(F177/$F$4,COUNT(A177:$A$367),E176) -> 2322.143039 | C177: 1615.722475 | D177: 706.4205638 | E177: 257809.1755 | F177: 0.075
A178: =ROWS(A$7:A178)-1 -> 171 | B178: =-PMT(F178/$F$4,COUNT(A178:$A$367),E177) -> 2322.143039 | C178: 1611.307347 | D178: 710.8356924 | E178: 257098.3398 | F178: 0.075
A179: =ROWS(A$7:A179)-1 -> 172 | B179: =-PMT(F179/$F$4,COUNT(A179:$A$367),E178) -> 2322.143039 | C179: 1606.864624 | D179: 715.2784154 | E179: 256383.0614 | F179: 0.075
A180: =ROWS(A$7:A180)-1 -> 173 | B180: =-PMT(F180/$F$4,COUNT(A180:$A$367),E179) -> 2322.143039 | C180: 1602.394133 | D180: 719.7489055 | E180: 255663.3124 | F180: 0.075
A181: =ROWS(A$7:A181)-1 -> 174 | B181: =-PMT(F181/$F$4,COUNT(A181:$A$367),E180) -> 2322.143039 | C181: 1597.895703 | D181: 724.2473362 | E181: 254939.0651 | F181: 0.075
A182: =ROWS(A$7:A182)-1 -> 175 | B182: =-PMT(F182/$F$4,COUNT(A182:$A$367),E181) -> 2322.143039 | C182: 1593.369157 | D182: 728.7738821 | E182: 254210.2912 | F182: 0.075
A183: =ROWS(A$7:A183)-1 -> 176 | B183: =-PMT(F183/$F$4,COUNT(A183:$A$367),E182) -> 2322.143039 | C183: 1588.81432 | D183: 733.3287188 | E183: 253476.9625 | F183: 0.075
A184: =ROWS(A$7:A184)-1 -> 177 | B184: =-PMT(F184/$F$4,COUNT(A184:$A$367),E183) -> 2322.143039 | C184: 1584.231016 | D184: 737.9120233 | E184: 252739.0505 | F184: 0.075
A185: =ROWS(A$7:A185)-1 -> 178 | B185: =-PMT(F185/$F$4,COUNT(A185:$A$367),E184) -> 2322.143039 | C185: 1579.619066 | D185: 742.5239735 | E185: 251996.5265 | F185: 0.075
A186: =ROWS(A$7:A186)-1 -> 179 | B186: =-PMT(F186/$F$4,COUNT(A186:$A$367),E185) -> 2322.143039 | C186: 1574.978291 | D186: 747.1647483 | E186: 251249.3618 | F186: 0.075
A187: =ROWS(A$7:A187)-1 -> 180 | B187: =-PMT(F187/$F$4,COUNT(A187:$A$367),E186) -> 2322.143039 | C187: 1570.308511 | D187: 751.834528 | E187: 250497.5272 | F187: 0.075
A188: =ROWS(A$7:A188)-1 -> 181 | B188: =-PMT(F188/$F$4,COUNT(A188:$A$367),E187) -> 2322.143039 | C188: 1565.609545 | D188: 756.5334938 | E188: 249740.9937 | F188: 0.075
A189: =ROWS(A$7:A189)-1 -> 182 | B189: =-PMT(F189/$F$4,COUNT(A189:$A$367),E188) -> 2322.143039 | C189: 1560.881211 | D189: 761.2618281 | E189: 248979.7319 | F189: 0.075
A190: =ROWS(A$7:A190)-1 -> 183 | B190: =-PMT(F190/$F$4,COUNT(A190:$A$367),E189) -> 2322.143039 | C190: 1556.123324 | D190: 766.0197145 | E190: 248213.7122 | F190: 0.075
A191: =ROWS(A$7:A191)-1 -> 184 | B191: =-PMT(F191/$F$4,COUNT(A191:$A$367),E190) -> 2322.143039 | C191: 1551.335701 | D191: 770.8073377 | E191: 247442.9049 | F191: 0.075
A192: =ROWS(A$7:A192)-1 -> 185 | B192: =-PMT(F192/$F$4,COUNT(A192:$A$367),E191) -> 2322.143039 | C192: 1546.518155 | D192: 775.6248836 | E192: 246667.28 | F192: 0.075
A193: =ROWS(A$7:A193)-1 -> 186 | B193: =-PMT(F193/$F$4,COUNT(A193:$A$367),E192) -> 2322.143039 | C193: 1541.6705 | D193: 780.4725391 | E193: 245886.8074 | F193: 0.075
A194: =ROWS(A$7:A194)-1 -> 187 | B194: =-PMT(F194/$F$4,COUNT(A194:$A$367),E193) -> 2322.143039 | C194: 1536.792547 | D194: 785.3504925 | E194: 245101.4569 | F194: 0.075
A195: =ROWS(A$7:A195)-1 -> 188 | B195: =-PMT(F195/$F$4,COUNT(A195:$A$367),E194) -> 2322.143039 | C195: 1531.884106 | D195: 790.2589331 | E195: 244311.198 | F195: 0.075
A196: =ROWS(A$7:A196)-1 -> 189 | B196: =-PMT(F196/$F$4,COUNT(A196:$A$367),E195) -> 2322.143039 | C196: 1526.944988 | D196: 795.1980514 | E196: 243516 | F196: 0.075
A197: =ROWS(A$7:A197)-1 -> 190 | B197: =-PMT(F197/$F$4,COUNT(A197:$A$367),E196) -> 2322.143039 | C197: 1521.975 | D197: 800.1680392 | E197: 242715.8319 | F197: 0.075
A198: =ROWS(A$7:A198)-1 -> 191 | B198: =-PMT(F198/$F$4,COUNT(A198:$A$367),E197) -> 2322.143039 | C198: 1516.97395 | D198: 805.1690895 | E198: 241910.6628 | F198: 0.075
A199: =ROWS(A$7:A199)-1 -> 192 | B199: =-PMT(F199/$F$4,COUNT(A199:$A$367),E198) -> 2322.143039 | C199: 1511.941643 | D199: 810.2013963 | E199: 241100.4614 | F199: 0.075
A200: =ROWS(A$7:A200)-1 -> 193 | B200: =-PMT(F200/$F$4,COUNT(A200:$A$367),E199) -> 2322.143039 | C200: 1506.877884 | D200: 815.265155 | E200: =E199-D200-G200 -> 240285.1963 | F200: 0.075
A201: =ROWS(A$7:A201)-1 -> 194 | B201: =-PMT(F201/$F$4,COUNT(A201:$A$367),E200) -> 2322.143039 | C201: =E200*F201/$F$4 -> 1501.782477 | D201: =B201-C201 -> 820.3605622 | E201: 239464.8357 | F201: 0.075
A202: =ROWS(A$7:A202)-1 -> 195 | B202: =-PMT(F202/$F$4,COUNT(A202:$A$367),E201) -> 2322.143039 | C202: 1496.655223 | D202: 825.4878157 | E202: 238639.3479 | F202: 0.075
... 165 more rows

Sheet HW(20an)
A1: 1) Add Page Setup to this large spreadsheet so that it is easy to understand the printout.
B3: Years | F3: Periods per year
B4: 30 | F4: 12
A6: Period | B6: PMT | C6: Interest | D6: Principal Paid | E6: Balance | F6: Annual Rate | G6: Lump Sum (Reduces PMT)
A7: =ROWS(A$7:A7)-1 -> 0 | E7: 350000
A8: =ROWS(A$7:A8)-1 -> 1 | B8: =-PMT(F8/$F$4,COUNT(A8:$A$367),E7) -> 2568.176009 | C8: =E7*F8/$F$4 -> 2333.333333 | D8: =B8-C8 -> 234.8426752 | E8: =E7-D8-G8 -> 349765.1573 | F8: 0.08
A9: =ROWS(A$7:A9)-1 -> 2 | B9: =-PMT(F9/$F$4,COUNT(A9:$A$367),E8) -> 2568.176009 | C9: =E8*F9/$F$4 -> 2331.767715 | D9: =B9-C9 -> 236.4082931 | E9: 349528.749 | F9: 0.08
A10: =ROWS(A$7:A10)-1 -> 3 | B10: =-PMT(F10/$F$4,COUNT(A10:$A$367),E9) -> 2568.176009 | C10: 2330.19166 | D10: 237.9843484 | E10: 339290.7647 | F10: 0.08 | G10: 10000
A11: =ROWS(A$7:A11)-1 -> 4 | B11: =-PMT(F11/$F$4,COUNT(A11:$A$367),E10) -> 2494.65056 | C11: 2261.938431 | D11: 232.712129 | E11: 339058.0526 | F11: 0.08
A12: =ROWS(A$7:A12)-1 -> 5 | B12: =-PMT(F12/$F$4,COUNT(A12:$A$367),E11) -> 2494.65056 | C12: 2260.387017 | D12: 234.2635432 | E12: 338823.789 | F12: 0.08
A13: =ROWS(A$7:A13)-1 -> 6 | B13: =-PMT(F13/$F$4,COUNT(A13:$A$367),E12) -> 2494.65056 | C13: 2258.82526 | D13: 235.8253001 | E13: 338587.9637 | F13: 0.08
A14: =ROWS(A$7:A14)-1 -> 7 | B14: =-PMT(F14/$F$4,COUNT(A14:$A$367),E13) -> 2494.65056 | C14: 2257.253091 | D14: 237.3974688 | E14: 338350.5662 | F14: 0.08
A15: =ROWS(A$7:A15)-1 -> 8 | B15: =-PMT(F15/$F$4,COUNT(A15:$A$367),E14) -> 2494.65056 | C15: 2255.670442 | D15: 238.9801186 | E15: 338111.5861 | F15: 0.08
A16: =ROWS(A$7:A16)-1 -> 9 | B16: =-PMT(F16/$F$4,COUNT(A16:$A$367),E15) -> 2494.65056 | C16: 2254.077241 | D16: 240.5733194 | E16: 337871.0128 | F16: 0.08
A17: =ROWS(A$7:A17)-1 -> 10 | B17: =-PMT(F17/$F$4,COUNT(A17:$A$367),E16) -> 2494.65056 | C17: 2252.473419 | D17: 242.1771415 | E17: 337628.8357 | F17: 0.08
A18: =ROWS(A$7:A18)-1 -> 11 | B18: =-PMT(F18/$F$4,COUNT(A18:$A$367),E17) -> 2494.65056 | C18: 2250.858904 | D18: 243.7916558 | E18: 337385.044 | F18: 0.08
A19: =ROWS(A$7:A19)-1 -> 12 | B19: =-PMT(F19/$F$4,COUNT(A19:$A$367),E18) -> 2494.65056 | C19: 2249.233627 | D19: 245.4169335 | E19: 337139.6271 | F19: 0.08
A20: =ROWS(A$7:A20)-1 -> 13 | B20: =-PMT(F20/$F$4,COUNT(A20:$A$367),E19) -> 2612.058232 | C20: 2388.072358 | D20: 223.9858733 | E20: 336915.6412 | F20: 0.085
A21: =ROWS(A$7:A21)-1 -> 14 | B21: =-PMT(F21/$F$4,COUNT(A21:$A$367),E20) -> 2612.058232 | C21: 2386.485792 | D21: 225.5724399 | E21: 336690.0688 | F21: 0.085
A22: =ROWS(A$7:A22)-1 -> 15 | B22: =-PMT(F22/$F$4,COUNT(A22:$A$367),E21) -> 2612.058232 | C22: 2384.887987 | D22: 227.1702447 | E22: 336462.8985 | F22: 0.085
A23: =ROWS(A$7:A23)-1 -> 16 | B23: =-PMT(F23/$F$4,COUNT(A23:$A$367),E22) -> 2612.058232 | C23: 2383.278864 | D23: 228.7793672 | E23: 336234.1191 | F23: 0.085
A24: =ROWS(A$7:A24)-1 -> 17 | B24: =-PMT(F24/$F$4,COUNT(A24:$A$367),E23) -> 2612.058232 | C24: 2381.658344 | D24: 230.3998878 | E24: 336003.7193 | F24: 0.085
A25: =ROWS(A$7:A25)-1 -> 18 | B25: =-PMT(F25/$F$4,COUNT(A25:$A$367),E24) -> 2612.058232 | C25: 2380.026345 | D25: 232.031887 | E25: 335771.6874 | F25: 0.085
A26: =ROWS(A$7:A26)-1 -> 19 | B26: =-PMT(F26/$F$4,COUNT(A26:$A$367),E25) -> 2612.058232 | C26: 2378.382786 | D26: 233.6754462 | E26: 335538.0119 | F26: 0.085
A27: =ROWS(A$7:A27)-1 -> 20 | B27: =-PMT(F27/$F$4,COUNT(A27:$A$367),E26) -> 2612.058232 | C27: 2376.727584 | D27: 235.3306472 | E27: 335302.6813 | F27: 0.085
A28: =ROWS(A$7:A28)-1 -> 21 | B28: =-PMT(F28/$F$4,COUNT(A28:$A$367),E27) -> 2612.058232 | C28: 2375.060659 | D28: 236.9975727 | E28: 335065.6837 | F28: 0.085
A29: =ROWS(A$7:A29)-1 -> 22 | B29: =-PMT(F29/$F$4,COUNT(A29:$A$367),E28) -> 2612.058232 | C29: 2373.381926 | D29: 238.6763055 | E29: 334827.0074 | F29: 0.085
A30: =ROWS(A$7:A30)-1 -> 23 | B30: =-PMT(F30/$F$4,COUNT(A30:$A$367),E29) -> 2612.058232 | C30: 2371.691302 | D30: 240.3669293 | E30: 334586.6405 | F30: 0.085
A31: =ROWS(A$7:A31)-1 -> 24 | B31: =-PMT(F31/$F$4,COUNT(A31:$A$367),E30) -> 2612.058232 | C31: 2369.988703 | D31: 242.0695284 | E31: 334344.5709 | F31: 0.085
A32: =ROWS(A$7:A32)-1 -> 25 | B32: =-PMT(F32/$F$4,COUNT(A32:$A$367),E31) -> 2612.058232 | C32: 2368.274044 | D32: 243.7841875 | E32: 334100.7868 | F32: 0.085
A33: =ROWS(A$7:A33)-1 -> 26 | B33: =-PMT(F33/$F$4,COUNT(A33:$A$367),E32) -> 2612.058232 | C33: 2366.54724 | D33: 245.5109922 | E33: 333855.2758 | F33: 0.085
A34: =ROWS(A$7:A34)-1 -> 27 | B34: =-PMT(F34/$F$4,COUNT(A34:$A$367),E33) -> 2612.058232 | C34: 2364.808203 | D34: 247.2500284 | E34: 333608.0257 | F34: 0.085
A35: =ROWS(A$7:A35)-1 -> 28 | B35: =-PMT(F35/$F$4,COUNT(A35:$A$367),E34) -> 2612.058232 | C35: 2363.056849 | D35: 249.0013828 | E35: 333359.0244 | F35: 0.085
A36: =ROWS(A$7:A36)-1 -> 29 | B36: =-PMT(F36/$F$4,COUNT(A36:$A$367),E35) -> 2612.058232 | C36: 2361.293089 | D36: 250.7651426 | E36: 333108.2592 | F36: 0.085
A37: =ROWS(A$7:A37)-1 -> 30 | B37: =-PMT(F37/$F$4,COUNT(A37:$A$367),E36) -> 2612.058232 | C37: 2359.516836 | D37: 252.5413956 | E37: 332855.7178 | F37: 0.085
A38: =ROWS(A$7:A38)-1 -> 31 | B38: =-PMT(F38/$F$4,COUNT(A38:$A$367),E37) -> 2612.058232 | C38: 2357.728001 | D38: 254.3302305 | E38: 332601.3876 | F38: 0.085
A39: =ROWS(A$7:A39)-1 -> 32 | B39: =-PMT(F39/$F$4,COUNT(A39:$A$367),E38) -> 2612.058232 | C39: 2355.926495 | D39: 256.1317363 | E39: 332345.2558 | F39: 0.085
A40: =ROWS(A$7:A40)-1 -> 33 | B40: =-PMT(F40/$F$4,COUNT(A40:$A$367),E39) -> 2612.058232 | C40: 2354.112229 | D40: 257.9460028 | E40: 332087.3098 | F40: 0.085
A41: =ROWS(A$7:A41)-1 -> 34 | B41: =-PMT(F41/$F$4,COUNT(A41:$A$367),E40) -> 2612.058232 | C41: 2352.285111 | D41: 259.7731203 | E41: 331827.5367 | F41: 0.085
A42: =ROWS(A$7:A42)-1 -> 35 | B42: =-PMT(F42/$F$4,COUNT(A42:$A$367),E41) -> 2612.058232 | C42: 2350.445052 | D42: 261.6131799 | E42: 331565.9235 | F42: 0.085
A43: =ROWS(A$7:A43)-1 -> 36 | B43: =-PMT(F43/$F$4,COUNT(A43:$A$367),E42) -> 2612.058232 | C43: 2348.591958 | D43: 263.4662733 | E43: 331302.4573 | F43: 0.085
A44: =ROWS(A$7:A44)-1 -> 37 | B44: =-PMT(F44/$F$4,COUNT(A44:$A$367),E43) -> 2612.058232 | C44: 2346.725739 | D44: 265.3324927 | E44: 331037.1248 | F44: 0.085
A45: =ROWS(A$7:A45)-1 -> 38 | B45: =-PMT(F45/$F$4,COUNT(A45:$A$367),E44) -> 2612.058232 | C45: 2344.846301 | D45: 267.2119312 | E45: 330769.9128 | F45: 0.085
A46: =ROWS(A$7:A46)-1 -> 39 | B46: =-PMT(F46/$F$4,COUNT(A46:$A$367),E45) -> 2612.058232 | C46: 2342.953549 | D46: 269.1046824 | E46: 330500.8082 | F46: 0.085
A47: =ROWS(A$7:A47)-1 -> 40 | B47: =-PMT(F47/$F$4,COUNT(A47:$A$367),E46) -> 2612.058232 | C47: 2341.047391 | D47: 271.0108406 | E47: 330229.7973 | F47: 0.085
A48: =ROWS(A$7:A48)-1 -> 41 | B48: =-PMT(F48/$F$4,COUNT(A48:$A$367),E47) -> 2612.058232 | C48: 2339.127731 | D48: 272.9305007 | E48: 329956.8668 | F48: 0.085
A49: =ROWS(A$7:A49)-1 -> 42 | B49: =-PMT(F49/$F$4,COUNT(A49:$A$367),E48) -> 2612.058232 | C49: 2337.194473 | D49: 274.8637584 | E49: 329682.0031 | F49: 0.085
A50: =ROWS(A$7:A50)-1 -> 43 | B50: =-PMT(F50/$F$4,COUNT(A50:$A$367),E49) -> 2612.058232 | C50: 2335.247522 | D50: 276.81071 | E50: 329405.1924 | F50: 0.085
A51: =ROWS(A$7:A51)-1 -> 44 | B51: =-PMT(F51/$F$4,COUNT(A51:$A$367),E50) -> 2612.058232 | C51: 2333.286779 | D51: 278.7714525 | E51: 329126.4209 | F51: 0.085
A52: =ROWS(A$7:A52)-1 -> 45 | B52: =-PMT(F52/$F$4,COUNT(A52:$A$367),E51) -> 2612.058232 | C52: 2331.312148 | D52: 280.7460837 | E52: 328845.6748 | F52: 0.085
A53: =ROWS(A$7:A53)-1 -> 46 | B53: =-PMT(F53/$F$4,COUNT(A53:$A$367),E52) -> 2612.058232 | C53: 2329.32353 | D53: 282.7347018 | E53: 328562.9401 | F53: 0.085
A54: =ROWS(A$7:A54)-1 -> 47 | B54: =-PMT(F54/$F$4,COUNT(A54:$A$367),E53) -> 2612.058232 | C54: 2327.320826 | D54: 284.7374059 | E54: 328278.2027 | F54: 0.085
A55: =ROWS(A$7:A55)-1 -> 48 | B55: =-PMT(F55/$F$4,COUNT(A55:$A$367),E54) -> 2612.058232 | C55: 2325.303936 | D55: 286.7542958 | E55: 327991.4484 | F55: 0.085
A56: =ROWS(A$7:A56)-1 -> 49 | B56: =-PMT(F56/$F$4,COUNT(A56:$A$367),E55) -> 2612.058232 | C56: 2323.27276 | D56: 288.7854721 | E56: 327702.6629 | F56: 0.085
A57: =ROWS(A$7:A57)-1 -> 50 | B57: =-PMT(F57/$F$4,COUNT(A57:$A$367),E56) -> 2612.058232 | C57: 2321.227196 | D57: 290.8310359 | E57: 327411.8319 | F57: 0.085
A58: =ROWS(A$7:A58)-1 -> 51 | B58: =-PMT(F58/$F$4,COUNT(A58:$A$367),E57) -> 2612.058232 | C58: 2319.167143 | D58: 292.891089 | E58: 327118.9408 | F58: 0.085
A59: =ROWS(A$7:A59)-1 -> 52 | B59: =-PMT(F59/$F$4,COUNT(A59:$A$367),E58) -> 2612.058232 | C59: 2317.092497 | D59: 294.9657343 | E59: 326823.9751 | F59: 0.085
A60: =ROWS(A$7:A60)-1 -> 53 | B60: =-PMT(F60/$F$4,COUNT(A60:$A$367),E59) -> 2612.058232 | C60: 2315.003157 | D60: 297.0550749 | E60: 326526.92 | F60: 0.085
A61: =ROWS(A$7:A61)-1 -> 54 | B61: =-PMT(F61/$F$4,COUNT(A61:$A$367),E60) -> 2612.058232 | C61: 2312.899017 | D61: 299.159215 | E61: 326227.7608 | F61: 0.085
A62: =ROWS(A$7:A62)-1 -> 55 | B62: =-PMT(F62/$F$4,COUNT(A62:$A$367),E61) -> 2612.058232 | C62: 2310.779972 | D62: 301.2782594 | E62: 325926.4825 | F62: 0.085
A63: =ROWS(A$7:A63)-1 -> 56 | B63: =-PMT(F63/$F$4,COUNT(A63:$A$367),E62) -> 2612.058232 | C63: 2308.645918 | D63: 303.4123138 | E63: 325623.0702 | F63: 0.085
A64: =ROWS(A$7:A64)-1 -> 57 | B64: =-PMT(F64/$F$4,COUNT(A64:$A$367),E63) -> 2612.058232 | C64: 2306.496747 | D64: 305.5614843 | E64: 325317.5087 | F64: 0.085
A65: =ROWS(A$7:A65)-1 -> 58 | B65: =-PMT(F65/$F$4,COUNT(A65:$A$367),E64) -> 2612.058232 | C65: 2304.332354 | D65: 307.7258782 | E65: 325009.7829 | F65: 0.085
A66: =ROWS(A$7:A66)-1 -> 59 | B66: =-PMT(F66/$F$4,COUNT(A66:$A$367),E65) -> 2612.058232 | C66: 2302.152629 | D66: 309.9056031 | E66: 324699.8773 | F66: 0.085
A67: =ROWS(A$7:A67)-1 -> 60 | B67: =-PMT(F67/$F$4,COUNT(A67:$A$367),E66) -> 2612.058232 | C67: 2299.957464 | D67: 312.1007678 | E67: 324387.7765 | F67: 0.085
A68: =ROWS(A$7:A68)-1 -> 61 | B68: =-PMT(F68/$F$4,COUNT(A68:$A$367),E67) -> 2397.19705 | C68: 2027.423603 | D68: 369.7734471 | E68: 324018.003 | F68: 0.075
A69: =ROWS(A$7:A69)-1 -> 62 | B69: =-PMT(F69/$F$4,COUNT(A69:$A$367),E68) -> 2397.19705 | C69: 2025.112519 | D69: 372.0845311 | E69: 323645.9185 | F69: 0.075
A70: =ROWS(A$7:A70)-1 -> 63 | B70: =-PMT(F70/$F$4,COUNT(A70:$A$367),E69) -> 2397.19705 | C70: 2022.786991 | D70: 374.4100594 | E70: 323271.5085 | F70: 0.075
A71: =ROWS(A$7:A71)-1 -> 64 | B71: =-PMT(F71/$F$4,COUNT(A71:$A$367),E70) -> 2397.19705 | C71: 2020.446928 | D71: 376.7501223 | E71: 322894.7583 | F71: 0.075
A72: =ROWS(A$7:A72)-1 -> 65 | B72: =-PMT(F72/$F$4,COUNT(A72:$A$367),E71) -> 2397.19705 | C72: 2018.09224 | D72: 379.1048105 | E72: =E71-D72-G72 -> 322515.6535 | F72: 0.075
A73: =ROWS(A$7:A73)-1 -> 66 | B73: =-PMT(F73/$F$4,COUNT(A73:$A$367),E72) -> 2397.19705 | C73: =E72*F73/$F$4 -> 2015.722834 | D73: =B73-C73 -> 381.4742156 | E73: 322134.1793 | F73: 0.075
A74: =ROWS(A$7:A74)-1 -> 67 | B74: =-PMT(F74/$F$4,COUNT(A74:$A$367),E73) -> 2397.19705 | C74: 2013.338621 | D74: 383.8584295 | E74: 321750.3209 | F74: 0.075
A75: =ROWS(A$7:A75)-1 -> 68 | B75: =-PMT(F75/$F$4,COUNT(A75:$A$367),E74) -> 2397.19705 | C75: 2010.939505 | D75: 386.2575446 | E75: 321364.0633 | F75: 0.075
A76: =ROWS(A$7:A76)-1 -> 69 | B76: =-PMT(F76/$F$4,COUNT(A76:$A$367),E75) -> 2397.19705 | C76: 2008.525396 | D76: 388.6716543 | E76: 320975.3917 | F76: 0.075
A77: =ROWS(A$7:A77)-1 -> 70 | B77: =-PMT(F77/$F$4,COUNT(A77:$A$367),E76) -> 2397.19705 | C77: 2006.096198 | D77: 391.1008521 | E77: 320584.2908 | F77: 0.075
A78: =ROWS(A$7:A78)-1 -> 71 | B78: =-PMT(F78/$F$4,COUNT(A78:$A$367),E77) -> 2397.19705 | C78: 2003.651818 | D78: 393.5452325 | E78: 320190.7456 | F78: 0.075
A79: =ROWS(A$7:A79)-1 -> 72 | B79: =-PMT(F79/$F$4,COUNT(A79:$A$367),E78) -> 2397.19705 | C79: 2001.19216 | D79: 396.0048902 | E79: 319794.7407 | F79: 0.075
A80: =ROWS(A$7:A80)-1 -> 73 | B80: =-PMT(F80/$F$4,COUNT(A80:$A$367),E79) -> 2397.19705 | C80: 1998.717129 | D80: 398.4799207 | E80: 309396.2608 | F80: 0.075 | G80: 10000
A81: =ROWS(A$7:A81)-1 -> 74 | B81: =-PMT(F81/$F$4,COUNT(A81:$A$367),E80) -> 2322.143039 | C81: 1933.72663 | D81: 388.4164091 | E81: 309007.8444 | F81: 0.075
A82: =ROWS(A$7:A82)-1 -> 75 | B82: =-PMT(F82/$F$4,COUNT(A82:$A$367),E81) -> 2322.143039 | C82: 1931.299027 | D82: 390.8440117 | E82: 308617.0004 | F82: 0.075
A83: =ROWS(A$7:A83)-1 -> 76 | B83: =-PMT(F83/$F$4,COUNT(A83:$A$367),E82) -> 2322.143039 | C83: 1928.856252 | D83: 393.2867868 | E83: 308223.7136 | F83: 0.075
A84: =ROWS(A$7:A84)-1 -> 77 | B84: =-PMT(F84/$F$4,COUNT(A84:$A$367),E83) -> 2322.143039 | C84: 1926.39821 | D84: 395.7448292 | E84: 307827.9687 | F84: 0.075
A85: =ROWS(A$7:A85)-1 -> 78 | B85: =-PMT(F85/$F$4,COUNT(A85:$A$367),E84) -> 2322.143039 | C85: 1923.924805 | D85: 398.2182344 | E85: 307429.7505 | F85: 0.075
A86: =ROWS(A$7:A86)-1 -> 79 | B86: =-PMT(F86/$F$4,COUNT(A86:$A$367),E85) -> 2322.143039 | C86: 1921.435941 | D86: 400.7070983 | E86: 307029.0434 | F86: 0.075
A87: =ROWS(A$7:A87)-1 -> 80 | B87: =-PMT(F87/$F$4,COUNT(A87:$A$367),E86) -> 2322.143039 | C87: 1918.931521 | D87: 403.2115177 | E87: 306625.8319 | F87: 0.075
A88: =ROWS(A$7:A88)-1 -> 81 | B88: =-PMT(F88/$F$4,COUNT(A88:$A$367),E87) -> 2322.143039 | C88: 1916.411449 | D88: 405.7315897 | E88: 306220.1003 | F88: 0.075
A89: =ROWS(A$7:A89)-1 -> 82 | B89: =-PMT(F89/$F$4,COUNT(A89:$A$367),E88) -> 2322.143039 | C89: 1913.875627 | D89: 408.2674121 | E89: 305811.8329 | F89: 0.075
A90: =ROWS(A$7:A90)-1 -> 83 | B90: =-PMT(F90/$F$4,COUNT(A90:$A$367),E89) -> 2322.143039 | C90: 1911.323956 | D90: 410.8190834 | E90: 305401.0138 | F90: 0.075
A91: =ROWS(A$7:A91)-1 -> 84 | B91: =-PMT(F91/$F$4,COUNT(A91:$A$367),E90) -> 2322.143039 | C91: 1908.756336 | D91: 413.3867027 | E91: 304987.6271 | F91: 0.075
A92: =ROWS(A$7:A92)-1 -> 85 | B92: =-PMT(F92/$F$4,COUNT(A92:$A$367),E91) -> 2322.143039 | C92: 1906.172669 | D92: 415.9703696 | E92: 304571.6567 | F92: 0.075
A93: =ROWS(A$7:A93)-1 -> 86 | B93: =-PMT(F93/$F$4,COUNT(A93:$A$367),E92) -> 2322.143039 | C93: 1903.572855 | D93: 418.5701844 | E93: 304153.0865 | F93: 0.075
A94: =ROWS(A$7:A94)-1 -> 87 | B94: =-PMT(F94/$F$4,COUNT(A94:$A$367),E93) -> 2322.143039 | C94: 1900.956791 | D94: 421.1862481 | E94: 303731.9003 | F94: 0.075
A95: =ROWS(A$7:A95)-1 -> 88 | B95: =-PMT(F95/$F$4,COUNT(A95:$A$367),E94) -> 2322.143039 | C95: 1898.324377 | D95: 423.8186621 | E95: 303308.0816 | F95: 0.075
A96: =ROWS(A$7:A96)-1 -> 89 | B96: =-PMT(F96/$F$4,COUNT(A96:$A$367),E95) -> 2322.143039 | C96: 1895.67551 | D96: 426.4675288 | E96: 302881.6141 | F96: 0.075
A97: =ROWS(A$7:A97)-1 -> 90 | B97: =-PMT(F97/$F$4,COUNT(A97:$A$367),E96) -> 2322.143039 | C97: 1893.010088 | D97: 429.1329508 | E97: 302452.4812 | F97: 0.075
A98: =ROWS(A$7:A98)-1 -> 91 | B98: =-PMT(F98/$F$4,COUNT(A98:$A$367),E97) -> 2322.143039 | C98: 1890.328007 | D98: 431.8150318 | E98: 302020.6661 | F98: 0.075
A99: =ROWS(A$7:A99)-1 -> 92 | B99: =-PMT(F99/$F$4,COUNT(A99:$A$367),E98) -> 2322.143039 | C99: 1887.629163 | D99: 434.5138757 | E99: 301586.1523 | F99: 0.075
A100: =ROWS(A$7:A100)-1 -> 93 | B100: =-PMT(F100/$F$4,COUNT(A100:$A$367),E99) -> 2322.143039 | C100: 1884.913452 | D100: 437.2295874 | E100: 301148.9227 | F100: 0.075
A101: =ROWS(A$7:A101)-1 -> 94 | B101: =-PMT(F101/$F$4,COUNT(A101:$A$367),E100) -> 2322.143039 | C101: 1882.180767 | D101: 439.9622724 | E101: 300708.9604 | F101: 0.075
A102: =ROWS(A$7:A102)-1 -> 95 | B102: =-PMT(F102/$F$4,COUNT(A102:$A$367),E101) -> 2322.143039 | C102: 1879.431002 | D102: 442.7120366 | E102: 300266.2484 | F102: 0.075
A103: =ROWS(A$7:A103)-1 -> 96 | B103: =-PMT(F103/$F$4,COUNT(A103:$A$367),E102) -> 2322.143039 | C103: 1876.664052 | D103: 445.4789868 | E103: 299820.7694 | F103: 0.075
A104: =ROWS(A$7:A104)-1 -> 97 | B104: =-PMT(F104/$F$4,COUNT(A104:$A$367),E103) -> 2322.143039 | C104: 1873.879809 | D104: 448.2632304 | E104: 299372.5061 | F104: 0.075
A105: =ROWS(A$7:A105)-1 -> 98 | B105: =-PMT(F105/$F$4,COUNT(A105:$A$367),E104) -> 2322.143039 | C105: 1871.078163 | D105: 451.0648756 | E105: 298921.4413 | F105: 0.075
A106: =ROWS(A$7:A106)-1 -> 99 | B106: =-PMT(F106/$F$4,COUNT(A106:$A$367),E105) -> 2322.143039 | C106: 1868.259008 | D106: 453.8840311 | E106: 298467.5572 | F106: 0.075
A107: =ROWS(A$7:A107)-1 -> 100 | B107: =-PMT(F107/$F$4,COUNT(A107:$A$367),E106) -> 2322.143039 | C107: 1865.422233 | D107: 456.7208063 | E107: 298010.8364 | F107: 0.075
A108: =ROWS(A$7:A108)-1 -> 101 | B108: =-PMT(F108/$F$4,COUNT(A108:$A$367),E107) -> 2322.143039 | C108: 1862.567728 | D108: 459.5753113 | E108: 297551.2611 | F108: 0.075
A109: =ROWS(A$7:A109)-1 -> 102 | B109: =-PMT(F109/$F$4,COUNT(A109:$A$367),E108) -> 2322.143039 | C109: 1859.695382 | D109: 462.447657 | E109: 297088.8135 | F109: 0.075
A110: =ROWS(A$7:A110)-1 -> 103 | B110: =-PMT(F110/$F$4,COUNT(A110:$A$367),E109) -> 2322.143039 | C110: 1856.805084 | D110: 465.3379549 | E110: 296623.4755 | F110: 0.075
A111: =ROWS(A$7:A111)-1 -> 104 | B111: =-PMT(F111/$F$4,COUNT(A111:$A$367),E110) -> 2322.143039 | C111: 1853.896722 | D111: 468.2463171 | E111: 296155.2292 | F111: 0.075
A112: =ROWS(A$7:A112)-1 -> 105 | B112: =-PMT(F112/$F$4,COUNT(A112:$A$367),E111) -> 2322.143039 | C112: 1850.970182 | D112: 471.1728566 | E112: 295684.0563 | F112: 0.075
A113: =ROWS(A$7:A113)-1 -> 106 | B113: =-PMT(F113/$F$4,COUNT(A113:$A$367),E112) -> 2322.143039 | C113: 1848.025352 | D113: 474.117687 | E113: 295209.9386 | F113: 0.075
A114: =ROWS(A$7:A114)-1 -> 107 | B114: =-PMT(F114/$F$4,COUNT(A114:$A$367),E113) -> 2322.143039 | C114: 1845.062117 | D114: 477.0809225 | E114: 294732.8577 | F114: 0.075
A115: =ROWS(A$7:A115)-1 -> 108 | B115: =-PMT(F115/$F$4,COUNT(A115:$A$367),E114) -> 2322.143039 | C115: 1842.080361 | D115: 480.0626783 | E115: 294252.795 | F115: 0.075
A116: =ROWS(A$7:A116)-1 -> 109 | B116: =-PMT(F116/$F$4,COUNT(A116:$A$367),E115) -> 2322.143039 | C116: 1839.079969 | D116: 483.06307 | E116: 293769.732 | F116: 0.075
A117: =ROWS(A$7:A117)-1 -> 110 | B117: =-PMT(F117/$F$4,COUNT(A117:$A$367),E116) -> 2322.143039 | C117: 1836.060825 | D117: 486.0822142 | E117: 293283.6498 | F117: 0.075
A118: =ROWS(A$7:A118)-1 -> 111 | B118: =-PMT(F118/$F$4,COUNT(A118:$A$367),E117) -> 2322.143039 | C118: 1833.022811 | D118: 489.120228 | E118: 292794.5295 | F118: 0.075
A119: =ROWS(A$7:A119)-1 -> 112 | B119: =-PMT(F119/$F$4,COUNT(A119:$A$367),E118) -> 2322.143039 | C119: 1829.96581 | D119: 492.1772295 | E119: 292302.3523 | F119: 0.075
A120: =ROWS(A$7:A120)-1 -> 113 | B120: =-PMT(F120/$F$4,COUNT(A120:$A$367),E119) -> 2322.143039 | C120: 1826.889702 | D120: 495.2533371 | E120: 291807.099 | F120: 0.075
A121: =ROWS(A$7:A121)-1 -> 114 | B121: =-PMT(F121/$F$4,COUNT(A121:$A$367),E120) -> 2322.143039 | C121: 1823.794369 | D121: 498.3486705 | E121: 291308.7503 | F121: 0.075
A122: =ROWS(A$7:A122)-1 -> 115 | B122: =-PMT(F122/$F$4,COUNT(A122:$A$367),E121) -> 2322.143039 | C122: 1820.679689 | D122: 501.4633497 | E122: 290807.2869 | F122: 0.075
A123: =ROWS(A$7:A123)-1 -> 116 | B123: =-PMT(F123/$F$4,COUNT(A123:$A$367),E122) -> 2322.143039 | C123: 1817.545543 | D123: 504.5974956 | E123: 290302.6894 | F123: 0.075
A124: =ROWS(A$7:A124)-1 -> 117 | B124: =-PMT(F124/$F$4,COUNT(A124:$A$367),E123) -> 2322.143039 | C124: 1814.391809 | D124: 507.75123 | E124: 289794.9382 | F124: 0.075
A125: =ROWS(A$7:A125)-1 -> 118 | B125: =-PMT(F125/$F$4,COUNT(A125:$A$367),E124) -> 2322.143039 | C125: 1811.218364 | D125: 510.9246752 | E125: 289284.0135 | F125: 0.075
A126: =ROWS(A$7:A126)-1 -> 119 | B126: =-PMT(F126/$F$4,COUNT(A126:$A$367),E125) -> 2322.143039 | C126: 1808.025085 | D126: 514.1179544 | E126: 288769.8956 | F126: 0.075
A127: =ROWS(A$7:A127)-1 -> 120 | B127: =-PMT(F127/$F$4,COUNT(A127:$A$367),E126) -> 2322.143039 | C127: 1804.811847 | D127: 517.3311916 | E127: 288252.5644 | F127: 0.075
A128: =ROWS(A$7:A128)-1 -> 121 | B128: =-PMT(F128/$F$4,COUNT(A128:$A$367),E127) -> 2322.143039 | C128: 1801.578527 | D128: 520.5645115 | E128: 287731.9999 | F128: 0.075
A129: =ROWS(A$7:A129)-1 -> 122 | B129: =-PMT(F129/$F$4,COUNT(A129:$A$367),E128) -> 2322.143039 | C129: 1798.324999 | D129: 523.8180397 | E129: 287208.1818 | F129: 0.075
A130: =ROWS(A$7:A130)-1 -> 123 | B130: =-PMT(F130/$F$4,COUNT(A130:$A$367),E129) -> 2322.143039 | C130: 1795.051137 | D130: 527.0919025 | E130: 286681.0899 | F130: 0.075
A131: =ROWS(A$7:A131)-1 -> 124 | B131: =-PMT(F131/$F$4,COUNT(A131:$A$367),E130) -> 2322.143039 | C131: 1791.756812 | D131: 530.3862269 | E131: 286150.7037 | F131: 0.075
A132: =ROWS(A$7:A132)-1 -> 125 | B132: =-PMT(F132/$F$4,COUNT(A132:$A$367),E131) -> 2322.143039 | C132: 1788.441898 | D132: 533.7011408 | E132: 285617.0026 | F132: 0.075
A133: =ROWS(A$7:A133)-1 -> 126 | B133: =-PMT(F133/$F$4,COUNT(A133:$A$367),E132) -> 2322.143039 | C133: 1785.106266 | D133: 537.0367729 | E133: 285079.9658 | F133: 0.075
A134: =ROWS(A$7:A134)-1 -> 127 | B134: =-PMT(F134/$F$4,COUNT(A134:$A$367),E133) -> 2322.143039 | C134: 1781.749786 | D134: 540.3932528 | E134: 284539.5725 | F134: 0.075
A135: =ROWS(A$7:A135)-1 -> 128 | B135: =-PMT(F135/$F$4,COUNT(A135:$A$367),E134) -> 2322.143039 | C135: 1778.372328 | D135: 543.7707106 | E135: 283995.8018 | F135: 0.075
A136: =ROWS(A$7:A136)-1 -> 129 | B136: =-PMT(F136/$F$4,COUNT(A136:$A$367),E135) -> 2322.143039 | C136: 1774.973761 | D136: 547.1692775 | E136: =E135-D136-G136 -> 283448.6326 | F136: 0.075
A137: =ROWS(A$7:A137)-1 -> 130 | B137: =-PMT(F137/$F$4,COUNT(A137:$A$367),E136) -> 2322.143039 | C137: =E136*F137/$F$4 -> 1771.553954 | D137: =B137-C137 -> 550.5890855 | E137: 282898.0435 | F137: 0.075
A138: =ROWS(A$7:A138)-1 -> 131 | B138: =-PMT(F138/$F$4,COUNT(A138:$A$367),E137) -> 2322.143039 | C138: 1768.112772 | D138: 554.0302673 | E138: 282344.0132 | F138: 0.075
A139: =ROWS(A$7:A139)-1 -> 132 | B139: =-PMT(F139/$F$4,COUNT(A139:$A$367),E138) -> 2322.143039 | C139: 1764.650083 | D139: 557.4929565 | E139: 281786.5203 | F139: 0.075
A140: =ROWS(A$7:A140)-1 -> 133 | B140: =-PMT(F140/$F$4,COUNT(A140:$A$367),E139) -> 2322.143039 | C140: 1761.165752 | D140: 560.9772874 | E140: 281225.543 | F140: 0.075
A141: =ROWS(A$7:A141)-1 -> 134 | B141: =-PMT(F141/$F$4,COUNT(A141:$A$367),E140) -> 2322.143039 | C141: 1757.659644 | D141: 564.4833955 | E141: 280661.0596 | F141: 0.075
A142: =ROWS(A$7:A142)-1 -> 135 | B142: =-PMT(F142/$F$4,COUNT(A142:$A$367),E141) -> 2322.143039 | C142: 1754.131622 | D142: 568.0114167 | E142: 280093.0482 | F142: 0.075
A143: =ROWS(A$7:A143)-1 -> 136 | B143: =-PMT(F143/$F$4,COUNT(A143:$A$367),E142) -> 2322.143039 | C143: 1750.581551 | D143: 571.5614881 | E143: 279521.4867 | F143: 0.075
A144: =ROWS(A$7:A144)-1 -> 137 | B144: =-PMT(F144/$F$4,COUNT(A144:$A$367),E143) -> 2322.143039 | C144: 1747.009292 | D144: 575.1337474 | E144: 278946.3529 | F144: 0.075
A145: =ROWS(A$7:A145)-1 -> 138 | B145: =-PMT(F145/$F$4,COUNT(A145:$A$367),E144) -> 2322.143039 | C145: 1743.414706 | D145: 578.7283333 | E145: 278367.6246 | F145: 0.075
A146: =ROWS(A$7:A146)-1 -> 139 | B146: =-PMT(F146/$F$4,COUNT(A146:$A$367),E145) -> 2322.143039 | C146: 1739.797654 | D146: 582.3453854 | E146: 277785.2792 | F146: 0.075
A147: =ROWS(A$7:A147)-1 -> 140 | B147: =-PMT(F147/$F$4,COUNT(A147:$A$367),E146) -> 2322.143039 | C147: 1736.157995 | D147: 585.985044 | E147: 277199.2942 | F147: 0.075
A148: =ROWS(A$7:A148)-1 -> 141 | B148: =-PMT(F148/$F$4,COUNT(A148:$A$367),E147) -> 2322.143039 | C148: 1732.495588 | D148: 589.6474506 | E148: 276609.6467 | F148: 0.075
A149: =ROWS(A$7:A149)-1 -> 142 | B149: =-PMT(F149/$F$4,COUNT(A149:$A$367),E148) -> 2322.143039 | C149: 1728.810292 | D149: 593.3327471 | E149: 276016.314 | F149: 0.075
A150: =ROWS(A$7:A150)-1 -> 143 | B150: =-PMT(F150/$F$4,COUNT(A150:$A$367),E149) -> 2322.143039 | C150: 1725.101962 | D150: 597.0410768 | E150: 275419.2729 | F150: 0.075
A151: =ROWS(A$7:A151)-1 -> 144 | B151: =-PMT(F151/$F$4,COUNT(A151:$A$367),E150) -> 2322.143039 | C151: 1721.370455 | D151: 600.7725835 | E151: 274818.5003 | F151: 0.075
A152: =ROWS(A$7:A152)-1 -> 145 | B152: =-PMT(F152/$F$4,COUNT(A152:$A$367),E151) -> 2322.143039 | C152: 1717.615627 | D152: 604.5274122 | E152: 274213.9729 | F152: 0.075
A153: =ROWS(A$7:A153)-1 -> 146 | B153: =-PMT(F153/$F$4,COUNT(A153:$A$367),E152) -> 2322.143039 | C153: 1713.837331 | D153: 608.3057085 | E153: 273605.6672 | F153: 0.075
A154: =ROWS(A$7:A154)-1 -> 147 | B154: =-PMT(F154/$F$4,COUNT(A154:$A$367),E153) -> 2322.143039 | C154: 1710.03542 | D154: 612.1076192 | E154: 272993.5596 | F154: 0.075
A155: =ROWS(A$7:A155)-1 -> 148 | B155: =-PMT(F155/$F$4,COUNT(A155:$A$367),E154) -> 2322.143039 | C155: 1706.209747 | D155: 615.9332918 | E155: 272377.6263 | F155: 0.075
A156: =ROWS(A$7:A156)-1 -> 149 | B156: =-PMT(F156/$F$4,COUNT(A156:$A$367),E155) -> 2322.143039 | C156: 1702.360164 | D156: 619.7828749 | E156: 271757.8434 | F156: 0.075
A157: =ROWS(A$7:A157)-1 -> 150 | B157: =-PMT(F157/$F$4,COUNT(A157:$A$367),E156) -> 2322.143039 | C157: 1698.486521 | D157: 623.6565178 | E157: 271134.1869 | F157: 0.075
A158: =ROWS(A$7:A158)-1 -> 151 | B158: =-PMT(F158/$F$4,COUNT(A158:$A$367),E157) -> 2322.143039 | C158: 1694.588668 | D158: 627.5543711 | E158: 270506.6325 | F158: 0.075
A159: =ROWS(A$7:A159)-1 -> 152 | B159: =-PMT(F159/$F$4,COUNT(A159:$A$367),E158) -> 2322.143039 | C159: 1690.666453 | D159: 631.4765859 | E159: 269875.1559 | F159: 0.075
A160: =ROWS(A$7:A160)-1 -> 153 | B160: =-PMT(F160/$F$4,COUNT(A160:$A$367),E159) -> 2322.143039 | C160: 1686.719724 | D160: 635.4233145 | E160: 269239.7326 | F160: 0.075
A161: =ROWS(A$7:A161)-1 -> 154 | B161: =-PMT(F161/$F$4,COUNT(A161:$A$367),E160) -> 2322.143039 | C161: 1682.748329 | D161: 639.3947103 | E161: 268600.3379 | F161: 0.075
A162: =ROWS(A$7:A162)-1 -> 155 | B162: =-PMT(F162/$F$4,COUNT(A162:$A$367),E161) -> 2322.143039 | C162: 1678.752112 | D162: 643.3909272 | E162: 267956.947 | F162: 0.075
A163: =ROWS(A$7:A163)-1 -> 156 | B163: =-PMT(F163/$F$4,COUNT(A163:$A$367),E162) -> 2322.143039 | C163: 1674.730919 | D163: 647.4121205 | E163: 267309.5348 | F163: 0.075
A164: =ROWS(A$7:A164)-1 -> 157 | B164: =-PMT(F164/$F$4,COUNT(A164:$A$367),E163) -> 2322.143039 | C164: 1670.684593 | D164: 651.4584462 | E164: 266658.0764 | F164: 0.075
A165: =ROWS(A$7:A165)-1 -> 158 | B165: =-PMT(F165/$F$4,COUNT(A165:$A$367),E164) -> 2322.143039 | C165: 1666.612977 | D165: 655.5300615 | E165: 266002.5463 | F165: 0.075
A166: =ROWS(A$7:A166)-1 -> 159 | B166: =-PMT(F166/$F$4,COUNT(A166:$A$367),E165) -> 2322.143039 | C166: 1662.515915 | D166: 659.6271244 | E166: 265342.9192 | F166: 0.075
A167: =ROWS(A$7:A167)-1 -> 160 | B167: =-PMT(F167/$F$4,COUNT(A167:$A$367),E166) -> 2322.143039 | C167: 1658.393245 | D167: 663.7497939 | E167: 264679.1694 | F167: 0.075
A168: =ROWS(A$7:A168)-1 -> 161 | B168: =-PMT(F168/$F$4,COUNT(A168:$A$367),E167) -> 2322.143039 | C168: 1654.244809 | D168: 667.8982302 | E168: 264011.2712 | F168: 0.075
A169: =ROWS(A$7:A169)-1 -> 162 | B169: =-PMT(F169/$F$4,COUNT(A169:$A$367),E168) -> 2322.143039 | C169: 1650.070445 | D169: 672.0725941 | E169: 263339.1986 | F169: 0.075
A170: =ROWS(A$7:A170)-1 -> 163 | B170: =-PMT(F170/$F$4,COUNT(A170:$A$367),E169) -> 2322.143039 | C170: 1645.869991 | D170: 676.2730478 | E170: 262662.9255 | F170: 0.075
A171: =ROWS(A$7:A171)-1 -> 164 | B171: =-PMT(F171/$F$4,COUNT(A171:$A$367),E170) -> 2322.143039 | C171: 1641.643285 | D171: 680.4997544 | E171: 261982.4258 | F171: 0.075
A172: =ROWS(A$7:A172)-1 -> 165 | B172: =-PMT(F172/$F$4,COUNT(A172:$A$367),E171) -> 2322.143039 | C172: 1637.390161 | D172: 684.7528778 | E172: 261297.6729 | F172: 0.075
A173: =ROWS(A$7:A173)-1 -> 166 | B173: =-PMT(F173/$F$4,COUNT(A173:$A$367),E172) -> 2322.143039 | C173: 1633.110456 | D173: 689.0325833 | E173: 260608.6403 | F173: 0.075
A174: =ROWS(A$7:A174)-1 -> 167 | B174: =-PMT(F174/$F$4,COUNT(A174:$A$367),E173) -> 2322.143039 | C174: 1628.804002 | D174: 693.339037 | E174: 259915.3013 | F174: 0.075
A175: =ROWS(A$7:A175)-1 -> 168 | B175: =-PMT(F175/$F$4,COUNT(A175:$A$367),E174) -> 2322.143039 | C175: 1624.470633 | D175: 697.6724059 | E175: 259217.6289 | F175: 0.075
A176: =ROWS(A$7:A176)-1 -> 169 | B176: =-PMT(F176/$F$4,COUNT(A176:$A$367),E175) -> 2322.143039 | C176: 1620.110181 | D176: 702.0328585 | E176: 258515.596 | F176: 0.075
A177: =ROWS(A$7:A177)-1 -> 170 | B177: =-PMT(F177/$F$4,COUNT(A177:$A$367),E176) -> 2322.143039 | C177: 1615.722475 | D177: 706.4205638 | E177: 257809.1755 | F177: 0.075
A178: =ROWS(A$7:A178)-1 -> 171 | B178: =-PMT(F178/$F$4,COUNT(A178:$A$367),E177) -> 2322.143039 | C178: 1611.307347 | D178: 710.8356924 | E178: 257098.3398 | F178: 0.075
A179: =ROWS(A$7:A179)-1 -> 172 | B179: =-PMT(F179/$F$4,COUNT(A179:$A$367),E178) -> 2322.143039 | C179: 1606.864624 | D179: 715.2784154 | E179: 256383.0614 | F179: 0.075
A180: =ROWS(A$7:A180)-1 -> 173 | B180: =-PMT(F180/$F$4,COUNT(A180:$A$367),E179) -> 2322.143039 | C180: 1602.394133 | D180: 719.7489055 | E180: 255663.3124 | F180: 0.075
A181: =ROWS(A$7:A181)-1 -> 174 | B181: =-PMT(F181/$F$4,COUNT(A181:$A$367),E180) -> 2322.143039 | C181: 1597.895703 | D181: 724.2473362 | E181: 254939.0651 | F181: 0.075
A182: =ROWS(A$7:A182)-1 -> 175 | B182: =-PMT(F182/$F$4,COUNT(A182:$A$367),E181) -> 2322.143039 | C182: 1593.369157 | D182: 728.7738821 | E182: 254210.2912 | F182: 0.075
A183: =ROWS(A$7:A183)-1 -> 176 | B183: =-PMT(F183/$F$4,COUNT(A183:$A$367),E182) -> 2322.143039 | C183: 1588.81432 | D183: 733.3287188 | E183: 253476.9625 | F183: 0.075
A184: =ROWS(A$7:A184)-1 -> 177 | B184: =-PMT(F184/$F$4,COUNT(A184:$A$367),E183) -> 2322.143039 | C184: 1584.231016 | D184: 737.9120233 | E184: 252739.0505 | F184: 0.075
A185: =ROWS(A$7:A185)-1 -> 178 | B185: =-PMT(F185/$F$4,COUNT(A185:$A$367),E184) -> 2322.143039 | C185: 1579.619066 | D185: 742.5239735 | E185: 251996.5265 | F185: 0.075
A186: =ROWS(A$7:A186)-1 -> 179 | B186: =-PMT(F186/$F$4,COUNT(A186:$A$367),E185) -> 2322.143039 | C186: 1574.978291 | D186: 747.1647483 | E186: 251249.3618 | F186: 0.075
A187: =ROWS(A$7:A187)-1 -> 180 | B187: =-PMT(F187/$F$4,COUNT(A187:$A$367),E186) -> 2322.143039 | C187: 1570.308511 | D187: 751.834528 | E187: 250497.5272 | F187: 0.075
A188: =ROWS(A$7:A188)-1 -> 181 | B188: =-PMT(F188/$F$4,COUNT(A188:$A$367),E187) -> 2322.143039 | C188: 1565.609545 | D188: 756.5334938 | E188: 249740.9937 | F188: 0.075
A189: =ROWS(A$7:A189)-1 -> 182 | B189: =-PMT(F189/$F$4,COUNT(A189:$A$367),E188) -> 2322.143039 | C189: 1560.881211 | D189: 761.2618281 | E189: 248979.7319 | F189: 0.075
A190: =ROWS(A$7:A190)-1 -> 183 | B190: =-PMT(F190/$F$4,COUNT(A190:$A$367),E189) -> 2322.143039 | C190: 1556.123324 | D190: 766.0197145 | E190: 248213.7122 | F190: 0.075
A191: =ROWS(A$7:A191)-1 -> 184 | B191: =-PMT(F191/$F$4,COUNT(A191:$A$367),E190) -> 2322.143039 | C191: 1551.335701 | D191: 770.8073377 | E191: 247442.9049 | F191: 0.075
A192: =ROWS(A$7:A192)-1 -> 185 | B192: =-PMT(F192/$F$4,COUNT(A192:$A$367),E191) -> 2322.143039 | C192: 1546.518155 | D192: 775.6248836 | E192: 246667.28 | F192: 0.075
A193: =ROWS(A$7:A193)-1 -> 186 | B193: =-PMT(F193/$F$4,COUNT(A193:$A$367),E192) -> 2322.143039 | C193: 1541.6705 | D193: 780.4725391 | E193: 245886.8074 | F193: 0.075
A194: =ROWS(A$7:A194)-1 -> 187 | B194: =-PMT(F194/$F$4,COUNT(A194:$A$367),E193) -> 2322.143039 | C194: 1536.792547 | D194: 785.3504925 | E194: 245101.4569 | F194: 0.075
A195: =ROWS(A$7:A195)-1 -> 188 | B195: =-PMT(F195/$F$4,COUNT(A195:$A$367),E194) -> 2322.143039 | C195: 1531.884106 | D195: 790.2589331 | E195: 244311.198 | F195: 0.075
A196: =ROWS(A$7:A196)-1 -> 189 | B196: =-PMT(F196/$F$4,COUNT(A196:$A$367),E195) -> 2322.143039 | C196: 1526.944988 | D196: 795.1980514 | E196: 243516 | F196: 0.075
A197: =ROWS(A$7:A197)-1 -> 190 | B197: =-PMT(F197/$F$4,COUNT(A197:$A$367),E196) -> 2322.143039 | C197: 1521.975 | D197: 800.1680392 | E197: 242715.8319 | F197: 0.075
A198: =ROWS(A$7:A198)-1 -> 191 | B198: =-PMT(F198/$F$4,COUNT(A198:$A$367),E197) -> 2322.143039 | C198: 1516.97395 | D198: 805.1690895 | E198: 241910.6628 | F198: 0.075
A199: =ROWS(A$7:A199)-1 -> 192 | B199: =-PMT(F199/$F$4,COUNT(A199:$A$367),E198) -> 2322.143039 | C199: 1511.941643 | D199: 810.2013963 | E199: 241100.4614 | F199: 0.075
A200: =ROWS(A$7:A200)-1 -> 193 | B200: =-PMT(F200/$F$4,COUNT(A200:$A$367),E199) -> 2322.143039 | C200: 1506.877884 | D200: 815.265155 | E200: =E199-D200-G200 -> 240285.1963 | F200: 0.075
A201: =ROWS(A$7:A201)-1 -> 194 | B201: =-PMT(F201/$F$4,COUNT(A201:$A$367),E200) -> 2322.143039 | C201: =E200*F201/$F$4 -> 1501.782477 | D201: =B201-C201 -> 820.3605622 | E201: 239464.8357 | F201: 0.075
A202: =ROWS(A$7:A202)-1 -> 195 | B202: =-PMT(F202/$F$4,COUNT(A202:$A$367),E201) -> 2322.143039 | C202: 1496.655223 | D202: 825.4878157 | E202: 238639.3479 | F202: 0.075
... 165 more rows

Sheet HW(21)
A1: 1) Add Page Setup so that it looks good (there is no one correct answer for "look good"). Then set the print area so that the 1st quarter table prints on page 1 and the 2nd quarter table prints on page 2.
A4: 2nd Quarter Sales
B5: Apr | C5: May | D5: Jun
A6: Product 1 | B6: 41269 | C6: 72990 | D6: 63037
A7: Product 2 | B7: 69719 | C7: 26465 | D7: 38195
A8: Product 3 | B8: 52959 | C8: 22626 | D8: 48071
A9: Product 4 | B9: 38923 | C9: 36226 | D9: 56108
A10: Product 5 | B10: 65168 | C10: 39174 | D10: 19434
A11: Product 6 | B11: 58214 | C11: 47083 | D11: 39045
A12: Totals | B12: =SUM(B6:B11) -> 326252 | C12: 244564 | D12: 263890
A14: 1st Quarter Sales
B15: Jan | C15: Feb | D15: Mar
A16: Product 1 | B16: 40132 | C16: 63781 | D16: 59185
A17: Product 2 | B17: 74255 | C17: 18802 | D17: 34556
A18: Product 3 | B18: 17845 | C18: 36446 | D18: 36844
A19: Product 4 | B19: 52609 | C19: 35542 | D19: 51479
A20: Product 5 | B20: 26610 | C20: 23024 | D20: 39802
A21: Product 6 | B21: 34392 | C21: 38938 | D21: 52996
A22: Totals | B22: =SUM(B16:B21) -> 245843 | C22: 216533 | D22: 274862

Sheet HW(21an)
A1: 1) Add Page Setup so that it looks good (there is no one correct answer for "look good"). Then set the print area so that the 1st quarter table prints on page 1 and the 2nd quarter table prints on page 2.
A4: 2nd Quarter Sales
B5: Apr | C5: May | D5: Jun
A6: Product 1 | B6: 41269 | C6: 72990 | D6: 63037
A7: Product 2 | B7: 69719 | C7: 26465 | D7: 38195
A8: Product 3 | B8: 52959 | C8: 22626 | D8: 48071
A9: Product 4 | B9: 38923 | C9: 36226 | D9: 56108
A10: Product 5 | B10: 65168 | C10: 39174 | D10: 19434
A11: Product 6 | B11: 58214 | C11: 47083 | D11: 39045
A12: Totals | B12: =SUM(B6:B11) -> 326252 | C12: 244564 | D12: 263890
A14: 1st Quarter Sales
B15: Jan | C15: Feb | D15: Mar
A16: Product 1 | B16: 40132 | C16: 63781 | D16: 59185
A17: Product 2 | B17: 74255 | C17: 18802 | D17: 34556
A18: Product 3 | B18: 17845 | C18: 36446 | D18: 36844
A19: Product 4 | B19: 52609 | C19: 35542 | D19: 51479
A20: Product 5 | B20: 26610 | C20: 23024 | D20: 39802
A21: Product 6 | B21: 34392 | C21: 38938 | D21: 52996
A22: Totals | B22: =SUM(B16:B21) -> 245843 | C22: 216533 | D22: 274862

Sheet Chapter5Pages119-143
A1: Chapter 5 Homework for Pages 119 - 143
A2: ==>> Homework Sheets 22 - 30

Sheet HW(22)
A1: 1) In the green cells find the problems with the formulas and fix it.
A3: Sales | B3: 5000
A4: Expenses | B4: 4250
A5: Net Income | B5: =B3-B4
A7: Sales | B7: 5000
A8: Expenses | B8: 4250
A9: Net Income | B9: =B7-B8
A11: Sales | B11: 5000
A12: Expenses | B12: 4250
A13: Net Income | B13: =B11-B12

Sheet HW(22an)
A1: 1) In the green cells find the problems with the formulas and fix it.
A3: Sales | B3: 5000
A4: Expenses | B4: 4250
A5: Net Income | B5: =B3-B4 -> 750 | D5: <<== get rid of space
A7: Sales | B7: 5000
A8: Expenses | B8: 4250
A9: Net Income | B9: =B7-B8 -> 750 | D9: <<== get rid of lead apostrophe
A11: Sales | B11: 5000
A12: Expenses | B12: 4250
A13: Net Income | B13: =B11-B12 -> 750 | D13: <<== Remove Text number formatting

Sheet HW(23)
A1: 1) In the green cells create a formula that will calculate the correct answer
A3: Item | B3: Birch Aircraft Plywood Sheet
A4: ="Number of "&B3 -> Number of Birch Aircraft Plywood Sheet | B4: 15
A5: ="Price per "&B3 -> Price per Birch Aircraft Plywood Sheet | B5: 125
A6: Subtotal
A8: Annual Charge | B8: 598258
A9: Monthly Allocation
A11: Employee 1 | B11: 12913
A12: Employee 2 | B12: 6280
A13: Employee 3 | B13: 12830
A14: Employee 4 | B14: 12974
A15: Average

Sheet HW(23an)
A1: 1) In the green cells create a formula that will calculate the correct answer
A3: Item | B3: Birch Aircraft Plywood Sheet
A4: ="Number of "&B3 -> Number of Birch Aircraft Plywood Sheet | B4: 15
A5: ="Price per "&B3 -> Price per Birch Aircraft Plywood Sheet | B5: 125
A6: Subtotal | B6: =B5*B4 -> 1875
A8: Annual Charge | B8: 598258
A9: Monthly Allocation | B9: =B8/12 -> 49854.83333
A11: Employee 1 | B11: 12913
A12: Employee 2 | B12: 6280
A13: Employee 3 | B13: 12830
A14: Employee 4 | B14: 12974
A15: Average | B15: =AVERAGE(B11:B14) -> 11249.25

Sheet HW(24)
A1: ='HW(24an)'!A1 -> 1) If Revenue was $528,050.00, Administrative Expense was $65,874.00, Operational Expense was $350,200.00, and Other Expense was $58,500.00, list the revenue and expenses and calculate Net Income without calculating total expenses in a separate cell. Then format the report nicely.

Sheet HW(24an)
A1: ="1) If "&A4&" was "&DOLLAR(B4)&", "&A5&" was "&DOLLAR(B5)&", "&A6&" was "&DOLLAR(B6)&", and "&A7&" was "&DOLLAR(B7)&", list the revenue and expenses and calculate Net Income without calculating total expenses in a separate cell. Then format the report nicely." -> 1) If Revenue was $528,050.00, Administrative Expense was $65,874.00, Operational Expense was $350,200.00, and Other Expense was $58,500.00, list the revenue and expenses and calculate Net Income without calculating total expenses in a separate cell. Then format the report nicely.
A4: Revenue | B4: 528050
A5: Administrative Expense | B5: 65874
A6: Operational Expense | B6: 350200
A7: Other Expense | B7: 58500
A8: Net Income | B8: =B4-SUM(B5:B7) -> 53476

Sheet HW(25)
A1: 1) Calculate the balances for the DR and CR columns in cells A7 and B7. Then in cell B9 create a Logical Formula that will tell you whether the two columns are in balance or not.
A3: DR | B3: CR
B4: 22.1005
A5: 5528.98
A6: 50.01
B7: 5528.98
B8: 50.011
A9: 22.1
A10: =SUM(A4:A9) -> 5601.09 | B10: 5601.0915
A12: In Balance? | B12: =A10=B10 -> FALSE

Sheet HW(25an)
A1: 1) Calculate the balances for the DR and CR columns in cells A7 and B7. Then in cell B9 create a Logical Formula that will tell you whether the two columns are in balance or not.
A3: DR | B3: CR
B4: 22.1005 | D4: ="<<== actual number in cell = "&IF(A4="",B4,A4) -> <<== actual number in cell = 22.1005
A5: 5528.98 | D5: ="<<== actual number in cell = "&IF(A5="",B5,A5) -> <<== actual number in cell = 5528.980000009
A6: 50.01 | D6: <<== actual number in cell = 50.01
B7: 5528.98 | D7: <<== actual number in cell = 5528.98
B8: 50.011 | D8: <<== actual number in cell = 50.011
A9: 22.1 | D9: <<== actual number in cell = 22.1
A10: =SUM(A4:A9) -> 5601.09 | B10: 5601.0915
A12: In Balance? | B12: =A10=B10 -> FALSE
A14: To fix it change numbers to:
A16: DR | B16: CR
B17: 22.1 | D17: ="<<== actual number in cell = "&IF(A17="",B17,A17) -> <<== actual number in cell = 22.1
A18: 5528.98 | D18: ="<<== actual number in cell = "&IF(A18="",B18,A18) -> <<== actual number in cell = 5528.98
A19: 50.01 | D19: <<== actual number in cell = 50.01
B20: 5528.98 | D20: <<== actual number in cell = 5528.98
B21: 50.01 | D21: <<== actual number in cell = 50.01
A22: 22.1 | D22: <<== actual number in cell = 22.1
A23: =SUM(A17:A22) -> 5601.09 | B23: =SUM(B17:B22) -> 5601.09
A25: In Balance? | B25: =A23=B23 -> TRUE

Sheet HW(26)
A1: 1) In cell C6 create a calculating formula that will calculate the sum of sales greater than or equal to $25. In cell C5 create a text formula for your calculation.
A3: Sales | C3: Hurdle
A4: 40 | C4: 25
A5: 21
A6: 42
A7: 12
A8: 33
A9: 31
A10: 41
A11: 48
A12: 47
A13: 25
A14: 25
A15: 20

Sheet HW(26an)
A1: 1) In cell C6 create a calculating formula that will calculate the sum of sales greater than or equal to $25. In cell C5 create a text formula for your calculation.
A3: Sales | C3: Hurdle
A4: 40 | C4: 25
A5: 21 | C5: ="Total Sales Greater Than Or Equal To "&DOLLAR(C4) -> Total Sales Greater Than Or Equal To $25.00
A6: 42 | C6: =SUMIFS(A4:A15,A4:A15,">="&C4) -> 332
A7: 12
A8: 33 | C8: or this formula:
A9: 31 | C9: =SUMIF(A4:A15,">="&C4) -> 332
A10: 41
A11: 48
A12: 47
A13: 25
A14: 25
A15: 20

Sheet HW(27)
A1: 1) In the range E5:E8 create a formula that can add the two smallest scores. (Instead of LARGE function, use the SMALL function).
A3: Boomerang Fast Catch Score Sheet
A4: Thrower | B4: Throw 1 | C4: Throw 2 | D4: Throw 3 | E4: SUM of Lowest Two
A5: Daniel | B5: 18.25 | C5: 21.5 | D5: 43.69
A6: Richard | B6: 69.43 | C6: 18 | D6: 21.75
A7: Matt | B7: 27.49 | C7: 16.2 | D7: 31.5
A8: Stevie | B8: 20.55 | D8: 19.21

Sheet HW(27an)
A1: 1) In the range E5:E8 create a formula that can add the two smallest scores. (Instead of LARGE function, use the SMALL function).
A3: Boomerang Fast Catch Score Sheet
A4: Thrower | B4: Throw 1 | C4: Throw 2 | D4: Throw 3 | E4: SUM of Lowest Two
A5: Daniel | B5: 18.25 | C5: 21.5 | D5: 43.69 | E5: =SUM(SMALL(B5:D5,{1,2})) -> 39.75
A6: Richard | B6: 69.43 | C6: 18 | D6: 21.75 | E6: =SUM(SMALL(B6:D6,{1,2})) -> 39.75
A7: Matt | B7: 27.49 | C7: 16.2 | D7: 31.5 | E7: =SUM(SMALL(B7:D7,{1,2})) -> 43.69
A8: Stevie | B8: 20.55 | D8: 19.21 | E8: =SUM(SMALL(B8:D8,{1,2})) -> 39.76

Sheet HW(28)
A1: 1) In the green cell create a formula that will calculate the correct answer.
A3: Count Employees | B3: Count How many Numbers are in Phone Call Field (Column)
A6: Employees | B6: Phone Calls
A7: Ericka Furry | B7: 26
A8: Julio Wildt | B8: 35
A9: Clinton Newbill | B9: 21
A10: Kathrine Crosier | B10: 32
A11: Clinton Earlywine | B11: 25
A12: Allie Campisi | B12: 25
A13: Jamie Going | B13: 43
A14: Tabatha Benavente | B14: 32
A15: Neil Torre | B15: 30
A16: Lonnie Priestly | B16: 40
A17: Jami Drago | B17: 38
A18: Earnestine Bevan | B18: 38
A19: Lilia Crown | B19: 38
A20: Kurt Lawrie | B20: 35
A21: Clinton Hilchey | B21: 24
A22: Mathew Goyette | B22: 24
A23: Jessie Dykema | B23: 24
A24: Katy Nedeau | B24: 22
A25: Jessie Hyndman | B25: 39
B26: 41
A27: Darryl Oehler | B27: 35
A28: Kurt Horiuchi | B28: 29
A29: Darren Delange | B29: 22
A30: Kurt Papenfuss
A31: Kathrine Vales | B31: 23
A32: Earnestine Brummond | B32: 35
B33: 31
A34: Tyrone Swords | B34: 35
A35: Elinor Gladson | B35: 22
A36: Malinda Tack | B36: 28

Sheet HW(28an)
A1: 1) In the green cell create a formula that will calculate the correct answer.
A3: Count Employees | B3: Count How many Numbers are in Phone Call Field (Column) | D3: COUNTA counts non-empty cells (in our case words)
A4: =COUNTA(A7:A36) -> 28 | B4: =COUNT(B7:B36) -> 29 | D4: COUNT counts numbers
A6: Employees | B6: Phone Calls
A7: Ericka Furry | B7: 26
A8: Julio Wildt | B8: 35
A9: Clinton Newbill | B9: 21
A10: Kathrine Crosier | B10: 32
A11: Clinton Earlywine | B11: 25
A12: Allie Campisi | B12: 25
A13: Jamie Going | B13: 43
A14: Tabatha Benavente | B14: 32
A15: Neil Torre | B15: 30
A16: Lonnie Priestly | B16: 40
A17: Jami Drago | B17: 38
A18: Earnestine Bevan | B18: 38
A19: Lilia Crown | B19: 38
A20: Kurt Lawrie | B20: 35
A21: Clinton Hilchey | B21: 24
A22: Mathew Goyette | B22: 24
A23: Jessie Dykema | B23: 24
A24: Katy Nedeau | B24: 22
A25: Jessie Hyndman | B25: 39
B26: 41
A27: Darryl Oehler | B27: 35
A28: Kurt Horiuchi | B28: 29
A29: Darren Delange | B29: 22
A30: Kurt Papenfuss
A31: Kathrine Vales | B31: 23
A32: Earnestine Brummond | B32: 35
B33: 31
A34: Tyrone Swords | B34: 35
A35: Elinor Gladson | B35: 22
A36: Malinda Tack | B36: 28

Sheet HW(29)
A1: 1) In the green cells create a formulas that will calculate the correct answer.
A3: Time In | B3: 08:00:00
A4: Time Out | B4: 17:30:00
A5: Hours worked
A7: Time In | B7: 08:00:00
A8: Time Out | B8: 11:30:00
A9: Time In | B9: 14:00:00
A10: Time Out | B10: 19:30:00
A11: Hours Worked
A12: Wage | B12: 21.25
A13: Gross Pay

Sheet HW(29an)
A1: 1) In the green cells create a formulas that will calculate the correct answer.
A3: Time In | B3: 08:00:00
A4: Time Out | B4: 17:30:00
A5: Hours worked | B5: =(B4-B3)*24 -> 9.5
A7: Time In | B7: 08:00:00
A8: Time Out | B8: 11:30:00
A9: Time In | B9: 14:00:00
A10: Time Out | B10: 19:30:00
A11: Hours Worked | B11: =SUM(B8-B7,B10-B9)*24 -> 9
A12: Wage | B12: 21.25
A13: Gross Pay | B13: =B12*B11 -> 191.25

Sheet HW(30)
A1: 1) In the range D4:D12 create formulas that will calculate the number of days past due each invoice is. Then in cell D14 calculate the average number of days late that an invoice is late.
A3: Invoice Number | B3: Due Date | C3: Paid Date | D3: Days Past Due
A4: 12550 | B4: 2011-02-13 | C4: 2011-03-07
A5: 12551 | B5: 2011-02-13 | C5: 2011-03-08
A6: 12552 | B6: 2011-02-13 | C6: 2011-04-13
A7: 12553 | B7: 2011-02-14 | C7: 2011-04-19
A8: 12554 | B8: 2011-02-15 | C8: 2011-02-20
A9: 12555 | B9: 2011-02-15 | C9: 2011-03-19
A10: 12556 | B10: 2011-02-19 | C10: 2011-05-27
A11: 12557 | B11: 2011-02-20 | C11: 2011-03-20
A12: 12558 | B12: 2011-02-21 | C12: 2011-03-02
C14: Average Days Late

Sheet HW(30an)
A1: 1) In the range D4:D12 create formulas that will calculate the number of days past due each invoice is. Then in cell D14 calculate the average number of days late that an invoice is late.
A3: Invoice Number | B3: Due Date | C3: Paid Date | D3: Days Past Due
A4: 12550 | B4: 2011-02-13 | C4: 2011-03-07 | D4: =C4-B4 -> 22
A5: 12551 | B5: 2011-02-13 | C5: 2011-03-08 | D5: 23
A6: 12552 | B6: 2011-02-13 | C6: 2011-04-13 | D6: 59
A7: 12553 | B7: 2011-02-14 | C7: 2011-04-19 | D7: 64
A8: 12554 | B8: 2011-02-15 | C8: 2011-02-20 | D8: 5
A9: 12555 | B9: 2011-02-15 | C9: 2011-03-19 | D9: 32
A10: 12556 | B10: 2011-02-19 | C10: 2011-05-27 | D10: 97
A11: 12557 | B11: 2011-02-20 | C11: 2011-03-20 | D11: 28
A12: 12558 | B12: 2011-02-21 | C12: 2011-03-02 | D12: 9
C14: Average Days Late | D14: =AVERAGE(D4:D12) -> 37.66666667

Sheet Chapter5Pages144-155
A1: Chapter 5 Homework for Pages 144 - 155
A2: ==>> Homework Sheets 31 - 33

Sheet HW(31)
A1: 1) In the range D4:D9, create the formulas that will calculate COGS.
A3: Beg Qty | B3: End Qty | C3: Value Each | D3: COGS
A4: 10 | B4: 3 | C4: 5
A5: 100 | B5: 37 | C5: 15
A6: 250 | B6: 241 | C6: 22
A7: 45 | B7: 41 | C7: 16
A8: 69 | B8: 43 | C8: 50
A9: 10 | B9: 10 | C9: 5

Sheet HW(31an)
A1: 1) In the range D4:D9, create the formulas that will calculate COGS.
A3: Beg Qty | B3: End Qty | C3: Value Each | D3: COGS
A4: 10 | B4: 3 | C4: 5 | D4: =(A4-B4)*C4 -> 35
A5: 100 | B5: 37 | C5: 15 | D5: 945
A6: 250 | B6: 241 | C6: 22 | D6: 198
A7: 45 | B7: 41 | C7: 16 | D7: 64
A8: 69 | B8: 43 | C8: 50 | D8: 1300
A9: 10 | B9: 10 | C9: 5 | D9: 0

Sheet HW(32)
A1: 1) In the range E4:E14 create the formulas for Gross Pay. If the Number Formatting shows up as Time, change it to Currency.
A3: Employee | B3: Hourly Wage | C3: Time In | D3: Time Out | E3: Gross Pay Wage*HoursWorked
A4: Employee 1 | B4: 14 | C4: 11:00:00 | D4: 21:00:00
A5: Employee 2 | B5: 25 | C5: 08:00:00 | D5: 15:00:00
A6: Employee 3 | B6: 25 | C6: 08:00:00 | D6: 15:00:00
A7: Employee 4 | B7: 15 | C7: 10:00:00 | D7: 18:00:00
A8: Employee 5 | B8: 21 | C8: 10:00:00 | D8: 20:00:00
A9: Your Name | B9: 29 | C9: 10:00:00 | D9: 17:00:00
A10: Employee 7 | B10: 22 | C10: 08:00:00 | D10: 16:00:00
A11: Employee 8 | B11: 21 | C11: 10:00:00 | D11: 18:00:00
A12: Employee 9 | B12: 19 | C12: 08:00:00 | D12: 16:00:00
A13: Employee 10 | B13: 16 | C13: 09:00:00 | D13: 18:00:00
A14: Employee 11 | B14: 21 | C14: 10:00:00 | D14: 18:00:00

Sheet HW(32an)
A1: 1) In the range E4:E14 create the formulas for Gross Pay. If the Number Formatting shows up as Time, change it to Currency.
A3: Employee | B3: Hourly Wage | C3: Time In | D3: Time Out | E3: Gross Pay Wage*HoursWorked
A4: Employee 1 | B4: 14 | C4: 11:00:00 | D4: 21:00:00 | E4: =B4*(D4-C4)*24 -> 140
A5: Employee 2 | B5: 25 | C5: 08:00:00 | D5: 15:00:00 | E5: 175
A6: Employee 3 | B6: 25 | C6: 08:00:00 | D6: 15:00:00 | E6: 175
A7: Employee 4 | B7: 15 | C7: 10:00:00 | D7: 18:00:00 | E7: 120
A8: Employee 5 | B8: 21 | C8: 10:00:00 | D8: 20:00:00 | E8: 210
A9: Your Name | B9: 29 | C9: 10:00:00 | D9: 17:00:00 | E9: 203
A10: Employee 7 | B10: 22 | C10: 08:00:00 | D10: 16:00:00 | E10: 176
A11: Employee 8 | B11: 21 | C11: 10:00:00 | D11: 18:00:00 | E11: 168
A12: Employee 9 | B12: 19 | C12: 08:00:00 | D12: 16:00:00 | E12: 152
A13: Employee 10 | B13: 16 | C13: 09:00:00 | D13: 18:00:00 | E13: 144
A14: Employee 11 | B14: 21 | C14: 10:00:00 | D14: 18:00:00 | E14: 168

Sheet HW(33)
A1: 1) Using the spreadsheet create the labels and formulas to calculate your Gross Pay if you worked from 7:30 AM to 11:30 AM, then from 2:00 PM to 5:30 PM and your hourly wage is $27.00.

Sheet HW(33an)
A1: 1) Using the spreadsheet create the labels and formulas to calculate your Gross Pay if you worked from 7:30 AM to 11:30 AM, then from 2:00 PM to 5:30 PM and your hourly wage is $27.00.
A3: Time In | B3: 07:30:00
A4: Time Out | B4: 11:30:00
A5: Time In | B5: 14:00:00
A6: Time Out | B6: 17:30:00
A7: Wage | B7: 27
A8: Gross Pay | B8: =SUM(B4-B3,B6-B5)*24*B7 -> 202.5

Sheet Chapter5Pages155-184
A1: Chapter 5 Homework for Pages 155 - 184
A2: ==>> Homework Sheets 34 - 37

Sheet HW(34)
B1: 1) Cell C5 has the formula for calculating Retail Selling Price based on Margin. Put the formula in cell C5 in edit mode and add the correct dollar signs to the cell references to enable you to copy the formula through the range C5:E10. 2) Create a formula in cell F5 that can be copied through the range F5:H10 that will increased each price in the range C5:E10 by 10%.
C3: Retail Selling Price by Margin
A4: Cost | B4: Items | C4: =C14 -> 0.45 | D4: =C4+$C15 -> 0.5 | E4: =D4+$C15 -> 0.55 | F4: New Price | G4: New Price | H4: New Price
A5: 598 | B5: Sofa | C5: =A5/(1-C4) -> 1087.272727
A6: 85 | B6: Head Lamp
A7: 152 | B7: Table
A8: 99 | B8: Chair
A9: 575 | B9: Dining Set
A10: 25 | B10: Picture
B12: Assumption Table
B13: Increase in Price | C13: 1.05
B14: =C3&" Starting Point" -> Retail Selling Price by Margin Starting Point | C14: 0.45
B15: Increment | C15: 0.05

Sheet HW(34an)
B1: 1) Cell C5 has the formula for calculating Retail Selling Price based on Margin. Put the formula in cell C5 in edit mode and add the correct dollar signs to the cell references to enable you to copy the formula through the range C5:E10. 2) Create a formula in cell F5 that can be copied through the range F5:H10 that will increased each price in the range C5:E10 by 10%.
C3: Retail Selling Price by Margin
A4: Cost | B4: Items | C4: =C14 -> 0.45 | D4: =C4+$C15 -> 0.5 | E4: =D4+$C15 -> 0.55 | F4: New Price | G4: New Price | H4: New Price
A5: 598 | B5: Sofa | C5: =$A5/(1-C$4) -> 1087.272727 | D5: 1196 | E5: 1328.888889 | F5: =C5*$C$13 -> 1196 | G5: =D5*$C$13 -> 1315.6 | H5: 1461.777778
A6: 85 | B6: Head Lamp | C6: 154.5454545 | D6: 170 | E6: 188.8888889 | F6: =C6*$C$13 -> 170 | G6: 187 | H6: 207.7777778
A7: 152 | B7: Table | C7: 276.3636364 | D7: 304 | E7: 337.7777778 | F7: 304 | G7: 334.4 | H7: 371.5555556
A8: 99 | B8: Chair | C8: 180 | D8: 198 | E8: 220 | F8: 198 | G8: 217.8 | H8: 242
A9: 575 | B9: Dining Set | C9: 1045.454545 | D9: 1150 | E9: 1277.777778 | F9: 1150 | G9: 1265 | H9: 1405.555556
A10: 25 | B10: Picture | C10: 45.45454545 | D10: 50 | E10: 55.55555556 | F10: 50 | G10: 55 | H10: 61.11111111
B12: Assumption Table
B13: Increase in Price | C13: 1.1
B14: =C3&" Starting Point" -> Retail Selling Price by Margin Starting Point | C14: 0.45
B15: Increment | C15: 0.05

Sheet HW(35)
A1: 1) Create a formula in cell B8 that can be copied through the range B8:K8 that will calculate the commission earned for each SalesRep.
A3: Commission Rate
A4: 0.05
A6: SalesRep | B6: Abraham | C6: Hironobu | D6: Daniel | E6: Dante | F6: Sarah B | G6: Tonya | H6: Janita | I6: Debra | J6: Tiara | K6: Andrea
A7: Sales | B7: 11682 | C7: 20880 | D7: 12176 | E7: 12695 | F7: 19679 | G7: 16243 | H7: 11976 | I7: 17839 | J7: 24591 | K7: 24545
A8: Earned Commision

Sheet HW(35an)
A1: 1) Create a formula in cell B8 that can be copied through the range B8:K8 that will calculate the commission earned for each SalesRep.
A3: Commission Rate
A4: 0.05
A6: SalesRep | B6: Abraham | C6: Hironobu | D6: Daniel | E6: Dante | F6: Sarah B | G6: Tonya | H6: Janita | I6: Debra | J6: Tiara | K6: Andrea
A7: Sales | B7: 11682 | C7: 20880 | D7: 12176 | E7: 12695 | F7: 19679 | G7: 16243 | H7: 11976 | I7: 17839 | J7: 24591 | K7: 24545
A8: Earned Commision | B8: =B7*$A4 -> 584.1 | C8: 1044 | D8: 608.8 | E8: 634.75 | F8: 983.95 | G8: 812.15 | H8: 598.8 | I8: 891.95 | J8: 1229.55 | K8: 1227.25

Sheet HW(36)
A1: 1) In the range B4 to B8, create a formula that will add the COGS for each product. 2) Create a PivotTable on this sheet (Existing Location cell = K3) that adds the COGS for each product. 3) Format the Formula Table and the PivotTable so that it looks good.
A3: Product | B3: Total COGS
A4: Sunshine
A5: Carlota
A6: Sunset
A7: Quad
A8: Bellen
A12: Date | B12: Product | C12: Region | D12: SalesRep | E12: Customer | F12: Units | G12: Sales | H12: COGS
A13: 2011-01-13 | B13: Sunshine | C13: East | D13: Franks | E13: KBTB | F13: 58 | G13: 1102 | H13: 464
A14: 2011-01-15 | B14: Sunshine | C14: MidWest | D14: Sioux | E14: MNGD | F14: 17 | G14: 323 | H14: 136
A15: 2011-01-25 | B15: Sunshine | C15: West | D15: Franks | E15: JAQ | F15: 59 | G15: 1121 | H15: 472
A16: 2011-01-03 | B16: Carlota | C16: MidWest | D16: Chin | E16: FRED | F16: 55 | G16: 1265 | H16: 605
A17: 2011-01-27 | B17: Sunset | C17: MidWest | D17: Franks | E17: WFMI | F17: 44 | G17: 924 | H17: 407
A18: 2011-01-14 | B18: Quad | C18: MidWest | D18: Smith | E18: TTT | F18: 61 | G18: 1647 | H18: 884.5
A19: 2011-01-08 | B19: Quad | C19: MidWest | D19: Franks | E19: ET | F19: 50 | G19: 1350 | H19: 725
A20: 2011-01-16 | B20: Quad | C20: East | D20: Pham | E20: FM | F20: 59 | G20: 1593 | H20: 855.5
A21: 2011-01-07 | B21: Quad | C21: East | D21: Sioux | E21: EPP | F21: 36 | G21: 972 | H21: 522
A22: 2011-01-15 | B22: Sunset | C22: East | D22: Chin | E22: FRED | F22: 14 | G22: 294 | H22: 129.5
A23: 2011-01-20 | B23: Quad | C23: South | D23: Pham | E23: T | F23: 38 | G23: 1026 | H23: 551
A24: 2011-01-27 | B24: Carlota | C24: MidWest | D24: Sioux | E24: LOP | F24: 63 | G24: 1449 | H24: 693
A25: 2011-01-08 | B25: Sunshine | C25: East | D25: Gault | E25: PSA | F25: 9 | G25: 171 | H25: 72
A26: 2011-01-20 | B26: Carlota | C26: MidWest | D26: Chin | E26: T | F26: 65 | G26: 1495 | H26: 715
A27: 2011-01-05 | B27: Quad | C27: East | D27: Pham | E27: AST | F27: 35 | G27: 945 | H27: 507.5
A28: 2011-01-12 | B28: Sunshine | C28: West | D28: Chin | E28: EPP | F28: 37 | G28: 703 | H28: 296
A29: 2011-01-04 | B29: Sunshine | C29: East | D29: Pham | E29: SFWK | F29: 55 | G29: 1045 | H29: 440
A30: 2011-01-28 | B30: Sunshine | C30: South | D30: Smith | E30: KBTB | F30: 33 | G30: 627 | H30: 264
A31: 2011-01-04 | B31: Carlota | C31: East | D31: Chin | E31: WSD | F31: 28 | G31: 644 | H31: 308
A32: 2011-01-18 | B32: Quad | C32: East | D32: Sioux | E32: WFMI | F32: 10 | G32: 270 | H32: 145
A33: 2011-01-21 | B33: Bellen | C33: East | D33: Chin | E33: QT | F33: 30 | G33: 660 | H33: 300
A34: 2011-01-01 | B34: Sunshine | C34: West | D34: Pham | E34: TTT | F34: 26 | G34: 494 | H34: 208
A35: 2011-01-23 | B35: Sunset | C35: East | D35: Chin | E35: DFR | F35: 6 | G35: 126 | H35: 55.5
A36: 2011-01-25 | B36: Quad | C36: MidWest | D36: Franks | E36: EPP | F36: 41 | G36: 1107 | H36: 594.5
A37: 2011-01-19 | B37: Quad | C37: West | D37: Smith | E37: HII | F37: 26 | G37: 702 | H37: 377
A38: 2011-01-29 | B38: Sunshine | C38: MidWest | D38: Gault | E38: SFWK | F38: 45 | G38: 855 | H38: 360
A39: 2011-01-29 | B39: Sunset | C39: South | D39: Gault | E39: ITW | F39: 15 | G39: 315 | H39: 138.75
A40: 2011-01-22 | B40: Carlota | C40: West | D40: Chin | E40: KBTB | F40: 65 | G40: 1495 | H40: 715
A41: 2011-01-30 | B41: Quad | C41: East | D41: Franks | E41: HII | F41: 14 | G41: 378 | H41: 203
A42: 2011-01-18 | B42: Bellen | C42: West | D42: Chin | E42: MNGD | F42: 56 | G42: 1232 | H42: 560
A43: 2011-01-01 | B43: Sunshine | C43: West | D43: Franks | E43: FM | F43: 11 | G43: 209 | H43: 88
A44: 2011-01-18 | B44: Quad | C44: West | D44: Smith | E44: AA | F44: 40 | G44: 1080 | H44: 580
A45: 2011-01-21 | B45: Quad | C45: MidWest | D45: Sioux | E45: KBTB | F45: 58 | G45: 1566 | H45: 841
A46: 2011-01-12 | B46: Carlota | C46: MidWest | D46: Chin | E46: WT | F46: 40 | G46: 920 | H46: 440
A47: 2011-01-16 | B47: Quad | C47: West | D47: Chin | E47: PCC | F47: 40 | G47: 1080 | H47: 580
A48: 2011-01-05 | B48: Carlota | C48: South | D48: Franks | E48: FM | F48: 11 | G48: 253 | H48: 121
A49: 2011-01-30 | B49: Bellen | C49: West | D49: Franks | E49: ZAT | F49: 17 | G49: 374 | H49: 170
A50: 2011-01-15 | B50: Quad | C50: East | D50: Gault | E50: WT | F50: 19 | G50: 513 | H50: 275.5
A51: 2011-01-30 | B51: Quad | C51: MidWest | D51: Gault | E51: EPP | F51: 15 | G51: 405 | H51: 217.5
A52: 2011-01-16 | B52: Sunshine | C52: East | D52: Gault | E52: WSD | F52: 57 | G52: 1083 | H52: 456
A53: 2011-01-24 | B53: Sunset | C53: MidWest | D53: Franks | E53: WSD | F53: 17 | G53: 357 | H53: 157.25
A54: 2011-01-26 | B54: Carlota | C54: South | D54: Smith | E54: TTT | F54: 31 | G54: 713 | H54: 341
A55: 2011-01-11 | B55: Sunset | C55: South | D55: Gault | E55: MBG | F55: 28 | G55: 588 | H55: 259
A56: 2011-01-06 | B56: Bellen | C56: MidWest | D56: Smith | E56: TRU | F56: 11 | G56: 242 | H56: 110
A57: 2011-01-09 | B57: Bellen | C57: East | D57: Smith | E57: EPP | F57: 20 | G57: 440 | H57: 200
A58: 2011-01-16 | B58: Quad | C58: East | D58: Sioux | E58: PLOT | F58: 8 | G58: 216 | H58: 116
A59: 2011-01-12 | B59: Quad | C59: West | D59: Franks | E59: EPP | F59: 34 | G59: 918 | H59: 493
A60: 2011-01-14 | B60: Carlota | C60: MidWest | D60: Sioux | E60: TRU | F60: 34 | G60: 782 | H60: 374
A61: 2011-01-02 | B61: Sunshine | C61: West | D61: Franks | E61: BBT | F61: 16 | G61: 304 | H61: 128
A62: 2011-01-10 | B62: Carlota | C62: East | D62: Chin | E62: TTT | F62: 32 | G62: 736 | H62: 352
A63: 2011-01-28 | B63: Sunset | C63: MidWest | D63: Sioux | E63: QT | F63: 61 | G63: 1281 | H63: 564.25
A64: 2011-01-11 | B64: Sunset | C64: South | D64: Franks | E64: TTT | F64: 59 | G64: 1239 | H64: 545.75
A65: 2011-01-03 | B65: Bellen | C65: South | D65: Chin | E65: TTT | F65: 30 | G65: 660 | H65: 300
A66: 2011-01-15 | B66: Bellen | C66: MidWest | D66: Pham | E66: LOP | F66: 22 | G66: 484 | H66: 220
A67: 2011-01-14 | B67: Carlota | C67: West | D67: Franks | E67: ET | F67: 6 | G67: 138 | H67: 66
A68: 2011-01-28 | B68: Quad | C68: MidWest | D68: Smith | E68: DFGH | F68: 16 | G68: 432 | H68: 232
A69: 2011-01-04 | B69: Quad | C69: East | D69: Sioux | E69: MBG | F69: 19 | G69: 513 | H69: 275.5
A70: 2011-01-13 | B70: Carlota | C70: South | D70: Chin | E70: AA | F70: 30 | G70: 690 | H70: 330
A71: 2011-01-12 | B71: Sunshine | C71: West | D71: Pham | E71: WFMI | F71: 62 | G71: 1178 | H71: 496
A72: 2011-01-24 | B72: Bellen | C72: MidWest | D72: Franks | E72: EPP | F72: 25 | G72: 550 | H72: 250
A73: 2011-01-14 | B73: Sunshine | C73: West | D73: Sioux | E73: FM | F73: 13 | G73: 247 | H73: 104
A74: 2011-01-06 | B74: Sunset | C74: MidWest | D74: Chin | E74: DFR | F74: 24 | G74: 504 | H74: 222
A75: 2011-01-19 | B75: Carlota | C75: South | D75: Pham | E75: GRR | F75: 51 | G75: 1173 | H75: 561
A76: 2011-01-27 | B76: Sunshine | C76: East | D76: Franks | E76: ITW | F76: 23 | G76: 437 | H76: 184
A77: 2011-01-21 | B77: Carlota | C77: West | D77: Pham | E77: WSD | F77: 41 | G77: 943 | H77: 451
A78: 2011-01-04 | B78: Sunshine | C78: West | D78: Pham | E78: FM | F78: 11 | G78: 209 | H78: 88
A79: 2011-01-04 | B79: Quad | C79: MidWest | D79: Franks | E79: TRU | F79: 19 | G79: 513 | H79: 275.5
A80: 2011-01-27 | B80: Bellen | C80: West | D80: Smith | E80: TRU | F80: 62 | G80: 1364 | H80: 620
A81: 2011-01-19 | B81: Sunshine | C81: South | D81: Pham | E81: ITW | F81: 48 | G81: 912 | H81: 384
A82: 2011-01-11 | B82: Bellen | C82: East | D82: Franks | E82: MNGD | F82: 34 | G82: 748 | H82: 340
A83: 2011-01-01 | B83: Carlota | C83: MidWest | D83: Franks | E83: JAQ | F83: 37 | G83: 851 | H83: 407
A84: 2011-01-05 | B84: Sunshine | C84: West | D84: Sioux | E84: WT | F84: 50 | G84: 950 | H84: 400
A85: 2011-01-15 | B85: Carlota | C85: West | D85: Smith | E85: TTT | F85: 51 | G85: 1173 | H85: 561
A86: 2011-01-23 | B86: Carlota | C86: West | D86: Pham | E86: ET | F86: 32 | G86: 736 | H86: 352
A87: 2011-01-07 | B87: Carlota | C87: South | D87: Chin | E87: JAQ | F87: 22 | G87: 506 | H87: 242
A88: 2011-01-16 | B88: Carlota | C88: South | D88: Sioux | E88: ZAT | F88: 33 | G88: 759 | H88: 363
A89: 2011-01-19 | B89: Bellen | C89: South | D89: Pham | E89: TTT | F89: 18 | G89: 396 | H89: 180
A90: 2011-01-28 | B90: Sunshine | C90: East | D90: Sioux | E90: QT | F90: 17 | G90: 323 | H90: 136
A91: 2011-01-16 | B91: Sunshine | C91: South | D91: Chin | E91: T | F91: 14 | G91: 266 | H91: 112
A92: 2011-01-15 | B92: Sunshine | C92: MidWest | D92: Pham | E92: DFGH | F92: 54 | G92: 1026 | H92: 432
A93: 2011-01-27 | B93: Bellen | C93: East | D93: Franks | E93: TTT | F93: 56 | G93: 1232 | H93: 560
A94: 2011-01-28 | B94: Bellen | C94: South | D94: Sioux | E94: WT | F94: 47 | G94: 1034 | H94: 470
A95: 2011-01-28 | B95: Bellen | C95: West | D95: Chin | E95: KPSA | F95: 65 | G95: 1430 | H95: 650
A96: 2011-01-15 | B96: Sunset | C96: MidWest | D96: Franks | E96: FM | F96: 56 | G96: 1176 | H96: 518
A97: 2011-01-14 | B97: Quad | C97: South | D97: Pham | E97: AA | F97: 64 | G97: 1728 | H97: 928
A98: 2011-01-19 | B98: Sunset | C98: MidWest | D98: Smith | E98: DDH | F98: 63 | G98: 1323 | H98: 582.75
A99: 2011-01-29 | B99: Sunset | C99: West | D99: Smith | E99: TTT | F99: 25 | G99: 525 | H99: 231.25
A100: 2011-01-17 | B100: Quad | C100: East | D100: Franks | E100: SFWK | F100: 15 | G100: 405 | H100: 217.5
A101: 2011-01-30 | B101: Sunshine | C101: MidWest | D101: Franks | E101: LOP | F101: 42 | G101: 798 | H101: 336
A102: 2011-01-16 | B102: Sunset | C102: MidWest | D102: Pham | E102: JAQ | F102: 31 | G102: 651 | H102: 286.75
A103: 2011-01-19 | B103: Sunset | C103: West | D103: Gault | E103: QT | F103: 32 | G103: 672 | H103: 296
A104: 2011-01-05 | B104: Carlota | C104: South | D104: Sioux | E104: WSD | F104: 34 | G104: 782 | H104: 374
A105: 2011-01-18 | B105: Carlota | C105: East | D105: Chin | E105: TRU | F105: 50 | G105: 1150 | H105: 550
A106: 2011-01-08 | B106: Sunshine | C106: South | D106: Sioux | E106: ZAT | F106: 53 | G106: 1007 | H106: 424
A107: 2011-01-10 | B107: Quad | C107: MidWest | D107: Sioux | E107: KPSA | F107: 27 | G107: 729 | H107: 391.5
A108: 2011-01-05 | B108: Bellen | C108: East | D108: Gault | E108: WSD | F108: 23 | G108: 506 | H108: 230
A109: 2011-01-15 | B109: Quad | C109: West | D109: Chin | E109: MBG | F109: 12 | G109: 324 | H109: 174
A110: 2011-01-17 | B110: Quad | C110: West | D110: Chin | E110: HII | F110: 50 | G110: 1350 | H110: 725
A111: 2011-01-26 | B111: Sunshine | C111: MidWest | D111: Smith | E111: TRU | F111: 49 | G111: 931 | H111: 392
A112: 2011-01-11 | B112: Sunset | C112: South | D112: Smith | E112: HII | F112: 17 | G112: 357 | H112: 157.25
A113: 2011-01-04 | B113: Quad | C113: South | D113: Sioux | E113: ET | F113: 12 | G113: 324 | H113: 174
A114: 2011-01-21 | B114: Carlota | C114: MidWest | D114: Chin | E114: BBT | F114: 53 | G114: 1219 | H114: 583
A115: 2011-01-22 | B115: Sunset | C115: West | D115: Franks | E115: AA | F115: 41 | G115: 861 | H115: 379.25
A116: 2011-01-10 | B116: Sunshine | C116: East | D116: Franks | E116: JAQ | F116: 8 | G116: 152 | H116: 64
A117: 2011-01-12 | B117: Sunset | C117: South | D117: Franks | E117: QT | F117: 47 | G117: 987 | H117: 434.75

Sheet HW(36an)
A1: 1) In the range B4 to B8, create a formula that will add the COGS for each product. 2) Create a PivotTable on this sheet (Existing Location cell = K3) that adds the COGS for each product. 3) Format the Formula Table and the PivotTable so that it looks good.
A3: Product | B3: Total COGS | K3: Product | L3: Sum of COGS
A4: Bellen | B4: =SUMIFS(H$13:H$117,B$13:B$117,A4) -> 5160 | K4: Bellen | L4: 5160
A5: Carlota | B5: =SUMIFS(H$13:H$117,B$13:B$117,A5) -> 9504 | K5: Carlota | L5: 9504
A6: Quad | B6: =SUMIFS(H$13:H$117,B$13:B$117,A6) -> 11861 | K6: Quad | L6: 11861
A7: Sunset | B7: =SUMIFS(H$13:H$117,B$13:B$117,A7) -> 5365 | K7: Sunset | L7: 5365
A8: Sunshine | B8: =SUMIFS(H$13:H$117,B$13:B$117,A8) -> 6936 | K8: Sunshine | L8: 6936
A9: Total | B9: =SUM(B4:B8) -> 38826 | K9: Grand Total | L9: 38826
A12: Date | B12: Product | C12: Region | D12: SalesRep | E12: Customer | F12: Units | G12: Sales | H12: COGS
A13: 2011-01-13 | B13: Sunshine | C13: East | D13: Franks | E13: KBTB | F13: 58 | G13: 1102 | H13: 464
A14: 2011-01-15 | B14: Sunshine | C14: MidWest | D14: Sioux | E14: MNGD | F14: 17 | G14: 323 | H14: 136
A15: 2011-01-25 | B15: Sunshine | C15: West | D15: Franks | E15: JAQ | F15: 59 | G15: 1121 | H15: 472
A16: 2011-01-03 | B16: Carlota | C16: MidWest | D16: Chin | E16: FRED | F16: 55 | G16: 1265 | H16: 605
A17: 2011-01-27 | B17: Sunset | C17: MidWest | D17: Franks | E17: WFMI | F17: 44 | G17: 924 | H17: 407
A18: 2011-01-14 | B18: Quad | C18: MidWest | D18: Smith | E18: TTT | F18: 61 | G18: 1647 | H18: 884.5
A19: 2011-01-08 | B19: Quad | C19: MidWest | D19: Franks | E19: ET | F19: 50 | G19: 1350 | H19: 725
A20: 2011-01-16 | B20: Quad | C20: East | D20: Pham | E20: FM | F20: 59 | G20: 1593 | H20: 855.5
A21: 2011-01-07 | B21: Quad | C21: East | D21: Sioux | E21: EPP | F21: 36 | G21: 972 | H21: 522
A22: 2011-01-15 | B22: Sunset | C22: East | D22: Chin | E22: FRED | F22: 14 | G22: 294 | H22: 129.5
A23: 2011-01-20 | B23: Quad | C23: South | D23: Pham | E23: T | F23: 38 | G23: 1026 | H23: 551
A24: 2011-01-27 | B24: Carlota | C24: MidWest | D24: Sioux | E24: LOP | F24: 63 | G24: 1449 | H24: 693
A25: 2011-01-08 | B25: Sunshine | C25: East | D25: Gault | E25: PSA | F25: 9 | G25: 171 | H25: 72
A26: 2011-01-20 | B26: Carlota | C26: MidWest | D26: Chin | E26: T | F26: 65 | G26: 1495 | H26: 715
A27: 2011-01-05 | B27: Quad | C27: East | D27: Pham | E27: AST | F27: 35 | G27: 945 | H27: 507.5
A28: 2011-01-12 | B28: Sunshine | C28: West | D28: Chin | E28: EPP | F28: 37 | G28: 703 | H28: 296
A29: 2011-01-04 | B29: Sunshine | C29: East | D29: Pham | E29: SFWK | F29: 55 | G29: 1045 | H29: 440
A30: 2011-01-28 | B30: Sunshine | C30: South | D30: Smith | E30: KBTB | F30: 33 | G30: 627 | H30: 264
A31: 2011-01-04 | B31: Carlota | C31: East | D31: Chin | E31: WSD | F31: 28 | G31: 644 | H31: 308
A32: 2011-01-18 | B32: Quad | C32: East | D32: Sioux | E32: WFMI | F32: 10 | G32: 270 | H32: 145
A33: 2011-01-21 | B33: Bellen | C33: East | D33: Chin | E33: QT | F33: 30 | G33: 660 | H33: 300
A34: 2011-01-01 | B34: Sunshine | C34: West | D34: Pham | E34: TTT | F34: 26 | G34: 494 | H34: 208
A35: 2011-01-23 | B35: Sunset | C35: East | D35: Chin | E35: DFR | F35: 6 | G35: 126 | H35: 55.5
A36: 2011-01-25 | B36: Quad | C36: MidWest | D36: Franks | E36: EPP | F36: 41 | G36: 1107 | H36: 594.5
A37: 2011-01-19 | B37: Quad | C37: West | D37: Smith | E37: HII | F37: 26 | G37: 702 | H37: 377
A38: 2011-01-29 | B38: Sunshine | C38: MidWest | D38: Gault | E38: SFWK | F38: 45 | G38: 855 | H38: 360
A39: 2011-01-29 | B39: Sunset | C39: South | D39: Gault | E39: ITW | F39: 15 | G39: 315 | H39: 138.75
A40: 2011-01-22 | B40: Carlota | C40: West | D40: Chin | E40: KBTB | F40: 65 | G40: 1495 | H40: 715
A41: 2011-01-30 | B41: Quad | C41: East | D41: Franks | E41: HII | F41: 14 | G41: 378 | H41: 203
A42: 2011-01-18 | B42: Bellen | C42: West | D42: Chin | E42: MNGD | F42: 56 | G42: 1232 | H42: 560
A43: 2011-01-01 | B43: Sunshine | C43: West | D43: Franks | E43: FM | F43: 11 | G43: 209 | H43: 88
A44: 2011-01-18 | B44: Quad | C44: West | D44: Smith | E44: AA | F44: 40 | G44: 1080 | H44: 580
A45: 2011-01-21 | B45: Quad | C45: MidWest | D45: Sioux | E45: KBTB | F45: 58 | G45: 1566 | H45: 841
A46: 2011-01-12 | B46: Carlota | C46: MidWest | D46: Chin | E46: WT | F46: 40 | G46: 920 | H46: 440
A47: 2011-01-16 | B47: Quad | C47: West | D47: Chin | E47: PCC | F47: 40 | G47: 1080 | H47: 580
A48: 2011-01-05 | B48: Carlota | C48: South | D48: Franks | E48: FM | F48: 11 | G48: 253 | H48: 121
A49: 2011-01-30 | B49: Bellen | C49: West | D49: Franks | E49: ZAT | F49: 17 | G49: 374 | H49: 170
A50: 2011-01-15 | B50: Quad | C50: East | D50: Gault | E50: WT | F50: 19 | G50: 513 | H50: 275.5
A51: 2011-01-30 | B51: Quad | C51: MidWest | D51: Gault | E51: EPP | F51: 15 | G51: 405 | H51: 217.5
A52: 2011-01-16 | B52: Sunshine | C52: East | D52: Gault | E52: WSD | F52: 57 | G52: 1083 | H52: 456
A53: 2011-01-24 | B53: Sunset | C53: MidWest | D53: Franks | E53: WSD | F53: 17 | G53: 357 | H53: 157.25
A54: 2011-01-26 | B54: Carlota | C54: South | D54: Smith | E54: TTT | F54: 31 | G54: 713 | H54: 341
A55: 2011-01-11 | B55: Sunset | C55: South | D55: Gault | E55: MBG | F55: 28 | G55: 588 | H55: 259
A56: 2011-01-06 | B56: Bellen | C56: MidWest | D56: Smith | E56: TRU | F56: 11 | G56: 242 | H56: 110
A57: 2011-01-09 | B57: Bellen | C57: East | D57: Smith | E57: EPP | F57: 20 | G57: 440 | H57: 200
A58: 2011-01-16 | B58: Quad | C58: East | D58: Sioux | E58: PLOT | F58: 8 | G58: 216 | H58: 116
A59: 2011-01-12 | B59: Quad | C59: West | D59: Franks | E59: EPP | F59: 34 | G59: 918 | H59: 493
A60: 2011-01-14 | B60: Carlota | C60: MidWest | D60: Sioux | E60: TRU | F60: 34 | G60: 782 | H60: 374
A61: 2011-01-02 | B61: Sunshine | C61: West | D61: Franks | E61: BBT | F61: 16 | G61: 304 | H61: 128
A62: 2011-01-10 | B62: Carlota | C62: East | D62: Chin | E62: TTT | F62: 32 | G62: 736 | H62: 352
A63: 2011-01-28 | B63: Sunset | C63: MidWest | D63: Sioux | E63: QT | F63: 61 | G63: 1281 | H63: 564.25
A64: 2011-01-11 | B64: Sunset | C64: South | D64: Franks | E64: TTT | F64: 59 | G64: 1239 | H64: 545.75
A65: 2011-01-03 | B65: Bellen | C65: South | D65: Chin | E65: TTT | F65: 30 | G65: 660 | H65: 300
A66: 2011-01-15 | B66: Bellen | C66: MidWest | D66: Pham | E66: LOP | F66: 22 | G66: 484 | H66: 220
A67: 2011-01-14 | B67: Carlota | C67: West | D67: Franks | E67: ET | F67: 6 | G67: 138 | H67: 66
A68: 2011-01-28 | B68: Quad | C68: MidWest | D68: Smith | E68: DFGH | F68: 16 | G68: 432 | H68: 232
A69: 2011-01-04 | B69: Quad | C69: East | D69: Sioux | E69: MBG | F69: 19 | G69: 513 | H69: 275.5
A70: 2011-01-13 | B70: Carlota | C70: South | D70: Chin | E70: AA | F70: 30 | G70: 690 | H70: 330
A71: 2011-01-12 | B71: Sunshine | C71: West | D71: Pham | E71: WFMI | F71: 62 | G71: 1178 | H71: 496
A72: 2011-01-24 | B72: Bellen | C72: MidWest | D72: Franks | E72: EPP | F72: 25 | G72: 550 | H72: 250
A73: 2011-01-14 | B73: Sunshine | C73: West | D73: Sioux | E73: FM | F73: 13 | G73: 247 | H73: 104
A74: 2011-01-06 | B74: Sunset | C74: MidWest | D74: Chin | E74: DFR | F74: 24 | G74: 504 | H74: 222
A75: 2011-01-19 | B75: Carlota | C75: South | D75: Pham | E75: GRR | F75: 51 | G75: 1173 | H75: 561
A76: 2011-01-27 | B76: Sunshine | C76: East | D76: Franks | E76: ITW | F76: 23 | G76: 437 | H76: 184
A77: 2011-01-21 | B77: Carlota | C77: West | D77: Pham | E77: WSD | F77: 41 | G77: 943 | H77: 451
A78: 2011-01-04 | B78: Sunshine | C78: West | D78: Pham | E78: FM | F78: 11 | G78: 209 | H78: 88
A79: 2011-01-04 | B79: Quad | C79: MidWest | D79: Franks | E79: TRU | F79: 19 | G79: 513 | H79: 275.5
A80: 2011-01-27 | B80: Bellen | C80: West | D80: Smith | E80: TRU | F80: 62 | G80: 1364 | H80: 620
A81: 2011-01-19 | B81: Sunshine | C81: South | D81: Pham | E81: ITW | F81: 48 | G81: 912 | H81: 384
A82: 2011-01-11 | B82: Bellen | C82: East | D82: Franks | E82: MNGD | F82: 34 | G82: 748 | H82: 340
A83: 2011-01-01 | B83: Carlota | C83: MidWest | D83: Franks | E83: JAQ | F83: 37 | G83: 851 | H83: 407
A84: 2011-01-05 | B84: Sunshine | C84: West | D84: Sioux | E84: WT | F84: 50 | G84: 950 | H84: 400
A85: 2011-01-15 | B85: Carlota | C85: West | D85: Smith | E85: TTT | F85: 51 | G85: 1173 | H85: 561
A86: 2011-01-23 | B86: Carlota | C86: West | D86: Pham | E86: ET | F86: 32 | G86: 736 | H86: 352
A87: 2011-01-07 | B87: Carlota | C87: South | D87: Chin | E87: JAQ | F87: 22 | G87: 506 | H87: 242
A88: 2011-01-16 | B88: Carlota | C88: South | D88: Sioux | E88: ZAT | F88: 33 | G88: 759 | H88: 363
A89: 2011-01-19 | B89: Bellen | C89: South | D89: Pham | E89: TTT | F89: 18 | G89: 396 | H89: 180
A90: 2011-01-28 | B90: Sunshine | C90: East | D90: Sioux | E90: QT | F90: 17 | G90: 323 | H90: 136
A91: 2011-01-16 | B91: Sunshine | C91: South | D91: Chin | E91: T | F91: 14 | G91: 266 | H91: 112
A92: 2011-01-15 | B92: Sunshine | C92: MidWest | D92: Pham | E92: DFGH | F92: 54 | G92: 1026 | H92: 432
A93: 2011-01-27 | B93: Bellen | C93: East | D93: Franks | E93: TTT | F93: 56 | G93: 1232 | H93: 560
A94: 2011-01-28 | B94: Bellen | C94: South | D94: Sioux | E94: WT | F94: 47 | G94: 1034 | H94: 470
A95: 2011-01-28 | B95: Bellen | C95: West | D95: Chin | E95: KPSA | F95: 65 | G95: 1430 | H95: 650
A96: 2011-01-15 | B96: Sunset | C96: MidWest | D96: Franks | E96: FM | F96: 56 | G96: 1176 | H96: 518
A97: 2011-01-14 | B97: Quad | C97: South | D97: Pham | E97: AA | F97: 64 | G97: 1728 | H97: 928
A98: 2011-01-19 | B98: Sunset | C98: MidWest | D98: Smith | E98: DDH | F98: 63 | G98: 1323 | H98: 582.75
A99: 2011-01-29 | B99: Sunset | C99: West | D99: Smith | E99: TTT | F99: 25 | G99: 525 | H99: 231.25
A100: 2011-01-17 | B100: Quad | C100: East | D100: Franks | E100: SFWK | F100: 15 | G100: 405 | H100: 217.5
A101: 2011-01-30 | B101: Sunshine | C101: MidWest | D101: Franks | E101: LOP | F101: 42 | G101: 798 | H101: 336
A102: 2011-01-16 | B102: Sunset | C102: MidWest | D102: Pham | E102: JAQ | F102: 31 | G102: 651 | H102: 286.75
A103: 2011-01-19 | B103: Sunset | C103: West | D103: Gault | E103: QT | F103: 32 | G103: 672 | H103: 296
A104: 2011-01-05 | B104: Carlota | C104: South | D104: Sioux | E104: WSD | F104: 34 | G104: 782 | H104: 374
A105: 2011-01-18 | B105: Carlota | C105: East | D105: Chin | E105: TRU | F105: 50 | G105: 1150 | H105: 550
A106: 2011-01-08 | B106: Sunshine | C106: South | D106: Sioux | E106: ZAT | F106: 53 | G106: 1007 | H106: 424
A107: 2011-01-10 | B107: Quad | C107: MidWest | D107: Sioux | E107: KPSA | F107: 27 | G107: 729 | H107: 391.5
A108: 2011-01-05 | B108: Bellen | C108: East | D108: Gault | E108: WSD | F108: 23 | G108: 506 | H108: 230
A109: 2011-01-15 | B109: Quad | C109: West | D109: Chin | E109: MBG | F109: 12 | G109: 324 | H109: 174
A110: 2011-01-17 | B110: Quad | C110: West | D110: Chin | E110: HII | F110: 50 | G110: 1350 | H110: 725
A111: 2011-01-26 | B111: Sunshine | C111: MidWest | D111: Smith | E111: TRU | F111: 49 | G111: 931 | H111: 392
A112: 2011-01-11 | B112: Sunset | C112: South | D112: Smith | E112: HII | F112: 17 | G112: 357 | H112: 157.25
A113: 2011-01-04 | B113: Quad | C113: South | D113: Sioux | E113: ET | F113: 12 | G113: 324 | H113: 174
A114: 2011-01-21 | B114: Carlota | C114: MidWest | D114: Chin | E114: BBT | F114: 53 | G114: 1219 | H114: 583
A115: 2011-01-22 | B115: Sunset | C115: West | D115: Franks | E115: AA | F115: 41 | G115: 861 | H115: 379.25
A116: 2011-01-10 | B116: Sunshine | C116: East | D116: Franks | E116: JAQ | F116: 8 | G116: 152 | H116: 64
A117: 2011-01-12 | B117: Sunset | C117: South | D117: Franks | E117: QT | F117: 47 | G117: 987 | H117: 434.75

Sheet HW(37)
A1: 1) in cell B4 create a formula that can be copied through the range B4:E9 that will count how many sales each SalesRep made in each Region. Hint: We are not adding, we are counting. 2) Then create a second table of formulas somewhere else in the sheet (same layout as the one in the range A3:F10) for adding all the sales that each SalesRep made in each Region. Hint 1: We are not counting, we are adding. Hint 2: Copy existing table, then delete the formulas and create new ones. 3) If you do not like the formatting, change it to make it look good according to your preferences for formatting. 4) Convert the data set to an Excel Table, and then add this record to the bottom of the table: 1/12/2011, Sunset, South, Chin, TTT, 2000, $50,000, $22,000. The new totals sales for Chin in the South should be $52,122 and the new count should be 4.
A3: SalesRep/Region | B3: East | C3: MidWest | D3: South | E3: West | F3: Grand Total
A4: Chin | F4: =SUM(B4:E4) -> 0
A5: Franks | F5: 0
A6: Gault | F6: 0
A7: Pham | F7: 0
A8: Sioux | F8: 0
A9: Smith | F9: 0
A10: Grand Total | B10: =SUM(B4:B9) -> 0 | C10: 0 | D10: 0 | E10: 0 | F10: 0
A14: Date | B14: Product | C14: Region | D14: SalesRep | E14: Customer | F14: Units | G14: Sales | H14: COGS
A15: 2011-01-13 | B15: Sunshine | C15: East | D15: Franks | E15: KBTB | F15: 58 | G15: 1102 | H15: 464
A16: 2011-01-15 | B16: Sunshine | C16: MidWest | D16: Sioux | E16: MNGD | F16: 17 | G16: 323 | H16: 136
A17: 2011-01-25 | B17: Sunshine | C17: West | D17: Franks | E17: JAQ | F17: 59 | G17: 1121 | H17: 472
A18: 2011-01-03 | B18: Carlota | C18: MidWest | D18: Chin | E18: FRED | F18: 55 | G18: 1265 | H18: 605
A19: 2011-01-27 | B19: Sunset | C19: MidWest | D19: Franks | E19: WFMI | F19: 44 | G19: 924 | H19: 407
A20: 2011-01-14 | B20: Quad | C20: MidWest | D20: Smith | E20: TTT | F20: 61 | G20: 1647 | H20: 884.5
A21: 2011-01-08 | B21: Quad | C21: MidWest | D21: Franks | E21: ET | F21: 50 | G21: 1350 | H21: 725
A22: 2011-01-16 | B22: Quad | C22: East | D22: Pham | E22: FM | F22: 59 | G22: 1593 | H22: 855.5
A23: 2011-01-07 | B23: Quad | C23: East | D23: Sioux | E23: EPP | F23: 36 | G23: 972 | H23: 522
A24: 2011-01-15 | B24: Sunset | C24: East | D24: Chin | E24: FRED | F24: 14 | G24: 294 | H24: 129.5
A25: 2011-01-20 | B25: Quad | C25: South | D25: Pham | E25: T | F25: 38 | G25: 1026 | H25: 551
A26: 2011-01-27 | B26: Carlota | C26: MidWest | D26: Sioux | E26: LOP | F26: 63 | G26: 1449 | H26: 693
A27: 2011-01-08 | B27: Sunshine | C27: East | D27: Gault | E27: PSA | F27: 9 | G27: 171 | H27: 72
A28: 2011-01-20 | B28: Carlota | C28: MidWest | D28: Chin | E28: T | F28: 65 | G28: 1495 | H28: 715
A29: 2011-01-05 | B29: Quad | C29: East | D29: Pham | E29: AST | F29: 35 | G29: 945 | H29: 507.5
A30: 2011-01-12 | B30: Sunshine | C30: West | D30: Chin | E30: EPP | F30: 37 | G30: 703 | H30: 296
A31: 2011-01-04 | B31: Sunshine | C31: East | D31: Pham | E31: SFWK | F31: 55 | G31: 1045 | H31: 440
A32: 2011-01-28 | B32: Sunshine | C32: South | D32: Smith | E32: KBTB | F32: 33 | G32: 627 | H32: 264
A33: 2011-01-04 | B33: Carlota | C33: East | D33: Chin | E33: WSD | F33: 28 | G33: 644 | H33: 308
A34: 2011-01-18 | B34: Quad | C34: East | D34: Sioux | E34: WFMI | F34: 10 | G34: 270 | H34: 145
A35: 2011-01-21 | B35: Bellen | C35: East | D35: Chin | E35: QT | F35: 30 | G35: 660 | H35: 300
A36: 2011-01-01 | B36: Sunshine | C36: West | D36: Pham | E36: TTT | F36: 26 | G36: 494 | H36: 208
A37: 2011-01-23 | B37: Sunset | C37: East | D37: Chin | E37: DFR | F37: 6 | G37: 126 | H37: 55.5
A38: 2011-01-25 | B38: Quad | C38: MidWest | D38: Franks | E38: EPP | F38: 41 | G38: 1107 | H38: 594.5
A39: 2011-01-19 | B39: Quad | C39: West | D39: Smith | E39: HII | F39: 26 | G39: 702 | H39: 377
A40: 2011-01-29 | B40: Sunshine | C40: MidWest | D40: Gault | E40: SFWK | F40: 45 | G40: 855 | H40: 360
A41: 2011-01-29 | B41: Sunset | C41: South | D41: Gault | E41: ITW | F41: 15 | G41: 315 | H41: 138.75
A42: 2011-01-22 | B42: Carlota | C42: West | D42: Chin | E42: KBTB | F42: 65 | G42: 1495 | H42: 715
A43: 2011-01-30 | B43: Quad | C43: East | D43: Franks | E43: HII | F43: 14 | G43: 378 | H43: 203
A44: 2011-01-18 | B44: Bellen | C44: West | D44: Chin | E44: MNGD | F44: 56 | G44: 1232 | H44: 560
A45: 2011-01-01 | B45: Sunshine | C45: West | D45: Franks | E45: FM | F45: 11 | G45: 209 | H45: 88
A46: 2011-01-18 | B46: Quad | C46: West | D46: Smith | E46: AA | F46: 40 | G46: 1080 | H46: 580
A47: 2011-01-21 | B47: Quad | C47: MidWest | D47: Sioux | E47: KBTB | F47: 58 | G47: 1566 | H47: 841
A48: 2011-01-12 | B48: Carlota | C48: MidWest | D48: Chin | E48: WT | F48: 40 | G48: 920 | H48: 440
A49: 2011-01-16 | B49: Quad | C49: West | D49: Chin | E49: PCC | F49: 40 | G49: 1080 | H49: 580
A50: 2011-01-05 | B50: Carlota | C50: South | D50: Franks | E50: FM | F50: 11 | G50: 253 | H50: 121
A51: 2011-01-30 | B51: Bellen | C51: West | D51: Franks | E51: ZAT | F51: 17 | G51: 374 | H51: 170
A52: 2011-01-15 | B52: Quad | C52: East | D52: Gault | E52: WT | F52: 19 | G52: 513 | H52: 275.5
A53: 2011-01-30 | B53: Quad | C53: MidWest | D53: Gault | E53: EPP | F53: 15 | G53: 405 | H53: 217.5
A54: 2011-01-16 | B54: Sunshine | C54: East | D54: Gault | E54: WSD | F54: 57 | G54: 1083 | H54: 456
A55: 2011-01-24 | B55: Sunset | C55: MidWest | D55: Franks | E55: WSD | F55: 17 | G55: 357 | H55: 157.25
A56: 2011-01-26 | B56: Carlota | C56: South | D56: Smith | E56: TTT | F56: 31 | G56: 713 | H56: 341
A57: 2011-01-11 | B57: Sunset | C57: South | D57: Gault | E57: MBG | F57: 28 | G57: 588 | H57: 259
A58: 2011-01-06 | B58: Bellen | C58: MidWest | D58: Smith | E58: TRU | F58: 11 | G58: 242 | H58: 110
A59: 2011-01-09 | B59: Bellen | C59: East | D59: Smith | E59: EPP | F59: 20 | G59: 440 | H59: 200
A60: 2011-01-16 | B60: Quad | C60: East | D60: Sioux | E60: PLOT | F60: 8 | G60: 216 | H60: 116
A61: 2011-01-12 | B61: Quad | C61: West | D61: Franks | E61: EPP | F61: 34 | G61: 918 | H61: 493
A62: 2011-01-14 | B62: Carlota | C62: MidWest | D62: Sioux | E62: TRU | F62: 34 | G62: 782 | H62: 374
A63: 2011-01-02 | B63: Sunshine | C63: West | D63: Franks | E63: BBT | F63: 16 | G63: 304 | H63: 128
A64: 2011-01-10 | B64: Carlota | C64: East | D64: Chin | E64: TTT | F64: 32 | G64: 736 | H64: 352
A65: 2011-01-28 | B65: Sunset | C65: MidWest | D65: Sioux | E65: QT | F65: 61 | G65: 1281 | H65: 564.25
A66: 2011-01-11 | B66: Sunset | C66: South | D66: Franks | E66: TTT | F66: 59 | G66: 1239 | H66: 545.75
A67: 2011-01-03 | B67: Bellen | C67: South | D67: Chin | E67: TTT | F67: 30 | G67: 660 | H67: 300
A68: 2011-01-15 | B68: Bellen | C68: MidWest | D68: Pham | E68: LOP | F68: 22 | G68: 484 | H68: 220
A69: 2011-01-14 | B69: Carlota | C69: West | D69: Franks | E69: ET | F69: 6 | G69: 138 | H69: 66
A70: 2011-01-28 | B70: Quad | C70: MidWest | D70: Smith | E70: DFGH | F70: 16 | G70: 432 | H70: 232
A71: 2011-01-04 | B71: Quad | C71: East | D71: Sioux | E71: MBG | F71: 19 | G71: 513 | H71: 275.5
A72: 2011-01-13 | B72: Carlota | C72: South | D72: Chin | E72: AA | F72: 30 | G72: 690 | H72: 330
A73: 2011-01-12 | B73: Sunshine | C73: West | D73: Pham | E73: WFMI | F73: 62 | G73: 1178 | H73: 496
A74: 2011-01-24 | B74: Bellen | C74: MidWest | D74: Franks | E74: EPP | F74: 25 | G74: 550 | H74: 250
A75: 2011-01-14 | B75: Sunshine | C75: West | D75: Sioux | E75: FM | F75: 13 | G75: 247 | H75: 104
A76: 2011-01-06 | B76: Sunset | C76: MidWest | D76: Chin | E76: DFR | F76: 24 | G76: 504 | H76: 222
A77: 2011-01-19 | B77: Carlota | C77: South | D77: Pham | E77: GRR | F77: 51 | G77: 1173 | H77: 561
A78: 2011-01-27 | B78: Sunshine | C78: East | D78: Franks | E78: ITW | F78: 23 | G78: 437 | H78: 184
A79: 2011-01-21 | B79: Carlota | C79: West | D79: Pham | E79: WSD | F79: 41 | G79: 943 | H79: 451
A80: 2011-01-04 | B80: Sunshine | C80: West | D80: Pham | E80: FM | F80: 11 | G80: 209 | H80: 88
A81: 2011-01-04 | B81: Quad | C81: MidWest | D81: Franks | E81: TRU | F81: 19 | G81: 513 | H81: 275.5
A82: 2011-01-27 | B82: Bellen | C82: West | D82: Smith | E82: TRU | F82: 62 | G82: 1364 | H82: 620
A83: 2011-01-19 | B83: Sunshine | C83: South | D83: Pham | E83: ITW | F83: 48 | G83: 912 | H83: 384
A84: 2011-01-11 | B84: Bellen | C84: East | D84: Franks | E84: MNGD | F84: 34 | G84: 748 | H84: 340
A85: 2011-01-01 | B85: Carlota | C85: MidWest | D85: Franks | E85: JAQ | F85: 37 | G85: 851 | H85: 407
A86: 2011-01-05 | B86: Sunshine | C86: West | D86: Sioux | E86: WT | F86: 50 | G86: 950 | H86: 400
A87: 2011-01-15 | B87: Carlota | C87: West | D87: Smith | E87: TTT | F87: 51 | G87: 1173 | H87: 561
A88: 2011-01-23 | B88: Carlota | C88: West | D88: Pham | E88: ET | F88: 32 | G88: 736 | H88: 352
A89: 2011-01-07 | B89: Carlota | C89: South | D89: Chin | E89: JAQ | F89: 22 | G89: 506 | H89: 242
A90: 2011-01-16 | B90: Carlota | C90: South | D90: Sioux | E90: ZAT | F90: 33 | G90: 759 | H90: 363
A91: 2011-01-19 | B91: Bellen | C91: South | D91: Pham | E91: TTT | F91: 18 | G91: 396 | H91: 180
A92: 2011-01-28 | B92: Sunshine | C92: East | D92: Sioux | E92: QT | F92: 17 | G92: 323 | H92: 136
A93: 2011-01-16 | B93: Sunshine | C93: South | D93: Chin | E93: T | F93: 14 | G93: 266 | H93: 112
A94: 2011-01-15 | B94: Sunshine | C94: MidWest | D94: Pham | E94: DFGH | F94: 54 | G94: 1026 | H94: 432
A95: 2011-01-27 | B95: Bellen | C95: East | D95: Franks | E95: TTT | F95: 56 | G95: 1232 | H95: 560
A96: 2011-01-28 | B96: Bellen | C96: South | D96: Sioux | E96: WT | F96: 47 | G96: 1034 | H96: 470
A97: 2011-01-28 | B97: Bellen | C97: West | D97: Chin | E97: KPSA | F97: 65 | G97: 1430 | H97: 650
A98: 2011-01-15 | B98: Sunset | C98: MidWest | D98: Franks | E98: FM | F98: 56 | G98: 1176 | H98: 518
A99: 2011-01-14 | B99: Quad | C99: South | D99: Pham | E99: AA | F99: 64 | G99: 1728 | H99: 928
A100: 2011-01-19 | B100: Sunset | C100: MidWest | D100: Smith | E100: DDH | F100: 63 | G100: 1323 | H100: 582.75
A101: 2011-01-29 | B101: Sunset | C101: West | D101: Smith | E101: TTT | F101: 25 | G101: 525 | H101: 231.25
A102: 2011-01-17 | B102: Quad | C102: East | D102: Franks | E102: SFWK | F102: 15 | G102: 405 | H102: 217.5
A103: 2011-01-30 | B103: Sunshine | C103: MidWest | D103: Franks | E103: LOP | F103: 42 | G103: 798 | H103: 336
A104: 2011-01-16 | B104: Sunset | C104: MidWest | D104: Pham | E104: JAQ | F104: 31 | G104: 651 | H104: 286.75
A105: 2011-01-19 | B105: Sunset | C105: West | D105: Gault | E105: QT | F105: 32 | G105: 672 | H105: 296
A106: 2011-01-05 | B106: Carlota | C106: South | D106: Sioux | E106: WSD | F106: 34 | G106: 782 | H106: 374
A107: 2011-01-18 | B107: Carlota | C107: East | D107: Chin | E107: TRU | F107: 50 | G107: 1150 | H107: 550
A108: 2011-01-08 | B108: Sunshine | C108: South | D108: Sioux | E108: ZAT | F108: 53 | G108: 1007 | H108: 424
A109: 2011-01-10 | B109: Quad | C109: MidWest | D109: Sioux | E109: KPSA | F109: 27 | G109: 729 | H109: 391.5
A110: 2011-01-05 | B110: Bellen | C110: East | D110: Gault | E110: WSD | F110: 23 | G110: 506 | H110: 230
A111: 2011-01-15 | B111: Quad | C111: West | D111: Chin | E111: MBG | F111: 12 | G111: 324 | H111: 174
A112: 2011-01-17 | B112: Quad | C112: West | D112: Chin | E112: HII | F112: 50 | G112: 1350 | H112: 725
A113: 2011-01-26 | B113: Sunshine | C113: MidWest | D113: Smith | E113: TRU | F113: 49 | G113: 931 | H113: 392
A114: 2011-01-11 | B114: Sunset | C114: South | D114: Smith | E114: HII | F114: 17 | G114: 357 | H114: 157.25
A115: 2011-01-04 | B115: Quad | C115: South | D115: Sioux | E115: ET | F115: 12 | G115: 324 | H115: 174
A116: 2011-01-21 | B116: Carlota | C116: MidWest | D116: Chin | E116: BBT | F116: 53 | G116: 1219 | H116: 583
A117: 2011-01-22 | B117: Sunset | C117: West | D117: Franks | E117: AA | F117: 41 | G117: 861 | H117: 379.25
A118: 2011-01-10 | B118: Sunshine | C118: East | D118: Franks | E118: JAQ | F118: 8 | G118: 152 | H118: 64
A119: 2011-01-12 | B119: Sunset | C119: South | D119: Franks | E119: QT | F119: 47 | G119: 987 | H119: 434.75

Sheet HW(37an)
A1: 1) in cell B4 create a formula that can be copied through the range B4:E9 that will count how many sales each SalesRep made in each Region. Hint: We are not adding, we are counting. 2) Then create a second table of formulas somewhere else in the sheet (same layout as the one in the range A3:F10) for adding all the sales that each SalesRep made in each Region. Hint 1: We are not counting, we are adding. Hint 2: Copy existing table, then delete the formulas and create new ones. 3) If you do not like the formatting, change it to make it look good according to your preferences for formatting. 4) Convert the data set to an Excel Table, and then add this record to the bottom of the table: 1/12/2011, Sunset, South, Chin, TTT, 2000, $50,000, $22,000. The new totals sales for Chin in the South should be $52,122 and the new count should be 4.
A3: SalesRep/Region | B3: East | C3: MidWest | D3: South | E3: West | F3: Grand Total | H3: SalesRep/Region | I3: East | J3: MidWest | K3: South | L3: West | M3: Grand Total
A4: Chin | B4: =COUNTIFS($D$15:$D$120,$A4,$C$15:$C$120,B$3) -> 6 | C4: =COUNTIFS($D$15:$D$120,$A4,$C$15:$C$120,C$3) -> 5 | D4: 5 | E4: 7 | F4: =SUM(B4:E4) -> 23 | H4: Chin | I4: =SUMIFS($G$15:$G$120,$D$15:$D$120,$A4,$C$15:$C$120,I$3) -> 3610 | J4: 5403 | K4: 52122 | L4: 7614 | M4: =SUM(I4:L4) -> 68749
A5: Franks | B5: =COUNTIFS($D$15:$D$120,$A5,$C$15:$C$120,B$3) -> 7 | C5: 9 | D5: 3 | E5: 7 | F5: 26 | H5: Franks | I5: 4454 | J5: 7626 | K5: 2479 | L5: 3925 | M5: 18484
A6: Gault | B6: 4 | C6: 2 | D6: 2 | E6: 1 | F6: 9 | H6: Gault | I6: 2273 | J6: 1260 | K6: 903 | L6: 672 | M6: 5108
A7: Pham | B7: 3 | C7: 3 | D7: 5 | E7: 5 | F7: 16 | H7: Pham | I7: 3583 | J7: 2161 | K7: 5235 | L7: 3560 | M7: 14539
A8: Sioux | B8: 5 | C8: 6 | D8: 5 | E8: 2 | F8: 18 | H8: Sioux | I8: 2294 | J8: 6130 | K8: 3906 | L8: 1197 | M8: 13527
A9: Smith | B9: 1 | C9: 5 | D9: 3 | E9: 5 | F9: 14 | H9: Smith | I9: =SUMIFS($G$15:$G$120,$D$15:$D$120,$A9,$C$15:$C$120,I$3) -> 440 | J9: =SUMIFS($G$15:$G$120,$D$15:$D$120,$A9,$C$15:$C$120,J$3) -> 4575 | K9: =SUMIFS($G$15:$G$120,$D$15:$D$120,$A9,$C$15:$C$120,K$3) -> 1697 | L9: =SUMIFS($G$15:$G$119,$D$15:$D$119,$A9,$C$15:$C$119,L$3) -> 4844 | M9: 11556
A10: Grand Total | B10: =SUM(B4:B9) -> 26 | C10: 30 | D10: 23 | E10: 27 | F10: 106 | H10: Grand Total | I10: =SUM(I4:I9) -> 16654 | J10: =SUM(J4:J9) -> 27155 | K10: =SUM(K4:K9) -> 66342 | L10: =SUM(L4:L9) -> 21812 | M10: 131963
A14: Date | B14: Product | C14: Region | D14: SalesRep | E14: Customer | F14: Units | G14: Sales | H14: COGS
A15: 2011-01-13 | B15: Sunshine | C15: East | D15: Franks | E15: KBTB | F15: 58 | G15: 1102 | H15: 464
A16: 2011-01-15 | B16: Sunshine | C16: MidWest | D16: Sioux | E16: MNGD | F16: 17 | G16: 323 | H16: 136
A17: 2011-01-25 | B17: Sunshine | C17: West | D17: Franks | E17: JAQ | F17: 59 | G17: 1121 | H17: 472
A18: 2011-01-03 | B18: Carlota | C18: MidWest | D18: Chin | E18: FRED | F18: 55 | G18: 1265 | H18: 605
A19: 2011-01-27 | B19: Sunset | C19: MidWest | D19: Franks | E19: WFMI | F19: 44 | G19: 924 | H19: 407
A20: 2011-01-14 | B20: Quad | C20: MidWest | D20: Smith | E20: TTT | F20: 61 | G20: 1647 | H20: 884.5
A21: 2011-01-08 | B21: Quad | C21: MidWest | D21: Franks | E21: ET | F21: 50 | G21: 1350 | H21: 725
A22: 2011-01-16 | B22: Quad | C22: East | D22: Pham | E22: FM | F22: 59 | G22: 1593 | H22: 855.5
A23: 2011-01-07 | B23: Quad | C23: East | D23: Sioux | E23: EPP | F23: 36 | G23: 972 | H23: 522
A24: 2011-01-15 | B24: Sunset | C24: East | D24: Chin | E24: FRED | F24: 14 | G24: 294 | H24: 129.5
A25: 2011-01-20 | B25: Quad | C25: South | D25: Pham | E25: T | F25: 38 | G25: 1026 | H25: 551
A26: 2011-01-27 | B26: Carlota | C26: MidWest | D26: Sioux | E26: LOP | F26: 63 | G26: 1449 | H26: 693
A27: 2011-01-08 | B27: Sunshine | C27: East | D27: Gault | E27: PSA | F27: 9 | G27: 171 | H27: 72
A28: 2011-01-20 | B28: Carlota | C28: MidWest | D28: Chin | E28: T | F28: 65 | G28: 1495 | H28: 715
A29: 2011-01-05 | B29: Quad | C29: East | D29: Pham | E29: AST | F29: 35 | G29: 945 | H29: 507.5
A30: 2011-01-12 | B30: Sunshine | C30: West | D30: Chin | E30: EPP | F30: 37 | G30: 703 | H30: 296
A31: 2011-01-04 | B31: Sunshine | C31: East | D31: Pham | E31: SFWK | F31: 55 | G31: 1045 | H31: 440
A32: 2011-01-28 | B32: Sunshine | C32: South | D32: Smith | E32: KBTB | F32: 33 | G32: 627 | H32: 264
A33: 2011-01-04 | B33: Carlota | C33: East | D33: Chin | E33: WSD | F33: 28 | G33: 644 | H33: 308
A34: 2011-01-18 | B34: Quad | C34: East | D34: Sioux | E34: WFMI | F34: 10 | G34: 270 | H34: 145
A35: 2011-01-21 | B35: Bellen | C35: East | D35: Chin | E35: QT | F35: 30 | G35: 660 | H35: 300
A36: 2011-01-01 | B36: Sunshine | C36: West | D36: Pham | E36: TTT | F36: 26 | G36: 494 | H36: 208
A37: 2011-01-23 | B37: Sunset | C37: East | D37: Chin | E37: DFR | F37: 6 | G37: 126 | H37: 55.5
A38: 2011-01-25 | B38: Quad | C38: MidWest | D38: Franks | E38: EPP | F38: 41 | G38: 1107 | H38: 594.5
A39: 2011-01-19 | B39: Quad | C39: West | D39: Smith | E39: HII | F39: 26 | G39: 702 | H39: 377
A40: 2011-01-29 | B40: Sunshine | C40: MidWest | D40: Gault | E40: SFWK | F40: 45 | G40: 855 | H40: 360
A41: 2011-01-29 | B41: Sunset | C41: South | D41: Gault | E41: ITW | F41: 15 | G41: 315 | H41: 138.75
A42: 2011-01-22 | B42: Carlota | C42: West | D42: Chin | E42: KBTB | F42: 65 | G42: 1495 | H42: 715
A43: 2011-01-30 | B43: Quad | C43: East | D43: Franks | E43: HII | F43: 14 | G43: 378 | H43: 203
A44: 2011-01-18 | B44: Bellen | C44: West | D44: Chin | E44: MNGD | F44: 56 | G44: 1232 | H44: 560
A45: 2011-01-01 | B45: Sunshine | C45: West | D45: Franks | E45: FM | F45: 11 | G45: 209 | H45: 88
A46: 2011-01-18 | B46: Quad | C46: West | D46: Smith | E46: AA | F46: 40 | G46: 1080 | H46: 580
A47: 2011-01-21 | B47: Quad | C47: MidWest | D47: Sioux | E47: KBTB | F47: 58 | G47: 1566 | H47: 841
A48: 2011-01-12 | B48: Carlota | C48: MidWest | D48: Chin | E48: WT | F48: 40 | G48: 920 | H48: 440
A49: 2011-01-16 | B49: Quad | C49: West | D49: Chin | E49: PCC | F49: 40 | G49: 1080 | H49: 580
A50: 2011-01-05 | B50: Carlota | C50: South | D50: Franks | E50: FM | F50: 11 | G50: 253 | H50: 121
A51: 2011-01-30 | B51: Bellen | C51: West | D51: Franks | E51: ZAT | F51: 17 | G51: 374 | H51: 170
A52: 2011-01-15 | B52: Quad | C52: East | D52: Gault | E52: WT | F52: 19 | G52: 513 | H52: 275.5
A53: 2011-01-30 | B53: Quad | C53: MidWest | D53: Gault | E53: EPP | F53: 15 | G53: 405 | H53: 217.5
A54: 2011-01-16 | B54: Sunshine | C54: East | D54: Gault | E54: WSD | F54: 57 | G54: 1083 | H54: 456
A55: 2011-01-24 | B55: Sunset | C55: MidWest | D55: Franks | E55: WSD | F55: 17 | G55: 357 | H55: 157.25
A56: 2011-01-26 | B56: Carlota | C56: South | D56: Smith | E56: TTT | F56: 31 | G56: 713 | H56: 341
A57: 2011-01-11 | B57: Sunset | C57: South | D57: Gault | E57: MBG | F57: 28 | G57: 588 | H57: 259
A58: 2011-01-06 | B58: Bellen | C58: MidWest | D58: Smith | E58: TRU | F58: 11 | G58: 242 | H58: 110
A59: 2011-01-09 | B59: Bellen | C59: East | D59: Smith | E59: EPP | F59: 20 | G59: 440 | H59: 200
A60: 2011-01-16 | B60: Quad | C60: East | D60: Sioux | E60: PLOT | F60: 8 | G60: 216 | H60: 116
A61: 2011-01-12 | B61: Quad | C61: West | D61: Franks | E61: EPP | F61: 34 | G61: 918 | H61: 493
A62: 2011-01-14 | B62: Carlota | C62: MidWest | D62: Sioux | E62: TRU | F62: 34 | G62: 782 | H62: 374
A63: 2011-01-02 | B63: Sunshine | C63: West | D63: Franks | E63: BBT | F63: 16 | G63: 304 | H63: 128
A64: 2011-01-10 | B64: Carlota | C64: East | D64: Chin | E64: TTT | F64: 32 | G64: 736 | H64: 352
A65: 2011-01-28 | B65: Sunset | C65: MidWest | D65: Sioux | E65: QT | F65: 61 | G65: 1281 | H65: 564.25
A66: 2011-01-11 | B66: Sunset | C66: South | D66: Franks | E66: TTT | F66: 59 | G66: 1239 | H66: 545.75
A67: 2011-01-03 | B67: Bellen | C67: South | D67: Chin | E67: TTT | F67: 30 | G67: 660 | H67: 300
A68: 2011-01-15 | B68: Bellen | C68: MidWest | D68: Pham | E68: LOP | F68: 22 | G68: 484 | H68: 220
A69: 2011-01-14 | B69: Carlota | C69: West | D69: Franks | E69: ET | F69: 6 | G69: 138 | H69: 66
A70: 2011-01-28 | B70: Quad | C70: MidWest | D70: Smith | E70: DFGH | F70: 16 | G70: 432 | H70: 232
A71: 2011-01-04 | B71: Quad | C71: East | D71: Sioux | E71: MBG | F71: 19 | G71: 513 | H71: 275.5
A72: 2011-01-13 | B72: Carlota | C72: South | D72: Chin | E72: AA | F72: 30 | G72: 690 | H72: 330
A73: 2011-01-12 | B73: Sunshine | C73: West | D73: Pham | E73: WFMI | F73: 62 | G73: 1178 | H73: 496
A74: 2011-01-24 | B74: Bellen | C74: MidWest | D74: Franks | E74: EPP | F74: 25 | G74: 550 | H74: 250
A75: 2011-01-14 | B75: Sunshine | C75: West | D75: Sioux | E75: FM | F75: 13 | G75: 247 | H75: 104
A76: 2011-01-06 | B76: Sunset | C76: MidWest | D76: Chin | E76: DFR | F76: 24 | G76: 504 | H76: 222
A77: 2011-01-19 | B77: Carlota | C77: South | D77: Pham | E77: GRR | F77: 51 | G77: 1173 | H77: 561
A78: 2011-01-27 | B78: Sunshine | C78: East | D78: Franks | E78: ITW | F78: 23 | G78: 437 | H78: 184
A79: 2011-01-21 | B79: Carlota | C79: West | D79: Pham | E79: WSD | F79: 41 | G79: 943 | H79: 451
A80: 2011-01-04 | B80: Sunshine | C80: West | D80: Pham | E80: FM | F80: 11 | G80: 209 | H80: 88
A81: 2011-01-04 | B81: Quad | C81: MidWest | D81: Franks | E81: TRU | F81: 19 | G81: 513 | H81: 275.5
A82: 2011-01-27 | B82: Bellen | C82: West | D82: Smith | E82: TRU | F82: 62 | G82: 1364 | H82: 620
A83: 2011-01-19 | B83: Sunshine | C83: South | D83: Pham | E83: ITW | F83: 48 | G83: 912 | H83: 384
A84: 2011-01-11 | B84: Bellen | C84: East | D84: Franks | E84: MNGD | F84: 34 | G84: 748 | H84: 340
A85: 2011-01-01 | B85: Carlota | C85: MidWest | D85: Franks | E85: JAQ | F85: 37 | G85: 851 | H85: 407
A86: 2011-01-05 | B86: Sunshine | C86: West | D86: Sioux | E86: WT | F86: 50 | G86: 950 | H86: 400
A87: 2011-01-15 | B87: Carlota | C87: West | D87: Smith | E87: TTT | F87: 51 | G87: 1173 | H87: 561
A88: 2011-01-23 | B88: Carlota | C88: West | D88: Pham | E88: ET | F88: 32 | G88: 736 | H88: 352
A89: 2011-01-07 | B89: Carlota | C89: South | D89: Chin | E89: JAQ | F89: 22 | G89: 506 | H89: 242
A90: 2011-01-16 | B90: Carlota | C90: South | D90: Sioux | E90: ZAT | F90: 33 | G90: 759 | H90: 363
A91: 2011-01-19 | B91: Bellen | C91: South | D91: Pham | E91: TTT | F91: 18 | G91: 396 | H91: 180
A92: 2011-01-28 | B92: Sunshine | C92: East | D92: Sioux | E92: QT | F92: 17 | G92: 323 | H92: 136
A93: 2011-01-16 | B93: Sunshine | C93: South | D93: Chin | E93: T | F93: 14 | G93: 266 | H93: 112
A94: 2011-01-15 | B94: Sunshine | C94: MidWest | D94: Pham | E94: DFGH | F94: 54 | G94: 1026 | H94: 432
A95: 2011-01-27 | B95: Bellen | C95: East | D95: Franks | E95: TTT | F95: 56 | G95: 1232 | H95: 560
A96: 2011-01-28 | B96: Bellen | C96: South | D96: Sioux | E96: WT | F96: 47 | G96: 1034 | H96: 470
A97: 2011-01-28 | B97: Bellen | C97: West | D97: Chin | E97: KPSA | F97: 65 | G97: 1430 | H97: 650
A98: 2011-01-15 | B98: Sunset | C98: MidWest | D98: Franks | E98: FM | F98: 56 | G98: 1176 | H98: 518
A99: 2011-01-14 | B99: Quad | C99: South | D99: Pham | E99: AA | F99: 64 | G99: 1728 | H99: 928
A100: 2011-01-19 | B100: Sunset | C100: MidWest | D100: Smith | E100: DDH | F100: 63 | G100: 1323 | H100: 582.75
A101: 2011-01-29 | B101: Sunset | C101: West | D101: Smith | E101: TTT | F101: 25 | G101: 525 | H101: 231.25
A102: 2011-01-17 | B102: Quad | C102: East | D102: Franks | E102: SFWK | F102: 15 | G102: 405 | H102: 217.5
A103: 2011-01-30 | B103: Sunshine | C103: MidWest | D103: Franks | E103: LOP | F103: 42 | G103: 798 | H103: 336
A104: 2011-01-16 | B104: Sunset | C104: MidWest | D104: Pham | E104: JAQ | F104: 31 | G104: 651 | H104: 286.75
A105: 2011-01-19 | B105: Sunset | C105: West | D105: Gault | E105: QT | F105: 32 | G105: 672 | H105: 296
A106: 2011-01-05 | B106: Carlota | C106: South | D106: Sioux | E106: WSD | F106: 34 | G106: 782 | H106: 374
A107: 2011-01-18 | B107: Carlota | C107: East | D107: Chin | E107: TRU | F107: 50 | G107: 1150 | H107: 550
A108: 2011-01-08 | B108: Sunshine | C108: South | D108: Sioux | E108: ZAT | F108: 53 | G108: 1007 | H108: 424
A109: 2011-01-10 | B109: Quad | C109: MidWest | D109: Sioux | E109: KPSA | F109: 27 | G109: 729 | H109: 391.5
A110: 2011-01-05 | B110: Bellen | C110: East | D110: Gault | E110: WSD | F110: 23 | G110: 506 | H110: 230
A111: 2011-01-15 | B111: Quad | C111: West | D111: Chin | E111: MBG | F111: 12 | G111: 324 | H111: 174
A112: 2011-01-17 | B112: Quad | C112: West | D112: Chin | E112: HII | F112: 50 | G112: 1350 | H112: 725
A113: 2011-01-26 | B113: Sunshine | C113: MidWest | D113: Smith | E113: TRU | F113: 49 | G113: 931 | H113: 392
A114: 2011-01-11 | B114: Sunset | C114: South | D114: Smith | E114: HII | F114: 17 | G114: 357 | H114: 157.25
A115: 2011-01-04 | B115: Quad | C115: South | D115: Sioux | E115: ET | F115: 12 | G115: 324 | H115: 174
A116: 2011-01-21 | B116: Carlota | C116: MidWest | D116: Chin | E116: BBT | F116: 53 | G116: 1219 | H116: 583
A117: 2011-01-22 | B117: Sunset | C117: West | D117: Franks | E117: AA | F117: 41 | G117: 861 | H117: 379.25
A118: 2011-01-10 | B118: Sunshine | C118: East | D118: Franks | E118: JAQ | F118: 8 | G118: 152 | H118: 64
A119: 2011-01-12 | B119: Sunset | C119: South | D119: Franks | E119: QT | F119: 47 | G119: 987 | H119: 434.75
A120: 2011-01-12 | B120: Sunset | C120: South | D120: Chin | E120: TTT | F120: 2000 | G120: 50000 | H120: 22000

Sheet Chapter5Pages185-207
A1: Chapter 5 Homework for Pages 185-207
A2: ==>> Homework Sheets 38 - 44

Sheet HW(38)
A1: In the green cells create a formula that calculates the expenses as a percent of Income.
B3: Month | C3: Income | D3: =D16 -> Expense 1 | E3: Expense 2 | F3: Expense 3 | G3: Expense 4 | H3: Expense 5 | I3: Expense 6 | J3: Expense 7
B4: Jan | C4: 5000
B5: Feb | C5: 6000
B6: Mar | C6: 7500
B7: Apr | C7: 8000
B8: May | C8: 8000
B9: Jun | C9: 8000
B10: Jul | C10: 10000
B11: Aug | C11: 11000
B12: Sep | C12: 15000
A15: Assumptions (Formula Inputs) | D15: Assumptions (Formula Inputs)
A16: Expense 1 | B16: 0.1 | D16: Expense 1 | E16: Expense 2 | F16: Expense 3 | G16: Expense 4 | H16: Expense 5 | I16: Expense 6 | J16: Expense 7
A17: Expense 2 | B17: 0.05 | D17: 0.1 | E17: 0.05 | F17: 0.12 | G17: 0.045 | H17: 0.21 | I17: 0.04 | J17: 0.03
A18: Expense 3 | B18: 0.12
A19: Expense 4 | B19: 0.045
A20: Expense 5 | B20: 0.21
A21: Expense 6 | B21: 0.04
A22: Expense 7 | B22: 0.03

Sheet HW(38an)
A1: In the green cells create a formula that calculates the expenses as a percent of Income.
B3: Month | C3: Income | D3: =D16 -> Expense 1 | E3: Expense 2 | F3: Expense 3 | G3: Expense 4 | H3: Expense 5 | I3: Expense 6 | J3: Expense 7
B4: Jan | C4: 5000 | D4: =$C4*D$17 -> 500 | E4: 250 | F4: 600 | G4: 225 | H4: 1050 | I4: 200 | J4: 150
B5: Feb | C5: 6000 | D5: 600 | E5: 300 | F5: 720 | G5: 270 | H5: 1260 | I5: 240 | J5: 180
B6: Mar | C6: 7500 | D6: 750 | E6: 375 | F6: 900 | G6: 337.5 | H6: 1575 | I6: 300 | J6: 225
B7: Apr | C7: 8000 | D7: 800 | E7: 400 | F7: 960 | G7: 360 | H7: 1680 | I7: 320 | J7: 240
B8: May | C8: 8000 | D8: 800 | E8: 400 | F8: 960 | G8: 360 | H8: 1680 | I8: 320 | J8: 240
B9: Jun | C9: 8000 | D9: 800 | E9: 400 | F9: 960 | G9: 360 | H9: 1680 | I9: 320 | J9: 240
B10: Jul | C10: 10000 | D10: 1000 | E10: 500 | F10: 1200 | G10: 450 | H10: 2100 | I10: 400 | J10: 300
B11: Aug | C11: 11000 | D11: 1100 | E11: 550 | F11: 1320 | G11: 495 | H11: 2310 | I11: 440 | J11: 330
B12: Sep | C12: 15000 | D12: 1500 | E12: 750 | F12: 1800 | G12: 675 | H12: 3150 | I12: 600 | J12: 450
A15: Assumptions (Formula Inputs) | D15: Assumptions (Formula Inputs)
A16: Expense 1 | B16: 0.1 | D16: Expense 1 | E16: Expense 2 | F16: Expense 3 | G16: Expense 4 | H16: Expense 5 | I16: Expense 6 | J16: Expense 7
A17: Expense 2 | B17: 0.05 | D17: 0.1 | E17: 0.05 | F17: 0.12 | G17: 0.045 | H17: 0.21 | I17: 0.04 | J17: 0.03
A18: Expense 3 | B18: 0.12
A19: Expense 4 | B19: 0.045
A20: Expense 5 | B20: 0.21
A21: Expense 6 | B21: 0.04
A22: Expense 7 | B22: 0.03

Sheet HW(39)
A1: ="1) In the range "&ADDRESS(ROW(G7),COLUMN(G7),4)&":"&ADDRESS(ROW(I11),COLUMN(I11),4)&" use the SUMIFS function with three criteria to add the sales for each product in each month." -> 1) In the range G7:I11 use the SUMIFS function with three criteria to add the sales for each product in each month.
J3: Start Day | K3: 2010-04-01
A4: Date | B4: SalesRep | C4: Sales | D4: Product
A5: 2010-05-21 | B5: Denise | C5: 111 | D5: Bellen | G5: =K3 -> 2010-04-01 | H5: =G6 -> 2010-05-01 | I5: =H6 -> 2010-06-01 | J5: >= to this date
A6: 2010-04-30 | B6: Thongtara | C6: 167 | D6: Bellen | F6: Product | G6: =EDATE(G5,1) -> 2010-05-01 | H6: =EDATE(H5,1) -> 2010-06-01 | I6: 2010-07-01 | J6: < this date
A7: 2010-04-19 | B7: Chris | C7: 191 | D7: Sunshine | F7: Bellen
A8: 2010-06-17 | B8: Ewelina | C8: 110 | D8: Carlota | F8: Sunshine
A9: 2010-07-22 | B9: Janita | C9: 146 | D9: Carlota | F9: Carlota
A10: 2010-05-16 | B10: Elain | C10: 177 | D10: Sunshine | F10: Sunset
A11: 2010-06-05 | B11: Gianna | C11: 137 | D11: Carlota | F11: Majestic Beaut
A12: 2010-05-13 | B12: Richard | C12: 116 | D12: Bellen
A13: 2010-05-14 | B13: Elain | C13: 166 | D13: Sunshine
A14: 2010-06-12 | B14: Michael | C14: 193 | D14: Bellen
A15: 2010-05-22 | B15: Ewelina | C15: 105 | D15: Sunset
A16: 2010-07-19 | B16: Michelle | C16: 189 | D16: Carlota
A17: 2010-05-12 | B17: Jason | C17: 122 | D17: Majestic Beaut
A18: 2010-06-05 | B18: Craig | C18: 196 | D18: Sunshine
A19: 2010-05-23 | B19: Sarah | C19: 161 | D19: Sunshine
A20: 2010-05-29 | B20: Mansa | C20: 197 | D20: Majestic Beaut
A21: 2010-07-21 | B21: Michelle | C21: 113 | D21: Sunset
A22: 2010-06-30 | B22: Shari | C22: 111 | D22: Bellen
A23: 2010-04-19 | B23: Richard | C23: 164 | D23: Sunshine
A24: 2010-06-19 | B24: Christina | C24: 167 | D24: Majestic Beaut
A25: 2010-07-01 | B25: Denise | C25: 129 | D25: Bellen
A26: 2010-04-29 | B26: Richard | C26: 122 | D26: Sunshine
A27: 2010-03-27 | B27: Thongtara | C27: 132 | D27: Sunshine
A28: 2010-04-13 | B28: Michelle | C28: 178 | D28: Carlota
A29: 2010-07-18 | B29: Michelle | C29: 199 | D29: Bellen
A30: 2010-05-27 | B30: Shari | C30: 181 | D30: Majestic Beaut
A31: 2010-06-15 | B31: Carol | C31: 110 | D31: Carlota
A32: 2010-04-08 | B32: Kaur | C32: 104 | D32: Sunset
A33: 2010-06-23 | B33: Mitchell | C33: 110 | D33: Sunshine
A34: 2010-06-21 | B34: Debra | C34: 185 | D34: Carlota
A35: 2010-05-01 | B35: Manavbir | C35: 183 | D35: Sunset
A36: 2010-07-07 | B36: Chris | C36: 143 | D36: Sunset
A37: 2010-07-12 | B37: Elain | C37: 120 | D37: Carlota
A38: 2010-06-22 | B38: Michelle | C38: 147 | D38: Sunshine
A39: 2010-05-15 | B39: Jason | C39: 117 | D39: Sunshine
A40: 2010-03-31 | B40: Mansa | C40: 128 | D40: Bellen
A41: 2010-04-16 | B41: Shari | C41: 110 | D41: Sunshine
A42: 2010-05-23 | B42: Kaur | C42: 158 | D42: Carlota
A43: 2010-04-09 | B43: Manavbir | C43: 133 | D43: Sunset
A44: 2010-05-17 | B44: Debra | C44: 190 | D44: Majestic Beaut
A45: 2010-07-13 | B45: Sarah | C45: 138 | D45: Sunshine
A46: 2010-04-01 | B46: Daniel | C46: 143 | D46: Sunset
A47: 2010-04-12 | B47: Manavbir | C47: 167 | D47: Carlota
A48: 2010-04-02 | B48: Thongtara | C48: 135 | D48: Carlota
A49: 2010-05-22 | B49: Carol | C49: 125 | D49: Sunshine
A50: 2010-07-08 | B50: Janita | C50: 107 | D50: Carlota
A51: 2010-06-10 | B51: Carol | C51: 162 | D51: Bellen
A52: 2010-07-13 | B52: Thongtara | C52: 192 | D52: Majestic Beaut
A53: 2010-06-05 | B53: Daniel | C53: 152 | D53: Carlota
A54: 2010-04-28 | B54: Gianna | C54: 155 | D54: Majestic Beaut
A55: 2010-07-08 | B55: Kaur | C55: 155 | D55: Sunshine
A56: 2010-05-06 | B56: Mansa | C56: 145 | D56: Sunshine
A57: 2010-07-10 | B57: Janita | C57: 149 | D57: Carlota
A58: 2010-06-24 | B58: Kaur | C58: 180 | D58: Sunset
A59: 2010-05-07 | B59: Yla-Katrina | C59: 190 | D59: Bellen
A60: 2010-07-01 | B60: Richard | C60: 127 | D60: Sunset
A61: 2010-03-30 | B61: Christina | C61: 114 | D61: Carlota
A62: 2010-04-18 | B62: Carol | C62: 191 | D62: Majestic Beaut
A63: 2010-07-02 | B63: Chris | C63: 197 | D63: Sunshine
A64: 2010-05-09 | B64: Chris | C64: 186 | D64: Bellen
A65: 2010-06-10 | B65: Gianna | C65: 174 | D65: Carlota
A66: 2010-05-29 | B66: Yla-Katrina | C66: 114 | D66: Carlota
A67: 2010-07-05 | B67: Jason | C67: 121 | D67: Bellen
A68: 2010-03-28 | B68: Debra | C68: 134 | D68: Sunshine
A69: 2010-06-15 | B69: Carol | C69: 174 | D69: Carlota
A70: 2010-05-06 | B70: Craig | C70: 178 | D70: Majestic Beaut
A71: 2010-06-01 | B71: Ewelina | C71: 132 | D71: Sunshine
A72: 2010-06-02 | B72: Sarah | C72: 148 | D72: Carlota
A73: 2010-04-05 | B73: Michelle | C73: 120 | D73: Sunset
A74: 2010-06-01 | B74: Thongtara | C74: 199 | D74: Sunshine
A75: 2010-03-31 | B75: Michelle | C75: 109 | D75: Majestic Beaut
A76: 2010-06-27 | B76: Gianna | C76: 138 | D76: Carlota
A77: 2010-05-27 | B77: Thongtara | C77: 153 | D77: Bellen
A78: 2010-06-19 | B78: Janita | C78: 122 | D78: Bellen
A79: 2010-07-21 | B79: Michael | C79: 154 | D79: Bellen
A80: 2010-06-19 | B80: Jason | C80: 174 | D80: Sunset
A81: 2010-07-14 | B81: Denise | C81: 181 | D81: Bellen
A82: 2010-06-25 | B82: Sarah | C82: 113 | D82: Bellen
A83: 2010-04-01 | B83: Nelia | C83: 177 | D83: Sunset
A84: 2010-07-12 | B84: Mitchell | C84: 138 | D84: Majestic Beaut
A85: 2010-05-21 | B85: Denise | C85: 175 | D85: Bellen
A86: 2010-04-16 | B86: Ewelina | C86: 149 | D86: Majestic Beaut
A87: 2010-05-11 | B87: Shari | C87: 140 | D87: Majestic Beaut
A88: 2010-05-03 | B88: Michelle | C88: 152 | D88: Carlota
A89: 2010-04-20 | B89: Jason | C89: 104 | D89: Bellen
A90: 2010-06-07 | B90: Daniel | C90: 116 | D90: Majestic Beaut
A91: 2010-05-06 | B91: Chris | C91: 131 | D91: Carlota
A92: 2010-04-07 | B92: Thongtara | C92: 135 | D92: Sunshine
A93: 2010-06-04 | B93: Michelle | C93: 164 | D93: Sunset
A94: 2010-03-27 | B94: Manavbir | C94: 178 | D94: Sunset
A95: 2010-04-08 | B95: Debra | C95: 139 | D95: Sunshine
A96: 2010-05-04 | B96: Carol | C96: 160 | D96: Carlota
A97: 2010-07-07 | B97: Ewelina | C97: 162 | D97: Bellen
A98: 2010-06-19 | B98: Shari | C98: 103 | D98: Sunshine
A99: 2010-05-09 | B99: Kaur | C99: 200 | D99: Carlota
A100: 2010-04-21 | B100: Mansa | C100: 132 | D100: Sunset
A101: 2010-04-12 | B101: Sarah | C101: 133 | D101: Sunshine
A102: 2010-06-23 | B102: Mansa | C102: 187 | D102: Majestic Beaut
A103: 2010-07-22 | B103: Michael | C103: 173 | D103: Majestic Beaut
A104: 2010-06-07 | B104: Chris | C104: 112 | D104: Sunshine
A105: 2010-04-22 | B105: Daniel | C105: 132 | D105: Bellen
A106: 2010-04-27 | B106: Chris | C106: 112 | D106: Sunset
A107: 2010-04-23 | B107: Daniel | C107: 131 | D107: Carlota
A108: 2010-05-25 | B108: Craig | C108: 175 | D108: Sunshine
A109: 2010-07-19 | B109: Craig | C109: 158 | D109: Sunshine
A110: 2010-04-26 | B110: Ewelina | C110: 148 | D110: Bellen
A111: 2010-06-09 | B111: Daniel | C111: 187 | D111: Sunset
A112: 2010-07-07 | B112: Mansa | C112: 168 | D112: Majestic Beaut
A113: 2010-04-25 | B113: Nelia | C113: 116 | D113: Majestic Beaut
A114: 2010-03-26 | B114: Jason | C114: 122 | D114: Carlota
A115: 2010-05-21 | B115: Debra | C115: 160 | D115: Sunshine
A116: 2010-05-13 | B116: Debra | C116: 192 | D116: Carlota
A117: 2010-05-19 | B117: Christina | C117: 154 | D117: Sunset
A118: 2010-04-06 | B118: Jason | C118: 145 | D118: Sunshine
A119: 2010-05-03 | B119: Richard | C119: 178 | D119: Sunshine
A120: 2010-05-04 | B120: Sarah | C120: 112 | D120: Sunset
A121: 2010-07-04 | B121: Elain | C121: 115 | D121: Carlota
A122: 2010-05-25 | B122: Mansa | C122: 146 | D122: Carlota
A123: 2010-06-15 | B123: Debra | C123: 109 | D123: Majestic Beaut
A124: 2010-07-21 | B124: Denise | C124: 172 | D124: Carlota
A125: 2010-05-22 | B125: Daniel | C125: 146 | D125: Sunshine
A126: 2010-06-30 | B126: Richard | C126: 144 | D126: Bellen
A127: 2010-06-23 | B127: Mitchell | C127: 146 | D127: Carlota
A128: 2010-04-28 | B128: Kaur | C128: 105 | D128: Sunshine
A129: 2010-06-25 | B129: Ewelina | C129: 134 | D129: Carlota
A130: 2010-07-11 | B130: Richard | C130: 118 | D130: Carlota
A131: 2010-07-10 | B131: Debra | C131: 132 | D131: Bellen
A132: 2010-05-27 | B132: Carol | C132: 117 | D132: Sunset
A133: 2010-04-03 | B133: Michelle | C133: 194 | D133: Carlota
A134: 2010-04-27 | B134: Debra | C134: 122 | D134: Sunshine
A135: 2010-06-29 | B135: Michelle | C135: 134 | D135: Sunset
A136: 2010-07-11 | B136: Chris | C136: 134 | D136: Sunshine
A137: 2010-03-30 | B137: Elain | C137: 125 | D137: Sunset
A138: 2010-04-05 | B138: Carol | C138: 115 | D138: Majestic Beaut
A139: 2010-04-04 | B139: Christina | C139: 105 | D139: Sunset
A140: 2010-06-24 | B140: Christina | C140: 179 | D140: Bellen
A141: 2010-06-22 | B141: Elain | C141: 114 | D141: Sunset
A142: 2010-06-06 | B142: Elain | C142: 176 | D142: Carlota
A143: 2010-04-25 | B143: Shari | C143: 194 | D143: Sunset
A144: 2010-05-18 | B144: Mitchell | C144: 170 | D144: Majestic Beaut
A145: 2010-07-14 | B145: Ewelina | C145: 144 | D145: Carlota
A146: 2010-05-06 | B146: Christina | C146: 175 | D146: Carlota
A147: 2010-07-22 | B147: Michelle | C147: 185 | D147: Sunshine
A148: 2010-07-02 | B148: Carol | C148: 133 | D148: Majestic Beaut
A149: 2010-05-21 | B149: Sarah | C149: 131 | D149: Sunset
A150: 2010-06-15 | B150: Mansa | C150: 163 | D150: Sunshine
A151: 2010-03-26 | B151: Denise | C151: 120 | D151: Sunshine
A152: 2010-05-04 | B152: Manavbir | C152: 136 | D152: Majestic Beaut
A153: 2010-03-28 | B153: Gianna | C153: 195 | D153: Sunset
A154: 2010-04-21 | B154: Yla-Katrina | C154: 157 | D154: Sunset
A155: 2010-05-27 | B155: Michelle | C155: 187 | D155: Majestic Beaut
A156: 2010-05-15 | B156: Christina | C156: 185 | D156: Carlota
A157: 2010-07-10 | B157: Jason | C157: 154 | D157: Sunset
A158: 2010-06-13 | B158: Jason | C158: 187 | D158: Sunshine
A159: 2010-07-14 | B159: Gianna | C159: 142 | D159: Sunshine
A160: 2010-07-19 | B160: Denise | C160: 132 | D160: Majestic Beaut
A161: 2010-07-11 | B161: Mitchell | C161: 127 | D161: Sunset
A162: 2010-05-27 | B162: Mansa | C162: 184 | D162: Majestic Beaut
A163: 2010-06-23 | B163: Thongtara | C163: 164 | D163: Bellen
A164: 2010-04-28 | B164: Chris | C164: 157 | D164: Sunset
A165: 2010-07-05 | B165: Craig | C165: 186 | D165: Majestic Beaut
A166: 2010-05-23 | B166: Elain | C166: 135 | D166: Carlota
A167: 2010-06-25 | B167: Janita | C167: 194 | D167: Carlota
A168: 2010-04-05 | B168: Thongtara | C168: 177 | D168: Sunset
A169: 2010-05-05 | B169: Mitchell | C169: 143 | D169: Carlota
A170: 2010-05-18 | B170: Manavbir | C170: 152 | D170: Sunset
A171: 2010-06-03 | B171: Nelia | C171: 101 | D171: Sunset
A172: 2010-05-05 | B172: Janita | C172: 110 | D172: Majestic Beaut
A173: 2010-06-15 | B173: Denise | C173: 124 | D173: Carlota
A174: 2010-05-08 | B174: Christina | C174: 102 | D174: Sunshine
A175: 2010-07-16 | B175: Richard | C175: 139 | D175: Sunset
A176: 2010-05-06 | B176: Janita | C176: 152 | D176: Bellen
A177: 2010-05-17 | B177: Janita | C177: 168 | D177: Majestic Beaut
A178: 2010-04-01 | B178: Michael | C178: 151 | D178: Majestic Beaut
A179: 2010-05-06 | B179: Gianna | C179: 137 | D179: Sunshine
A180: 2010-07-13 | B180: Janita | C180: 104 | D180: Carlota
A181: 2010-04-09 | B181: Nelia | C181: 139 | D181: Carlota
A182: 2010-07-04 | B182: Daniel | C182: 147 | D182: Sunshine
A183: 2010-07-09 | B183: Mansa | C183: 190 | D183: Majestic Beaut
A184: 2010-07-19 | B184: Nelia | C184: 159 | D184: Carlota
A185: 2010-03-28 | B185: Manavbir | C185: 112 | D185: Carlota
A186: 2010-05-08 | B186: Christina | C186: 182 | D186: Majestic Beaut
A187: 2010-05-16 | B187: Richard | C187: 121 | D187: Sunset
A188: 2010-05-25 | B188: Kaur | C188: 181 | D188: Majestic Beaut
A189: 2010-06-03 | B189: Craig | C189: 104 | D189: Bellen
A190: 2010-06-01 | B190: Chris | C190: 194 | D190: Sunset
A191: 2010-03-29 | B191: Christina | C191: 178 | D191: Sunshine
A192: 2010-06-27 | B192: Carol | C192: 142 | D192: Sunshine
A193: 2010-04-09 | B193: Mitchell | C193: 191 | D193: Bellen
A194: 2010-06-26 | B194: Sarah | C194: 120 | D194: Bellen
A195: 2010-05-10 | B195: Carol | C195: 155 | D195: Sunshine
A196: 2010-05-03 | B196: Manavbir | C196: 199 | D196: Sunshine
A197: 2010-05-12 | B197: Thongtara | C197: 106 | D197: Sunshine
A198: 2010-04-28 | B198: Elain | C198: 149 | D198: Majestic Beaut
A199: 2010-06-09 | B199: Michelle | C199: 158 | D199: Bellen
A200: 2010-04-01 | B200: Gianna | C200: 144 | D200: Bellen
A201: 2010-05-13 | B201: Daniel | C201: 143 | D201: Bellen
... 570 more rows

Sheet HW(39an)
A1: ="1) In the range "&ADDRESS(ROW(G7),COLUMN(G7),4)&":"&ADDRESS(ROW(I11),COLUMN(I11),4)&" use the SUMIFS function with three criteria to add the sales for each product in each month." -> 1) In the range G7:I11 use the SUMIFS function with three criteria to add the sales for each product in each month.
J3: Start Day | K3: 2010-04-01
A4: Date | B4: SalesRep | C4: Sales | D4: Product
A5: 2010-05-21 | B5: Denise | C5: 111 | D5: Bellen | G5: =K3 -> 2010-04-01 | H5: =G6 -> 2010-05-01 | I5: =H6 -> 2010-06-01 | J5: >= to this date
A6: 2010-04-30 | B6: Thongtara | C6: 167 | D6: Bellen | F6: Product | G6: =EDATE(G5,1) -> 2010-05-01 | H6: =EDATE(H5,1) -> 2010-06-01 | I6: 2010-07-01 | J6: < this date
A7: 2010-04-19 | B7: Chris | C7: 191 | D7: Sunshine | F7: Bellen | G7: =SUMIFS($C$5:$C$771,$D$5:$D$771,$F7,$A$5:$A$771,">="&G$5,$A$5:$A$771,"<"&G$6) -> 5624 | H7: 5443 | I7: 4767
A8: 2010-06-17 | B8: Ewelina | C8: 110 | D8: Carlota | F8: Carlota | G8: 5954 | H8: 6033 | I8: 7257
A9: 2010-07-22 | B9: Janita | C9: 146 | D9: Carlota | F9: Majestic Beaut | G9: 5057 | H9: 6547 | I9: 3773
A10: 2010-05-16 | B10: Elain | C10: 177 | D10: Sunshine | F10: Sunset | G10: 5032 | H10: 4590 | I10: 5940
A11: 2010-06-05 | B11: Gianna | C11: 137 | D11: Carlota | F11: Sunshine | G11: 8054 | H11: 6256 | I11: 5791
A12: 2010-05-13 | B12: Richard | C12: 116 | D12: Bellen
A13: 2010-05-14 | B13: Elain | C13: 166 | D13: Sunshine
A14: 2010-06-12 | B14: Michael | C14: 193 | D14: Bellen
A15: 2010-05-22 | B15: Ewelina | C15: 105 | D15: Sunset
A16: 2010-07-19 | B16: Michelle | C16: 189 | D16: Carlota
A17: 2010-05-12 | B17: Jason | C17: 122 | D17: Majestic Beaut
A18: 2010-06-05 | B18: Craig | C18: 196 | D18: Sunshine
A19: 2010-05-23 | B19: Sarah | C19: 161 | D19: Sunshine
A20: 2010-05-29 | B20: Mansa | C20: 197 | D20: Majestic Beaut
A21: 2010-07-21 | B21: Michelle | C21: 113 | D21: Sunset
A22: 2010-06-30 | B22: Shari | C22: 111 | D22: Bellen
A23: 2010-04-19 | B23: Richard | C23: 164 | D23: Sunshine
A24: 2010-06-19 | B24: Christina | C24: 167 | D24: Majestic Beaut
A25: 2010-07-01 | B25: Denise | C25: 129 | D25: Bellen
A26: 2010-04-29 | B26: Richard | C26: 122 | D26: Sunshine
A27: 2010-03-27 | B27: Thongtara | C27: 132 | D27: Sunshine
A28: 2010-04-13 | B28: Michelle | C28: 178 | D28: Carlota
A29: 2010-07-18 | B29: Michelle | C29: 199 | D29: Bellen
A30: 2010-05-27 | B30: Shari | C30: 181 | D30: Majestic Beaut
A31: 2010-06-15 | B31: Carol | C31: 110 | D31: Carlota
A32: 2010-04-08 | B32: Kaur | C32: 104 | D32: Sunset
A33: 2010-06-23 | B33: Mitchell | C33: 110 | D33: Sunshine
A34: 2010-06-21 | B34: Debra | C34: 185 | D34: Carlota
A35: 2010-05-01 | B35: Manavbir | C35: 183 | D35: Sunset
A36: 2010-07-07 | B36: Chris | C36: 143 | D36: Sunset
A37: 2010-07-12 | B37: Elain | C37: 120 | D37: Carlota
A38: 2010-06-22 | B38: Michelle | C38: 147 | D38: Sunshine
A39: 2010-05-15 | B39: Jason | C39: 117 | D39: Sunshine
A40: 2010-03-31 | B40: Mansa | C40: 128 | D40: Bellen
A41: 2010-04-16 | B41: Shari | C41: 110 | D41: Sunshine
A42: 2010-05-23 | B42: Kaur | C42: 158 | D42: Carlota
A43: 2010-04-09 | B43: Manavbir | C43: 133 | D43: Sunset
A44: 2010-05-17 | B44: Debra | C44: 190 | D44: Majestic Beaut
A45: 2010-07-13 | B45: Sarah | C45: 138 | D45: Sunshine
A46: 2010-04-01 | B46: Daniel | C46: 143 | D46: Sunset
A47: 2010-04-12 | B47: Manavbir | C47: 167 | D47: Carlota
A48: 2010-04-02 | B48: Thongtara | C48: 135 | D48: Carlota
A49: 2010-05-22 | B49: Carol | C49: 125 | D49: Sunshine
A50: 2010-07-08 | B50: Janita | C50: 107 | D50: Carlota
A51: 2010-06-10 | B51: Carol | C51: 162 | D51: Bellen
A52: 2010-07-13 | B52: Thongtara | C52: 192 | D52: Majestic Beaut
A53: 2010-06-05 | B53: Daniel | C53: 152 | D53: Carlota
A54: 2010-04-28 | B54: Gianna | C54: 155 | D54: Majestic Beaut
A55: 2010-07-08 | B55: Kaur | C55: 155 | D55: Sunshine
A56: 2010-05-06 | B56: Mansa | C56: 145 | D56: Sunshine
A57: 2010-07-10 | B57: Janita | C57: 149 | D57: Carlota
A58: 2010-06-24 | B58: Kaur | C58: 180 | D58: Sunset
A59: 2010-05-07 | B59: Yla-Katrina | C59: 190 | D59: Bellen
A60: 2010-07-01 | B60: Richard | C60: 127 | D60: Sunset
A61: 2010-03-30 | B61: Christina | C61: 114 | D61: Carlota
A62: 2010-04-18 | B62: Carol | C62: 191 | D62: Majestic Beaut
A63: 2010-07-02 | B63: Chris | C63: 197 | D63: Sunshine
A64: 2010-05-09 | B64: Chris | C64: 186 | D64: Bellen
A65: 2010-06-10 | B65: Gianna | C65: 174 | D65: Carlota
A66: 2010-05-29 | B66: Yla-Katrina | C66: 114 | D66: Carlota
A67: 2010-07-05 | B67: Jason | C67: 121 | D67: Bellen
A68: 2010-03-28 | B68: Debra | C68: 134 | D68: Sunshine
A69: 2010-06-15 | B69: Carol | C69: 174 | D69: Carlota
A70: 2010-05-06 | B70: Craig | C70: 178 | D70: Majestic Beaut
A71: 2010-06-01 | B71: Ewelina | C71: 132 | D71: Sunshine
A72: 2010-06-02 | B72: Sarah | C72: 148 | D72: Carlota
A73: 2010-04-05 | B73: Michelle | C73: 120 | D73: Sunset
A74: 2010-06-01 | B74: Thongtara | C74: 199 | D74: Sunshine
A75: 2010-03-31 | B75: Michelle | C75: 109 | D75: Majestic Beaut
A76: 2010-06-27 | B76: Gianna | C76: 138 | D76: Carlota
A77: 2010-05-27 | B77: Thongtara | C77: 153 | D77: Bellen
A78: 2010-06-19 | B78: Janita | C78: 122 | D78: Bellen
A79: 2010-07-21 | B79: Michael | C79: 154 | D79: Bellen
A80: 2010-06-19 | B80: Jason | C80: 174 | D80: Sunset
A81: 2010-07-14 | B81: Denise | C81: 181 | D81: Bellen
A82: 2010-06-25 | B82: Sarah | C82: 113 | D82: Bellen
A83: 2010-04-01 | B83: Nelia | C83: 177 | D83: Sunset
A84: 2010-07-12 | B84: Mitchell | C84: 138 | D84: Majestic Beaut
A85: 2010-05-21 | B85: Denise | C85: 175 | D85: Bellen
A86: 2010-04-16 | B86: Ewelina | C86: 149 | D86: Majestic Beaut
A87: 2010-05-11 | B87: Shari | C87: 140 | D87: Majestic Beaut
A88: 2010-05-03 | B88: Michelle | C88: 152 | D88: Carlota
A89: 2010-04-20 | B89: Jason | C89: 104 | D89: Bellen
A90: 2010-06-07 | B90: Daniel | C90: 116 | D90: Majestic Beaut
A91: 2010-05-06 | B91: Chris | C91: 131 | D91: Carlota
A92: 2010-04-07 | B92: Thongtara | C92: 135 | D92: Sunshine
A93: 2010-06-04 | B93: Michelle | C93: 164 | D93: Sunset
A94: 2010-03-27 | B94: Manavbir | C94: 178 | D94: Sunset
A95: 2010-04-08 | B95: Debra | C95: 139 | D95: Sunshine
A96: 2010-05-04 | B96: Carol | C96: 160 | D96: Carlota
A97: 2010-07-07 | B97: Ewelina | C97: 162 | D97: Bellen
A98: 2010-06-19 | B98: Shari | C98: 103 | D98: Sunshine
A99: 2010-05-09 | B99: Kaur | C99: 200 | D99: Carlota
A100: 2010-04-21 | B100: Mansa | C100: 132 | D100: Sunset
A101: 2010-04-12 | B101: Sarah | C101: 133 | D101: Sunshine
A102: 2010-06-23 | B102: Mansa | C102: 187 | D102: Majestic Beaut
A103: 2010-07-22 | B103: Michael | C103: 173 | D103: Majestic Beaut
A104: 2010-06-07 | B104: Chris | C104: 112 | D104: Sunshine
A105: 2010-04-22 | B105: Daniel | C105: 132 | D105: Bellen
A106: 2010-04-27 | B106: Chris | C106: 112 | D106: Sunset
A107: 2010-04-23 | B107: Daniel | C107: 131 | D107: Carlota
A108: 2010-05-25 | B108: Craig | C108: 175 | D108: Sunshine
A109: 2010-07-19 | B109: Craig | C109: 158 | D109: Sunshine
A110: 2010-04-26 | B110: Ewelina | C110: 148 | D110: Bellen
A111: 2010-06-09 | B111: Daniel | C111: 187 | D111: Sunset
A112: 2010-07-07 | B112: Mansa | C112: 168 | D112: Majestic Beaut
A113: 2010-04-25 | B113: Nelia | C113: 116 | D113: Majestic Beaut
A114: 2010-03-26 | B114: Jason | C114: 122 | D114: Carlota
A115: 2010-05-21 | B115: Debra | C115: 160 | D115: Sunshine
A116: 2010-05-13 | B116: Debra | C116: 192 | D116: Carlota
A117: 2010-05-19 | B117: Christina | C117: 154 | D117: Sunset
A118: 2010-04-06 | B118: Jason | C118: 145 | D118: Sunshine
A119: 2010-05-03 | B119: Richard | C119: 178 | D119: Sunshine
A120: 2010-05-04 | B120: Sarah | C120: 112 | D120: Sunset
A121: 2010-07-04 | B121: Elain | C121: 115 | D121: Carlota
A122: 2010-05-25 | B122: Mansa | C122: 146 | D122: Carlota
A123: 2010-06-15 | B123: Debra | C123: 109 | D123: Majestic Beaut
A124: 2010-07-21 | B124: Denise | C124: 172 | D124: Carlota
A125: 2010-05-22 | B125: Daniel | C125: 146 | D125: Sunshine
A126: 2010-06-30 | B126: Richard | C126: 144 | D126: Bellen
A127: 2010-06-23 | B127: Mitchell | C127: 146 | D127: Carlota
A128: 2010-04-28 | B128: Kaur | C128: 105 | D128: Sunshine
A129: 2010-06-25 | B129: Ewelina | C129: 134 | D129: Carlota
A130: 2010-07-11 | B130: Richard | C130: 118 | D130: Carlota
A131: 2010-07-10 | B131: Debra | C131: 132 | D131: Bellen
A132: 2010-05-27 | B132: Carol | C132: 117 | D132: Sunset
A133: 2010-04-03 | B133: Michelle | C133: 194 | D133: Carlota
A134: 2010-04-27 | B134: Debra | C134: 122 | D134: Sunshine
A135: 2010-06-29 | B135: Michelle | C135: 134 | D135: Sunset
A136: 2010-07-11 | B136: Chris | C136: 134 | D136: Sunshine
A137: 2010-03-30 | B137: Elain | C137: 125 | D137: Sunset
A138: 2010-04-05 | B138: Carol | C138: 115 | D138: Majestic Beaut
A139: 2010-04-04 | B139: Christina | C139: 105 | D139: Sunset
A140: 2010-06-24 | B140: Christina | C140: 179 | D140: Bellen
A141: 2010-06-22 | B141: Elain | C141: 114 | D141: Sunset
A142: 2010-06-06 | B142: Elain | C142: 176 | D142: Carlota
A143: 2010-04-25 | B143: Shari | C143: 194 | D143: Sunset
A144: 2010-05-18 | B144: Mitchell | C144: 170 | D144: Majestic Beaut
A145: 2010-07-14 | B145: Ewelina | C145: 144 | D145: Carlota
A146: 2010-05-06 | B146: Christina | C146: 175 | D146: Carlota
A147: 2010-07-22 | B147: Michelle | C147: 185 | D147: Sunshine
A148: 2010-07-02 | B148: Carol | C148: 133 | D148: Majestic Beaut
A149: 2010-05-21 | B149: Sarah | C149: 131 | D149: Sunset
A150: 2010-06-15 | B150: Mansa | C150: 163 | D150: Sunshine
A151: 2010-03-26 | B151: Denise | C151: 120 | D151: Sunshine
A152: 2010-05-04 | B152: Manavbir | C152: 136 | D152: Majestic Beaut
A153: 2010-03-28 | B153: Gianna | C153: 195 | D153: Sunset
A154: 2010-04-21 | B154: Yla-Katrina | C154: 157 | D154: Sunset
A155: 2010-05-27 | B155: Michelle | C155: 187 | D155: Majestic Beaut
A156: 2010-05-15 | B156: Christina | C156: 185 | D156: Carlota
A157: 2010-07-10 | B157: Jason | C157: 154 | D157: Sunset
A158: 2010-06-13 | B158: Jason | C158: 187 | D158: Sunshine
A159: 2010-07-14 | B159: Gianna | C159: 142 | D159: Sunshine
A160: 2010-07-19 | B160: Denise | C160: 132 | D160: Majestic Beaut
A161: 2010-07-11 | B161: Mitchell | C161: 127 | D161: Sunset
A162: 2010-05-27 | B162: Mansa | C162: 184 | D162: Majestic Beaut
A163: 2010-06-23 | B163: Thongtara | C163: 164 | D163: Bellen
A164: 2010-04-28 | B164: Chris | C164: 157 | D164: Sunset
A165: 2010-07-05 | B165: Craig | C165: 186 | D165: Majestic Beaut
A166: 2010-05-23 | B166: Elain | C166: 135 | D166: Carlota
A167: 2010-06-25 | B167: Janita | C167: 194 | D167: Carlota
A168: 2010-04-05 | B168: Thongtara | C168: 177 | D168: Sunset
A169: 2010-05-05 | B169: Mitchell | C169: 143 | D169: Carlota
A170: 2010-05-18 | B170: Manavbir | C170: 152 | D170: Sunset
A171: 2010-06-03 | B171: Nelia | C171: 101 | D171: Sunset
A172: 2010-05-05 | B172: Janita | C172: 110 | D172: Majestic Beaut
A173: 2010-06-15 | B173: Denise | C173: 124 | D173: Carlota
A174: 2010-05-08 | B174: Christina | C174: 102 | D174: Sunshine
A175: 2010-07-16 | B175: Richard | C175: 139 | D175: Sunset
A176: 2010-05-06 | B176: Janita | C176: 152 | D176: Bellen
A177: 2010-05-17 | B177: Janita | C177: 168 | D177: Majestic Beaut
A178: 2010-04-01 | B178: Michael | C178: 151 | D178: Majestic Beaut
A179: 2010-05-06 | B179: Gianna | C179: 137 | D179: Sunshine
A180: 2010-07-13 | B180: Janita | C180: 104 | D180: Carlota
A181: 2010-04-09 | B181: Nelia | C181: 139 | D181: Carlota
A182: 2010-07-04 | B182: Daniel | C182: 147 | D182: Sunshine
A183: 2010-07-09 | B183: Mansa | C183: 190 | D183: Majestic Beaut
A184: 2010-07-19 | B184: Nelia | C184: 159 | D184: Carlota
A185: 2010-03-28 | B185: Manavbir | C185: 112 | D185: Carlota
A186: 2010-05-08 | B186: Christina | C186: 182 | D186: Majestic Beaut
A187: 2010-05-16 | B187: Richard | C187: 121 | D187: Sunset
A188: 2010-05-25 | B188: Kaur | C188: 181 | D188: Majestic Beaut
A189: 2010-06-03 | B189: Craig | C189: 104 | D189: Bellen
A190: 2010-06-01 | B190: Chris | C190: 194 | D190: Sunset
A191: 2010-03-29 | B191: Christina | C191: 178 | D191: Sunshine
A192: 2010-06-27 | B192: Carol | C192: 142 | D192: Sunshine
A193: 2010-04-09 | B193: Mitchell | C193: 191 | D193: Bellen
A194: 2010-06-26 | B194: Sarah | C194: 120 | D194: Bellen
A195: 2010-05-10 | B195: Carol | C195: 155 | D195: Sunshine
A196: 2010-05-03 | B196: Manavbir | C196: 199 | D196: Sunshine
A197: 2010-05-12 | B197: Thongtara | C197: 106 | D197: Sunshine
A198: 2010-04-28 | B198: Elain | C198: 149 | D198: Majestic Beaut
A199: 2010-06-09 | B199: Michelle | C199: 158 | D199: Bellen
A200: 2010-04-01 | B200: Gianna | C200: 144 | D200: Bellen
A201: 2010-05-13 | B201: Daniel | C201: 143 | D201: Bellen
... 570 more rows

Sheet HW(40)
A1: 1) Create the formulas to complete the Projected Net Income Statement. Before you start creating formulas, analyze the setup and make adjustments if necessary to be efficient.
B3: Jan | C3: Feb | D3: Mar | E3: Apr | F3: May | G3: Jun
A4: Sales | B4: 100 | C4: 200 | D4: 300 | E4: 400 | F4: 500 | G4: 600
A5: Ex1
A6: Ex2
A7: Ex3
A8: Ex4
A9: Ex5
A10: Ex6
A11: Ex7
A12: Ex8
A13: Ex9
A14: Ex10
A15: Ex11
A16: Total Ex
A17: Net Income
A19: Ex1 | B19: Ex2 | C19: Ex3 | D19: Ex4 | E19: Ex5 | F19: Ex6 | G19: Ex7 | H19: Ex8 | I19: Ex9 | J19: Ex10 | K19: Ex11
A20: 0.03 | B20: 0.04 | C20: 0.05 | D20: 0.06 | E20: 0.07 | F20: 0.08 | G20: 0.09 | H20: 0.1 | I20: 0.11 | J20: 0.12 | K20: 0.13

Sheet HW(40an)
A1: 1) Create the formulas to complete the Projected Net Income Statement. Before you start creating formulas, analyze the setup and make adjustments if necessary to be efficient.
B3: Jan | C3: Feb | D3: Mar | E3: Apr | F3: May | G3: Jun
A4: Sales | B4: 100 | C4: 200 | D4: 300 | E4: 400 | F4: 500 | G4: 600 | I4: Assumptions
A5: Ex1 | B5: =B$4*$J5 -> 3 | C5: 6 | D5: 9 | E5: 12 | F5: 15 | G5: 18 | I5: Ex1 | J5: 0.03
A6: Ex2 | B6: 4 | C6: 8 | D6: 12 | E6: 16 | F6: 20 | G6: 24 | I6: Ex2 | J6: 0.04
A7: Ex3 | B7: 5 | C7: 10 | D7: 15 | E7: 20 | F7: 25 | G7: 30 | I7: Ex3 | J7: 0.05
A8: Ex4 | B8: 6 | C8: 12 | D8: 18 | E8: 24 | F8: 30 | G8: 36 | I8: Ex4 | J8: 0.06
A9: Ex5 | B9: 7 | C9: 14 | D9: 21 | E9: 28 | F9: 35 | G9: 42 | I9: Ex5 | J9: 0.07
A10: Ex6 | B10: 8 | C10: 16 | D10: 24 | E10: 32 | F10: 40 | G10: 48 | I10: Ex6 | J10: 0.08
A11: Ex7 | B11: 9 | C11: 18 | D11: 27 | E11: 36 | F11: 45 | G11: 54 | I11: Ex7 | J11: 0.09
A12: Ex8 | B12: 10 | C12: 20 | D12: 30 | E12: 40 | F12: 50 | G12: 60 | I12: Ex8 | J12: 0.1
A13: Ex9 | B13: 11 | C13: 22 | D13: 33 | E13: 44 | F13: 55 | G13: 66 | I13: Ex9 | J13: 0.11
A14: Ex10 | B14: 12 | C14: 24 | D14: 36 | E14: 48 | F14: 60 | G14: 72 | I14: Ex10 | J14: 0.12
A15: Ex11 | B15: 13 | C15: 26 | D15: 39 | E15: 52 | F15: 65 | G15: 78 | I15: Ex11 | J15: 0.13
A16: Total Ex | B16: =SUM(B5:B15) -> 88 | C16: =SUM(C5:C15) -> 176 | D16: 264 | E16: 352 | F16: 440 | G16: 528 | J16: =SUM(J5:J15) -> 0.88
A17: Net Income | B17: =B4-B16 -> 12 | C17: 24 | D17: 36 | E17: 48 | F17: 60 | G17: 72

Sheet HW(41)
A1: Create a small budget table (sales and expenses) with an assumption area and then save 3 scenarios. For the additional two scenarios use the numbers from Set 1 and Set 2 (to the right).
B3: Jan | C3: Feb | D3: Mar | E3: Apr | F3: May | G3: Jun | I3: Assumptions | L3: Set 2 | N3: Set 3
A4: Sales | B4: 100 | C4: 200 | D4: 300 | E4: 400 | F4: 500 | G4: 600 | I4: Ex1 | J4: 0.03 | L4: 4% | N4: 2%
A5: Ex1 | I5: Ex2 | J5: 0.04 | L5: 5% | N5: 3%
A6: Ex2 | I6: Ex3 | J6: 0.05 | L6: 6% | N6: 4%
A7: Ex3 | I7: Ex4 | J7: 0.06 | L7: 7% | N7: 5%
A8: Ex4 | I8: Ex5 | J8: 0.07 | L8: 8% | N8: 6%
A9: Ex5 | I9: Ex6 | J9: 0.08 | L9: 9% | N9: 7%
A10: Ex6 | I10: Ex7 | J10: 0.09 | L10: 10% | N10: 8%
A11: Ex7 | I11: Ex8 | J11: 0.1 | L11: 11% | N11: 9%
A12: Ex8 | I12: Ex9 | J12: 0.11 | L12: 12% | N12: 10%
A13: Ex9 | I13: Ex10 | J13: 0.12 | L13: 13% | N13: 11%
A14: Ex10 | I14: Ex11 | J14: 0.13 | L14: 14% | N14: 12%
A15: Ex11
A16: Total Ex
A17: Net Income

Sheet HW(41an)
A1: Create a small budget table (sales and expenses) with an assumption area and then save 3 scenarios. For the additional two scenarios use the numbers from Set 1 and Set 2 (to the right).
B3: Jan | C3: Feb | D3: Mar | E3: Apr | F3: May | G3: Jun | I3: Assumptions
A4: Sales | B4: 100 | C4: 200 | D4: 300 | E4: 400 | F4: 500 | G4: 600 | I4: Ex1 | J4: 0.02
A5: Ex1 | B5: =B$4*$J4 -> 2 | C5: =C$4*$J4 -> 4 | D5: =D$4*$J4 -> 6 | E5: =E$4*$J4 -> 8 | F5: =F$4*$J4 -> 10 | G5: =G$4*$J4 -> 12 | I5: Ex2 | J5: 0.03
A6: Ex2 | B6: 3 | C6: 6 | D6: 9 | E6: 12 | F6: 15 | G6: 18 | I6: Ex3 | J6: 0.04
A7: Ex3 | B7: 4 | C7: 8 | D7: 12 | E7: 16 | F7: 20 | G7: 24 | I7: Ex4 | J7: 0.05
A8: Ex4 | B8: 5 | C8: 10 | D8: 15 | E8: 20 | F8: 25 | G8: 30 | I8: Ex5 | J8: 0.06
A9: Ex5 | B9: 6 | C9: 12 | D9: 18 | E9: 24 | F9: 30 | G9: 36 | I9: Ex6 | J9: 0.07
A10: Ex6 | B10: 7 | C10: 14 | D10: 21 | E10: 28 | F10: 35 | G10: 42 | I10: Ex7 | J10: 0.08
A11: Ex7 | B11: 8 | C11: 16 | D11: 24 | E11: 32 | F11: 40 | G11: 48 | I11: Ex8 | J11: 0.09
A12: Ex8 | B12: 9 | C12: 18 | D12: 27 | E12: 36 | F12: 45 | G12: 54 | I12: Ex9 | J12: 0.1
A13: Ex9 | B13: 10 | C13: 20 | D13: 30 | E13: 40 | F13: 50 | G13: 60 | I13: Ex10 | J13: 0.11
A14: Ex10 | B14: 11 | C14: 22 | D14: 33 | E14: 44 | F14: 55 | G14: 66 | I14: Ex11 | J14: 0.12
A15: Ex11 | B15: 12 | C15: 24 | D15: 36 | E15: 48 | F15: 60 | G15: 72
A16: Total Ex | B16: =SUM(B5:B15) -> 77 | C16: 154 | D16: 231 | E16: 308 | F16: 385 | G16: 462
A17: Net Income | B17: =B4-B16 -> 23 | C17: 46 | D17: 69 | E17: 92 | F17: 115 | G17: 138

Sheet HW(42)
A1: The projected revenue for Jan, Feb and Mar are $1000, $2000, and $2500 respectively. The projected expenses as a percentage of revenue for each month are: Rent = 25%, Operating Expenses = 35%, Administrative expenses = 10% and Miscellaneous expenses = 8.5%. Create a projected Income Statement and formatted it so it looks good.

Sheet HW(42an)
A1: The projected revenue for Jan, Feb and Mar are $1000, $2000, and $2500 respectively. The projected expenses as a percentage of revenue for each month are: Rent = 25%, Operating Expenses = 35%, Administrative expenses = 10% and Miscellaneous expenses = 8.5%. Create a projected Income Statement and formatted it so it looks good.
A4: Month | B4: Rev | C4: =C9 -> Rent | D4: Operating Expense | E4: Admin Expenses | F4: Misc. Expenses | G4: Total Expenses | H4: Net Income
A5: Jan | B5: 1000 | C5: =$B5*C$10 -> 250 | D5: 350 | E5: 100 | F5: 85 | G5: =SUM(C5:F5) -> 785 | H5: =B5-G5 -> 215
A6: Feb | B6: 2000 | C6: 500 | D6: 700 | E6: 200 | F6: 170 | G6: 1570 | H6: 430
A7: Mar | B7: 2500 | C7: 625 | D7: 875 | E7: 250 | F7: 212.5 | G7: 1962.5 | H7: 537.5
C9: Rent | D9: Operating Expense | E9: Admin Expenses | F9: Misc. Expenses
C10: 0.25 | D10: 0.35 | E10: 0.1 | F10: 0.085
A12: OR
B14: Jan | C14: Feb | D14: Mar
A15: Rev | B15: 1000 | C15: 2000 | D15: 2500
A16: =A23 -> Rent | B16: =B$15*$B23 -> 250 | C16: 500 | D16: 625
A17: =A24 -> Operating Expense | B17: 350 | C17: 700 | D17: 875
A18: =A25 -> Admin Expenses | B18: 100 | C18: 200 | D18: 250
A19: =A26 -> Misc. Expenses | B19: 85 | C19: 170 | D19: 212.5
A20: Total Expenses | B20: =SUM(B16:B19) -> 785 | C20: =SUM(C16:C19) -> 1570 | D20: =SUM(D16:D19) -> 1962.5
A21: Net Income | B21: =B15-B20 -> 215 | C21: =C15-C20 -> 430 | D21: =D15-D20 -> 537.5
A23: Rent | B23: 0.25
A24: Operating Expense | B24: 0.35
A25: Admin Expenses | B25: 0.1
A26: Misc. Expenses | B26: 0.085

Sheet HW(43)
A1: Create a formula in the Earned Commission column using the commission rate from the sheet named "AssumptionsFor43".
A4: SalesRep | B4: Sales | C4: Earned Commision
A5: Abraham | B5: 1161
A6: Hironobu | B6: 1321
A7: Daniel | B7: 1039
A8: Dante | B8: 1761
A9: Sarah B | B9: 1561
A10: Tonya | B10: 1868
A11: Janita | B11: 2787
A12: Debra | B12: 1849
A13: Tiara | B13: 2627
A14: Andrea | B14: 2165
A15: Faye | B15: 1589
A16: Viktor | B16: 2603
A17: Na | B17: 2366
A18: Ryan | B18: 2107
A19: Damir | B19: 2886
A20: Sunita | B20: 1886
A21: Meghan | B21: 2177
A22: Cynthia | B22: 1873
A23: Trevor | B23: 2164
A24: John | B24: 1394
A25: Sang | B25: 2263
A26: Dina | B26: 2242
A27: Tony | B27: 1474
A28: Nikolay | B28: 1998
A29: Thanh | B29: 2892
A30: Tracinda | B30: 1873
A31: Denis | B31: 1954
A32: Michael | B32: 1729
A33: Svitlana Q | B33: 1140
A34: Leslie | B34: 1528
A35: Sarah | B35: 1659
A36: Andra | B36: 2119
A37: Christien | B37: 1854
A38: Irina | B38: 2759
A39: Chandy | B39: 1237
A40: David | B40: 1653
A41: Wendy | B41: 2604
A42: Archie | B42: 1479
A43: Desiree | B43: 2569
A44: Denise | B44: 1941
A45: Hillary | B45: 2793
A46: Nicolas | B46: 2614
A47: Ralph | B47: 1645
A48: Konstanti | B48: 1733
A49: Svitlana | B49: 2466
A50: Ewelina | B50: 2833
A51: Jori | B51: 1604
A52: Abdullahi | B52: 2588

Sheet AssumptionsFor43
A1: Assumption Table contains Formula Inputs
A2: Commission Rate | B2: 0.04

Sheet HW(43an)
A1: Create a formula in the Earned Commission column using the commission rate from the sheet named "AssumptionsFor43".
A4: SalesRep | B4: Sales | C4: Earned Commision
A5: Abraham | B5: 1161 | C5: =B5*AssumptionsFor43!B$2 -> 46.44
A6: Hironobu | B6: 1321 | C6: =B6*AssumptionsFor43!B$2 -> 52.84
A7: Daniel | B7: 1039 | C7: =B7*AssumptionsFor43!B$2 -> 41.56
A8: Dante | B8: 1761 | C8: =B8*AssumptionsFor43!B$2 -> 70.44
A9: Sarah B | B9: 1561 | C9: =B9*AssumptionsFor43!B$2 -> 62.44
A10: Tonya | B10: 1868 | C10: =B10*AssumptionsFor43!B$2 -> 74.72
A11: Janita | B11: 2787 | C11: =B11*AssumptionsFor43!B$2 -> 111.48
A12: Debra | B12: 1849 | C12: =B12*AssumptionsFor43!B$2 -> 73.96
A13: Tiara | B13: 2627 | C13: =B13*AssumptionsFor43!B$2 -> 105.08
A14: Andrea | B14: 2165 | C14: =B14*AssumptionsFor43!B$2 -> 86.6
A15: Faye | B15: 1589 | C15: =B15*AssumptionsFor43!B$2 -> 63.56
A16: Viktor | B16: 2603 | C16: =B16*AssumptionsFor43!B$2 -> 104.12
A17: Na | B17: 2366 | C17: =B17*AssumptionsFor43!B$2 -> 94.64
A18: Ryan | B18: 2107 | C18: =B18*AssumptionsFor43!B$2 -> 84.28
A19: Damir | B19: 2886 | C19: =B19*AssumptionsFor43!B$2 -> 115.44
A20: Sunita | B20: 1886 | C20: =B20*AssumptionsFor43!B$2 -> 75.44
A21: Meghan | B21: 2177 | C21: =B21*AssumptionsFor43!B$2 -> 87.08
A22: Cynthia | B22: 1873 | C22: =B22*AssumptionsFor43!B$2 -> 74.92
A23: Trevor | B23: 2164 | C23: =B23*AssumptionsFor43!B$2 -> 86.56
A24: John | B24: 1394 | C24: =B24*AssumptionsFor43!B$2 -> 55.76
A25: Sang | B25: 2263 | C25: =B25*AssumptionsFor43!B$2 -> 90.52
A26: Dina | B26: 2242 | C26: =B26*AssumptionsFor43!B$2 -> 89.68
A27: Tony | B27: 1474 | C27: =B27*AssumptionsFor43!B$2 -> 58.96
A28: Nikolay | B28: 1998 | C28: =B28*AssumptionsFor43!B$2 -> 79.92
A29: Thanh | B29: 2892 | C29: =B29*AssumptionsFor43!B$2 -> 115.68
A30: Tracinda | B30: 1873 | C30: =B30*AssumptionsFor43!B$2 -> 74.92
A31: Denis | B31: 1954 | C31: =B31*AssumptionsFor43!B$2 -> 78.16
A32: Michael | B32: 1729 | C32: =B32*AssumptionsFor43!B$2 -> 69.16
A33: Svitlana Q | B33: 1140 | C33: =B33*AssumptionsFor43!B$2 -> 45.6
A34: Leslie | B34: 1528 | C34: =B34*AssumptionsFor43!B$2 -> 61.12
A35: Sarah | B35: 1659 | C35: =B35*AssumptionsFor43!B$2 -> 66.36
A36: Andra | B36: 2119 | C36: =B36*AssumptionsFor43!B$2 -> 84.76
A37: Christien | B37: 1854 | C37: =B37*AssumptionsFor43!B$2 -> 74.16
A38: Irina | B38: 2759 | C38: =B38*AssumptionsFor43!B$2 -> 110.36
A39: Chandy | B39: 1237 | C39: =B39*AssumptionsFor43!B$2 -> 49.48
A40: David | B40: 1653 | C40: =B40*AssumptionsFor43!B$2 -> 66.12
A41: Wendy | B41: 2604 | C41: =B41*AssumptionsFor43!B$2 -> 104.16
A42: Archie | B42: 1479 | C42: =B42*AssumptionsFor43!B$2 -> 59.16
A43: Desiree | B43: 2569 | C43: =B43*AssumptionsFor43!B$2 -> 102.76
A44: Denise | B44: 1941 | C44: =B44*AssumptionsFor43!B$2 -> 77.64
A45: Hillary | B45: 2793 | C45: =B45*AssumptionsFor43!B$2 -> 111.72
A46: Nicolas | B46: 2614 | C46: =B46*AssumptionsFor43!B$2 -> 104.56
A47: Ralph | B47: 1645 | C47: =B47*AssumptionsFor43!B$2 -> 65.8
A48: Konstanti | B48: 1733 | C48: =B48*AssumptionsFor43!B$2 -> 69.32
A49: Svitlana | B49: 2466 | C49: =B49*AssumptionsFor43!B$2 -> 98.64
A50: Ewelina | B50: 2833 | C50: =B50*AssumptionsFor43!B$2 -> 113.32
A51: Jori | B51: 1604 | C51: =B51*AssumptionsFor43!B$2 -> 64.16
A52: Abdullahi | B52: 2588 | C52: =B52*AssumptionsFor43!B$2 -> 103.52

Sheet HW(44)
A1: Fix the formula in B14.
A3: SalesRep | B3: Sales
A4: Abraham | B4: 1161
A5: Hironobu | B5: 1321
A6: Daniel | B6: 1039
A7: Dante | B7: 1761
A8: Sarah B | B8: 1561
A9: Tonya | B9: 1868
A10: Janita | B10: 2787
A11: Debra | B11: 1849
A12: Tiara | B12: 2627
A13: Andrea | B13: 2165
A14: Total | B14: =B13+B12+B11+B10+B9+B8+B7+B6+B5+B4 -> 18139

Sheet HW(44an)
A1: Fix the formula in B14.
A3: SalesRep | B3: Sales
A4: Abraham | B4: 1161
A5: Hironobu | B5: 1321
A6: Daniel | B6: 1039
A7: Dante | B7: 1761
A8: Sarah B | B8: 1561
A9: Tonya | B9: 1868
A10: Janita | B10: 2787
A11: Debra | B11: 1849
A12: Tiara | B12: 2627
A13: Andrea | B13: 2165
A14: Total | B14: =SUM(B4:B13) -> 18139

Sheet Chapter5Pages207-247
A1: Chapter 5 Homework for Pages 207 - 247
A2: ==>> Homework Sheets 45 - 48

Sheet HW(45)
A1: Using the Defined Name feature, create names for each column in the table. (Hint: 1) Highlight table, 2) Ctrl + Shift + F3, 3) check only 'Top row', 4) OK.
A2: ="In the cell "&ADDRESS(ROW(J7),COLUMN(J7),4)&" create a text formula that says 'Sum of sales between 1/1/11 and 7/1/11 for Sunshine product.' If you need a hint, look at the text formula in cell "&ADDRESS(ROW(J16),COLUMN(J16),4)&"." -> In the cell J7 create a text formula that says 'Sum of sales between 1/1/11 and 7/1/11 for Sunshine product.' If you need a hint, look at the text formula in cell J16.
A3: ="In the cell "&ADDRESS(ROW(J8),COLUMN(J8),4)&" create a formula that calculates the Sum of sales between 1/1/11 and 7/1/11 for Sunshine product." -> In the cell J8 create a formula that calculates the Sum of sales between 1/1/11 and 7/1/11 for Sunshine product.
A4: ="In the cell "&ADDRESS(ROW(J17),COLUMN(J17),4)&" create a formula that "&J16 -> In the cell J17 create a formula that Count Number of sales between 1/1/11 and 7/1/11 for Sunshine product.
A5: ="In the range "&ADDRESS(ROW(M8),COLUMN(M8),4)&":"&ADDRESS(ROW(M38),COLUMN(M38),4)&" create a formula that calculates the average sales per customer." -> In the range M8:M38 create a formula that calculates the average sales per customer.
A7: Date | B7: Product | C7: Region | D7: SalesRep | E7: Customer | F7: Units | G7: Sales | H7: COGS | L7: Customer | M7: Average Sales
A8: 2011-01-26 | B8: Bellen | C8: West | D8: Pham | E8: FRED | F8: 61 | G8: 5000 | H8: 610 | L8: AA
A9: 2011-01-10 | B9: Bellen | C9: MidWest | D9: Gault | E9: FM | F9: 7 | G9: 154 | H9: 70 | J9: Upper Date | L9: AST
A10: 2011-01-03 | B10: Sunshine | C10: South | D10: Sioux | E10: PCC | F10: 6 | G10: 114 | H10: 48 | J10: 2011-01-01 | L10: BBT
A11: 2011-01-07 | B11: Sunset | C11: West | D11: Pham | E11: T | F11: 61 | G11: 1281 | H11: 564.25 | J11: Lower Date | L11: DFGH
A12: 2011-01-18 | B12: Sunshine | C12: West | D12: Sioux | E12: AST | F12: 8 | G12: 152 | H12: 64 | J12: 2011-07-01 | L12: DFR
A13: 2011-01-20 | B13: Carlota | C13: East | D13: Chin | E13: ET | F13: 59 | G13: 1357 | H13: 649 | J13: Product | L13: EPP
A14: 2011-01-26 | B14: Bellen | C14: MidWest | D14: Gault | E14: PSA | F14: 21 | G14: 462 | H14: 210 | J14: Sunshine | L14: ET
A15: 2011-01-07 | B15: Carlota | C15: MidWest | D15: Franks | E15: HHH | F15: 12 | G15: 276 | H15: 132 | J15: ="Counts Number of sales between "&TEXT(J18,"m/d/y")&" and "&TEXT(J20,"m/d/y")&" for "&J13&" product." -> Counts Number of sales between Upper Date and Lower Date for Product product. | L15: FM
A16: 2011-01-05 | B16: Carlota | C16: West | D16: Franks | E16: ITTW | F16: 60 | G16: 1380 | H16: 660 | J16: ="Count Number of sales between "&TEXT(J19,"m/d/y")&" and "&TEXT(J21,"m/d/y")&" for "&J14&" product." -> Count Number of sales between 1/1/11 and 7/1/11 for Sunshine product. | L16: FRED
A17: 2011-01-17 | B17: Quad | C17: East | D17: Franks | E17: HII | F17: 62 | G17: 1674 | H17: 899 | L17: HHH
A18: 2011-01-28 | B18: Sunshine | C18: South | D18: Smith | E18: FRED | F18: 51 | G18: 969 | H18: 408 | J18: Upper Date | L18: HII
A19: 2011-01-17 | B19: Quad | C19: East | D19: Gault | E19: SFWK | F19: 43 | G19: 1161 | H19: 623.5 | J19: =J10 -> 2011-01-01 | L19: ITTW
A20: 2011-01-16 | B20: Bellen | C20: MidWest | D20: Sioux | E20: YTR | F20: 56 | G20: 1232 | H20: 560 | J20: Lower Date | L20: ITW
A21: 2011-01-15 | B21: Sunshine | C21: MidWest | D21: Chin | E21: YTR | F21: 11 | G21: 209 | H21: 88 | J21: =J12 -> 2011-07-01 | L21: JAQ
A22: 2011-01-12 | B22: Bellen | C22: South | D22: Chin | E22: WT | F22: 7 | G22: 154 | H22: 70 | J22: Product | L22: KBTB
A23: 2011-01-03 | B23: Sunset | C23: South | D23: Pham | E23: WSD | F23: 23 | G23: 483 | H23: 212.75 | J23: =J14 -> Sunshine | L23: KPSA
A24: 2011-01-22 | B24: Carlota | C24: South | D24: Smith | E24: KBTB | F24: 29 | G24: 667 | H24: 319 | L24: LOP
A25: 2011-01-21 | B25: Quad | C25: West | D25: Gault | E25: ITW | F25: 56 | G25: 1512 | H25: 812 | L25: MBG
A26: 2011-01-13 | B26: Sunshine | C26: MidWest | D26: Pham | E26: PSA | F26: 33 | G26: 627 | H26: 264 | L26: MNGD
A27: 2011-01-10 | B27: Quad | C27: West | D27: Smith | E27: KBTB | F27: 65 | G27: 1755 | H27: 942.5 | L27: PCC
A28: 2011-01-08 | B28: Quad | C28: West | D28: Chin | E28: HII | F28: 16 | G28: 432 | H28: 232 | L28: PLOT
A29: 2011-01-06 | B29: Quad | C29: West | D29: Sioux | E29: PCC | F29: 64 | G29: 1728 | H29: 928 | L29: PSA
A30: 2011-01-26 | B30: Sunset | C30: South | D30: Sioux | E30: DFGH | F30: 44 | G30: 924 | H30: 407 | L30: QT
A31: 2011-01-21 | B31: Sunshine | C31: MidWest | D31: Smith | E31: QT | F31: 64 | G31: 1216 | H31: 512 | L31: SFWK
A32: 2011-01-07 | B32: Bellen | C32: West | D32: Smith | E32: T | F32: 27 | G32: 594 | H32: 270 | L32: T
A33: 2011-01-20 | B33: Bellen | C33: East | D33: Gault | E33: PSA | F33: 10 | G33: 220 | H33: 100 | L33: TRU
A34: 2011-01-09 | B34: Bellen | C34: South | D34: Chin | E34: WSD | F34: 26 | G34: 572 | H34: 260 | L34: TTT
A35: 2011-01-07 | B35: Sunset | C35: MidWest | D35: Sioux | E35: PCC | F35: 22 | G35: 462 | H35: 203.5 | L35: WSD
A36: 2011-01-29 | B36: Bellen | C36: East | D36: Chin | E36: AST | F36: 50 | G36: 1100 | H36: 500 | L36: WT
A37: 2011-01-30 | B37: Sunshine | C37: South | D37: Sioux | E37: TTT | F37: 23 | G37: 437 | H37: 184 | L37: YTR
A38: 2011-01-30 | B38: Sunshine | C38: West | D38: Gault | E38: DFR | F38: 49 | G38: 931 | H38: 392 | L38: ZAT
A39: 2011-01-28 | B39: Carlota | C39: West | D39: Smith | E39: LOP | F39: 15 | G39: 345 | H39: 165
A40: 2011-01-01 | B40: Quad | C40: East | D40: Sioux | E40: AA | F40: 16 | G40: 432 | H40: 232
A41: 2011-01-30 | B41: Quad | C41: South | D41: Sioux | E41: TTT | F41: 25 | G41: 675 | H41: 362.5
A42: 2011-01-16 | B42: Carlota | C42: South | D42: Smith | E42: QT | F42: 31 | G42: 713 | H42: 341
A43: 2011-01-24 | B43: Quad | C43: West | D43: Gault | E43: HII | F43: 63 | G43: 1701 | H43: 913.5
A44: 2011-01-25 | B44: Sunshine | C44: MidWest | D44: Franks | E44: JAQ | F44: 21 | G44: 399 | H44: 168
A45: 2011-01-21 | B45: Sunshine | C45: MidWest | D45: Pham | E45: DFR | F45: 23 | G45: 437 | H45: 184
A46: 2011-01-18 | B46: Bellen | C46: East | D46: Pham | E46: DFR | F46: 59 | G46: 1298 | H46: 590
A47: 2011-01-13 | B47: Bellen | C47: MidWest | D47: Pham | E47: PLOT | F47: 57 | G47: 1254 | H47: 570
A48: 2011-01-21 | B48: Quad | C48: East | D48: Chin | E48: FM | F48: 58 | G48: 1566 | H48: 841
A49: 2011-01-09 | B49: Sunshine | C49: East | D49: Smith | E49: PCC | F49: 42 | G49: 798 | H49: 336
A50: 2011-01-09 | B50: Bellen | C50: South | D50: Sioux | E50: QT | F50: 15 | G50: 330 | H50: 150
A51: 2011-01-27 | B51: Carlota | C51: West | D51: Gault | E51: QT | F51: 10 | G51: 230 | H51: 110
A52: 2011-01-06 | B52: Carlota | C52: West | D52: Sioux | E52: KPSA | F52: 18 | G52: 414 | H52: 198
A53: 2011-01-10 | B53: Sunset | C53: East | D53: Gault | E53: TRU | F53: 27 | G53: 567 | H53: 249.75
A54: 2011-01-21 | B54: Sunset | C54: South | D54: Pham | E54: HHH | F54: 13 | G54: 273 | H54: 120.25
A55: 2011-01-22 | B55: Bellen | C55: West | D55: Sioux | E55: YTR | F55: 35 | G55: 770 | H55: 350
A56: 2011-01-03 | B56: Sunshine | C56: East | D56: Pham | E56: FM | F56: 38 | G56: 722 | H56: 304
A57: 2011-01-10 | B57: Carlota | C57: East | D57: Pham | E57: AA | F57: 63 | G57: 1449 | H57: 693
A58: 2011-01-22 | B58: Quad | C58: South | D58: Franks | E58: FM | F58: 29 | G58: 783 | H58: 420.5
A59: 2011-01-28 | B59: Sunset | C59: East | D59: Smith | E59: ZAT | F59: 36 | G59: 756 | H59: 333
A60: 2011-01-10 | B60: Quad | C60: East | D60: Smith | E60: DFR | F60: 17 | G60: 459 | H60: 246.5
A61: 2011-01-17 | B61: Bellen | C61: MidWest | D61: Smith | E61: PCC | F61: 16 | G61: 352 | H61: 160
A62: 2011-01-20 | B62: Sunshine | C62: West | D62: Sioux | E62: YTR | F62: 58 | G62: 1102 | H62: 464
A63: 2011-01-18 | B63: Bellen | C63: East | D63: Franks | E63: DFGH | F63: 20 | G63: 440 | H63: 200
A64: 2011-01-13 | B64: Bellen | C64: MidWest | D64: Pham | E64: PSA | F64: 40 | G64: 880 | H64: 400
A65: 2011-01-14 | B65: Carlota | C65: East | D65: Franks | E65: JAQ | F65: 34 | G65: 782 | H65: 374
A66: 2011-01-17 | B66: Quad | C66: MidWest | D66: Chin | E66: EPP | F66: 61 | G66: 1647 | H66: 884.5
A67: 2011-01-12 | B67: Sunset | C67: MidWest | D67: Gault | E67: ITW | F67: 19 | G67: 399 | H67: 175.75
A68: 2011-01-06 | B68: Sunshine | C68: South | D68: Smith | E68: QT | F68: 40 | G68: 760 | H68: 320
A69: 2011-01-19 | B69: Bellen | C69: South | D69: Sioux | E69: T | F69: 35 | G69: 770 | H69: 350
A70: 2011-01-26 | B70: Bellen | C70: East | D70: Chin | E70: KPSA | F70: 17 | G70: 374 | H70: 170
A71: 2011-01-05 | B71: Sunset | C71: South | D71: Pham | E71: TTT | F71: 57 | G71: 1197 | H71: 527.25
A72: 2011-01-28 | B72: Carlota | C72: South | D72: Franks | E72: MNGD | F72: 46 | G72: 1058 | H72: 506
A73: 2011-01-10 | B73: Sunshine | C73: South | D73: Chin | E73: TRU | F73: 30 | G73: 570 | H73: 240
A74: 2011-01-07 | B74: Sunset | C74: West | D74: Pham | E74: WT | F74: 53 | G74: 1113 | H74: 490.25
A75: 2011-01-28 | B75: Quad | C75: MidWest | D75: Smith | E75: YTR | F75: 42 | G75: 1134 | H75: 609
A76: 2011-01-02 | B76: Quad | C76: West | D76: Pham | E76: AST | F76: 30 | G76: 810 | H76: 435
A77: 2011-01-15 | B77: Sunset | C77: East | D77: Gault | E77: AST | F77: 63 | G77: 1323 | H77: 582.75
A78: 2011-01-10 | B78: Sunset | C78: East | D78: Smith | E78: MBG | F78: 17 | G78: 357 | H78: 157.25
A79: 2011-01-23 | B79: Quad | C79: East | D79: Pham | E79: WT | F79: 22 | G79: 594 | H79: 319
A80: 2011-01-06 | B80: Sunshine | C80: East | D80: Franks | E80: PSA | F80: 54 | G80: 1026 | H80: 432
A81: 2011-01-18 | B81: Carlota | C81: South | D81: Smith | E81: YTR | F81: 53 | G81: 1219 | H81: 583
A82: 2011-01-11 | B82: Quad | C82: East | D82: Smith | E82: BBT | F82: 49 | G82: 1323 | H82: 710.5
A83: 2011-01-21 | B83: Bellen | C83: South | D83: Smith | E83: TRU | F83: 11 | G83: 242 | H83: 110
A84: 2011-01-18 | B84: Sunset | C84: East | D84: Gault | E84: MNGD | F84: 12 | G84: 252 | H84: 111
A85: 2011-01-10 | B85: Sunshine | C85: MidWest | D85: Smith | E85: TTT | F85: 8 | G85: 152 | H85: 64
A86: 2011-01-17 | B86: Sunshine | C86: MidWest | D86: Franks | E86: HHH | F86: 59 | G86: 1121 | H86: 472
A87: 2011-01-23 | B87: Sunshine | C87: South | D87: Chin | E87: T | F87: 49 | G87: 931 | H87: 392
A88: 2011-01-23 | B88: Quad | C88: East | D88: Franks | E88: PCC | F88: 44 | G88: 1188 | H88: 638
A89: 2011-01-28 | B89: Sunset | C89: West | D89: Chin | E89: FM | F89: 62 | G89: 1302 | H89: 573.5
A90: 2011-01-29 | B90: Quad | C90: MidWest | D90: Gault | E90: PLOT | F90: 10 | G90: 270 | H90: 145
A91: 2011-01-13 | B91: Carlota | C91: South | D91: Smith | E91: FM | F91: 52 | G91: 1196 | H91: 572
A92: 2011-01-18 | B92: Quad | C92: MidWest | D92: Smith | E92: PLOT | F92: 17 | G92: 459 | H92: 246.5
A93: 2011-01-04 | B93: Sunset | C93: MidWest | D93: Sioux | E93: BBT | F93: 29 | G93: 609 | H93: 268.25
A94: 2011-01-28 | B94: Bellen | C94: South | D94: Sioux | E94: QT | F94: 25 | G94: 550 | H94: 250
A95: 2011-01-11 | B95: Quad | C95: East | D95: Franks | E95: ITW | F95: 14 | G95: 378 | H95: 203
A96: 2011-01-22 | B96: Bellen | C96: West | D96: Pham | E96: AST | F96: 53 | G96: 1166 | H96: 530
A97: 2011-01-10 | B97: Sunset | C97: South | D97: Sioux | E97: MBG | F97: 47 | G97: 987 | H97: 434.75
A98: 2011-01-24 | B98: Carlota | C98: MidWest | D98: Franks | E98: BBT | F98: 13 | G98: 299 | H98: 143
A99: 2011-01-05 | B99: Sunshine | C99: West | D99: Franks | E99: ET | F99: 12 | G99: 228 | H99: 96
A100: 2011-01-03 | B100: Carlota | C100: MidWest | D100: Chin | E100: FM | F100: 20 | G100: 460 | H100: 220
A101: 2011-01-09 | B101: Bellen | C101: East | D101: Pham | E101: EPP | F101: 40 | G101: 880 | H101: 400
A102: 2011-01-23 | B102: Bellen | C102: East | D102: Gault | E102: DFGH | F102: 9 | G102: 198 | H102: 90
A103: 2011-01-09 | B103: Carlota | C103: East | D103: Franks | E103: WSD | F103: 38 | G103: 874 | H103: 418
A104: 2011-01-02 | B104: Bellen | C104: South | D104: Gault | E104: KBTB | F104: 24 | G104: 528 | H104: 240
A105: 2011-01-17 | B105: Quad | C105: West | D105: Chin | E105: PCC | F105: 10 | G105: 270 | H105: 145
A106: 2011-01-28 | B106: Quad | C106: South | D106: Gault | E106: KBTB | F106: 56 | G106: 1512 | H106: 812
A107: 2011-01-18 | B107: Sunshine | C107: MidWest | D107: Chin | E107: PCC | F107: 62 | G107: 1178 | H107: 496
A108: 2011-01-28 | B108: Quad | C108: South | D108: Franks | E108: YTR | F108: 44 | G108: 1188 | H108: 638
A109: 2011-01-17 | B109: Carlota | C109: East | D109: Sioux | E109: PCC | F109: 39 | G109: 897 | H109: 429
A110: 2011-01-18 | B110: Sunshine | C110: East | D110: Franks | E110: AA | F110: 24 | G110: 456 | H110: 192
A111: 2011-01-22 | B111: Bellen | C111: West | D111: Smith | E111: WT | F111: 6 | G111: 132 | H111: 60
A112: 2011-01-02 | B112: Bellen | C112: West | D112: Pham | E112: SFWK | F112: 19 | G112: 418 | H112: 190

Sheet HW(45an)
A1: Using the Defined Name feature, create names for each column in the table. (Hint: 1) Highlight table, 2) Ctrl + Shift + F3, 3) check only 'Top row', 4) OK.
A2: ="In the cell "&ADDRESS(ROW(J7),COLUMN(J7),4)&" create a text formula that says 'Sum of sales between 1/1/11 and 7/1/11 for Sunshine product.' If you need a hint, look at the text formula in cell "&ADDRESS(ROW(J16),COLUMN(J16),4)&"." -> In the cell J7 create a text formula that says 'Sum of sales between 1/1/11 and 7/1/11 for Sunshine product.' If you need a hint, look at the text formula in cell J16.
A3: ="In the cell "&ADDRESS(ROW(J8),COLUMN(J8),4)&" create a formula that calculates the Sum of sales between 1/1/11 and 7/1/11 for Sunshine product." -> In the cell J8 create a formula that calculates the Sum of sales between 1/1/11 and 7/1/11 for Sunshine product.
A4: ="In the cell "&ADDRESS(ROW(J17),COLUMN(J17),4)&" create a formula that "&J16 -> In the cell J17 create a formula that Counts Number of sales between 1/1/11 and 7/1/11 for Sunshine product.
A5: ="In the range "&ADDRESS(ROW(M8),COLUMN(M8),4)&":"&ADDRESS(ROW(M38),COLUMN(M38),4)&" create a formula that calculates the average sales per customer." -> In the range M8:M38 create a formula that calculates the average sales per customer.
A7: DateAN | B7: ProductAN | C7: RegionAN | D7: SalesRepAN | E7: CustomerAN | F7: UnitsAN | G7: SalesAN | H7: COGSAN | J7: ="Sum of sales between "&TEXT(J10,"m/d/y")&" and "&TEXT(J12,"m/d/y")&" for "&J14&" product." -> Sum of sales between 1/1/11 and 7/1/11 for Sunshine product. | L7: Customer | M7: Average Sales
A8: 2011-01-26 | B8: Bellen | C8: West | D8: Pham | E8: FRED | F8: 61 | G8: 5000 | H8: 610 | J8: =SUMIFS(SalesAN,DateAN,">="&J10,DateAN,"<"&J12,ProductAN,J14) -> 14535 | L8: AA | M8: =AVERAGEIF(CustomerAN,L8,SalesAN) -> 779
A9: 2011-01-10 | B9: Bellen | C9: MidWest | D9: Gault | E9: FM | F9: 7 | G9: 154 | H9: 70 | J9: Upper Date | L9: AST | M9: 910.2
A10: 2011-01-03 | B10: Sunshine | C10: South | D10: Sioux | E10: PCC | F10: 6 | G10: 114 | H10: 48 | J10: 2011-01-01 | L10: BBT | M10: 743.6666667
A11: 2011-01-07 | B11: Sunset | C11: West | D11: Pham | E11: T | F11: 61 | G11: 1281 | H11: 564.25 | J11: Lower Date | L11: DFGH | M11: 520.6666667
A12: 2011-01-18 | B12: Sunshine | C12: West | D12: Sioux | E12: AST | F12: 8 | G12: 152 | H12: 64 | J12: 2011-07-01 | L12: DFR | M12: 781.25
A13: 2011-01-20 | B13: Carlota | C13: East | D13: Chin | E13: ET | F13: 59 | G13: 1357 | H13: 649 | J13: Product | L13: EPP | M13: 1263.5
A14: 2011-01-26 | B14: Bellen | C14: MidWest | D14: Gault | E14: PSA | F14: 21 | G14: 462 | H14: 210 | J14: Sunshine | L14: ET | M14: 792.5
A15: 2011-01-07 | B15: Carlota | C15: MidWest | D15: Franks | E15: HHH | F15: 12 | G15: 276 | H15: 132 | L15: FM | M15: 883.2857143
A16: 2011-01-05 | B16: Carlota | C16: West | D16: Franks | E16: ITTW | F16: 60 | G16: 1380 | H16: 660 | J16: ="Counts Number of sales between "&TEXT(J19,"m/d/y")&" and "&TEXT(J21,"m/d/y")&" for "&J14&" product." -> Counts Number of sales between 1/1/11 and 7/1/11 for Sunshine product. | L16: FRED | M16: 2984.5
A17: 2011-01-17 | B17: Quad | C17: East | D17: Franks | E17: HII | F17: 62 | G17: 1674 | H17: 899 | J17: =COUNTIFS(DateAN,">="&J19,DateAN,"<"&J21,ProductAN,J23) -> 22 | L17: HHH | M17: 556.6666667
A18: 2011-01-28 | B18: Sunshine | C18: South | D18: Smith | E18: FRED | F18: 51 | G18: 969 | H18: 408 | J18: Upper Date | L18: HII | M18: 1269
A19: 2011-01-17 | B19: Quad | C19: East | D19: Gault | E19: SFWK | F19: 43 | G19: 1161 | H19: 623.5 | J19: =J10 -> 2011-01-01 | L19: ITTW | M19: 1380
A20: 2011-01-16 | B20: Bellen | C20: MidWest | D20: Sioux | E20: YTR | F20: 56 | G20: 1232 | H20: 560 | J20: Lower Date | L20: ITW | M20: 763
A21: 2011-01-15 | B21: Sunshine | C21: MidWest | D21: Chin | E21: YTR | F21: 11 | G21: 209 | H21: 88 | J21: =J12 -> 2011-07-01 | L21: JAQ | M21: 590.5
A22: 2011-01-12 | B22: Bellen | C22: South | D22: Chin | E22: WT | F22: 7 | G22: 154 | H22: 70 | J22: Product | L22: KBTB | M22: 1115.5
A23: 2011-01-03 | B23: Sunset | C23: South | D23: Pham | E23: WSD | F23: 23 | G23: 483 | H23: 212.75 | J23: =J14 -> Sunshine | L23: KPSA | M23: 394
A24: 2011-01-22 | B24: Carlota | C24: South | D24: Smith | E24: KBTB | F24: 29 | G24: 667 | H24: 319 | L24: LOP | M24: 345
A25: 2011-01-21 | B25: Quad | C25: West | D25: Gault | E25: ITW | F25: 56 | G25: 1512 | H25: 812 | L25: MBG | M25: 672
A26: 2011-01-13 | B26: Sunshine | C26: MidWest | D26: Pham | E26: PSA | F26: 33 | G26: 627 | H26: 264 | L26: MNGD | M26: 655
A27: 2011-01-10 | B27: Quad | C27: West | D27: Smith | E27: KBTB | F27: 65 | G27: 1755 | H27: 942.5 | L27: PCC | M27: 776.3333333
A28: 2011-01-08 | B28: Quad | C28: West | D28: Chin | E28: HII | F28: 16 | G28: 432 | H28: 232 | L28: PLOT | M28: 661
A29: 2011-01-06 | B29: Quad | C29: West | D29: Sioux | E29: PCC | F29: 64 | G29: 1728 | H29: 928 | L29: PSA | M29: 643
A30: 2011-01-26 | B30: Sunset | C30: South | D30: Sioux | E30: DFGH | F30: 44 | G30: 924 | H30: 407 | L30: QT | M30: 633.1666667
A31: 2011-01-21 | B31: Sunshine | C31: MidWest | D31: Smith | E31: QT | F31: 64 | G31: 1216 | H31: 512 | L31: SFWK | M31: 789.5
A32: 2011-01-07 | B32: Bellen | C32: West | D32: Smith | E32: T | F32: 27 | G32: 594 | H32: 270 | L32: T | M32: 894
A33: 2011-01-20 | B33: Bellen | C33: East | D33: Gault | E33: PSA | F33: 10 | G33: 220 | H33: 100 | L33: TRU | M33: 459.6666667
A34: 2011-01-09 | B34: Bellen | C34: South | D34: Chin | E34: WSD | F34: 26 | G34: 572 | H34: 260 | L34: TTT | M34: 615.25
A35: 2011-01-07 | B35: Sunset | C35: MidWest | D35: Sioux | E35: PCC | F35: 22 | G35: 462 | H35: 203.5 | L35: WSD | M35: 643
A36: 2011-01-29 | B36: Bellen | C36: East | D36: Chin | E36: AST | F36: 50 | G36: 1100 | H36: 500 | L36: WT | M36: 498.25
A37: 2011-01-30 | B37: Sunshine | C37: South | D37: Sioux | E37: TTT | F37: 23 | G37: 437 | H37: 184 | L37: YTR | M37: 979.1428571
A38: 2011-01-30 | B38: Sunshine | C38: West | D38: Gault | E38: DFR | F38: 49 | G38: 931 | H38: 392 | L38: ZAT | M38: 756
A39: 2011-01-28 | B39: Carlota | C39: West | D39: Smith | E39: LOP | F39: 15 | G39: 345 | H39: 165
A40: 2011-01-01 | B40: Quad | C40: East | D40: Sioux | E40: AA | F40: 16 | G40: 432 | H40: 232
A41: 2011-01-30 | B41: Quad | C41: South | D41: Sioux | E41: TTT | F41: 25 | G41: 675 | H41: 362.5
A42: 2011-01-16 | B42: Carlota | C42: South | D42: Smith | E42: QT | F42: 31 | G42: 713 | H42: 341
A43: 2011-01-24 | B43: Quad | C43: West | D43: Gault | E43: HII | F43: 63 | G43: 1701 | H43: 913.5
A44: 2011-01-25 | B44: Sunshine | C44: MidWest | D44: Franks | E44: JAQ | F44: 21 | G44: 399 | H44: 168
A45: 2011-01-21 | B45: Sunshine | C45: MidWest | D45: Pham | E45: DFR | F45: 23 | G45: 437 | H45: 184
A46: 2011-01-18 | B46: Bellen | C46: East | D46: Pham | E46: DFR | F46: 59 | G46: 1298 | H46: 590
A47: 2011-01-13 | B47: Bellen | C47: MidWest | D47: Pham | E47: PLOT | F47: 57 | G47: 1254 | H47: 570
A48: 2011-01-21 | B48: Quad | C48: East | D48: Chin | E48: FM | F48: 58 | G48: 1566 | H48: 841
A49: 2011-01-09 | B49: Sunshine | C49: East | D49: Smith | E49: PCC | F49: 42 | G49: 798 | H49: 336
A50: 2011-01-09 | B50: Bellen | C50: South | D50: Sioux | E50: QT | F50: 15 | G50: 330 | H50: 150
A51: 2011-01-27 | B51: Carlota | C51: West | D51: Gault | E51: QT | F51: 10 | G51: 230 | H51: 110
A52: 2011-01-06 | B52: Carlota | C52: West | D52: Sioux | E52: KPSA | F52: 18 | G52: 414 | H52: 198
A53: 2011-01-10 | B53: Sunset | C53: East | D53: Gault | E53: TRU | F53: 27 | G53: 567 | H53: 249.75
A54: 2011-01-21 | B54: Sunset | C54: South | D54: Pham | E54: HHH | F54: 13 | G54: 273 | H54: 120.25
A55: 2011-01-22 | B55: Bellen | C55: West | D55: Sioux | E55: YTR | F55: 35 | G55: 770 | H55: 350
A56: 2011-01-03 | B56: Sunshine | C56: East | D56: Pham | E56: FM | F56: 38 | G56: 722 | H56: 304
A57: 2011-01-10 | B57: Carlota | C57: East | D57: Pham | E57: AA | F57: 63 | G57: 1449 | H57: 693
A58: 2011-01-22 | B58: Quad | C58: South | D58: Franks | E58: FM | F58: 29 | G58: 783 | H58: 420.5
A59: 2011-01-28 | B59: Sunset | C59: East | D59: Smith | E59: ZAT | F59: 36 | G59: 756 | H59: 333
A60: 2011-01-10 | B60: Quad | C60: East | D60: Smith | E60: DFR | F60: 17 | G60: 459 | H60: 246.5
A61: 2011-01-17 | B61: Bellen | C61: MidWest | D61: Smith | E61: PCC | F61: 16 | G61: 352 | H61: 160
A62: 2011-01-20 | B62: Sunshine | C62: West | D62: Sioux | E62: YTR | F62: 58 | G62: 1102 | H62: 464
A63: 2011-01-18 | B63: Bellen | C63: East | D63: Franks | E63: DFGH | F63: 20 | G63: 440 | H63: 200
A64: 2011-01-13 | B64: Bellen | C64: MidWest | D64: Pham | E64: PSA | F64: 40 | G64: 880 | H64: 400
A65: 2011-01-14 | B65: Carlota | C65: East | D65: Franks | E65: JAQ | F65: 34 | G65: 782 | H65: 374
A66: 2011-01-17 | B66: Quad | C66: MidWest | D66: Chin | E66: EPP | F66: 61 | G66: 1647 | H66: 884.5
A67: 2011-01-12 | B67: Sunset | C67: MidWest | D67: Gault | E67: ITW | F67: 19 | G67: 399 | H67: 175.75
A68: 2011-01-06 | B68: Sunshine | C68: South | D68: Smith | E68: QT | F68: 40 | G68: 760 | H68: 320
A69: 2011-01-19 | B69: Bellen | C69: South | D69: Sioux | E69: T | F69: 35 | G69: 770 | H69: 350
A70: 2011-01-26 | B70: Bellen | C70: East | D70: Chin | E70: KPSA | F70: 17 | G70: 374 | H70: 170
A71: 2011-01-05 | B71: Sunset | C71: South | D71: Pham | E71: TTT | F71: 57 | G71: 1197 | H71: 527.25
A72: 2011-01-28 | B72: Carlota | C72: South | D72: Franks | E72: MNGD | F72: 46 | G72: 1058 | H72: 506
A73: 2011-01-10 | B73: Sunshine | C73: South | D73: Chin | E73: TRU | F73: 30 | G73: 570 | H73: 240
A74: 2011-01-07 | B74: Sunset | C74: West | D74: Pham | E74: WT | F74: 53 | G74: 1113 | H74: 490.25
A75: 2011-01-28 | B75: Quad | C75: MidWest | D75: Smith | E75: YTR | F75: 42 | G75: 1134 | H75: 609
A76: 2011-01-02 | B76: Quad | C76: West | D76: Pham | E76: AST | F76: 30 | G76: 810 | H76: 435
A77: 2011-01-15 | B77: Sunset | C77: East | D77: Gault | E77: AST | F77: 63 | G77: 1323 | H77: 582.75
A78: 2011-01-10 | B78: Sunset | C78: East | D78: Smith | E78: MBG | F78: 17 | G78: 357 | H78: 157.25
A79: 2011-01-23 | B79: Quad | C79: East | D79: Pham | E79: WT | F79: 22 | G79: 594 | H79: 319
A80: 2011-01-06 | B80: Sunshine | C80: East | D80: Franks | E80: PSA | F80: 54 | G80: 1026 | H80: 432
A81: 2011-01-18 | B81: Carlota | C81: South | D81: Smith | E81: YTR | F81: 53 | G81: 1219 | H81: 583
A82: 2011-01-11 | B82: Quad | C82: East | D82: Smith | E82: BBT | F82: 49 | G82: 1323 | H82: 710.5
A83: 2011-01-21 | B83: Bellen | C83: South | D83: Smith | E83: TRU | F83: 11 | G83: 242 | H83: 110
A84: 2011-01-18 | B84: Sunset | C84: East | D84: Gault | E84: MNGD | F84: 12 | G84: 252 | H84: 111
A85: 2011-01-10 | B85: Sunshine | C85: MidWest | D85: Smith | E85: TTT | F85: 8 | G85: 152 | H85: 64
A86: 2011-01-17 | B86: Sunshine | C86: MidWest | D86: Franks | E86: HHH | F86: 59 | G86: 1121 | H86: 472
A87: 2011-01-23 | B87: Sunshine | C87: South | D87: Chin | E87: T | F87: 49 | G87: 931 | H87: 392
A88: 2011-01-23 | B88: Quad | C88: East | D88: Franks | E88: PCC | F88: 44 | G88: 1188 | H88: 638
A89: 2011-01-28 | B89: Sunset | C89: West | D89: Chin | E89: FM | F89: 62 | G89: 1302 | H89: 573.5
A90: 2011-01-29 | B90: Quad | C90: MidWest | D90: Gault | E90: PLOT | F90: 10 | G90: 270 | H90: 145
A91: 2011-01-13 | B91: Carlota | C91: South | D91: Smith | E91: FM | F91: 52 | G91: 1196 | H91: 572
A92: 2011-01-18 | B92: Quad | C92: MidWest | D92: Smith | E92: PLOT | F92: 17 | G92: 459 | H92: 246.5
A93: 2011-01-04 | B93: Sunset | C93: MidWest | D93: Sioux | E93: BBT | F93: 29 | G93: 609 | H93: 268.25
A94: 2011-01-28 | B94: Bellen | C94: South | D94: Sioux | E94: QT | F94: 25 | G94: 550 | H94: 250
A95: 2011-01-11 | B95: Quad | C95: East | D95: Franks | E95: ITW | F95: 14 | G95: 378 | H95: 203
A96: 2011-01-22 | B96: Bellen | C96: West | D96: Pham | E96: AST | F96: 53 | G96: 1166 | H96: 530
A97: 2011-01-10 | B97: Sunset | C97: South | D97: Sioux | E97: MBG | F97: 47 | G97: 987 | H97: 434.75
A98: 2011-01-24 | B98: Carlota | C98: MidWest | D98: Franks | E98: BBT | F98: 13 | G98: 299 | H98: 143
A99: 2011-01-05 | B99: Sunshine | C99: West | D99: Franks | E99: ET | F99: 12 | G99: 228 | H99: 96
A100: 2011-01-03 | B100: Carlota | C100: MidWest | D100: Chin | E100: FM | F100: 20 | G100: 460 | H100: 220
A101: 2011-01-09 | B101: Bellen | C101: East | D101: Pham | E101: EPP | F101: 40 | G101: 880 | H101: 400
A102: 2011-01-23 | B102: Bellen | C102: East | D102: Gault | E102: DFGH | F102: 9 | G102: 198 | H102: 90
A103: 2011-01-09 | B103: Carlota | C103: East | D103: Franks | E103: WSD | F103: 38 | G103: 874 | H103: 418
A104: 2011-01-02 | B104: Bellen | C104: South | D104: Gault | E104: KBTB | F104: 24 | G104: 528 | H104: 240
A105: 2011-01-17 | B105: Quad | C105: West | D105: Chin | E105: PCC | F105: 10 | G105: 270 | H105: 145
A106: 2011-01-28 | B106: Quad | C106: South | D106: Gault | E106: KBTB | F106: 56 | G106: 1512 | H106: 812
A107: 2011-01-18 | B107: Sunshine | C107: MidWest | D107: Chin | E107: PCC | F107: 62 | G107: 1178 | H107: 496
A108: 2011-01-28 | B108: Quad | C108: South | D108: Franks | E108: YTR | F108: 44 | G108: 1188 | H108: 638
A109: 2011-01-17 | B109: Carlota | C109: East | D109: Sioux | E109: PCC | F109: 39 | G109: 897 | H109: 429
A110: 2011-01-18 | B110: Sunshine | C110: East | D110: Franks | E110: AA | F110: 24 | G110: 456 | H110: 192
A111: 2011-01-22 | B111: Bellen | C111: West | D111: Smith | E111: WT | F111: 6 | G111: 132 | H111: 60
A112: 2011-01-02 | B112: Bellen | C112: West | D112: Pham | E112: SFWK | F112: 19 | G112: 418 | H112: 190

Sheet HW(46)
A1: ="In the range "&ADDRESS(ROW(G12),COLUMN(G12),4)&":"&ADDRESS(ROW(L22),COLUMN(L22),4)&" create a formula that adds the sales reps total time on the phone for the month." -> In the range G12:L22 create a formula that adds the sales reps total time on the phone for the month.
A6: Date | B6: SalesRep | C6: Customer | D6: Time of Phone Call | F6: Max Date | G6: =MAX(A7:A687) -> 2012-04-08
A7: 2011-04-21 | B7: Luong | C7: Cs3 | D7: 20 | F7: Min Date | G7: =MIN(A7:A687) -> 2010-05-10
A8: 2012-03-11 | B8: Luong | C8: Cs4 | D8: 14 | F8: Start Date | G8: 2010-06-01 | H8: <<= enter start date for template
A9: 2011-01-06 | B9: Sioux | C9: Cs3 | D9: 8 | F9: 1st of month | G9: =DATE(YEAR(G8),MONTH(G8),1) -> 2010-06-01
A10: 2010-06-14 | B10: Sioux | C10: Cs3 | D10: 19
A11: 2012-03-15 | B11: Sheliadawn | C11: Cs2 | D11: 6 | F11: Month/Sales Rep | G11: Chin | H11: Moe | I11: Tina | J11: Luong | K11: Sheliadawn | L11: Sioux
A12: 2010-10-10 | B12: Chin | C12: Cs3 | D12: 19 | F12: =G9 -> 2010-06-01
A13: 2011-07-17 | B13: Chin | C13: Cs3 | D13: 24 | F13: =EDATE(F12,1) -> 2010-07-01
A14: 2011-12-11 | B14: Luong | C14: Cs6 | D14: 11 | F14: =EDATE(F13,1) -> 2010-08-01
A15: 2012-03-25 | B15: Chin | C15: Cs1 | D15: 5 | F15: 2010-09-01
A16: 2010-10-31 | B16: Chin | C16: Cs6 | D16: 5 | F16: 2010-10-01
A17: 2011-02-03 | B17: Moe | C17: Cs4 | D17: 5 | F17: 2010-11-01
A18: 2011-06-23 | B18: Tina | C18: Cs3 | D18: 17 | F18: 2010-12-01
A19: 2011-07-10 | B19: Moe | C19: Cs1 | D19: 3 | F19: 2011-01-01
A20: 2011-09-10 | B20: Moe | C20: Cs5 | D20: 17 | F20: 2011-02-01
A21: 2010-08-30 | B21: Sheliadawn | C21: Cs4 | D21: 4 | F21: 2011-03-01
A22: 2010-09-08 | B22: Sheliadawn | C22: Cs3 | D22: 22 | F22: 2011-04-01
A23: 2011-11-18 | B23: Luong | C23: Cs1 | D23: 6
A24: 2010-11-05 | B24: Moe | C24: Cs5 | D24: 4
A25: 2010-06-29 | B25: Tina | C25: Cs5 | D25: 22
A26: 2011-06-08 | B26: Moe | C26: Cs5 | D26: 22
A27: 2011-05-12 | B27: Chin | C27: Cs6 | D27: 14
A28: 2010-08-05 | B28: Chin | C28: Cs3 | D28: 25
A29: 2010-09-17 | B29: Chin | C29: Cs5 | D29: 10
A30: 2011-05-24 | B30: Luong | C30: Cs3 | D30: 11
A31: 2011-06-14 | B31: Tina | C31: Cs3 | D31: 25
A32: 2011-04-12 | B32: Sheliadawn | C32: Cs3 | D32: 25
A33: 2011-01-21 | B33: Moe | C33: Cs4 | D33: 16
A34: 2010-12-29 | B34: Sheliadawn | C34: Cs5 | D34: 7
A35: 2011-12-08 | B35: Sioux | C35: Cs1 | D35: 6
A36: 2011-12-31 | B36: Sheliadawn | C36: Cs1 | D36: 3
A37: 2011-01-21 | B37: Sheliadawn | C37: Cs3 | D37: 11
A38: 2011-05-23 | B38: Moe | C38: Cs4 | D38: 15
A39: 2010-12-06 | B39: Moe | C39: Cs5 | D39: 16
A40: 2011-06-25 | B40: Moe | C40: Cs2 | D40: 18
A41: 2010-09-12 | B41: Chin | C41: Cs6 | D41: 3
A42: 2010-05-31 | B42: Tina | C42: Cs4 | D42: 1
A43: 2010-06-12 | B43: Sioux | C43: Cs1 | D43: 7
A44: 2010-08-06 | B44: Sheliadawn | C44: Cs5 | D44: 16
A45: 2012-01-30 | B45: Tina | C45: Cs3 | D45: 24
A46: 2011-02-12 | B46: Sioux | C46: Cs6 | D46: 25
A47: 2011-03-30 | B47: Luong | C47: Cs2 | D47: 6
A48: 2010-10-24 | B48: Chin | C48: Cs3 | D48: 4
A49: 2011-12-25 | B49: Moe | C49: Cs3 | D49: 8
A50: 2010-06-29 | B50: Tina | C50: Cs3 | D50: 7
A51: 2011-05-25 | B51: Luong | C51: Cs1 | D51: 7
A52: 2011-11-26 | B52: Chin | C52: Cs4 | D52: 9
A53: 2010-05-11 | B53: Tina | C53: Cs6 | D53: 3
A54: 2011-02-11 | B54: Sheliadawn | C54: Cs2 | D54: 10
A55: 2011-09-01 | B55: Chin | C55: Cs3 | D55: 14
A56: 2011-04-09 | B56: Sheliadawn | C56: Cs4 | D56: 1
A57: 2010-10-02 | B57: Sheliadawn | C57: Cs5 | D57: 11
A58: 2010-10-17 | B58: Luong | C58: Cs1 | D58: 17
A59: 2011-03-26 | B59: Sioux | C59: Cs5 | D59: 4
A60: 2012-02-01 | B60: Luong | C60: Cs6 | D60: 14
A61: 2011-10-27 | B61: Sheliadawn | C61: Cs3 | D61: 19
A62: 2011-03-26 | B62: Sioux | C62: Cs3 | D62: 19
A63: 2011-07-31 | B63: Chin | C63: Cs1 | D63: 8
A64: 2010-08-20 | B64: Tina | C64: Cs5 | D64: 23
A65: 2011-03-08 | B65: Sioux | C65: Cs5 | D65: 9
A66: 2012-01-27 | B66: Moe | C66: Cs4 | D66: 23
A67: 2011-05-21 | B67: Luong | C67: Cs6 | D67: 6
A68: 2011-03-31 | B68: Sheliadawn | C68: Cs4 | D68: 3
A69: 2011-06-20 | B69: Luong | C69: Cs1 | D69: 7
A70: 2011-08-29 | B70: Moe | C70: Cs3 | D70: 20
A71: 2012-02-25 | B71: Moe | C71: Cs3 | D71: 19
A72: 2011-06-29 | B72: Moe | C72: Cs4 | D72: 1
A73: 2012-03-17 | B73: Sheliadawn | C73: Cs6 | D73: 20
A74: 2012-01-17 | B74: Tina | C74: Cs1 | D74: 5
A75: 2010-05-25 | B75: Sioux | C75: Cs2 | D75: 16
A76: 2010-08-01 | B76: Sioux | C76: Cs5 | D76: 25
A77: 2011-06-24 | B77: Sheliadawn | C77: Cs5 | D77: 23
A78: 2010-08-21 | B78: Sioux | C78: Cs3 | D78: 18
A79: 2012-01-10 | B79: Sioux | C79: Cs2 | D79: 17
A80: 2011-05-28 | B80: Chin | C80: Cs5 | D80: 10
A81: 2010-07-01 | B81: Sioux | C81: Cs1 | D81: 14
A82: 2012-01-18 | B82: Sheliadawn | C82: Cs6 | D82: 9
A83: 2010-08-26 | B83: Moe | C83: Cs6 | D83: 19
A84: 2011-07-08 | B84: Sheliadawn | C84: Cs4 | D84: 21
A85: 2011-03-28 | B85: Chin | C85: Cs3 | D85: 22
A86: 2012-04-08 | B86: Sioux | C86: Cs3 | D86: 24
A87: 2011-06-07 | B87: Sheliadawn | C87: Cs6 | D87: 13
A88: 2012-03-16 | B88: Luong | C88: Cs5 | D88: 15
A89: 2011-07-17 | B89: Luong | C89: Cs6 | D89: 24
A90: 2011-02-01 | B90: Sheliadawn | C90: Cs1 | D90: 14
A91: 2010-08-19 | B91: Luong | C91: Cs4 | D91: 16
A92: 2011-09-15 | B92: Sheliadawn | C92: Cs6 | D92: 3
A93: 2011-03-29 | B93: Tina | C93: Cs3 | D93: 20
A94: 2011-11-09 | B94: Luong | C94: Cs2 | D94: 20
A95: 2011-04-28 | B95: Chin | C95: Cs5 | D95: 21
A96: 2011-12-21 | B96: Luong | C96: Cs1 | D96: 6
A97: 2011-04-19 | B97: Sioux | C97: Cs6 | D97: 23
A98: 2011-06-16 | B98: Tina | C98: Cs2 | D98: 20
A99: 2010-10-24 | B99: Tina | C99: Cs3 | D99: 7
A100: 2010-05-31 | B100: Sioux | C100: Cs6 | D100: 2
A101: 2011-09-03 | B101: Sheliadawn | C101: Cs1 | D101: 1
A102: 2011-04-02 | B102: Moe | C102: Cs4 | D102: 2
A103: 2011-10-31 | B103: Moe | C103: Cs6 | D103: 19
A104: 2011-01-19 | B104: Sioux | C104: Cs6 | D104: 15
A105: 2012-03-20 | B105: Sioux | C105: Cs2 | D105: 24
A106: 2011-07-14 | B106: Sheliadawn | C106: Cs5 | D106: 15
A107: 2011-08-22 | B107: Luong | C107: Cs1 | D107: 21
A108: 2010-07-18 | B108: Chin | C108: Cs6 | D108: 7
A109: 2010-05-13 | B109: Tina | C109: Cs1 | D109: 19
A110: 2011-09-29 | B110: Sioux | C110: Cs5 | D110: 18
A111: 2010-07-20 | B111: Moe | C111: Cs3 | D111: 9
A112: 2011-04-30 | B112: Moe | C112: Cs3 | D112: 7
A113: 2010-07-22 | B113: Moe | C113: Cs3 | D113: 10
A114: 2011-03-22 | B114: Sioux | C114: Cs6 | D114: 15
A115: 2011-05-13 | B115: Moe | C115: Cs4 | D115: 6
A116: 2010-06-09 | B116: Luong | C116: Cs5 | D116: 7
A117: 2011-08-11 | B117: Sioux | C117: Cs4 | D117: 20
A118: 2011-02-26 | B118: Sioux | C118: Cs3 | D118: 7
A119: 2010-05-15 | B119: Tina | C119: Cs3 | D119: 24
A120: 2011-01-12 | B120: Moe | C120: Cs3 | D120: 16
A121: 2012-01-31 | B121: Sheliadawn | C121: Cs1 | D121: 20
A122: 2011-05-20 | B122: Moe | C122: Cs3 | D122: 23
A123: 2012-03-11 | B123: Tina | C123: Cs2 | D123: 13
A124: 2011-01-24 | B124: Chin | C124: Cs3 | D124: 23
A125: 2011-12-19 | B125: Chin | C125: Cs3 | D125: 16
A126: 2010-09-26 | B126: Sioux | C126: Cs3 | D126: 5
A127: 2012-01-17 | B127: Chin | C127: Cs4 | D127: 20
A128: 2012-01-05 | B128: Moe | C128: Cs1 | D128: 23
A129: 2010-07-01 | B129: Sioux | C129: Cs3 | D129: 9
A130: 2010-07-18 | B130: Chin | C130: Cs3 | D130: 8
A131: 2011-01-27 | B131: Sioux | C131: Cs2 | D131: 7
A132: 2012-03-17 | B132: Moe | C132: Cs1 | D132: 20
A133: 2010-07-15 | B133: Tina | C133: Cs6 | D133: 14
A134: 2010-11-23 | B134: Sioux | C134: Cs5 | D134: 22
A135: 2011-09-01 | B135: Chin | C135: Cs6 | D135: 21
A136: 2012-03-01 | B136: Sheliadawn | C136: Cs1 | D136: 17
A137: 2010-12-09 | B137: Tina | C137: Cs4 | D137: 13
A138: 2011-05-28 | B138: Sioux | C138: Cs5 | D138: 11
A139: 2010-12-05 | B139: Luong | C139: Cs4 | D139: 17
A140: 2011-10-01 | B140: Chin | C140: Cs4 | D140: 23
A141: 2011-05-28 | B141: Chin | C141: Cs2 | D141: 18
A142: 2011-04-27 | B142: Chin | C142: Cs6 | D142: 4
A143: 2011-05-07 | B143: Sioux | C143: Cs5 | D143: 14
A144: 2012-01-12 | B144: Sioux | C144: Cs3 | D144: 5
A145: 2011-02-15 | B145: Sheliadawn | C145: Cs4 | D145: 12
A146: 2010-10-28 | B146: Chin | C146: Cs6 | D146: 15
A147: 2011-08-07 | B147: Tina | C147: Cs3 | D147: 12
A148: 2011-08-20 | B148: Moe | C148: Cs1 | D148: 1
A149: 2010-12-17 | B149: Tina | C149: Cs5 | D149: 5
A150: 2011-07-01 | B150: Moe | C150: Cs5 | D150: 22
A151: 2011-10-24 | B151: Sioux | C151: Cs2 | D151: 19
A152: 2011-09-25 | B152: Sheliadawn | C152: Cs5 | D152: 15
A153: 2012-02-14 | B153: Sheliadawn | C153: Cs3 | D153: 9
A154: 2010-08-04 | B154: Moe | C154: Cs2 | D154: 14
A155: 2010-12-22 | B155: Tina | C155: Cs1 | D155: 1
A156: 2010-05-24 | B156: Tina | C156: Cs5 | D156: 25
A157: 2011-06-28 | B157: Sioux | C157: Cs2 | D157: 22
A158: 2010-06-22 | B158: Luong | C158: Cs5 | D158: 19
A159: 2012-01-04 | B159: Moe | C159: Cs5 | D159: 1
A160: 2011-12-14 | B160: Sioux | C160: Cs2 | D160: 14
A161: 2011-07-31 | B161: Sioux | C161: Cs3 | D161: 2
A162: 2011-06-09 | B162: Luong | C162: Cs3 | D162: 20
A163: 2010-12-23 | B163: Moe | C163: Cs2 | D163: 4
A164: 2011-11-02 | B164: Moe | C164: Cs4 | D164: 14
A165: 2011-02-13 | B165: Moe | C165: Cs3 | D165: 9
A166: 2011-03-10 | B166: Tina | C166: Cs6 | D166: 4
A167: 2011-06-20 | B167: Luong | C167: Cs1 | D167: 17
A168: 2011-10-18 | B168: Moe | C168: Cs1 | D168: 23
A169: 2010-06-18 | B169: Luong | C169: Cs2 | D169: 2
A170: 2011-09-11 | B170: Sioux | C170: Cs1 | D170: 20
A171: 2011-08-30 | B171: Chin | C171: Cs4 | D171: 1
A172: 2010-09-19 | B172: Chin | C172: Cs2 | D172: 4
A173: 2011-03-16 | B173: Sioux | C173: Cs6 | D173: 17
A174: 2011-05-26 | B174: Luong | C174: Cs3 | D174: 8
A175: 2011-12-23 | B175: Tina | C175: Cs2 | D175: 4
A176: 2012-02-22 | B176: Sioux | C176: Cs3 | D176: 18
A177: 2011-05-21 | B177: Luong | C177: Cs3 | D177: 11
A178: 2010-10-12 | B178: Sioux | C178: Cs4 | D178: 21
A179: 2012-01-31 | B179: Luong | C179: Cs1 | D179: 21
A180: 2010-06-09 | B180: Chin | C180: Cs5 | D180: 3
A181: 2010-08-23 | B181: Sioux | C181: Cs2 | D181: 24
A182: 2010-10-02 | B182: Tina | C182: Cs2 | D182: 14
A183: 2011-04-19 | B183: Chin | C183: Cs1 | D183: 14
A184: 2010-11-27 | B184: Sioux | C184: Cs6 | D184: 1
A185: 2011-03-08 | B185: Sheliadawn | C185: Cs4 | D185: 24
A186: 2011-09-21 | B186: Moe | C186: Cs5 | D186: 7
A187: 2010-06-04 | B187: Sioux | C187: Cs3 | D187: 12
A188: 2011-11-14 | B188: Chin | C188: Cs2 | D188: 2
A189: 2010-07-28 | B189: Chin | C189: Cs3 | D189: 3
A190: 2011-10-02 | B190: Tina | C190: Cs4 | D190: 12
A191: 2010-07-09 | B191: Chin | C191: Cs2 | D191: 1
A192: 2011-10-03 | B192: Sheliadawn | C192: Cs6 | D192: 1
A193: 2012-02-04 | B193: Moe | C193: Cs5 | D193: 22
A194: 2011-05-22 | B194: Moe | C194: Cs2 | D194: 7
A195: 2010-09-11 | B195: Chin | C195: Cs6 | D195: 3
A196: 2012-02-02 | B196: Moe | C196: Cs5 | D196: 2
A197: 2011-02-12 | B197: Chin | C197: Cs5 | D197: 16
A198: 2011-11-27 | B198: Sheliadawn | C198: Cs1 | D198: 25
A199: 2011-02-22 | B199: Sheliadawn | C199: Cs3 | D199: 22
A200: 2011-12-04 | B200: Tina | C200: Cs6 | D200: 6
A201: 2011-03-04 | B201: Luong | C201: Cs4 | D201: 13
A202: 2011-04-06 | B202: Tina | C202: Cs5 | D202: 22
A203: 2012-01-08 | B203: Sioux | C203: Cs5 | D203: 9
A204: 2011-12-03 | B204: Sheliadawn | C204: Cs6 | D204: 6
... 483 more rows

Sheet HW(46an)
A1: ="In the range "&ADDRESS(ROW(G12),COLUMN(G12),4)&":"&ADDRESS(ROW(L22),COLUMN(L22),4)&" create a formula that adds the sales reps total time on the phone for the month." -> In the range G12:L22 create a formula that adds the sales reps total time on the phone for the month.
A6: Date | B6: SalesRep | C6: Customer | D6: Time of Phone Call | F6: Max Date | G6: =MAX(A7:A687) -> 2012-04-08
A7: 2011-04-21 | B7: Luong | C7: Cs3 | D7: 20 | F7: Min Date | G7: =MIN(A7:A687) -> 2010-05-10
A8: 2012-03-11 | B8: Luong | C8: Cs4 | D8: 14 | F8: Start Date | G8: 2010-06-01 | H8: <<= enter start date for template
A9: 2011-01-06 | B9: Sioux | C9: Cs3 | D9: 8 | F9: 1st of month | G9: =DATE(YEAR(G8),MONTH(G8),1) -> 2010-06-01
A10: 2010-06-14 | B10: Sioux | C10: Cs3 | D10: 19
A11: 2012-03-15 | B11: Sheliadawn | C11: Cs2 | D11: 6 | F11: Month/Sales Rep | G11: Chin | H11: Moe | I11: Tina | J11: Luong | K11: Sheliadawn | L11: Sioux
A12: 2010-10-10 | B12: Chin | C12: Cs3 | D12: 19 | F12: =G9 -> 2010-06-01 | G12: =SUMPRODUCT(--(TEXT($A$7:$A$687,"myyy")=TEXT($F12,"myyy")),--($B$7:$B$687=G$11),$D$7:$D$687) -> 165 | H12: =SUMPRODUCT(--(TEXT($A$7:$A$687,"myyy")=TEXT($F12,"myyy")),--($B$7:$B$687=H$11),$D$7:$D$687) -> 26 | I12: 94 | J12: 97 | K12: 91 | L12: 84
A13: 2011-07-17 | B13: Chin | C13: Cs3 | D13: 24 | F13: =EDATE(F12,1) -> 2010-07-01 | G13: =SUMPRODUCT(--(TEXT($A$7:$A$687,"myyy")=TEXT($F13,"myyy")),--($B$7:$B$687=G$11),$D$7:$D$687) -> 55 | H13: 32 | I13: 43 | J13: 34 | K13: 127 | L13: 51
A14: 2011-12-11 | B14: Luong | C14: Cs6 | D14: 11 | F14: =EDATE(F13,1) -> 2010-08-01 | G14: 43 | H14: 81 | I14: 80 | J14: 81 | K14: 49 | L14: 112
A15: 2012-03-25 | B15: Chin | C15: Cs1 | D15: 5 | F15: 2010-09-01 | G15: 43 | H15: 35 | I15: 70 | J15: 62 | K15: 73 | L15: 49
A16: 2010-10-31 | B16: Chin | C16: Cs6 | D16: 5 | F16: 2010-10-01 | G16: 69 | H16: 70 | I16: 85 | J16: 66 | K16: 47 | L16: 58
A17: 2011-02-03 | B17: Moe | C17: Cs4 | D17: 5 | F17: 2010-11-01 | G17: 11 | H17: 56 | I17: 78 | J17: 32 | K17: 25 | L17: 63
A18: 2011-06-23 | B18: Tina | C18: Cs3 | D18: 17 | F18: 2010-12-01 | G18: 7 | H18: 45 | I18: 81 | J18: 104 | K18: 25 | L18: 32
A19: 2011-07-10 | B19: Moe | C19: Cs1 | D19: 3 | F19: 2011-01-01 | G19: 78 | H19: 73 | I19: 82 | J19: 43 | K19: 40 | L19: 73
A20: 2011-09-10 | B20: Moe | C20: Cs5 | D20: 17 | F20: 2011-02-01 | G20: 37 | H20: 53 | I20: 13 | J20: 13 | K20: 94 | L20: 70
A21: 2010-08-30 | B21: Sheliadawn | C21: Cs4 | D21: 4 | F21: 2011-03-01 | G21: 78 | H21: 41 | I21: 55 | J21: 36 | K21: 71 | L21: 92
A22: 2010-09-08 | B22: Sheliadawn | C22: Cs3 | D22: 22 | F22: 2011-04-01 | G22: 87 | H22: 26 | I22: 79 | J22: 44 | K22: 58 | L22: 106
A23: 2011-11-18 | B23: Luong | C23: Cs1 | D23: 6
A24: 2010-11-05 | B24: Moe | C24: Cs5 | D24: 4
A25: 2010-06-29 | B25: Tina | C25: Cs5 | D25: 22
A26: 2011-06-08 | B26: Moe | C26: Cs5 | D26: 22
A27: 2011-05-12 | B27: Chin | C27: Cs6 | D27: 14
A28: 2010-08-05 | B28: Chin | C28: Cs3 | D28: 25
A29: 2010-09-17 | B29: Chin | C29: Cs5 | D29: 10
A30: 2011-05-24 | B30: Luong | C30: Cs3 | D30: 11
A31: 2011-06-14 | B31: Tina | C31: Cs3 | D31: 25
A32: 2011-04-12 | B32: Sheliadawn | C32: Cs3 | D32: 25
A33: 2011-01-21 | B33: Moe | C33: Cs4 | D33: 16
A34: 2010-12-29 | B34: Sheliadawn | C34: Cs5 | D34: 7
A35: 2011-12-08 | B35: Sioux | C35: Cs1 | D35: 6
A36: 2011-12-31 | B36: Sheliadawn | C36: Cs1 | D36: 3
A37: 2011-01-21 | B37: Sheliadawn | C37: Cs3 | D37: 11
A38: 2011-05-23 | B38: Moe | C38: Cs4 | D38: 15
A39: 2010-12-06 | B39: Moe | C39: Cs5 | D39: 16
A40: 2011-06-25 | B40: Moe | C40: Cs2 | D40: 18
A41: 2010-09-12 | B41: Chin | C41: Cs6 | D41: 3
A42: 2010-05-31 | B42: Tina | C42: Cs4 | D42: 1
A43: 2010-06-12 | B43: Sioux | C43: Cs1 | D43: 7
A44: 2010-08-06 | B44: Sheliadawn | C44: Cs5 | D44: 16
A45: 2012-01-30 | B45: Tina | C45: Cs3 | D45: 24
A46: 2011-02-12 | B46: Sioux | C46: Cs6 | D46: 25
A47: 2011-03-30 | B47: Luong | C47: Cs2 | D47: 6
A48: 2010-10-24 | B48: Chin | C48: Cs3 | D48: 4
A49: 2011-12-25 | B49: Moe | C49: Cs3 | D49: 8
A50: 2010-06-29 | B50: Tina | C50: Cs3 | D50: 7
A51: 2011-05-25 | B51: Luong | C51: Cs1 | D51: 7
A52: 2011-11-26 | B52: Chin | C52: Cs4 | D52: 9
A53: 2010-05-11 | B53: Tina | C53: Cs6 | D53: 3
A54: 2011-02-11 | B54: Sheliadawn | C54: Cs2 | D54: 10
A55: 2011-09-01 | B55: Chin | C55: Cs3 | D55: 14
A56: 2011-04-09 | B56: Sheliadawn | C56: Cs4 | D56: 1
A57: 2010-10-02 | B57: Sheliadawn | C57: Cs5 | D57: 11
A58: 2010-10-17 | B58: Luong | C58: Cs1 | D58: 17
A59: 2011-03-26 | B59: Sioux | C59: Cs5 | D59: 4
A60: 2012-02-01 | B60: Luong | C60: Cs6 | D60: 14
A61: 2011-10-27 | B61: Sheliadawn | C61: Cs3 | D61: 19
A62: 2011-03-26 | B62: Sioux | C62: Cs3 | D62: 19
A63: 2011-07-31 | B63: Chin | C63: Cs1 | D63: 8
A64: 2010-08-20 | B64: Tina | C64: Cs5 | D64: 23
A65: 2011-03-08 | B65: Sioux | C65: Cs5 | D65: 9
A66: 2012-01-27 | B66: Moe | C66: Cs4 | D66: 23
A67: 2011-05-21 | B67: Luong | C67: Cs6 | D67: 6
A68: 2011-03-31 | B68: Sheliadawn | C68: Cs4 | D68: 3
A69: 2011-06-20 | B69: Luong | C69: Cs1 | D69: 7
A70: 2011-08-29 | B70: Moe | C70: Cs3 | D70: 20
A71: 2012-02-25 | B71: Moe | C71: Cs3 | D71: 19
A72: 2011-06-29 | B72: Moe | C72: Cs4 | D72: 1
A73: 2012-03-17 | B73: Sheliadawn | C73: Cs6 | D73: 20
A74: 2012-01-17 | B74: Tina | C74: Cs1 | D74: 5
A75: 2010-05-25 | B75: Sioux | C75: Cs2 | D75: 16
A76: 2010-08-01 | B76: Sioux | C76: Cs5 | D76: 25
A77: 2011-06-24 | B77: Sheliadawn | C77: Cs5 | D77: 23
A78: 2010-08-21 | B78: Sioux | C78: Cs3 | D78: 18
A79: 2012-01-10 | B79: Sioux | C79: Cs2 | D79: 17
A80: 2011-05-28 | B80: Chin | C80: Cs5 | D80: 10
A81: 2010-07-01 | B81: Sioux | C81: Cs1 | D81: 14
A82: 2012-01-18 | B82: Sheliadawn | C82: Cs6 | D82: 9
A83: 2010-08-26 | B83: Moe | C83: Cs6 | D83: 19
A84: 2011-07-08 | B84: Sheliadawn | C84: Cs4 | D84: 21
A85: 2011-03-28 | B85: Chin | C85: Cs3 | D85: 22
A86: 2012-04-08 | B86: Sioux | C86: Cs3 | D86: 24
A87: 2011-06-07 | B87: Sheliadawn | C87: Cs6 | D87: 13
A88: 2012-03-16 | B88: Luong | C88: Cs5 | D88: 15
A89: 2011-07-17 | B89: Luong | C89: Cs6 | D89: 24
A90: 2011-02-01 | B90: Sheliadawn | C90: Cs1 | D90: 14
A91: 2010-08-19 | B91: Luong | C91: Cs4 | D91: 16
A92: 2011-09-15 | B92: Sheliadawn | C92: Cs6 | D92: 3
A93: 2011-03-29 | B93: Tina | C93: Cs3 | D93: 20
A94: 2011-11-09 | B94: Luong | C94: Cs2 | D94: 20
A95: 2011-04-28 | B95: Chin | C95: Cs5 | D95: 21
A96: 2011-12-21 | B96: Luong | C96: Cs1 | D96: 6
A97: 2011-04-19 | B97: Sioux | C97: Cs6 | D97: 23
A98: 2011-06-16 | B98: Tina | C98: Cs2 | D98: 20
A99: 2010-10-24 | B99: Tina | C99: Cs3 | D99: 7
A100: 2010-05-31 | B100: Sioux | C100: Cs6 | D100: 2
A101: 2011-09-03 | B101: Sheliadawn | C101: Cs1 | D101: 1
A102: 2011-04-02 | B102: Moe | C102: Cs4 | D102: 2
A103: 2011-10-31 | B103: Moe | C103: Cs6 | D103: 19
A104: 2011-01-19 | B104: Sioux | C104: Cs6 | D104: 15
A105: 2012-03-20 | B105: Sioux | C105: Cs2 | D105: 24
A106: 2011-07-14 | B106: Sheliadawn | C106: Cs5 | D106: 15
A107: 2011-08-22 | B107: Luong | C107: Cs1 | D107: 21
A108: 2010-07-18 | B108: Chin | C108: Cs6 | D108: 7
A109: 2010-05-13 | B109: Tina | C109: Cs1 | D109: 19
A110: 2011-09-29 | B110: Sioux | C110: Cs5 | D110: 18
A111: 2010-07-20 | B111: Moe | C111: Cs3 | D111: 9
A112: 2011-04-30 | B112: Moe | C112: Cs3 | D112: 7
A113: 2010-07-22 | B113: Moe | C113: Cs3 | D113: 10
A114: 2011-03-22 | B114: Sioux | C114: Cs6 | D114: 15
A115: 2011-05-13 | B115: Moe | C115: Cs4 | D115: 6
A116: 2010-06-09 | B116: Luong | C116: Cs5 | D116: 7
A117: 2011-08-11 | B117: Sioux | C117: Cs4 | D117: 20
A118: 2011-02-26 | B118: Sioux | C118: Cs3 | D118: 7
A119: 2010-05-15 | B119: Tina | C119: Cs3 | D119: 24
A120: 2011-01-12 | B120: Moe | C120: Cs3 | D120: 16
A121: 2012-01-31 | B121: Sheliadawn | C121: Cs1 | D121: 20
A122: 2011-05-20 | B122: Moe | C122: Cs3 | D122: 23
A123: 2012-03-11 | B123: Tina | C123: Cs2 | D123: 13
A124: 2011-01-24 | B124: Chin | C124: Cs3 | D124: 23
A125: 2011-12-19 | B125: Chin | C125: Cs3 | D125: 16
A126: 2010-09-26 | B126: Sioux | C126: Cs3 | D126: 5
A127: 2012-01-17 | B127: Chin | C127: Cs4 | D127: 20
A128: 2012-01-05 | B128: Moe | C128: Cs1 | D128: 23
A129: 2010-07-01 | B129: Sioux | C129: Cs3 | D129: 9
A130: 2010-07-18 | B130: Chin | C130: Cs3 | D130: 8
A131: 2011-01-27 | B131: Sioux | C131: Cs2 | D131: 7
A132: 2012-03-17 | B132: Moe | C132: Cs1 | D132: 20
A133: 2010-07-15 | B133: Tina | C133: Cs6 | D133: 14
A134: 2010-11-23 | B134: Sioux | C134: Cs5 | D134: 22
A135: 2011-09-01 | B135: Chin | C135: Cs6 | D135: 21
A136: 2012-03-01 | B136: Sheliadawn | C136: Cs1 | D136: 17
A137: 2010-12-09 | B137: Tina | C137: Cs4 | D137: 13
A138: 2011-05-28 | B138: Sioux | C138: Cs5 | D138: 11
A139: 2010-12-05 | B139: Luong | C139: Cs4 | D139: 17
A140: 2011-10-01 | B140: Chin | C140: Cs4 | D140: 23
A141: 2011-05-28 | B141: Chin | C141: Cs2 | D141: 18
A142: 2011-04-27 | B142: Chin | C142: Cs6 | D142: 4
A143: 2011-05-07 | B143: Sioux | C143: Cs5 | D143: 14
A144: 2012-01-12 | B144: Sioux | C144: Cs3 | D144: 5
A145: 2011-02-15 | B145: Sheliadawn | C145: Cs4 | D145: 12
A146: 2010-10-28 | B146: Chin | C146: Cs6 | D146: 15
A147: 2011-08-07 | B147: Tina | C147: Cs3 | D147: 12
A148: 2011-08-20 | B148: Moe | C148: Cs1 | D148: 1
A149: 2010-12-17 | B149: Tina | C149: Cs5 | D149: 5
A150: 2011-07-01 | B150: Moe | C150: Cs5 | D150: 22
A151: 2011-10-24 | B151: Sioux | C151: Cs2 | D151: 19
A152: 2011-09-25 | B152: Sheliadawn | C152: Cs5 | D152: 15
A153: 2012-02-14 | B153: Sheliadawn | C153: Cs3 | D153: 9
A154: 2010-08-04 | B154: Moe | C154: Cs2 | D154: 14
A155: 2010-12-22 | B155: Tina | C155: Cs1 | D155: 1
A156: 2010-05-24 | B156: Tina | C156: Cs5 | D156: 25
A157: 2011-06-28 | B157: Sioux | C157: Cs2 | D157: 22
A158: 2010-06-22 | B158: Luong | C158: Cs5 | D158: 19
A159: 2012-01-04 | B159: Moe | C159: Cs5 | D159: 1
A160: 2011-12-14 | B160: Sioux | C160: Cs2 | D160: 14
A161: 2011-07-31 | B161: Sioux | C161: Cs3 | D161: 2
A162: 2011-06-09 | B162: Luong | C162: Cs3 | D162: 20
A163: 2010-12-23 | B163: Moe | C163: Cs2 | D163: 4
A164: 2011-11-02 | B164: Moe | C164: Cs4 | D164: 14
A165: 2011-02-13 | B165: Moe | C165: Cs3 | D165: 9
A166: 2011-03-10 | B166: Tina | C166: Cs6 | D166: 4
A167: 2011-06-20 | B167: Luong | C167: Cs1 | D167: 17
A168: 2011-10-18 | B168: Moe | C168: Cs1 | D168: 23
A169: 2010-06-18 | B169: Luong | C169: Cs2 | D169: 2
A170: 2011-09-11 | B170: Sioux | C170: Cs1 | D170: 20
A171: 2011-08-30 | B171: Chin | C171: Cs4 | D171: 1
A172: 2010-09-19 | B172: Chin | C172: Cs2 | D172: 4
A173: 2011-03-16 | B173: Sioux | C173: Cs6 | D173: 17
A174: 2011-05-26 | B174: Luong | C174: Cs3 | D174: 8
A175: 2011-12-23 | B175: Tina | C175: Cs2 | D175: 4
A176: 2012-02-22 | B176: Sioux | C176: Cs3 | D176: 18
A177: 2011-05-21 | B177: Luong | C177: Cs3 | D177: 11
A178: 2010-10-12 | B178: Sioux | C178: Cs4 | D178: 21
A179: 2012-01-31 | B179: Luong | C179: Cs1 | D179: 21
A180: 2010-06-09 | B180: Chin | C180: Cs5 | D180: 3
A181: 2010-08-23 | B181: Sioux | C181: Cs2 | D181: 24
A182: 2010-10-02 | B182: Tina | C182: Cs2 | D182: 14
A183: 2011-04-19 | B183: Chin | C183: Cs1 | D183: 14
A184: 2010-11-27 | B184: Sioux | C184: Cs6 | D184: 1
A185: 2011-03-08 | B185: Sheliadawn | C185: Cs4 | D185: 24
A186: 2011-09-21 | B186: Moe | C186: Cs5 | D186: 7
A187: 2010-06-04 | B187: Sioux | C187: Cs3 | D187: 12
A188: 2011-11-14 | B188: Chin | C188: Cs2 | D188: 2
A189: 2010-07-28 | B189: Chin | C189: Cs3 | D189: 3
A190: 2011-10-02 | B190: Tina | C190: Cs4 | D190: 12
A191: 2010-07-09 | B191: Chin | C191: Cs2 | D191: 1
A192: 2011-10-03 | B192: Sheliadawn | C192: Cs6 | D192: 1
A193: 2012-02-04 | B193: Moe | C193: Cs5 | D193: 22
A194: 2011-05-22 | B194: Moe | C194: Cs2 | D194: 7
A195: 2010-09-11 | B195: Chin | C195: Cs6 | D195: 3
A196: 2012-02-02 | B196: Moe | C196: Cs5 | D196: 2
A197: 2011-02-12 | B197: Chin | C197: Cs5 | D197: 16
A198: 2011-11-27 | B198: Sheliadawn | C198: Cs1 | D198: 25
A199: 2011-02-22 | B199: Sheliadawn | C199: Cs3 | D199: 22
A200: 2011-12-04 | B200: Tina | C200: Cs6 | D200: 6
A201: 2011-03-04 | B201: Luong | C201: Cs4 | D201: 13
A202: 2011-04-06 | B202: Tina | C202: Cs5 | D202: 22
A203: 2012-01-08 | B203: Sioux | C203: Cs5 | D203: 9
A204: 2011-12-03 | B204: Sheliadawn | C204: Cs6 | D204: 6
... 483 more rows

Sheet HW(47)
A1: Create 5 different SUMPRODUCT formulas that adds all the times for the year 2010 each using a different method for converting TRUEs and FALSEs to 1s and 0s.
A4: Date | B4: SalesRep | C4: Customer | D4: Time of Phone Call
A5: 2011-04-21 | B5: Luong | C5: Cs3 | D5: 20
A6: 2012-03-11 | B6: Luong | C6: Cs4 | D6: 14
A7: 2011-01-06 | B7: Sioux | C7: Cs3 | D7: 8
A8: 2010-06-14 | B8: Sioux | C8: Cs3 | D8: 19 | H8: 2010
A9: 2012-03-15 | B9: Sheliadawn | C9: Cs2 | D9: 6 | G9: --
A10: 2010-10-10 | B10: Chin | C10: Cs3 | D10: 19 | G10: *1
A11: 2011-07-17 | B11: Chin | C11: Cs3 | D11: 24 | G11: /1
A12: 2011-12-11 | B12: Luong | C12: Cs6 | D12: 11 | G12: ^1
A13: 2012-03-25 | B13: Chin | C13: Cs1 | D13: 5 | G13: +0
A14: 2010-10-31 | B14: Chin | C14: Cs6 | D14: 5
A15: 2011-02-03 | B15: Moe | C15: Cs4 | D15: 5
A16: 2011-06-23 | B16: Tina | C16: Cs3 | D16: 17
A17: 2011-07-10 | B17: Moe | C17: Cs1 | D17: 3
A18: 2011-09-10 | B18: Moe | C18: Cs5 | D18: 17
A19: 2010-08-30 | B19: Sheliadawn | C19: Cs4 | D19: 4
A20: 2010-09-08 | B20: Sheliadawn | C20: Cs3 | D20: 22
A21: 2011-11-18 | B21: Luong | C21: Cs1 | D21: 6
A22: 2010-11-05 | B22: Moe | C22: Cs5 | D22: 4
A23: 2010-06-29 | B23: Tina | C23: Cs5 | D23: 22
A24: 2011-06-08 | B24: Moe | C24: Cs5 | D24: 22
A25: 2011-05-12 | B25: Chin | C25: Cs6 | D25: 14
A26: 2010-08-05 | B26: Chin | C26: Cs3 | D26: 25
A27: 2010-09-17 | B27: Chin | C27: Cs5 | D27: 10
A28: 2011-05-24 | B28: Luong | C28: Cs3 | D28: 11
A29: 2011-06-14 | B29: Tina | C29: Cs3 | D29: 25
A30: 2011-04-12 | B30: Sheliadawn | C30: Cs3 | D30: 25
A31: 2011-01-21 | B31: Moe | C31: Cs4 | D31: 16
A32: 2010-12-29 | B32: Sheliadawn | C32: Cs5 | D32: 7
A33: 2011-12-08 | B33: Sioux | C33: Cs1 | D33: 6
A34: 2011-12-31 | B34: Sheliadawn | C34: Cs1 | D34: 3
A35: 2011-01-21 | B35: Sheliadawn | C35: Cs3 | D35: 11
A36: 2011-05-23 | B36: Moe | C36: Cs4 | D36: 15
A37: 2010-12-06 | B37: Moe | C37: Cs5 | D37: 16
A38: 2011-06-25 | B38: Moe | C38: Cs2 | D38: 18
A39: 2010-09-12 | B39: Chin | C39: Cs6 | D39: 3
A40: 2010-05-31 | B40: Tina | C40: Cs4 | D40: 1
A41: 2010-06-12 | B41: Sioux | C41: Cs1 | D41: 7
A42: 2010-08-06 | B42: Sheliadawn | C42: Cs5 | D42: 16
A43: 2012-01-30 | B43: Tina | C43: Cs3 | D43: 24
A44: 2011-02-12 | B44: Sioux | C44: Cs6 | D44: 25
A45: 2011-03-30 | B45: Luong | C45: Cs2 | D45: 6
A46: 2010-10-24 | B46: Chin | C46: Cs3 | D46: 4
A47: 2011-12-25 | B47: Moe | C47: Cs3 | D47: 8
A48: 2010-06-29 | B48: Tina | C48: Cs3 | D48: 7
A49: 2011-05-25 | B49: Luong | C49: Cs1 | D49: 7
A50: 2011-11-26 | B50: Chin | C50: Cs4 | D50: 9
A51: 2010-05-11 | B51: Tina | C51: Cs6 | D51: 3
A52: 2011-02-11 | B52: Sheliadawn | C52: Cs2 | D52: 10
A53: 2011-09-01 | B53: Chin | C53: Cs3 | D53: 14
A54: 2011-04-09 | B54: Sheliadawn | C54: Cs4 | D54: 1
A55: 2010-10-02 | B55: Sheliadawn | C55: Cs5 | D55: 11
A56: 2010-10-17 | B56: Luong | C56: Cs1 | D56: 17
A57: 2011-03-26 | B57: Sioux | C57: Cs5 | D57: 4
A58: 2012-02-01 | B58: Luong | C58: Cs6 | D58: 14
A59: 2011-10-27 | B59: Sheliadawn | C59: Cs3 | D59: 19
A60: 2011-03-26 | B60: Sioux | C60: Cs3 | D60: 19
A61: 2011-07-31 | B61: Chin | C61: Cs1 | D61: 8
A62: 2010-08-20 | B62: Tina | C62: Cs5 | D62: 23
A63: 2011-03-08 | B63: Sioux | C63: Cs5 | D63: 9
A64: 2012-01-27 | B64: Moe | C64: Cs4 | D64: 23
A65: 2011-05-21 | B65: Luong | C65: Cs6 | D65: 6
A66: 2011-03-31 | B66: Sheliadawn | C66: Cs4 | D66: 3
A67: 2011-06-20 | B67: Luong | C67: Cs1 | D67: 7
A68: 2011-08-29 | B68: Moe | C68: Cs3 | D68: 20
A69: 2012-02-25 | B69: Moe | C69: Cs3 | D69: 19
A70: 2011-06-29 | B70: Moe | C70: Cs4 | D70: 1
A71: 2012-03-17 | B71: Sheliadawn | C71: Cs6 | D71: 20
A72: 2012-01-17 | B72: Tina | C72: Cs1 | D72: 5
A73: 2010-05-25 | B73: Sioux | C73: Cs2 | D73: 16
A74: 2010-08-01 | B74: Sioux | C74: Cs5 | D74: 25
A75: 2011-06-24 | B75: Sheliadawn | C75: Cs5 | D75: 23
A76: 2010-08-21 | B76: Sioux | C76: Cs3 | D76: 18
A77: 2012-01-10 | B77: Sioux | C77: Cs2 | D77: 17
A78: 2011-05-28 | B78: Chin | C78: Cs5 | D78: 10
A79: 2010-07-01 | B79: Sioux | C79: Cs1 | D79: 14
A80: 2012-01-18 | B80: Sheliadawn | C80: Cs6 | D80: 9
A81: 2010-08-26 | B81: Moe | C81: Cs6 | D81: 19
A82: 2011-07-08 | B82: Sheliadawn | C82: Cs4 | D82: 21
A83: 2011-03-28 | B83: Chin | C83: Cs3 | D83: 22
A84: 2012-04-08 | B84: Sioux | C84: Cs3 | D84: 24
A85: 2011-06-07 | B85: Sheliadawn | C85: Cs6 | D85: 13
A86: 2012-03-16 | B86: Luong | C86: Cs5 | D86: 15
A87: 2011-07-17 | B87: Luong | C87: Cs6 | D87: 24
A88: 2011-02-01 | B88: Sheliadawn | C88: Cs1 | D88: 14
A89: 2010-08-19 | B89: Luong | C89: Cs4 | D89: 16
A90: 2011-09-15 | B90: Sheliadawn | C90: Cs6 | D90: 3
A91: 2011-03-29 | B91: Tina | C91: Cs3 | D91: 20
A92: 2011-11-09 | B92: Luong | C92: Cs2 | D92: 20
A93: 2011-04-28 | B93: Chin | C93: Cs5 | D93: 21
A94: 2011-12-21 | B94: Luong | C94: Cs1 | D94: 6
A95: 2011-04-19 | B95: Sioux | C95: Cs6 | D95: 23
A96: 2011-06-16 | B96: Tina | C96: Cs2 | D96: 20
A97: 2010-10-24 | B97: Tina | C97: Cs3 | D97: 7
A98: 2010-05-31 | B98: Sioux | C98: Cs6 | D98: 2
A99: 2011-09-03 | B99: Sheliadawn | C99: Cs1 | D99: 1
A100: 2011-04-02 | B100: Moe | C100: Cs4 | D100: 2
A101: 2011-10-31 | B101: Moe | C101: Cs6 | D101: 19
A102: 2011-01-19 | B102: Sioux | C102: Cs6 | D102: 15
A103: 2012-03-20 | B103: Sioux | C103: Cs2 | D103: 24
A104: 2011-07-14 | B104: Sheliadawn | C104: Cs5 | D104: 15
A105: 2011-08-22 | B105: Luong | C105: Cs1 | D105: 21
A106: 2010-07-18 | B106: Chin | C106: Cs6 | D106: 7
A107: 2010-05-13 | B107: Tina | C107: Cs1 | D107: 19
A108: 2011-09-29 | B108: Sioux | C108: Cs5 | D108: 18
A109: 2010-07-20 | B109: Moe | C109: Cs3 | D109: 9
A110: 2011-04-30 | B110: Moe | C110: Cs3 | D110: 7
A111: 2010-07-22 | B111: Moe | C111: Cs3 | D111: 10
A112: 2011-03-22 | B112: Sioux | C112: Cs6 | D112: 15
A113: 2011-05-13 | B113: Moe | C113: Cs4 | D113: 6
A114: 2010-06-09 | B114: Luong | C114: Cs5 | D114: 7
A115: 2011-08-11 | B115: Sioux | C115: Cs4 | D115: 20
A116: 2011-02-26 | B116: Sioux | C116: Cs3 | D116: 7
A117: 2010-05-15 | B117: Tina | C117: Cs3 | D117: 24
A118: 2011-01-12 | B118: Moe | C118: Cs3 | D118: 16
A119: 2012-01-31 | B119: Sheliadawn | C119: Cs1 | D119: 20
A120: 2011-05-20 | B120: Moe | C120: Cs3 | D120: 23
A121: 2012-03-11 | B121: Tina | C121: Cs2 | D121: 13
A122: 2011-01-24 | B122: Chin | C122: Cs3 | D122: 23
A123: 2011-12-19 | B123: Chin | C123: Cs3 | D123: 16
A124: 2010-09-26 | B124: Sioux | C124: Cs3 | D124: 5
A125: 2012-01-17 | B125: Chin | C125: Cs4 | D125: 20
A126: 2012-01-05 | B126: Moe | C126: Cs1 | D126: 23
A127: 2010-07-01 | B127: Sioux | C127: Cs3 | D127: 9
A128: 2010-07-18 | B128: Chin | C128: Cs3 | D128: 8
A129: 2011-01-27 | B129: Sioux | C129: Cs2 | D129: 7
A130: 2012-03-17 | B130: Moe | C130: Cs1 | D130: 20
A131: 2010-07-15 | B131: Tina | C131: Cs6 | D131: 14
A132: 2010-11-23 | B132: Sioux | C132: Cs5 | D132: 22
A133: 2011-09-01 | B133: Chin | C133: Cs6 | D133: 21
A134: 2012-03-01 | B134: Sheliadawn | C134: Cs1 | D134: 17
A135: 2010-12-09 | B135: Tina | C135: Cs4 | D135: 13
A136: 2011-05-28 | B136: Sioux | C136: Cs5 | D136: 11
A137: 2010-12-05 | B137: Luong | C137: Cs4 | D137: 17
A138: 2011-10-01 | B138: Chin | C138: Cs4 | D138: 23
A139: 2011-05-28 | B139: Chin | C139: Cs2 | D139: 18
A140: 2011-04-27 | B140: Chin | C140: Cs6 | D140: 4
A141: 2011-05-07 | B141: Sioux | C141: Cs5 | D141: 14
A142: 2012-01-12 | B142: Sioux | C142: Cs3 | D142: 5
A143: 2011-02-15 | B143: Sheliadawn | C143: Cs4 | D143: 12
A144: 2010-10-28 | B144: Chin | C144: Cs6 | D144: 15
A145: 2011-08-07 | B145: Tina | C145: Cs3 | D145: 12
A146: 2011-08-20 | B146: Moe | C146: Cs1 | D146: 1
A147: 2010-12-17 | B147: Tina | C147: Cs5 | D147: 5
A148: 2011-07-01 | B148: Moe | C148: Cs5 | D148: 22
A149: 2011-10-24 | B149: Sioux | C149: Cs2 | D149: 19
A150: 2011-09-25 | B150: Sheliadawn | C150: Cs5 | D150: 15
A151: 2012-02-14 | B151: Sheliadawn | C151: Cs3 | D151: 9
A152: 2010-08-04 | B152: Moe | C152: Cs2 | D152: 14
A153: 2010-12-22 | B153: Tina | C153: Cs1 | D153: 1
A154: 2010-05-24 | B154: Tina | C154: Cs5 | D154: 25
A155: 2011-06-28 | B155: Sioux | C155: Cs2 | D155: 22
A156: 2010-06-22 | B156: Luong | C156: Cs5 | D156: 19
A157: 2012-01-04 | B157: Moe | C157: Cs5 | D157: 1
A158: 2011-12-14 | B158: Sioux | C158: Cs2 | D158: 14
A159: 2011-07-31 | B159: Sioux | C159: Cs3 | D159: 2
A160: 2011-06-09 | B160: Luong | C160: Cs3 | D160: 20
A161: 2010-12-23 | B161: Moe | C161: Cs2 | D161: 4
A162: 2011-11-02 | B162: Moe | C162: Cs4 | D162: 14
A163: 2011-02-13 | B163: Moe | C163: Cs3 | D163: 9
A164: 2011-03-10 | B164: Tina | C164: Cs6 | D164: 4
A165: 2011-06-20 | B165: Luong | C165: Cs1 | D165: 17
A166: 2011-10-18 | B166: Moe | C166: Cs1 | D166: 23
A167: 2010-06-18 | B167: Luong | C167: Cs2 | D167: 2
A168: 2011-09-11 | B168: Sioux | C168: Cs1 | D168: 20
A169: 2011-08-30 | B169: Chin | C169: Cs4 | D169: 1
A170: 2010-09-19 | B170: Chin | C170: Cs2 | D170: 4
A171: 2011-03-16 | B171: Sioux | C171: Cs6 | D171: 17
A172: 2011-05-26 | B172: Luong | C172: Cs3 | D172: 8
A173: 2011-12-23 | B173: Tina | C173: Cs2 | D173: 4
A174: 2012-02-22 | B174: Sioux | C174: Cs3 | D174: 18
A175: 2011-05-21 | B175: Luong | C175: Cs3 | D175: 11
A176: 2010-10-12 | B176: Sioux | C176: Cs4 | D176: 21
A177: 2012-01-31 | B177: Luong | C177: Cs1 | D177: 21
A178: 2010-06-09 | B178: Chin | C178: Cs5 | D178: 3
A179: 2010-08-23 | B179: Sioux | C179: Cs2 | D179: 24
A180: 2010-10-02 | B180: Tina | C180: Cs2 | D180: 14
A181: 2011-04-19 | B181: Chin | C181: Cs1 | D181: 14
A182: 2010-11-27 | B182: Sioux | C182: Cs6 | D182: 1
A183: 2011-03-08 | B183: Sheliadawn | C183: Cs4 | D183: 24
A184: 2011-09-21 | B184: Moe | C184: Cs5 | D184: 7
A185: 2010-06-04 | B185: Sioux | C185: Cs3 | D185: 12
A186: 2011-11-14 | B186: Chin | C186: Cs2 | D186: 2
A187: 2010-07-28 | B187: Chin | C187: Cs3 | D187: 3
A188: 2011-10-02 | B188: Tina | C188: Cs4 | D188: 12
A189: 2010-07-09 | B189: Chin | C189: Cs2 | D189: 1
A190: 2011-10-03 | B190: Sheliadawn | C190: Cs6 | D190: 1
A191: 2012-02-04 | B191: Moe | C191: Cs5 | D191: 22
A192: 2011-05-22 | B192: Moe | C192: Cs2 | D192: 7
A193: 2010-09-11 | B193: Chin | C193: Cs6 | D193: 3
A194: 2012-02-02 | B194: Moe | C194: Cs5 | D194: 2
A195: 2011-02-12 | B195: Chin | C195: Cs5 | D195: 16
A196: 2011-11-27 | B196: Sheliadawn | C196: Cs1 | D196: 25
A197: 2011-02-22 | B197: Sheliadawn | C197: Cs3 | D197: 22
A198: 2011-12-04 | B198: Tina | C198: Cs6 | D198: 6
A199: 2011-03-04 | B199: Luong | C199: Cs4 | D199: 13
A200: 2011-04-06 | B200: Tina | C200: Cs5 | D200: 22
A201: 2012-01-08 | B201: Sioux | C201: Cs5 | D201: 9
A202: 2011-12-03 | B202: Sheliadawn | C202: Cs6 | D202: 6
... 483 more rows

Sheet HW(47an)
A1: Create 5 different SUMPRODUCT formulas that adds all the times for the year 2010 each using a different method for converting TRUEs and FALSEs to 1s and 0s.
A4: Date | B4: SalesRep | C4: Customer | D4: Time of Phone Call
A5: 2011-04-21 | B5: Luong | C5: Cs3 | D5: 20
A6: 2012-03-11 | B6: Luong | C6: Cs4 | D6: 14
A7: 2011-01-06 | B7: Sioux | C7: Cs3 | D7: 8
A8: 2010-06-14 | B8: Sioux | C8: Cs3 | D8: 19 | H8: 2010
A9: 2012-03-15 | B9: Sheliadawn | C9: Cs2 | D9: 6 | G9: -- | H9: =SUMPRODUCT(--(YEAR($A$5:$A$685)=H$8)) -> 235
A10: 2010-10-10 | B10: Chin | C10: Cs3 | D10: 19 | G10: *1 | H10: =SUMPRODUCT(1*(YEAR($A$5:$A$685)=H$8)) -> 235
A11: 2011-07-17 | B11: Chin | C11: Cs3 | D11: 24 | G11: /1 | H11: =SUMPRODUCT((YEAR($A$5:$A$685)=H$8)/1) -> 235
A12: 2011-12-11 | B12: Luong | C12: Cs6 | D12: 11 | G12: ^1 | H12: =SUMPRODUCT((YEAR($A$5:$A$685)=H$8)^1) -> 235
A13: 2012-03-25 | B13: Chin | C13: Cs1 | D13: 5 | G13: +0 | H13: =SUMPRODUCT((YEAR($A$5:$A$685)=H$8)+0) -> 235
A14: 2010-10-31 | B14: Chin | C14: Cs6 | D14: 5
A15: 2011-02-03 | B15: Moe | C15: Cs4 | D15: 5
A16: 2011-06-23 | B16: Tina | C16: Cs3 | D16: 17
A17: 2011-07-10 | B17: Moe | C17: Cs1 | D17: 3
A18: 2011-09-10 | B18: Moe | C18: Cs5 | D18: 17
A19: 2010-08-30 | B19: Sheliadawn | C19: Cs4 | D19: 4
A20: 2010-09-08 | B20: Sheliadawn | C20: Cs3 | D20: 22
A21: 2011-11-18 | B21: Luong | C21: Cs1 | D21: 6
A22: 2010-11-05 | B22: Moe | C22: Cs5 | D22: 4
A23: 2010-06-29 | B23: Tina | C23: Cs5 | D23: 22
A24: 2011-06-08 | B24: Moe | C24: Cs5 | D24: 22
A25: 2011-05-12 | B25: Chin | C25: Cs6 | D25: 14
A26: 2010-08-05 | B26: Chin | C26: Cs3 | D26: 25
A27: 2010-09-17 | B27: Chin | C27: Cs5 | D27: 10
A28: 2011-05-24 | B28: Luong | C28: Cs3 | D28: 11
A29: 2011-06-14 | B29: Tina | C29: Cs3 | D29: 25
A30: 2011-04-12 | B30: Sheliadawn | C30: Cs3 | D30: 25
A31: 2011-01-21 | B31: Moe | C31: Cs4 | D31: 16
A32: 2010-12-29 | B32: Sheliadawn | C32: Cs5 | D32: 7
A33: 2011-12-08 | B33: Sioux | C33: Cs1 | D33: 6
A34: 2011-12-31 | B34: Sheliadawn | C34: Cs1 | D34: 3
A35: 2011-01-21 | B35: Sheliadawn | C35: Cs3 | D35: 11
A36: 2011-05-23 | B36: Moe | C36: Cs4 | D36: 15
A37: 2010-12-06 | B37: Moe | C37: Cs5 | D37: 16
A38: 2011-06-25 | B38: Moe | C38: Cs2 | D38: 18
A39: 2010-09-12 | B39: Chin | C39: Cs6 | D39: 3
A40: 2010-05-31 | B40: Tina | C40: Cs4 | D40: 1
A41: 2010-06-12 | B41: Sioux | C41: Cs1 | D41: 7
A42: 2010-08-06 | B42: Sheliadawn | C42: Cs5 | D42: 16
A43: 2012-01-30 | B43: Tina | C43: Cs3 | D43: 24
A44: 2011-02-12 | B44: Sioux | C44: Cs6 | D44: 25
A45: 2011-03-30 | B45: Luong | C45: Cs2 | D45: 6
A46: 2010-10-24 | B46: Chin | C46: Cs3 | D46: 4
A47: 2011-12-25 | B47: Moe | C47: Cs3 | D47: 8
A48: 2010-06-29 | B48: Tina | C48: Cs3 | D48: 7
A49: 2011-05-25 | B49: Luong | C49: Cs1 | D49: 7
A50: 2011-11-26 | B50: Chin | C50: Cs4 | D50: 9
A51: 2010-05-11 | B51: Tina | C51: Cs6 | D51: 3
A52: 2011-02-11 | B52: Sheliadawn | C52: Cs2 | D52: 10
A53: 2011-09-01 | B53: Chin | C53: Cs3 | D53: 14
A54: 2011-04-09 | B54: Sheliadawn | C54: Cs4 | D54: 1
A55: 2010-10-02 | B55: Sheliadawn | C55: Cs5 | D55: 11
A56: 2010-10-17 | B56: Luong | C56: Cs1 | D56: 17
A57: 2011-03-26 | B57: Sioux | C57: Cs5 | D57: 4
A58: 2012-02-01 | B58: Luong | C58: Cs6 | D58: 14
A59: 2011-10-27 | B59: Sheliadawn | C59: Cs3 | D59: 19
A60: 2011-03-26 | B60: Sioux | C60: Cs3 | D60: 19
A61: 2011-07-31 | B61: Chin | C61: Cs1 | D61: 8
A62: 2010-08-20 | B62: Tina | C62: Cs5 | D62: 23
A63: 2011-03-08 | B63: Sioux | C63: Cs5 | D63: 9
A64: 2012-01-27 | B64: Moe | C64: Cs4 | D64: 23
A65: 2011-05-21 | B65: Luong | C65: Cs6 | D65: 6
A66: 2011-03-31 | B66: Sheliadawn | C66: Cs4 | D66: 3
A67: 2011-06-20 | B67: Luong | C67: Cs1 | D67: 7
A68: 2011-08-29 | B68: Moe | C68: Cs3 | D68: 20
A69: 2012-02-25 | B69: Moe | C69: Cs3 | D69: 19
A70: 2011-06-29 | B70: Moe | C70: Cs4 | D70: 1
A71: 2012-03-17 | B71: Sheliadawn | C71: Cs6 | D71: 20
A72: 2012-01-17 | B72: Tina | C72: Cs1 | D72: 5
A73: 2010-05-25 | B73: Sioux | C73: Cs2 | D73: 16
A74: 2010-08-01 | B74: Sioux | C74: Cs5 | D74: 25
A75: 2011-06-24 | B75: Sheliadawn | C75: Cs5 | D75: 23
A76: 2010-08-21 | B76: Sioux | C76: Cs3 | D76: 18
A77: 2012-01-10 | B77: Sioux | C77: Cs2 | D77: 17
A78: 2011-05-28 | B78: Chin | C78: Cs5 | D78: 10
A79: 2010-07-01 | B79: Sioux | C79: Cs1 | D79: 14
A80: 2012-01-18 | B80: Sheliadawn | C80: Cs6 | D80: 9
A81: 2010-08-26 | B81: Moe | C81: Cs6 | D81: 19
A82: 2011-07-08 | B82: Sheliadawn | C82: Cs4 | D82: 21
A83: 2011-03-28 | B83: Chin | C83: Cs3 | D83: 22
A84: 2012-04-08 | B84: Sioux | C84: Cs3 | D84: 24
A85: 2011-06-07 | B85: Sheliadawn | C85: Cs6 | D85: 13
A86: 2012-03-16 | B86: Luong | C86: Cs5 | D86: 15
A87: 2011-07-17 | B87: Luong | C87: Cs6 | D87: 24
A88: 2011-02-01 | B88: Sheliadawn | C88: Cs1 | D88: 14
A89: 2010-08-19 | B89: Luong | C89: Cs4 | D89: 16
A90: 2011-09-15 | B90: Sheliadawn | C90: Cs6 | D90: 3
A91: 2011-03-29 | B91: Tina | C91: Cs3 | D91: 20
A92: 2011-11-09 | B92: Luong | C92: Cs2 | D92: 20
A93: 2011-04-28 | B93: Chin | C93: Cs5 | D93: 21
A94: 2011-12-21 | B94: Luong | C94: Cs1 | D94: 6
A95: 2011-04-19 | B95: Sioux | C95: Cs6 | D95: 23
A96: 2011-06-16 | B96: Tina | C96: Cs2 | D96: 20
A97: 2010-10-24 | B97: Tina | C97: Cs3 | D97: 7
A98: 2010-05-31 | B98: Sioux | C98: Cs6 | D98: 2
A99: 2011-09-03 | B99: Sheliadawn | C99: Cs1 | D99: 1
A100: 2011-04-02 | B100: Moe | C100: Cs4 | D100: 2
A101: 2011-10-31 | B101: Moe | C101: Cs6 | D101: 19
A102: 2011-01-19 | B102: Sioux | C102: Cs6 | D102: 15
